Workbook

Sheet VALORES PENDENTES
B2: Superior Tribunal de Justiça
B3: Secretaria de Processamento de Feitos
B4: Coordenadoria de Processamento de Feitos em Execução Judicial
B6: RELAÇÃO DOS PRECATÓRIOS PENDENTES DE PAGAMENTO em 31/12/2023
B9: MUNICÍPIO DE JOÃO PESSOA/PB
B11: Processo | D11: Registro | F11: Tribunal | G11: Ação de origem | H11: Trânsito em julgado da ação de origem | I11: Trânsito em julgado - Expedição do PRC | J11: Data da Expedição do Precatório | K11: Entidade Devedora | L11: CNPJ Entidade Devedora | M11: Cidade | N11: Natureza do Crédito
B12: Classe | C12: nº | D12: STJ | E12: Nº único (Res. 65 CNJ) | W12: Requerente principal | X12: Advogado requerente I | Y12: Advogado requerente II | Z12: Advogado requerente III | AA12: Advogado requerente IV | AB12: Total
A14: 1 | B14: PRC | C14: 1872 | D14: 2011/0141361-9 | E14: 0141361-33.2011.3.00.0000 | F14: STJ | G14: AR 729/PB | H14: 2004-10-13 | I14: 2010-03-15 | J14: 2011-06-20 | K14: Município de João Pessoa - PB | L14: 08.778.326/0001-56 | M14: João Pessoa/PB | N14: Alimentar | W14: 48396.16 | X14: 0 | Y14: 0 | Z14: 0 | AA14: 0 | AB14: 48396.16
A15: 2 | B15: PRC | C15: 1873 | D15: 2011/0141366-8 | E15: 0141366-55.2011.3.00.0000 | F15: STJ | G15: AR 729/PB | H15: 2004-10-13 | I15: 2010-03-15 | J15: 2011-06-20 | K15: Município de João Pessoa - PB | L15: 08.778.326/0001-56 | M15: João Pessoa/PB | N15: Alimentar | W15: 48396.16 | X15: 0 | Y15: 0 | Z15: 0 | AA15: 0 | AB15: 48396.16
W16: 96792.32 | X16: 0 | Y16: 0 | Z16: 0 | AA16: 0 | AB16: 96792.32
B18: DISTRITO FEDERAL
B20: Processo | D20: Registro | F20: Tribunal | G20: Ação de origem | H20: Trânsito em julgado da ação de origem | I20: Trânsito em julgado - Expedição do PRC | J20: Data da Expedição do Precatório | K20: Entidade Devedora | L20: CNPJ Entidade Devedora | M20: Cidade | N20: Natureza do Crédito
B21: Classe | C21: nº | D21: STJ | E21: Nº único (Res. 65 CNJ) | W21: Requerente principal | X21: Advogado requerente I | Y21: Advogado requerente II | Z21: Advogado requerente III | AA21: Advogado requerente IV | AB21: Total
A23: 1 | B23: PRC | C23: 4572 | D23: 2018/0149152-7 | E23: 0149152-41.2018.3.00.0000 | F23: STJ | G23: AR 4.000/DF | H23: 2016-05-05 | I23: 2018-04-12 | J23: 2018-06-20 | K23: Distrito Federal | L23: 00.394.601/0001-26 | M23: Brasilia/DF | N23: Alimentar | W23: 36130.9 | X23: 0 | Y23: 0 | Z23: 0 | AA23: 0 | AB23: 36130.9
W24: 36130.9 | X24: 0 | Y24: 0 | Z24: 0 | AA24: 0 | AB24: 36130.9
B26: MATO GROSSO
B28: Processo | D28: Registro | F28: Tribunal | G28: Ação de origem | H28: Trânsito em julgado da ação de origem | I28: Trânsito em julgado - Expedição do PRC | J28: Data da Expedição do Precatório | K28: Entidade Devedora | L28: CNPJ Entidade Devedora | M28: Cidade | N28: Natureza do Crédito
B29: Classe | C29: nº | D29: STJ | E29: Nº único (Res. 65 CNJ) | W29: Requerente principal | X29: Advogado requerente I | Y29: Advogado requerente II | Z29: Advogado requerente III | AA29: Advogado requerente IV | AB29: Total
A31: 1 | B31: PRC | C31: 5586 | D31: 2019/0372069-5 | E31: 0372069-36.2019.3.00.0000 | F31: STJ | G31: AR 1619/MT | H31: 2015-04-10 | I31: 2019-07-12 | J31: 2019-12-10 | K31: ESTADO DE MATO GROSSO | L31: 03.507.415/0001-44 | M31: Brasilia/DF | N31: Alimentar | W31: 26961.05 | X31: 0 | Y31: 0 | Z31: 0 | AA31: 0 | AB31: 26961.05
A32: 2 | B32: PRC | C32: 8251 | D32: 2021/0168536-8 | E32: 0168536-82.2021.3.00.0000 | F32: STJ | G32: AR 5.222/MT | H32: 2021-02-11 | I32: 2021-05-25 | J32: 2021-05-31 | K32: ESTADO DE MATO GROSSO | L32: 03.507.415/0001-44 | M32: Brasilia/DF | N32: Alimentar | W32: 48123.06 | X32: 0 | Y32: 0 | Z32: 0 | AA32: 0 | AB32: 48123.06
W33: =W31+W32 -> 75084.11 | X33: 0 | Y33: 0 | Z33: 0 | AA33: 0 | AB33: =AB31+AB32 -> 75084.11
B34: ESTADO DE GOIÁS
B36: Processo | D36: Registro | F36: Tribunal | G36: Ação de origem | H36: Trânsito em julgado da ação de origem | I36: Trânsito em julgado - Expedição do PRC | J36: Data da Expedição do Precatório | K36: Entidade Devedora | L36: CNPJ Entidade Devedora | M36: Cidade | N36: Natureza do Crédito
B37: Classe | C37: nº | D37: STJ | E37: Nº único (Res. 65 CNJ) | W37: Requerente principal | X37: Advogado requerente I | Y37: Advogado requerente II | Z37: Advogado requerente III | AA37: Advogado requerente IV | AB37: Total
A39: 1 | B39: PRC | C39: 9431 | D39: 2021/0383571-0 | E39: 0383571-98.2021.3.00.0000 | F39: STJ | G39: AR 3.983/GO | H39: 2019-09-23 | I39: 2021-05-07 | J39: 2021-11-29 | K39: ESTADO DE GOIÁS | L39: 01.409.580/0001-38 | M39: Brasilia/DF | N39: Alimentar | W39: 411886.49 | X39: 0 | Y39: 0 | Z39: 0 | AA39: 0 | AB39: 411886.49
B41: UNIÃO E OUTRAS ENTIDADES FEDERAIS DEVEDORAS
R42: Fator de atualização : | U42: 1.047287997
B43: Processo | D43: Registro | F43: Tribunal | G43: Ação de origem | H43: Trânsito em julgado da ação de origem | I43: Trânsito em julgado - Expedição do PRC | J43: Data da Expedição do Precatório | K43: Entidade Devedora | L43: CNPJ Entidade Devedora | M43: Cidade | N43: Natureza do Crédito | O43: VALORES BASE | W43: Valores pendentes atualizados para | AA43: 2023-12-01 | AD43: % honorários dos advogados
B44: Classe | C44: nº | D44: STJ | E44: Nº único (Res. 65 CNJ) | O44: data | P44: Requerente principal | Q44: Advogado requerente I | R44: Advogado requerente II | S44: Advogado requerente III | T44: Advogado requerente IV | U44: Total | V44: fator | W44: Requerente principal | X44: Advogado requerente I | Y44: Advogado requerente II | Z44: Advogado requerente III | AA44: Advogado requerente IV | AB44: Total | AD44: % adv I | AE44: % adv II | AF44: % adv III | AG44: % adv IV
A46: 1 | B46: PRC | C46: 4291 | D46: 2017/0152947-2 | E46: 0152947-89.2017.3.00.0000 | F46: STJ | G46: MS 6.864/DF | H46: 2006-05-03 | I46: 2015-03-24 | J46: 2017-06-28 | K46: Instituto Nacional do Seguro Social - INSS | L46: 29.979.036/0083-97 | M46: Brasilia/DF | N46: Alimentar | O46: 2022-12-01 | P46: 90875.48 | Q46: 0 | R46: 0 | S46: 0 | T46: 0 | U46: 90875.48 | V46: 1.04840703 | W46: =TRUNC(P46*$V46,2) -> 95274.49 | X46: =TRUNC(Q46*$V46,2) -> 0 | Y46: =TRUNC(R46*$V46,2) -> 0 | Z46: =TRUNC(S46*$V46,2) -> 0 | AA46: =TRUNC(T46*$V46,2) -> 0 | AB46: =W46+X46+Y46+Z46+AA46 -> 95274.49
A47: =A46+1 -> 2 | B47: PRC | C47: 4670 | D47: 2019/0049423-9 | E47: 0049423-08.2019.3.00.0000 | F47: STJ | G47: MS 23.107/DF | H47: 2017-10-10 | I47: 2018-11-23 | J47: 2019-02-20 | K47: UNIÃO | L47: 26.994.558/0001-23 | M47: Brasilia/DF | N47: Comum | O47: 2022-12-01 | P47: 175436.35 | Q47: 21929.54 | R47: 21929.54 | S47: 0 | T47: 0 | U47: 219295.43 | V47: 1.04840703 | W47: 183928.7 | X47: 22991.08 | Y47: 22991.08 | Z47: 0 | AA47: 0 | AB47: 229910.86
A48: =A47+1 -> 3 | B48: PRC | C48: 4671 | D48: 2019/0049429-0 | E48: 0049429-15.2019.3.00.0000 | F48: STJ | G48: MS 23.267/DF | H48: 2017-06-28 | I48: 2018-12-18 | J48: 2019-02-20 | K48: UNIÃO | L48: 26.994.558/0001-23 | M48: Brasilia/DF | N48: Comum | O48: 2022-12-01 | P48: 233776.54 | Q48: 12987.58 | R48: 12987.58 | S48: 0 | T48: 0 | U48: 259751.7 | V48: 1.04840703 | W48: 245092.96 | X48: 13616.27 | Y48: 13616.27 | Z48: 0 | AA48: 0 | AB48: 272325.5
A49: 4 | B49: PRC | C49: 4683 | D49: 2019/0058875-9 | E49: 0058875-42.2019.3.00.0000 | F49: STJ | G49: MS 23.428/DF | H49: 2017-09-14 | I49: 2018-11-23 | J49: 2019-02-20 | K49: UNIÃO | L49: 26.994.558/0001-23 | M49: Brasilia/DF | N49: Comum | O49: 2022-12-01 | P49: 247848.98 | Q49: 13769.38 | R49: 13769.38 | S49: 0 | T49: 0 | U49: 275387.74 | V49: 1.04840703 | W49: 259846.61 | X49: 14435.91 | Y49: 14435.91 | Z49: 0 | AA49: 0 | AB49: 288718.43
A50: 5 | B50: PRC | C50: 4685 | D50: 2019/0058877-2 | E50: 0058877-12.2019.3.00.0000 | F50: STJ | G50: MS 23.283/DF | H50: 2017-08-24 | I50: 2018-10-11 | J50: 2019-02-26 | K50: União | L50: 26.994.558/0001-23 | M50: Brasilia/DF | N50: Comum | O50: 2022-12-01 | P50: 241149.07 | Q50: 13397.17 | R50: 13397.17 | S50: 0 | T50: 0 | U50: 267943.41 | V50: 1.04840703 | W50: 252822.38 | X50: 14045.68 | Y50: 14045.68 | Z50: 0 | AA50: 0 | AB50: 280913.74
A51: 6 | B51: PRC | C51: 4686 | D51: 2019/0060036-0 | E51: 0060036-87.2019.3.00.0000 | F51: STJ | G51: MS 23.313/DF | H51: 2017-08-10 | I51: 2018-10-11 | J51: 2019-02-27 | K51: UNIÃO | L51: 26.994.558/0001-23 | M51: Brasilia/DF | N51: Comum | O51: 2022-12-01 | P51: 228961.05 | Q51: 9954.82 | R51: 9954.82 | S51: 0 | T51: 0 | U51: 248870.69 | V51: 1.04840703 | W51: 240044.37 | X51: 10436.7 | Y51: 10436.7 | Z51: 0 | AA51: 0 | AB51: 260917.77
A52: 7 | B52: PRC | C52: 4687 | D52: 2019/0060055-0 | E52: 0060055-93.2019.3.00.0000 | F52: STJ | G52: MS 23.269/DF | H52: 2017-08-23 | I52: 2018-11-23 | J52: 2019-02-27 | K52: UNIÃO | L52: 26.994.558/0001-23 | M52: Brasilia/DF | N52: Comum | O52: 2022-12-01 | P52: 257935.96 | Q52: 14329.77 | R52: 14329.77 | S52: 0 | T52: 0 | U52: 286595.5 | V52: 1.04840703 | W52: 270421.87 | X52: 15023.43 | Y52: 15023.43 | Z52: 0 | AA52: 0 | AB52: 300468.73
A53: 8 | B53: PRC | C53: 4688 | D53: 2019/0060063-7 | E53: 0060063-70.2019.3.00.0000 | F53: STJ | G53: MS 23.282/DF | H53: 2017-08-10 | I53: 2018-10-11 | J53: 2019-02-27 | K53: União | L53: 26.994.558/0001-23 | M53: Brasilia/DF | N53: Comum | O53: 2022-12-01 | P53: 295255.82 | Q53: 16403.1 | R53: 16403.1 | S53: 0 | T53: 0 | U53: 328062.02 | V53: 1.04840703 | W53: 309548.27 | X53: 17197.12 | Y53: 17197.12 | Z53: 0 | AA53: 0 | AB53: 343942.51
A54: 9 | B54: PRC | C54: 4689 | D54: 2019/0060074-0 | E54: 0060074-02.2019.3.00.0000 | F54: STJ | G54: MS 23.268/DF | H54: 2017-08-09 | I54: 2018-10-11 | J54: 2019-02-27 | K54: UNIÃO | L54: 26.994.558/0001-23 | M54: Brasilia/DF | N54: Comum | O54: 2022-12-01 | P54: 218303.13 | Q54: 12127.95 | R54: 12127.95 | S54: 0 | T54: 0 | U54: 242559.03 | V54: 1.04840703 | W54: 228870.53 | X54: 12715.02 | Y54: 12715.02 | Z54: 0 | AA54: 0 | AB54: 254300.57
A55: 10 | B55: PRC | C55: 4690 | D55: 2019/0060091-6 | E55: 0060091-38.2019.3.00.0000 | F55: STJ | G55: MS 23.266/DF | H55: 2017-08-09 | I55: 2018-11-23 | J55: 2019-02-27 | K55: UNIÃO | L55: 26.994.558/0001-23 | M55: Brasilia/DF | N55: Comum | O55: 2022-12-01 | P55: 249976.06 | Q55: 13887.55 | R55: 13887.55 | S55: 0 | T55: 0 | U55: 277751.16 | V55: 1.04840703 | W55: 262076.65 | X55: 14559.8 | Y55: 14559.8 | Z55: 0 | AA55: 0 | AB55: 291196.25
A56: 11 | B56: PRC | C56: 4692 | D56: 2019/0060108-9 | E56: 0060108-74.2019.3.00.0000 | F56: STJ | G56: MS 23.306/DF | H56: 2017-06-13 | I56: 2018-11-23 | J56: 2019-02-27 | K56: UNIÃO | L56: 26.994.558/0001-23 | M56: Brasilia/DF | N56: Comum | O56: 2022-12-01 | P56: 272461.03 | Q56: 11846.13 | R56: 11846.13 | S56: 0 | T56: 0 | U56: 296153.29 | V56: 1.04840703 | W56: 285650.05 | X56: 12419.56 | Y56: 12419.56 | Z56: 0 | AA56: 0 | AB56: 310489.17
A57: 12 | B57: PRC | C57: 4693 | D57: 2019/0060116-6 | E57: 0060116-51.2019.3.00.0000 | F57: STJ | G57: MS 23.328/DF | H57: 2017-08-10 | I57: 2018-12-18 | J57: 2019-02-27 | K57: UNIÃO | L57: 26.994.558/0001-23 | M57: Brasilia/DF | N57: Comum | O57: 2022-12-01 | P57: 265961.75 | Q57: 11563.55 | R57: 11563.55 | S57: 0 | T57: 0 | U57: 289088.85 | V57: 1.04840703 | W57: 278836.16 | X57: 12123.3 | Y57: 12123.3 | Z57: 0 | AA57: 0 | AB57: 303082.76
A58: 13 | B58: PRC | C58: 4694 | D58: 2019/0060130-7 | E58: 0060130-35.2019.3.00.0000 | F58: STJ | G58: MS 23.109/DF | H58: 2017-06-27 | I58: 2018-11-23 | J58: 2019-02-27 | K58: UNIÃO | L58: 26.994.558/0001-23 | M58: Brasilia/DF | N58: Comum | O58: 2022-12-01 | P58: 213919.2 | Q58: 26739.89 | R58: 26739.89 | S58: 0 | T58: 0 | U58: 267398.98 | V58: 1.04840703 | W58: 224274.39 | X58: 28034.28 | Y58: 28034.28 | Z58: 0 | AA58: 0 | AB58: 280342.95
A59: 14 | B59: PRC | C59: 4695 | D59: 2019/0060141-0 | E59: 0060141-64.2019.3.00.0000 | F59: STJ | G59: MS 23.200/DF | H59: 2017-06-20 | I59: 2018-12-18 | J59: 2019-02-27 | K59: UNIÃO | L59: 26.994.558/0001-23 | M59: Brasilia/DF | N59: Comum | O59: 2022-12-01 | P59: 212094.08 | Q59: 11783 | R59: 11783 | S59: 0 | T59: 0 | U59: 235660.08 | V59: 1.04840703 | W59: 222360.92 | X59: 12353.38 | Y59: 12353.38 | Z59: 0 | AA59: 0 | AB59: 247067.68
A60: 15 | B60: PRC | C60: 4696 | D60: 2019/0060144-5 | E60: 0060144-19.2019.3.00.0000 | F60: STJ | G60: MS 19.425/DF | H60: 2017-12-04 | I60: 2018-12-18 | J60: 2019-02-27 | K60: UNIÃO | L60: 26.994.558/0001-23 | M60: Brasilia/DF | N60: Comum | O60: 2022-12-01 | P60: 289489.18 | Q60: 32165.46 | R60: 0 | S60: 0 | T60: 0 | U60: 321654.64 | V60: 1.04840703 | W60: 303502.49 | X60: 33722.49 | Y60: 0 | Z60: 0 | AA60: 0 | AB60: 337224.98
A61: 16 | B61: PRC | C61: 4697 | D61: 2019/0060150-9 | E61: 0060150-26.2019.3.00.0000 | F61: STJ | G61: MS 23.339/RN | H61: 2017-08-18 | I61: 2018-12-05 | J61: 2019-02-27 | K61: União | L61: 26.994.558/0001-23 | M61: Brasilia/DF | N61: Comum | O61: 2022-12-01 | P61: 273003.82 | Q61: 0 | R61: 0 | S61: 0 | T61: 0 | U61: 273003.82 | V61: 1.04840703 | W61: 286219.12 | X61: 0 | Y61: 0 | Z61: 0 | AA61: 0 | AB61: 286219.12
A62: 17 | B62: PRC | C62: 4698 | D62: 2019/0071438-0 | E62: 0071438-68.2019.3.00.0000 | F62: STJ | G62: MS 17.530/DF | H62: 2017-12-04 | I62: 2019-02-12 | J62: 2019-03-14 | K62: UNIÃO | L62: 26.994.558/0001-23 | M62: Brasilia/DF | N62: Comum | O62: 2022-12-01 | P62: 213375.3 | Q62: 23708.36 | R62: 0 | S62: 0 | T62: 0 | U62: 237083.66 | V62: 1.04840703 | W62: 223704.16 | X62: 24856.01 | Y62: 0 | Z62: 0 | AA62: 0 | AB62: 248560.17
A63: 18 | B63: PRC | C63: 4699 | D63: 2019/0071450-7 | E63: 0071450-82.2019.3.00.0000 | F63: STJ | G63: MS 16.054/DF | H63: 2017-12-04 | I63: 2019-02-12 | J63: 2019-03-14 | K63: UNIÃO | L63: 26.994.558/0001-23 | M63: Brasilia/DF | N63: Comum | O63: 2022-12-01 | P63: 228168.27 | Q63: 57042.06 | R63: 0 | S63: 0 | T63: 0 | U63: 285210.33 | V63: 1.04840703 | W63: 239213.21 | X63: 59803.29 | Y63: 0 | Z63: 0 | AA63: 0 | AB63: 299016.5
A64: 19 | B64: PRC | C64: 4700 | D64: 2019/0071454-4 | E64: 0071454-22.2019.3.00.0000 | F64: STJ | G64: MS 21.506/DF | H64: 2017-05-15 | I64: 2019-02-12 | J64: 2019-03-14 | K64: UNIÃO | L64: 26.994.558/0001-23 | M64: Brasilia/DF | N64: Comum | O64: 2022-12-01 | P64: 228323.08 | Q64: 0 | R64: 0 | S64: 0 | T64: 0 | U64: 228323.08 | V64: 1.04840703 | W64: 239375.52 | X64: 0 | Y64: 0 | Z64: 0 | AA64: 0 | AB64: 239375.52
A65: 20 | B65: PRC | C65: 4701 | D65: 2019/0071461-0 | E65: 0071461-14.2019.3.00.0000 | F65: STJ | G65: MS 17.721/DF | H65: 2018-06-15 | I65: 2019-02-15 | J65: 2019-03-14 | K65: UNIÃO | L65: 26.994.558/0001-23 | M65: Brasilia/DF | N65: Comum | O65: 2022-12-01 | P65: 248746.48 | Q65: 27638.49 | R65: 0 | S65: 0 | T65: 0 | U65: 276384.97 | V65: 1.04840703 | W65: 260787.55 | X65: 28976.38 | Y65: 0 | Z65: 0 | AA65: 0 | AB65: 289763.93
A66: 21 | B66: PRC | C66: 4702 | D66: 2019/0071470-9 | E66: 0071470-73.2019.3.00.0000 | F66: STJ | G66: MS 23.164/DF | H66: 2018-06-28 | I66: 2019-02-15 | J66: 2019-03-14 | K66: UNIÃO | L66: 26.994.558/0001-23 | M66: Brasilia/DF | N66: Comum | O66: 2022-12-01 | P66: 231461.28 | Q66: 20423.05 | R66: 20423.05 | S66: 0 | T66: 0 | U66: 272307.38 | V66: 1.04840703 | W66: 242665.63 | X66: 21411.66 | Y66: 21411.66 | Z66: 0 | AA66: 0 | AB66: 285488.95
A67: 22 | B67: PRC | C67: 4703 | D67: 2019/0071475-8 | E67: 0071475-95.2019.3.00.0000 | F67: STJ | G67: MS 23.289/DF | H67: 2018-06-28 | I67: 2019-02-15 | J67: 2019-03-14 | K67: UNIÃO | L67: 26.994.558/0001-23 | M67: Brasilia/DF | N67: Comum | O67: 2022-12-01 | P67: 263323.09 | Q67: 14629.06 | R67: 14629.06 | S67: 0 | T67: 0 | U67: 292581.21 | V67: 1.04840703 | W67: 276069.77 | X67: 15337.2 | Y67: 15337.2 | Z67: 0 | AA67: 0 | AB67: 306744.17
A68: 23 | B68: PRC | C68: 4704 | D68: 2019/0071481-1 | E68: 0071481-05.2019.3.00.0000 | F68: STJ | G68: MS 23.350/DF | H68: 2018-06-28 | I68: 2019-02-18 | J68: 2019-03-14 | K68: UNIÃO | L68: 26.994.558/0001-23 | M68: Brasilia/DF | N68: Comum | O68: 2022-12-01 | P68: 201844.16 | Q68: 11213.56 | R68: 11213.56 | S68: 0 | T68: 0 | U68: 224271.28 | V68: 1.04840703 | W68: 211614.83 | X68: 11756.37 | Y68: 11756.37 | Z68: 0 | AA68: 0 | AB68: 235127.57
A69: 24 | B69: PRC | C69: 4705 | D69: 2019/0071484-7 | E69: 0071484-57.2019.3.00.0000 | F69: STJ | G69: MS 23.524/DF | H69: 2018-06-28 | I69: 2019-02-18 | J69: 2019-03-14 | K69: UNIÃO | L69: 26.994.558/0001-23 | M69: Brasilia/DF | N69: Comum | O69: 2022-12-01 | P69: 223293.93 | Q69: 27911.73 | R69: 27911.73 | S69: 0 | T69: 0 | U69: 279117.39 | V69: 1.04840703 | W69: 234102.92 | X69: 29262.85 | Y69: 29262.85 | Z69: 0 | AA69: 0 | AB69: 292628.62
A70: 25 | B70: PRC | C70: 4706 | D70: 2019/0071490-0 | E70: 0071490-64.2019.3.00.0000 | F70: STJ | G70: MS 23.979/RN | H70: 2018-06-07 | I70: 2019-02-15 | J70: 2019-03-14 | K70: UNIÃO | L70: 26.994.558/0001-23 | M70: Brasilia/DF | N70: Comum | O70: 2022-12-01 | P70: 172659.47 | Q70: 21582.43 | R70: 21582.43 | S70: 0 | T70: 0 | U70: 215824.33 | V70: 1.04840703 | W70: 181017.4 | X70: 22627.17 | Y70: 22627.17 | Z70: 0 | AA70: 0 | AB70: 226271.74
A71: 26 | B71: PRC | C71: 4737 | D71: 2019/0087705-6 | E71: 0087705-18.2019.3.00.0000 | F71: STJ | G71: MS 15.240/DF | H71: 2018-06-07 | I71: 2019-03-18 | J71: 2019-03-26 | K71: UNIÃO | L71: 26.994.558/0001-23 | M71: Brasilia/DF | N71: Comum | O71: 2022-12-01 | P71: 229910.91 | Q71: 27048.34 | R71: 13524.17 | S71: 0 | T71: 0 | U71: 270483.42 | V71: 1.04840703 | W71: 241040.21 | X71: 28357.66 | Y71: 14178.83 | Z71: 0 | AA71: 0 | AB71: 283576.7
A72: 27 | B72: PRC | C72: 4763 | D72: 2019/0093703-0 | E72: 0093703-64.2019.3.00.0000 | F72: STJ | G72: MS 22.224/DF | H72: 2017-05-01 | I72: 2019-03-21 | J72: 2019-04-02 | K72: UNIÃO | L72: 26.994.558/0001-23 | M72: Brasilia/DF | N72: Comum | O72: 2022-12-01 | P72: 241799.68 | Q72: 0 | R72: 0 | S72: 0 | T72: 0 | U72: 241799.68 | V72: 1.04840703 | W72: 253504.48 | X72: 0 | Y72: 0 | Z72: 0 | AA72: 0 | AB72: 253504.48
A73: 28 | B73: PRC | C73: 4764 | D73: 2019/0093715-4 | E73: 0093715-78.2019.3.00.0000 | F73: STJ | G73: MS 21.385/DF | H73: 2017-05-01 | I73: 2019-03-21 | J73: 2019-04-02 | K73: UNIÃO | L73: 26.994.558/0001-23 | M73: Brasilia/DF | N73: Comum | O73: 2022-12-01 | P73: 246391.81 | Q73: 0 | R73: 0 | S73: 0 | T73: 0 | U73: 246391.81 | V73: 1.04840703 | W73: 258318.9 | X73: 0 | Y73: 0 | Z73: 0 | AA73: 0 | AB73: 258318.9
A74: 29 | B74: PRC | C74: 4765 | D74: 2019/0093858-1 | E74: 0093858-67.2019.3.00.0000 | F74: STJ | G74: MS 21.414/DF | H74: 2017-05-01 | I74: 2019-03-21 | J74: 2019-04-02 | K74: UNIÃO | L74: 26.994.558/0001-23 | M74: Brasilia/DF | N74: Comum | O74: 2022-12-01 | P74: 244201.66 | Q74: 0 | R74: 0 | S74: 0 | T74: 0 | U74: 244201.66 | V74: 1.04840703 | W74: 256022.73 | X74: 0 | Y74: 0 | Z74: 0 | AA74: 0 | AB74: 256022.73
A75: 30 | B75: PRC | C75: 4766 | D75: 2019/0093869-4 | E75: 0093869-96.2019.3.00.0000 | F75: STJ | G75: MS 21.441/DF | H75: 2017-05-01 | I75: 2019-03-21 | J75: 2019-04-02 | K75: UNIÃO | L75: 26.994.558/0001-23 | M75: Brasilia/DF | N75: Comum | O75: 2022-12-01 | P75: 278662.71 | Q75: 0 | R75: 0 | S75: 0 | T75: 0 | U75: 278662.71 | V75: 1.04840703 | W75: 292151.94 | X75: 0 | Y75: 0 | Z75: 0 | AA75: 0 | AB75: 292151.94
A76: 31 | B76: PRC | C76: 4767 | D76: 2019/0093876-0 | E76: 0093876-88.2019.3.00.0000 | F76: STJ | G76: MS 23.010/DF | H76: 2017-09-15 | I76: 2019-03-22 | J76: 2019-04-02 | K76: UNIÃO | L76: 26.994.558/0001-23 | M76: Brasilia/DF | N76: Comum | O76: 2022-12-01 | P76: 263064.07 | Q76: 0 | R76: 0 | S76: 0 | T76: 0 | U76: 263064.07 | V76: 1.04840703 | W76: 275798.22 | X76: 0 | Y76: 0 | Z76: 0 | AA76: 0 | AB76: 275798.22
A77: 32 | B77: PRC | C77: 4768 | D77: 2019/0093879-5 | E77: 0093879-43.2019.3.00.0000 | F77: STJ | G77: MS 23.068/DF | H77: 2017-12-01 | I77: 2019-03-22 | J77: 2019-04-02 | K77: UNIÃO | L77: 26.994.558/0001-23 | M77: Brasilia/DF | N77: Comum | O77: 2022-12-01 | P77: 234782.49 | Q77: 26086.94 | R77: 0 | S77: 0 | T77: 0 | U77: 260869.43 | V77: 1.04840703 | W77: 246147.61 | X77: 27349.73 | Y77: 0 | Z77: 0 | AA77: 0 | AB77: 273497.34
A78: 33 | B78: PRC | C78: 4769 | D78: 2019/0093890-0 | E78: 0093890-72.2019.3.00.0000 | F78: STJ | G78: MS 15.608/DF | H78: 2018-06-20 | I78: 2019-03-13 | J78: 2019-04-02 | K78: UNIÃO | L78: 26.994.558/0001-23 | M78: Brasilia/DF | N78: Comum | O78: 2022-12-01 | P78: 197638 | Q78: 49409.49 | R78: 0 | S78: 0 | T78: 0 | U78: 247047.49 | V78: 1.04840703 | W78: 207205.06 | X78: 51801.25 | Y78: 0 | Z78: 0 | AA78: 0 | AB78: 259006.31
A79: 34 | B79: PRC | C79: 4771 | D79: 2019/0104490-3 | E79: 0104490-55.2019.3.00.0000 | F79: STJ | G79: MS 15.251/DF | H79: 2018-06-20 | I79: 2019-04-01 | J79: 2019-04-11 | K79: UNIÃO | L79: 26.994.558/0001-23 | M79: Brasilia/DF | N79: Comum | O79: 2022-12-01 | P79: 243606.19 | Q79: 28659.55 | R79: 14329.77 | S79: 0 | T79: 0 | U79: 286595.51 | V79: 1.04840703 | W79: 255398.44 | X79: 30046.87 | Y79: 15023.43 | Z79: 0 | AA79: 0 | AB79: 300468.74
A80: 35 | B80: PRC | C80: 4772 | D80: 2019/0104498-8 | E80: 0104498-32.2019.3.00.0000 | F80: STJ | G80: MS 15.244/DF | H80: 2018-06-20 | I80: 2019-04-03 | J80: 2019-04-11 | K80: UNIÃO | L80: 26.994.558/0001-23 | M80: Brasilia/DF | N80: Comum | O80: 2022-12-01 | P80: 196308.56 | Q80: 23095.12 | R80: 11547.56 | S80: 0 | T80: 0 | U80: 230951.24 | V80: 1.04840703 | W80: 205811.27 | X80: 24213.08 | Y80: 12106.54 | Z80: 0 | AA80: 0 | AB80: 242130.89
A81: 36 | B81: PRC | C81: 4773 | D81: 2019/0104505-2 | E81: 0104505-24.2019.3.00.0000 | F81: STJ | G81: MS 17.819/DF | H81: 2018-06-20 | I81: 2019-04-03 | J81: 2019-04-11 | K81: UNIÃO | L81: 26.994.558/0001-23 | M81: Brasilia/DF | N81: Comum | O81: 2022-12-01 | P81: 265665.33 | Q81: 29518.36 | R81: 0 | S81: 0 | T81: 0 | U81: 295183.69 | V81: 1.04840703 | W81: 278525.39 | X81: 30947.25 | Y81: 0 | Z81: 0 | AA81: 0 | AB81: 309472.64
A82: 37 | B82: PRC | C82: 4774 | D82: 2019/0104509-0 | E82: 0104509-61.2019.3.00.0000 | F82: STJ | G82: MS 17.540/DF | H82: 2018-06-20 | I82: 2019-04-03 | J82: 2019-04-11 | K82: UNIÃO | L82: 26.994.558/0001-23 | M82: Brasilia/DF | N82: Comum | O82: 2022-12-01 | P82: 216857.64 | Q82: 24095.29 | R82: 0 | S82: 0 | T82: 0 | U82: 240952.93 | V82: 1.04840703 | W82: 227355.07 | X82: 25261.67 | Y82: 0 | Z82: 0 | AA82: 0 | AB82: 252616.74
A83: 38 | B83: PRC | C83: 4775 | D83: 2019/0104512-8 | E83: 0104512-16.2019.3.00.0000 | F83: STJ | G83: MS 14.460/DF | H83: 2018-08-15 | I83: 2019-04-03 | J83: 2019-04-11 | K83: UNIÃO | L83: 26.994.558/0001-23 | M83: Brasilia/DF | N83: Comum | O83: 2022-12-01 | P83: 201055.72 | Q83: 35480.41 | R83: 0 | S83: 0 | T83: 0 | U83: 236536.13 | V83: 1.04840703 | W83: 210788.23 | X83: 37197.91 | Y83: 0 | Z83: 0 | AA83: 0 | AB83: 247986.14
A84: 39 | B84: PRC | C84: 4796 | D84: 2019/0107918-3 | E84: 0107918-45.2019.3.00.0000 | F84: STJ | G84: MS 18.175/DF | H84: 2018-06-07 | I84: 2019-03-21 | J84: 2019-04-15 | K84: UNIÃO | L84: 26.994.558/0001-23 | M84: Brasilia/DF | N84: Comum | O84: 2022-12-01 | P84: 223616.07 | Q84: 24846.23 | R84: 0 | S84: 0 | T84: 0 | U84: 248462.3 | V84: 1.04840703 | W84: 234440.65 | X84: 26048.96 | Y84: 0 | Z84: 0 | AA84: 0 | AB84: 260489.61
A85: 40 | B85: PRC | C85: 4800 | D85: 2019/0115858-0 | E85: 0115858-61.2019.3.00.0000 | F85: STJ | G85: MS 16.012/DF | H85: 2017-12-04 | I85: 2019-03-22 | J85: 2019-04-25 | K85: UNIÃO | L85: 26.994.558/0001-23 | M85: Brasilia/DF | N85: Comum | O85: 2022-12-01 | P85: 217569.51 | Q85: 24174.39 | R85: 0 | S85: 0 | T85: 0 | U85: 241743.9 | V85: 1.04840703 | W85: 228101.4 | X85: 25344.6 | Y85: 0 | Z85: 0 | AA85: 0 | AB85: 253446
A86: 41 | B86: PRC | C86: 4801 | D86: 2019/0115865-6 | E86: 0115865-53.2019.3.00.0000 | F86: STJ | G86: MS 16.020/DF | H86: 2017-12-04 | I86: 2019-02-25 | J86: 2019-04-25 | K86: UNIÃO | L86: 26.994.558/0001-23 | M86: Brasilia/DF | N86: Comum | O86: 2022-12-01 | P86: 265665.33 | Q86: 29518.36 | R86: 0 | S86: 0 | T86: 0 | U86: 295183.69 | V86: 1.04840703 | W86: 278525.39 | X86: 30947.25 | Y86: 0 | Z86: 0 | AA86: 0 | AB86: 309472.64
A87: 42 | B87: PRC | C87: 4802 | D87: 2019/0115876-9 | E87: 0115876-82.2019.3.00.0000 | F87: STJ | G87: MS 19.353/DF | H87: 2017-12-04 | I87: 2019-03-22 | J87: 2019-04-25 | K87: UNIÃO | L87: 26.994.558/0001-23 | M87: Brasilia/DF | N87: Comum | O87: 2022-12-01 | P87: 207954.69 | Q87: 23106.07 | R87: 0 | S87: 0 | T87: 0 | U87: 231060.76 | V87: 1.04840703 | W87: 218021.15 | X87: 24224.56 | Y87: 0 | Z87: 0 | AA87: 0 | AB87: 242245.71
A88: 43 | B88: PRC | C88: 4803 | D88: 2019/0115902-3 | E88: 0115902-80.2019.3.00.0000 | F88: STJ | G88: MS 21.456/DF | H88: 2017-09-20 | I88: 2019-03-21 | J88: 2019-04-25 | K88: União | L88: 26.994.558/0001-23 | M88: Brasilia/DF | N88: Comum | O88: 2022-12-01 | P88: 248585.94 | Q88: 27620.66 | R88: 0 | S88: 0 | T88: 0 | U88: 276206.6 | V88: 1.04840703 | W88: 260619.24 | X88: 28957.69 | Y88: 0 | Z88: 0 | AA88: 0 | AB88: 289576.93
A89: 44 | B89: PRC | C89: 4804 | D89: 2019/0115921-3 | E89: 0115921-86.2019.3.00.0000 | F89: STJ | G89: MS 23.286/DF | H89: 2018-06-28 | I89: 2019-03-21 | J89: 2019-04-25 | K89: UNIÃO | L89: 26.994.558/0001-23 | M89: Brasilia/DF | N89: Comum | O89: 2022-12-01 | P89: 181519.58 | Q89: 22689.94 | R89: 22689.94 | S89: 0 | T89: 0 | U89: 226899.46 | V89: 1.04840703 | W89: 190306.4 | X89: 23788.29 | Y89: 23788.29 | Z89: 0 | AA89: 0 | AB89: 237882.98
A90: 45 | B90: PRC | C90: 4805 | D90: 2019/0115926-2 | E90: 0115926-11.2019.3.00.0000 | F90: STJ | G90: MS 21.921/DF | H90: 2018-06-20 | I90: 2019-04-09 | J90: 2019-04-25 | K90: União | L90: 26.994.558/0001-23 | M90: Brasilia/DF | N90: Comum | O90: 2022-12-01 | P90: 238616.77 | Q90: 0 | R90: 0 | S90: 0 | T90: 0 | U90: 238616.77 | V90: 1.04840703 | W90: 250167.49 | X90: 0 | Y90: 0 | Z90: 0 | AA90: 0 | AB90: 250167.49
A91: 46 | B91: PRC | C91: 4806 | D91: 2019/0115942-7 | E91: 0115942-62.2019.3.00.0000 | F91: STJ | G91: MS 15.250/DF | H91: 2018-08-15 | I91: 2019-04-05 | J91: 2019-04-25 | K91: União | L91: 26.994.558/0001-23 | M91: Brasilia/DF | N91: Comum | O91: 2022-12-01 | P91: 244077.16 | Q91: 28714.95 | R91: 14357.47 | S91: 0 | T91: 0 | U91: 287149.58 | V91: 1.04840703 | W91: 255892.21 | X91: 30104.95 | Y91: 15052.47 | Z91: 0 | AA91: 0 | AB91: 301049.63
A92: 47 | B92: PRC | C92: 4807 | D92: 2019/0115949-0 | E92: 0115949-54.2019.3.00.0000 | F92: STJ | G92: MS 17.419/DF | H92: 2018-06-07 | I92: 2019-02-08 | J92: 2019-04-25 | K92: União | L92: 26.994.558/0001-23 | M92: Brasilia/DF | N92: Comum | O92: 2022-12-01 | P92: 268562.58 | Q92: 29840.28 | R92: 0 | S92: 0 | T92: 0 | U92: 298402.86 | V92: 1.04840703 | W92: 281562.89 | X92: 31284.75 | Y92: 0 | Z92: 0 | AA92: 0 | AB92: 312847.64
A93: 48 | B93: PRC | C93: 4808 | D93: 2019/0116110-2 | E93: 0116110-64.2019.3.00.0000 | F93: STJ | G93: MS 23.138/DF | H93: 2018-06-12 | I93: 2019-04-08 | J93: 2019-04-25 | K93: União | L93: 26.994.558/0001-23 | M93: Brasilia/DF | N93: Comum | O93: 2022-12-01 | P93: 204997.98 | Q93: 25624.74 | R93: 25624.74 | S93: 0 | T93: 0 | U93: 256247.46 | V93: 1.04840703 | W93: 214921.32 | X93: 26865.15 | Y93: 26865.15 | Z93: 0 | AA93: 0 | AB93: 268651.62
A94: 49 | B94: PRC | C94: 4809 | D94: 2019/0116225-0 | E94: 0116225-85.2019.3.00.0000 | F94: STJ | G94: MS 23.128/DF | H94: 2018-08-09 | I94: 2019-04-08 | J94: 2019-04-25 | K94: União | L94: 26.994.558/0001-23 | M94: Brasilia/DF | N94: Comum | O94: 2022-12-01 | P94: 189404.13 | Q94: 23675.51 | R94: 23675.51 | S94: 0 | T94: 0 | U94: 236755.15 | V94: 1.04840703 | W94: 198572.62 | X94: 24821.57 | Y94: 24821.57 | Z94: 0 | AA94: 0 | AB94: 248215.76
A95: 50 | B95: PRC | C95: 4810 | D95: 2019/0126407-5 | E95: 0126407-33.2019.3.00.0000 | F95: STJ | G95: MS 17.657/DF | H95: 2017-12-04 | I95: 2019-04-09 | J95: 2019-05-06 | K95: União | L95: 26.994.558/0001-23 | M95: Brasilia/DF | N95: Comum | O95: 2022-12-01 | P95: 308161.2 | Q95: 54381.38 | R95: 0 | S95: 0 | T95: 0 | U95: 362542.58 | V95: 1.04840703 | W95: 323078.36 | X95: 57013.82 | Y95: 0 | Z95: 0 | AA95: 0 | AB95: 380092.18
A96: 51 | B96: PRC | C96: 4811 | D96: 2019/0126412-7 | E96: 0126412-55.2019.3.00.0000 | F96: STJ | G96: MS 16.360/DF | H96: 2018-08-10 | I96: 2019-04-09 | J96: 2019-05-06 | K96: União | L96: 26.994.558/0001-23 | M96: Brasilia/DF | N96: Comum | O96: 2022-12-01 | P96: 203532.78 | Q96: 17958.77 | R96: 17958.77 | S96: 0 | T96: 0 | U96: 239450.32 | V96: 1.04840703 | W96: 213385.19 | X96: 18828.1 | Y96: 18828.1 | Z96: 0 | AA96: 0 | AB96: 251041.39
A97: 52 | B97: PRC | C97: 4812 | D97: 2019/0126414-0 | E97: 0126414-25.2019.3.00.0000 | F97: STJ | G97: MS 16.207/DF | H97: 2018-06-20 | I97: 2019-04-09 | J97: 2019-05-06 | K97: União | L97: 26.994.558/0001-23 | M97: Brasilia/DF | N97: Comum | O97: 2022-12-01 | P97: 282876.71 | Q97: 24959.7 | R97: 24959.7 | S97: 0 | T97: 0 | U97: 332796.11 | V97: 1.04840703 | W97: 296569.93 | X97: 26167.92 | Y97: 26167.92 | Z97: 0 | AA97: 0 | AB97: 348905.77
A98: 53 | B98: PRC | C98: 4813 | D98: 2019/0126416-4 | E98: 0126416-92.2019.3.00.0000 | F98: STJ | G98: MS 16.070/DF | H98: 2017-12-04 | I98: 2019-04-09 | J98: 2019-05-06 | K98: União | L98: 26.994.558/0001-23 | M98: Brasilia/DF | N98: Comum | O98: 2022-12-01 | P98: 200016.06 | Q98: 50004.01 | R98: 0 | S98: 0 | T98: 0 | U98: 250020.07 | V98: 1.04840703 | W98: 209698.24 | X98: 52424.55 | Y98: 0 | Z98: 0 | AA98: 0 | AB98: 262122.79
A99: 54 | B99: PRC | C99: 4814 | D99: 2019/0126418-8 | E99: 0126418-62.2019.3.00.0000 | F99: STJ | G99: MS 15.885/DF | H99: 2018-06-20 | I99: 2019-04-09 | J99: 2019-05-06 | K99: União | L99: 26.994.558/0001-23 | M99: Brasilia/DF | N99: Comum | O99: 2022-12-01 | P99: 197797.86 | Q99: 34905.5 | R99: 0 | S99: 0 | T99: 0 | U99: 232703.36 | V99: 1.04840703 | W99: 207372.66 | X99: 36595.17 | Y99: 0 | Z99: 0 | AA99: 0 | AB99: 243967.83
A100: 55 | B100: PRC | C100: 4815 | D100: 2019/0126429-0 | E100: 0126429-91.2019.3.00.0000 | F100: STJ | G100: MS 13.550/DF | H100: 2018-06-07 | I100: 2019-04-09 | J100: 2019-05-06 | K100: União | L100: 26.994.558/0001-23 | M100: Brasilia/DF | N100: Comum | O100: 2022-12-01 | P100: 194074.61 | Q100: 34248.46 | R100: 0 | S100: 0 | T100: 0 | U100: 228323.07 | V100: 1.04840703 | W100: 203469.18 | X100: 35906.32 | Y100: 0 | Z100: 0 | AA100: 0 | AB100: 239375.5
A101: 56 | B101: PRC | C101: 4816 | D101: 2019/0126431-7 | E101: 0126431-61.2019.3.00.0000 | F101: STJ | G101: MS 14.255/DF | H101: 2018-08-15 | I101: 2019-04-09 | J101: 2019-05-06 | K101: União | L101: 26.994.558/0001-23 | M101: Brasilia/DF | N101: Comum | O101: 2022-12-01 | P101: 184324.04 | Q101: 32527.77 | R101: 0 | S101: 0 | T101: 0 | U101: 216851.81 | V101: 1.04840703 | W101: 193246.61 | X101: 34102.34 | Y101: 0 | Z101: 0 | AA101: 0 | AB101: 227348.95
A102: 57 | B102: PRC | C102: 4817 | D102: 2019/0126432-9 | E102: 0126432-46.2019.3.00.0000 | F102: STJ | G102: MS 15.889/DF | H102: 2018-08-10 | I102: 2019-04-09 | J102: 2019-05-06 | K102: União | L102: 26.994.558/0001-23 | M102: Brasilia/DF | N102: Comum | O102: 2022-12-01 | P102: 218330.53 | Q102: 38528.91 | R102: 0 | S102: 0 | T102: 0 | U102: 256859.44 | V102: 1.04840703 | W102: 228899.26 | X102: 40393.98 | Y102: 0 | Z102: 0 | AA102: 0 | AB102: 269293.24
A103: 58 | B103: PRC | C103: 4818 | D103: 2019/0126435-4 | E103: 0126435-98.2019.3.00.0000 | F103: STJ | G103: MS 15.875/DF | H103: 2017-12-04 | I103: 2019-04-09 | J103: 2019-05-06 | K103: União | L103: 26.994.558/0001-23 | M103: Brasilia/DF | N103: Comum | O103: 2022-12-01 | P103: 164885.4 | Q103: 70665.17 | R103: 0 | S103: 0 | T103: 0 | U103: 235550.57 | V103: 1.04840703 | W103: 172867.01 | X103: 74085.86 | Y103: 0 | Z103: 0 | AA103: 0 | AB103: 246952.87
A104: 59 | B104: PRC | C104: 4819 | D104: 2019/0126437-8 | E104: 0126437-68.2019.3.00.0000 | F104: STJ | G104: MS 17.823/DF | H104: 2018-08-29 | I104: 2019-04-09 | J104: 2019-05-06 | K104: União | L104: 26.994.558/0001-23 | M104: Brasilia/DF | N104: Comum | O104: 2022-12-01 | P104: 265665.33 | Q104: 29518.36 | R104: 0 | S104: 0 | T104: 0 | U104: 295183.69 | V104: 1.04840703 | W104: 278525.39 | X104: 30947.25 | Y104: 0 | Z104: 0 | AA104: 0 | AB104: 309472.64
A105: 60 | B105: PRC | C105: 4820 | D105: 2019/0126438-0 | E105: 0126438-53.2019.3.00.0000 | F105: STJ | G105: MS 15.580/DF | H105: 2018-06-20 | I105: 2019-04-11 | J105: 2019-05-06 | K105: União | L105: 26.994.558/0001-23 | M105: Brasilia/DF | N105: Comum | O105: 2022-12-01 | P105: 205611.23 | Q105: 51402.8 | R105: 0 | S105: 0 | T105: 0 | U105: 257014.03 | V105: 1.04840703 | W105: 215564.25 | X105: 53891.05 | Y105: 0 | Z105: 0 | AA105: 0 | AB105: 269455.3
A106: 61 | B106: PRC | C106: 4821 | D106: 2019/0126441-8 | E106: 0126441-08.2019.3.00.0000 | F106: STJ | G106: MS 15.237/DF | H106: 2018-06-20 | I106: 2019-04-11 | J106: 2019-05-06 | K106: União | L106: 26.994.558/0001-23 | M106: Brasilia/DF | N106: Comum | O106: 2022-12-01 | P106: 258933.3 | Q106: 28770.36 | R106: 0 | S106: 0 | T106: 0 | U106: 287703.66 | V106: 1.04840703 | W106: 271467.49 | X106: 30163.04 | Y106: 0 | Z106: 0 | AA106: 0 | AB106: 301630.53
A107: 62 | B107: PRC | C107: 4822 | D107: 2019/0126442-0 | E107: 0126442-90.2019.3.00.0000 | F107: STJ | G107: MS 15.256/DF | H107: 2017-12-04 | I107: 2019-04-11 | J107: 2019-05-06 | K107: União | L107: 26.994.558/0001-23 | M107: Brasilia/DF | N107: Comum | O107: 2022-12-01 | P107: 243135.2 | Q107: 28604.14 | R107: 14302.07 | S107: 0 | T107: 0 | U107: 286041.41 | V107: 1.04840703 | W107: 254904.65 | X107: 29988.78 | Y107: 14994.39 | Z107: 0 | AA107: 0 | AB107: 299887.82
A108: 63 | B108: PRC | C108: 4823 | D108: 2019/0126444-3 | E108: 0126444-60.2019.3.00.0000 | F108: STJ | G108: MS 15.257/DF | H108: 2017-12-04 | I108: 2019-04-11 | J108: 2019-05-06 | K108: União | L108: 26.994.558/0001-23 | M108: Brasilia/DF | N108: Comum | O108: 2022-12-01 | P108: 249846.45 | Q108: 29393.7 | R108: 14696.85 | S108: 0 | T108: 0 | U108: 293937 | V108: 1.04840703 | W108: 261940.77 | X108: 30816.56 | Y108: 15408.28 | Z108: 0 | AA108: 0 | AB108: 308165.61
A109: 64 | B109: PRC | C109: 4824 | D109: 2019/0126684-3 | E109: 0126684-49.2019.3.00.0000 | F109: STJ | G109: MS 15.524/DF | H109: 2017-12-04 | I109: 2019-04-11 | J109: 2019-05-07 | K109: União | L109: 26.994.558/0001-23 | M109: Brasilia/DF | N109: Comum | O109: 2022-12-01 | P109: 236088.51 | Q109: 27775.11 | R109: 13887.55 | S109: 0 | T109: 0 | U109: 277751.17 | V109: 1.04840703 | W109: 247516.85 | X109: 29119.62 | Y109: 14559.8 | Z109: 0 | AA109: 0 | AB109: 291196.27
A110: 65 | B110: PRC | C110: 4825 | D110: 2019/0126687-9 | E110: 0126687-04.2019.3.00.0000 | F110: STJ | G110: MS 21.340/DF | H110: 2017-08-01 | I110: 2019-04-16 | J110: 2019-05-07 | K110: UNIÃO | L110: 26.994.558/0001-23 | M110: Brasilia/DF | N110: Comum | O110: 2022-12-01 | P110: 226384.79 | Q110: 25153.86 | R110: 0 | S110: 0 | T110: 0 | U110: 251538.65 | V110: 1.04840703 | W110: =TRUNC(P110*$V110,2) -> 237343.4 | X110: =TRUNC(Q110*$V110,2) -> 26371.48 | Y110: =TRUNC(R110*$V110,2) -> 0 | Z110: =TRUNC(S110*$V110,2) -> 0 | AA110: =TRUNC(T110*$V110,2) -> 0 | AB110: =W110+X110+Y110+Z110+AA110 -> 263714.88
A111: 66 | B111: PRC | C111: 4826 | D111: 2019/0126689-2 | E111: 0126689-71.2019.3.00.0000 | F111: STJ | G111: MS 18.167/DF | H111: 2018-06-20 | I111: 2019-04-16 | J111: 2019-05-07 | K111: UNIÃO | L111: 26.994.558/0001-23 | M111: Brasilia/DF | N111: Comum | O111: 2022-12-01 | P111: 263171.98 | Q111: 29241.33 | R111: 0 | S111: 0 | T111: 0 | U111: 292413.31 | V111: 1.04840703 | W111: 275911.35 | X111: 30656.81 | Y111: 0 | Z111: 0 | AA111: 0 | AB111: 306568.16
A112: =A111+1 -> 67 | B112: PRC | C112: 4827 | D112: 2019/0126698-1 | E112: 0126698-33.2019.3.00.0000 | F112: STJ | G112: MS 17.501/DF | H112: 2017-09-20 | I112: 2019-04-09 | J112: 2019-05-07 | K112: União | L112: 26.994.558/0001-23 | M112: Brasilia/DF | N112: Comum | O112: 2022-12-01 | P112: 218403.05 | Q112: 54600.76 | R112: 0 | S112: 0 | T112: 0 | U112: 273003.81 | V112: 1.04840703 | W112: 228975.29 | X112: 57243.82 | Y112: 0 | Z112: 0 | AA112: 0 | AB112: 286219.11
A113: 68 | B113: PRC | C113: 4829 | D113: 2019/0126702-0 | E113: 0126702-70.2019.3.00.0000 | F113: STJ | G113: MS 17.769/DF | H113: 2018-09-20 | I113: 2019-04-16 | J113: 2019-05-07 | K113: UNIÃO | L113: 26.994.558/0001-23 | M113: Brasilia/DF | N113: Comum | O113: 2022-12-01 | P113: 263047.3 | Q113: 29227.47 | R113: 0 | S113: 0 | T113: 0 | U113: 292274.77 | V113: 1.04840703 | W113: 275780.63 | X113: 30642.28 | Y113: 0 | Z113: 0 | AA113: 0 | AB113: 306422.91
A114: 69 | B114: PRC | C114: 4830 | D114: 2019/0127002-0 | E114: 0127002-32.2019.3.00.0000 | F114: STJ | G114: MS 15.254/DF | H114: 2017-12-04 | I114: 2019-04-22 | J114: 2019-05-07 | K114: União | L114: 26.994.558/0001-23 | M114: Brasilia/DF | N114: Comum | O114: 2022-12-01 | P114: 214926.66 | Q114: 23880.74 | R114: 0 | S114: 0 | T114: 0 | U114: 238807.4 | V114: 1.04840703 | W114: 225330.62 | X114: 25036.73 | Y114: 0 | Z114: 0 | AA114: 0 | AB114: 250367.35
A115: 70 | B115: PRC | C115: 4831 | D115: 2019/0127007-0 | E115: 0127007-54.2019.3.00.0000 | F115: STJ | G115: MS 15.525/DF | H115: 2018-06-20 | I115: 2019-04-09 | J115: 2019-05-07 | K115: União | L115: 26.994.558/0001-23 | M115: Brasilia/DF | N115: Comum | O115: 2022-12-01 | P115: 246786.03 | Q115: 27420.67 | R115: 0 | S115: 0 | T115: 0 | U115: 274206.7 | V115: 1.04840703 | W115: 258732.2 | X115: 28748.02 | Y115: 0 | Z115: 0 | AA115: 0 | AB115: 287480.22
A116: 71 | B116: PRC | C116: 4832 | D116: 2019/0127011-0 | E116: 0127011-91.2019.3.00.0000 | F116: STJ | G116: MS 15.258/DF | H116: 2017-12-04 | I116: 2019-04-11 | J116: 2019-05-07 | K116: União | L116: 26.994.558/0001-23 | M116: Brasilia/DF | N116: Comum | O116: 2022-12-01 | P116: 232237.97 | Q116: 27322.11 | R116: 13661.05 | S116: 0 | T116: 0 | U116: 273221.13 | V116: 1.04840703 | W116: 243479.92 | X116: 28644.69 | Y116: 14322.34 | Z116: 0 | AA116: 0 | AB116: 286446.95
A117: 72 | B117: PRC | C117: 4835 | D117: 2019/0129035-3 | E117: 0129035-92.2019.3.00.0000 | F117: STJ | G117: MS 15.413/DF | H117: 2018-05-10 | I117: 2019-04-25 | J117: 2019-05-09 | K117: União | L117: 26.994.558/0001-23 | M117: Brasilia/DF | N117: Comum | O117: 2022-12-01 | P117: 244311.17 | Q117: 0 | R117: 0 | S117: 0 | T117: 0 | U117: 244311.17 | V117: 1.04840703 | W117: 256137.54 | X117: 0 | Y117: 0 | Z117: 0 | AA117: 0 | AB117: 256137.54
A118: 73 | B118: PRC | C118: 4836 | D118: 2019/0129037-7 | E118: 0129037-62.2019.3.00.0000 | F118: STJ | G118: MS 15.414/DF | H118: 2018-05-10 | I118: 2019-04-25 | J118: 2019-05-09 | K118: União | L118: 26.994.558/0001-23 | M118: Brasilia/DF | N118: Comum | O118: 2022-12-01 | P118: 230294.2 | Q118: 0 | R118: 0 | S118: 0 | T118: 0 | U118: 230294.2 | V118: 1.04840703 | W118: 241442.05 | X118: 0 | Y118: 0 | Z118: 0 | AA118: 0 | AB118: 241442.05
A119: 74 | B119: PRC | C119: 4837 | D119: 2019/0129039-0 | E119: 0129039-32.2019.3.00.0000 | F119: STJ | G119: MS 15.416/DF | H119: 2018-05-10 | I119: 2019-04-25 | J119: 2019-05-09 | K119: União | L119: 26.994.558/0001-23 | M119: Brasilia/DF | N119: Comum | O119: 2022-12-01 | P119: 241573.48 | Q119: 0 | R119: 0 | S119: 0 | T119: 0 | U119: 241573.48 | V119: 1.04840703 | W119: 253267.33 | X119: 0 | Y119: 0 | Z119: 0 | AA119: 0 | AB119: 253267.33
A120: 75 | B120: PRC | C120: 4838 | D120: 2019/0129041-7 | E120: 0129041-02.2019.3.00.0000 | F120: STJ | G120: MS 23.821/DF | H120: 2018-11-19 | I120: 2019-04-25 | J120: 2019-05-09 | K120: União | L120: 26.994.558/0001-23 | M120: Brasilia/DF | N120: Comum | O120: 2022-12-01 | P120: 219886.36 | Q120: 12215.9 | R120: 12215.9 | S120: 0 | T120: 0 | U120: 244318.16 | V120: 1.04840703 | W120: 230530.4 | X120: 12807.23 | Y120: 12807.23 | Z120: 0 | AA120: 0 | AB120: 256144.86
A121: 76 | B121: PRC | C121: 4839 | D121: 2019/0129043-0 | E121: 0129043-69.2019.3.00.0000 | F121: STJ | G121: MS 21.377/DF | H121: 2018-06-07 | I121: 2019-03-07 | J121: 2019-05-09 | K121: União | L121: 26.994.558/0001-23 | M121: Brasilia/DF | N121: Comum | O121: 2022-12-01 | P121: 190805.81 | Q121: 47701.45 | R121: 0 | S121: 0 | T121: 0 | U121: 238507.26 | V121: 1.04840703 | W121: 200042.15 | X121: 50010.53 | Y121: 0 | Z121: 0 | AA121: 0 | AB121: 250052.68
A122: 77 | B122: PRC | C122: 4841 | D122: 2019/0129051-8 | E122: 0129051-46.2019.3.00.0000 | F122: STJ | G122: MS 22.217/DF | H122: 2017-11-13 | I122: 2019-04-30 | J122: 2019-05-09 | K122: União | L122: 26.994.558/0001-23 | M122: Brasilia/DF | N122: Comum | O122: 2022-12-01 | P122: 220708.62 | Q122: 24523.18 | R122: 0 | S122: 0 | T122: 0 | U122: 245231.8 | V122: 1.04840703 | W122: 231392.46 | X122: 25710.27 | Y122: 0 | Z122: 0 | AA122: 0 | AB122: 257102.73
A123: 78 | B123: PRC | C123: 4842 | D123: 2019/0129052-0 | E123: 0129052-31.2019.3.00.0000 | F123: STJ | G123: MS 23.389/DF | H123: 2017-10-03 | I123: 2019-04-30 | J123: 2019-05-09 | K123: União | L123: 26.994.558/0001-23 | M123: Brasilia/DF | N123: Comum | O123: 2022-12-01 | P123: 251538.67 | Q123: 0 | R123: 0 | S123: 0 | T123: 0 | U123: 251538.67 | V123: 1.04840703 | W123: 263714.91 | X123: 0 | Y123: 0 | Z123: 0 | AA123: 0 | AB123: 263714.91
A124: 79 | B124: PRC | C124: 4843 | D124: 2019/0129053-1 | E124: 0129053-16.2019.3.00.0000 | F124: STJ | G124: MS 23.449/DF | H124: 2018-06-12 | I124: 2019-04-30 | J124: 2019-05-09 | K124: União | L124: 26.994.558/0001-23 | M124: Brasilia/DF | N124: Comum | O124: 2022-12-01 | P124: 190455.12 | Q124: 47613.77 | R124: 0 | S124: 0 | T124: 0 | U124: 238068.89 | V124: 1.04840703 | W124: 199674.48 | X124: 49918.61 | Y124: 0 | Z124: 0 | AA124: 0 | AB124: 249593.09
A125: 80 | B125: PRC | C125: 4844 | D125: 2019/0142564-7 | E125: 0142564-81.2019.3.00.0000 | F125: STJ | G125: MS 15.762/DF | H125: 2018-06-20 | I125: 2019-05-02 | J125: 2019-05-20 | K125: União | L125: 26.994.558/0001-23 | M125: Brasilia/DF | N125: Comum | O125: 2022-12-01 | P125: 171318.35 | Q125: 42829.58 | R125: 0 | S125: 0 | T125: 0 | U125: 214147.93 | V125: 1.04840703 | W125: 179611.36 | X125: 44902.83 | Y125: 0 | Z125: 0 | AA125: 0 | AB125: 224514.19
A126: 81 | B126: PRC | C126: 4845 | D126: 2019/0142607-5 | E126: 0142607-18.2019.3.00.0000 | F126: STJ | G126: MS 23.208/DF | H126: 2017-06-27 | I126: 2019-05-13 | J126: 2019-05-20 | K126: União | L126: 26.994.558/0001-23 | M126: Brasilia/DF | N126: Comum | O126: 2022-12-01 | P126: 292702.32 | Q126: 0 | R126: 0 | S126: 0 | T126: 0 | U126: 292702.32 | V126: 1.04840703 | W126: 306871.17 | X126: 0 | Y126: 0 | Z126: 0 | AA126: 0 | AB126: 306871.17
A127: 82 | B127: PRC | C127: 4846 | D127: 2019/0142611-5 | E127: 0142611-55.2019.3.00.0000 | F127: STJ | G127: MS 15.589/DF | H127: 2018-08-10 | I127: 2019-05-02 | J127: 2019-05-20 | K127: União | L127: 26.994.558/0001-23 | M127: Brasilia/DF | N127: Comum | O127: 2022-12-01 | P127: 239770.6 | Q127: 59942.65 | R127: 0 | S127: 0 | T127: 0 | U127: 299713.25 | V127: 1.04840703 | W127: 251377.18 | X127: 62844.29 | Y127: 0 | Z127: 0 | AA127: 0 | AB127: 314221.47
A128: 83 | B128: PRC | C128: 4847 | D128: 2019/0142615-2 | E128: 0142615-92.2019.3.00.0000 | F128: STJ | G128: MS 15.619/DF | H128: 2018-06-20 | I128: 2019-05-02 | J128: 2019-05-20 | K128: União | L128: 26.994.558/0001-23 | M128: Brasilia/DF | N128: Comum | O128: 2022-12-01 | P128: 262687.16 | Q128: 65671.79 | R128: 0 | S128: 0 | T128: 0 | U128: 328358.95 | V128: 1.04840703 | W128: 275403.06 | X128: 68850.76 | Y128: 0 | Z128: 0 | AA128: 0 | AB128: 344253.82
A129: 84 | B129: PRC | C129: 4848 | D129: 2019/0142618-8 | E129: 0142618-47.2019.3.00.0000 | F129: STJ | G129: MS 15.645/DF | H129: 2018-06-20 | I129: 2019-05-02 | J129: 2019-05-20 | K129: União | L129: 26.994.558/0001-23 | M129: Brasilia/DF | N129: Comum | O129: 2022-12-01 | P129: 212231.95 | Q129: 53057.98 | R129: 0 | S129: 0 | T129: 0 | U129: 265289.93 | V129: 1.04840703 | W129: 222505.46 | X129: 55626.35 | Y129: 0 | Z129: 0 | AA129: 0 | AB129: 278131.81
A130: 85 | B130: PRC | C130: 4849 | D130: 2019/0142620-4 | E130: 0142620-17.2019.3.00.0000 | F130: STJ | G130: MS 13.881/DF | H130: 2018-06-07 | I130: 2019-05-02 | J130: 2019-05-20 | K130: União | L130: 26.994.558/0001-23 | M130: Brasilia/DF | N130: Comum | O130: 2022-12-01 | P130: 227170.92 | Q130: 56792.73 | R130: 0 | S130: 0 | T130: 0 | U130: 283963.65 | V130: 1.04840703 | W130: 238167.58 | X130: 59541.89 | Y130: 0 | Z130: 0 | AA130: 0 | AB130: 297709.47
A131: 86 | B131: PRC | C131: 4851 | D131: 2019/0142628-9 | E131: 0142628-91.2019.3.00.0000 | F131: STJ | G131: MS 18.038/DF | H131: 2018-06-20 | I131: 2019-05-06 | J131: 2019-05-20 | K131: União | L131: 26.994.558/0001-23 | M131: Brasilia/DF | N131: Comum | O131: 2022-12-01 | P131: 195454.54 | Q131: 48863.63 | R131: 0 | S131: 0 | T131: 0 | U131: 244318.17 | V131: 1.04840703 | W131: 204915.91 | X131: 51228.97 | Y131: 0 | Z131: 0 | AA131: 0 | AB131: 256144.88
A132: 87 | B132: PRC | C132: 4852 | D132: 2019/0142637-8 | E132: 0142637-53.2019.3.00.0000 | F132: STJ | G132: MS 15.881/DF | H132: 2018-09-20 | I132: 2019-04-26 | J132: 2019-05-20 | K132: União | L132: 26.994.558/0001-23 | M132: Brasilia/DF | N132: Comum | O132: 2022-12-01 | P132: 201800.36 | Q132: 35611.82 | R132: 0 | S132: 0 | T132: 0 | U132: 237412.18 | V132: 1.04840703 | W132: 211568.91 | X132: 37335.68 | Y132: 0 | Z132: 0 | AA132: 0 | AB132: 248904.59
A133: 88 | B133: PRC | C133: 4853 | D133: 2019/0145683-7 | E133: 0145683-50.2019.3.00.0000 | F133: STJ | G133: MS 16.641/DF | H133: 2018-06-07 | I133: 2019-02-08 | J133: 2019-05-22 | K133: União | L133: 26.994.558/0001-23 | M133: Brasilia/DF | N133: Comum | O133: 2022-12-01 | P133: 214963.15 | Q133: 23884.79 | R133: 0 | S133: 0 | T133: 0 | U133: 238847.94 | V133: 1.04840703 | W133: 225368.87 | X133: 25040.98 | Y133: 0 | Z133: 0 | AA133: 0 | AB133: 250409.85
A134: 89 | B134: PRC | C134: 4854 | D134: 2019/0145687-4 | E134: 0145687-87.2019.3.00.0000 | F134: STJ | G134: MS 17.722/DF | H134: 2018-06-20 | I134: 2019-02-08 | J134: 2019-05-22 | K134: União | L134: 26.994.558/0001-23 | M134: Brasilia/DF | N134: Comum | O134: 2022-12-01 | P134: 263047.3 | Q134: 29227.47 | R134: 0 | S134: 0 | T134: 0 | U134: 292274.77 | V134: 1.04840703 | W134: 275780.63 | X134: 30642.28 | Y134: 0 | Z134: 0 | AA134: 0 | AB134: 306422.91
A135: 90 | B135: PRC | C135: 4855 | D135: 2019/0145689-8 | E135: 0145689-57.2019.3.00.0000 | F135: STJ | G135: MS 16.646/DF | H135: 2018-05-25 | I135: 2019-02-08 | J135: 2019-05-22 | K135: União | L135: 26.994.558/0001-23 | M135: Brasilia/DF | N135: Comum | O135: 2022-12-01 | P135: 193959.63 | Q135: 48489.9 | R135: 0 | S135: 0 | T135: 0 | U135: 242449.53 | V135: 1.04840703 | W135: 203348.63 | X135: 50837.15 | Y135: 0 | Z135: 0 | AA135: 0 | AB135: 254185.78
A136: 91 | B136: PRC | C136: 4856 | D136: 2019/0145696-3 | E136: 0145696-49.2019.3.00.0000 | F136: STJ | G136: MS 15.184/DF | H136: 2018-08-15 | I136: 2019-02-08 | J136: 2019-05-22 | K136: União | L136: 26.994.558/0001-23 | M136: Brasilia/DF | N136: Comum | O136: 2022-12-01 | P136: 248585.94 | Q136: 27620.66 | R136: 0 | S136: 0 | T136: 0 | U136: 276206.6 | V136: 1.04840703 | W136: 260619.24 | X136: 28957.69 | Y136: 0 | Z136: 0 | AA136: 0 | AB136: 289576.93
A137: 92 | B137: PRC | C137: 4858 | D137: 2019/0145724-1 | E137: 0145724-17.2019.3.00.0000 | F137: STJ | G137: MS 22.477/DF | H137: 2018-08-23 | I137: 2019-05-08 | J137: 2019-05-22 | K137: União | L137: 26.994.558/0001-23 | M137: Brasilia/DF | N137: Comum | O137: 2022-12-01 | P137: 250552.92 | Q137: 44215.21 | R137: 0 | S137: 0 | T137: 0 | U137: 294768.13 | V137: 1.04840703 | W137: 262681.44 | X137: 46355.53 | Y137: 0 | Z137: 0 | AA137: 0 | AB137: 309036.97
A138: 93 | B138: PRC | C138: 4859 | D138: 2019/0145730-5 | E138: 0145730-24.2019.3.00.0000 | F138: STJ | G138: MS 17.852/DF | H138: 2018-06-07 | I138: 2019-02-08 | J138: 2019-05-22 | K138: União | L138: 26.994.558/0001-23 | M138: Brasilia/DF | N138: Comum | O138: 2022-12-01 | P138: 234466.44 | Q138: 26051.82 | R138: 0 | S138: 0 | T138: 0 | U138: 260518.26 | V138: 1.04840703 | W138: 245816.26 | X138: 27312.91 | Y138: 0 | Z138: 0 | AA138: 0 | AB138: 273129.17
A139: 94 | B139: PRC | C139: 4911 | D139: 2019/0149818-5 | E139: 0149818-08.2019.3.00.0000 | F139: STJ | G139: MS 16.648/DF | H139: 2018-06-07 | I139: 2019-02-07 | J139: 2019-05-24 | K139: União | L139: 26.994.558/0001-23 | M139: Brasilia/DF | N139: Comum | O139: 2022-12-01 | P139: 237144.28 | Q139: 59286.07 | R139: 0 | S139: 0 | T139: 0 | U139: 296430.35 | V139: 1.04840703 | W139: 248623.73 | X139: 62155.93 | Y139: 0 | Z139: 0 | AA139: 0 | AB139: 310779.66
A140: 95 | B140: PRC | C140: 4913 | D140: 2019/0149826-2 | E140: 0149826-82.2019.3.00.0000 | F140: STJ | G140: MS 16.018/DF | H140: 2018-06-20 | I140: 2019-02-08 | J140: 2019-05-24 | K140: União | L140: 26.994.558/0001-23 | M140: Brasilia/DF | N140: Comum | O140: 2022-12-01 | P140: 260429.31 | Q140: 28936.58 | R140: 0 | S140: 0 | T140: 0 | U140: 289365.89 | V140: 1.04840703 | W140: 273035.91 | X140: 30337.31 | Y140: 0 | Z140: 0 | AA140: 0 | AB140: 303373.22
A141: 96 | B141: PRC | C141: 4914 | D141: 2019/0149828-6 | E141: 0149828-52.2019.3.00.0000 | F141: STJ | G141: MS 19.825/DF | H141: 2018-06-20 | I141: 2019-02-08 | J141: 2019-05-24 | K141: União | L141: 26.994.558/0001-23 | M141: Brasilia/DF | N141: Comum | O141: 2022-12-01 | P141: 202983.06 | Q141: 50745.76 | R141: 0 | S141: 0 | T141: 0 | U141: 253728.82 | V141: 1.04840703 | W141: 212808.86 | X141: 53202.21 | Y141: 0 | Z141: 0 | AA141: 0 | AB141: 266011.07
A142: 97 | B142: PRC | C142: 4915 | D142: 2019/0149832-6 | E142: 0149832-89.2019.3.00.0000 | F142: STJ | G142: MS 18.366/DF | H142: 2018-06-20 | I142: 2019-02-08 | J142: 2019-05-24 | K142: União | L142: 26.994.558/0001-23 | M142: Brasilia/DF | N142: Comum | O142: 2022-12-01 | P142: 267909.32 | Q142: 29767.7 | R142: 0 | S142: 0 | T142: 0 | U142: 297677.02 | V142: 1.04840703 | W142: 280878.01 | X142: 31208.66 | Y142: 0 | Z142: 0 | AA142: 0 | AB142: 312086.67
A143: 98 | B143: PRC | C143: 4916 | D143: 2019/0149839-9 | E143: 0149839-81.2019.3.00.0000 | F143: STJ | G143: MS 16.025/DF | H143: 2018-06-20 | I143: 2019-02-08 | J143: 2019-05-24 | K143: União | L143: 26.994.558/0001-23 | M143: Brasilia/DF | N143: Comum | O143: 2022-12-01 | P143: 246183.4 | Q143: 27353.71 | R143: 0 | S143: 0 | T143: 0 | U143: 273537.11 | V143: 1.04840703 | W143: 258100.4 | X143: 28677.82 | Y143: 0 | Z143: 0 | AA143: 0 | AB143: 286778.22
A144: 99 | B144: PRC | C144: 4917 | D144: 2019/0149844-0 | E144: 0149844-06.2019.3.00.0000 | F144: STJ | G144: MS 15.697/DF | H144: 2018-08-15 | I144: 2019-02-08 | J144: 2019-05-24 | K144: União | L144: 26.994.558/0001-23 | M144: Brasilia/DF | N144: Comum | O144: 2022-12-01 | P144: 228257.38 | Q144: 25361.93 | R144: 0 | S144: 0 | T144: 0 | U144: 253619.31 | V144: 1.04840703 | W144: 239306.64 | X144: 26589.62 | Y144: 0 | Z144: 0 | AA144: 0 | AB144: 265896.26
A145: 100 | B145: PRC | C145: 4918 | D145: 2019/0149849-0 | E145: 0149849-28.2019.3.00.0000 | F145: STJ | G145: MS 17.418/DF | H145: 2018-05-25 | I145: 2019-02-08 | J145: 2019-05-24 | K145: União | L145: 26.994.558/0001-23 | M145: Brasilia/DF | N145: Comum | O145: 2022-12-01 | P145: 241355.25 | Q145: 26817.25 | R145: 0 | S145: 0 | T145: 0 | U145: 268172.5 | V145: 1.04840703 | W145: 253038.54 | X145: 28115.39 | Y145: 0 | Z145: 0 | AA145: 0 | AB145: 281153.93
A146: 101 | B146: PRC | C146: 4919 | D146: 2019/0149857-7 | E146: 0149857-05.2019.3.00.0000 | F146: STJ | G146: MS 23.430/DF | H146: 2017-08-25 | I146: 2019-05-13 | J146: 2019-05-24 | K146: União | L146: 26.994.558/0001-23 | M146: Brasilia/DF | N146: Comum | O146: 2022-12-01 | P146: 226187.67 | Q146: 12565.98 | R146: 12565.98 | S146: 0 | T146: 0 | U146: 251319.63 | V146: 1.04840703 | W146: 237136.74 | X146: 13174.26 | Y146: 13174.26 | Z146: 0 | AA146: 0 | AB146: 263485.26
A147: 102 | B147: PRC | C147: 4920 | D147: 2019/0153648-4 | E147: 0153648-79.2019.3.00.0000 | F147: STJ | G147: MS 13.423/DF | H147: 2015-08-17 | I147: 2019-05-17 | J147: 2019-05-28 | K147: União | L147: 26.994.558/0001-23 | M147: Brasilia/DF | N147: Comum | O147: 2022-12-01 | P147: 617798.76 | Q147: 0 | R147: 0 | S147: 0 | T147: 0 | U147: 617798.76 | V147: 1.04840703 | W147: 647704.56 | X147: 0 | Y147: 0 | Z147: 0 | AA147: 0 | AB147: 647704.56
A148: 103 | B148: PRC | C148: 4947 | D148: 2019/0162105-3 | E148: 0162105-03.2019.3.00.0000 | F148: STJ | G148: MS 15.765/DF | H148: 2018-06-20 | I148: 2019-05-03 | J148: 2019-06-04 | K148: UNIÃO | L148: 26.994.558/0001-23 | M148: Brasilia/DF | N148: Comum | O148: 2022-12-01 | P148: 444629.5 | Q148: 111157.37 | R148: 0 | S148: 0 | T148: 0 | U148: 555786.87 | V148: 1.04840703 | W148: 466152.69 | X148: 116538.16 | Y148: 0 | Z148: 0 | AA148: 0 | AB148: 582690.85
A149: 104 | B149: PRC | C149: 4948 | D149: 2019/0162114-2 | E149: 0162114-62.2019.3.00.0000 | F149: STJ | G149: MS 15.248/DF | H149: 2018-08-15 | I149: 2019-04-05 | J149: 2019-06-04 | K149: União | L149: 26.994.558/0001-23 | M149: Brasilia/DF | N149: Comum | O149: 2022-12-01 | P149: 244077.16 | Q149: 28714.95 | R149: 14357.47 | S149: 0 | T149: 0 | U149: 287149.58 | V149: 1.04840703 | W149: 255892.21 | X149: 30104.95 | Y149: 15052.47 | Z149: 0 | AA149: 0 | AB149: 301049.63
A150: 105 | B150: PRC | C150: 4949 | D150: 2019/0162125-5 | E150: 0162125-91.2019.3.00.0000 | F150: STJ | G150: MS 16.606/DF | H150: 2018-08-15 | I150: 2019-04-05 | J150: 2019-06-04 | K150: União | L150: 26.994.558/0001-23 | M150: Brasilia/DF | N150: Comum | O150: 2022-12-01 | P150: 236088.51 | Q150: 27775.11 | R150: 13887.55 | S150: 0 | T150: 0 | U150: 277751.17 | V150: 1.04840703 | W150: 247516.85 | X150: 29119.62 | Y150: 14559.8 | Z150: 0 | AA150: 0 | AB150: 291196.27
A151: 106 | B151: PRC | C151: 4950 | D151: 2019/0162129-2 | E151: 0162129-31.2019.3.00.0000 | F151: STJ | G151: MS 16.711/DF | H151: 2018-05-10 | I151: 2019-04-09 | J151: 2019-06-04 | K151: União | L151: 26.994.558/0001-23 | M151: Brasilia/DF | N151: Comum | O151: 2022-12-01 | P151: 194425.83 | Q151: 83325.35 | R151: 0 | S151: 0 | T151: 0 | U151: 277751.18 | V151: 1.04840703 | W151: 203837.4 | X151: 87358.88 | Y151: 0 | Z151: 0 | AA151: 0 | AB151: 291196.28
A152: 107 | B152: PRC | C152: 4951 | D152: 2019/0162134-4 | E152: 0162134-53.2019.3.00.0000 | F152: STJ | G152: MS 15.391/DF | H152: 2018-08-15 | I152: 2019-04-22 | J152: 2019-06-04 | K152: UNIÃO | L152: 26.994.558/0001-23 | M152: Brasilia/DF | N152: Comum | O152: 2022-12-01 | P152: 243723.91 | Q152: 28673.4 | R152: 14336.7 | S152: 0 | T152: 0 | U152: 286734.01 | V152: 1.04840703 | W152: 255521.86 | X152: 30061.39 | Y152: 15030.69 | Z152: 0 | AA152: 0 | AB152: 300613.94
A153: 108 | B153: PRC | C153: 4952 | D153: 2019/0162145-7 | E153: 0162145-82.2019.3.00.0000 | F153: STJ | G153: MS 15.229/DF | H153: 2018-08-15 | I153: 2019-05-13 | J153: 2019-06-04 | K153: UNIÃO | L153: 26.994.558/0001-23 | M153: Brasilia/DF | N153: Comum | O153: 2022-12-01 | P153: 177919.74 | Q153: 69191.01 | R153: 0 | S153: 0 | T153: 0 | U153: 247110.75 | V153: 1.04840703 | W153: 186532.3 | X153: 72540.34 | Y153: 0 | Z153: 0 | AA153: 0 | AB153: 259072.64
A154: 109 | B154: PRC | C154: 4954 | D154: 2019/0162168-4 | E154: 0162168-28.2019.3.00.0000 | F154: STJ | G154: MS 15.283/DF | H154: 2018-08-15 | I154: 2019-05-13 | J154: 2019-06-04 | K154: União | L154: 26.994.558/0001-23 | M154: Brasilia/DF | N154: Comum | O154: 2022-12-01 | P154: 263047.3 | Q154: 14613.73 | R154: 14613.73 | S154: 0 | T154: 0 | U154: 292274.76 | V154: 1.04840703 | W154: 275780.63 | X154: 15321.13 | Y154: 15321.13 | Z154: 0 | AA154: 0 | AB154: 306422.89
A155: 110 | B155: PRC | C155: 4971 | D155: 2019/0162869-3 | E155: 0162869-86.2019.3.00.0000 | F155: STJ | G155: MS 20.878/DF | H155: 2018-06-20 | I155: 2019-05-20 | J155: 2019-06-05 | K155: União | L155: 26.994.558/0001-23 | M155: Brasilia/DF | N155: Comum | O155: 2022-12-01 | P155: 521922.22 | Q155: 130480.55 | R155: 0 | S155: 0 | T155: 0 | U155: 652402.77 | V155: 1.04840703 | W155: 547186.92 | X155: 136796.72 | Y155: 0 | Z155: 0 | AA155: 0 | AB155: 683983.64
A156: 111 | B156: PRC | C156: 4972 | D156: 2019/0162872-1 | E156: 0162872-41.2019.3.00.0000 | F156: STJ | G156: MS 15.640/DF | H156: 2018-06-07 | I156: 2019-05-21 | J156: 2019-06-05 | K156: União | L156: 26.994.558/0001-23 | M156: Brasilia/DF | N156: Comum | O156: 2022-12-01 | P156: 181169.14 | Q156: 45292.28 | R156: 0 | S156: 0 | T156: 0 | U156: 226461.42 | V156: 1.04840703 | W156: 189939 | X156: 47484.74 | Y156: 0 | Z156: 0 | AA156: 0 | AB156: 237423.74
A157: 112 | B157: PRC | C157: 4973 | D157: 2019/0162876-9 | E157: 0162876-78.2019.3.00.0000 | F157: STJ | G157: MS 15.658/DF | H157: 2018-08-15 | I157: 2019-05-21 | J157: 2019-06-05 | K157: União | L157: 26.994.558/0001-23 | M157: Brasilia/DF | N157: Comum | O157: 2022-12-01 | P157: 262687.16 | Q157: 65671.79 | R157: 0 | S157: 0 | T157: 0 | U157: 328358.95 | V157: 1.04840703 | W157: 275403.06 | X157: 68850.76 | Y157: 0 | Z157: 0 | AA157: 0 | AB157: 344253.82
A158: 113 | B158: PRC | C158: 4974 | D158: 2019/0162883-4 | E158: 0162883-70.2019.3.00.0000 | F158: STJ | G158: MS 15.657/DF | H158: 2018-08-10 | I158: 2019-05-20 | J158: 2019-06-05 | K158: União | L158: 26.994.558/0001-23 | M158: Brasilia/DF | N158: Comum | O158: 2022-12-01 | P158: 262687.16 | Q158: 65671.79 | R158: 0 | S158: 0 | T158: 0 | U158: 328358.95 | V158: 1.04840703 | W158: 275403.06 | X158: 68850.76 | Y158: 0 | Z158: 0 | AA158: 0 | AB158: 344253.82
A159: 114 | B159: PRC | C159: 4976 | D159: 2019/0162886-0 | E159: 0162886-25.2019.3.00.0000 | F159: STJ | G159: MS 15.631/DF | H159: 2018-06-07 | I159: 2019-05-20 | J159: 2019-06-05 | K159: União | L159: 26.994.558/0001-23 | M159: Brasilia/DF | N159: Comum | O159: 2022-12-01 | P159: 262687.16 | Q159: 65671.79 | R159: 0 | S159: 0 | T159: 0 | U159: 328358.95 | V159: 1.04840703 | W159: 275403.06 | X159: 68850.76 | Y159: 0 | Z159: 0 | AA159: 0 | AB159: 344253.82
A160: 115 | B160: PRC | C160: 4977 | D160: 2019/0162888-3 | E160: 0162888-92.2019.3.00.0000 | F160: STJ | G160: MS 15.636/DF | H160: 2018-09-19 | I160: 2019-05-16 | J160: 2019-06-05 | K160: União | L160: 26.994.558/0001-23 | M160: Brasilia/DF | N160: Comum | O160: 2022-12-01 | P160: 262687.16 | Q160: 65671.79 | R160: 0 | S160: 0 | T160: 0 | U160: 328358.95 | V160: 1.04840703 | W160: 275403.06 | X160: 68850.76 | Y160: 0 | Z160: 0 | AA160: 0 | AB160: 344253.82
A161: 116 | B161: PRC | C161: 4979 | D161: 2019/0162891-1 | E161: 0162891-47.2019.3.00.0000 | F161: STJ | G161: MS 15.648/DF | H161: 2018-08-15 | I161: 2019-05-16 | J161: 2019-06-05 | K161: União | L161: 26.994.558/0001-23 | M161: Brasilia/DF | N161: Comum | O161: 2022-12-01 | P161: 191078.36 | Q161: 47769.58 | R161: 0 | S161: 0 | T161: 0 | U161: 238847.94 | V161: 1.04840703 | W161: 200327.89 | X161: 50081.96 | Y161: 0 | Z161: 0 | AA161: 0 | AB161: 250409.85
A162: 117 | B162: PRC | C162: 4981 | D162: 2019/0162894-7 | E162: 0162894-02.2019.3.00.0000 | F162: STJ | G162: MS 21.477/DF | H162: 2018-08-10 | I162: 2019-05-22 | J162: 2019-06-05 | K162: União | L162: 26.994.558/0001-23 | M162: Brasilia/DF | N162: Comum | O162: 2022-12-01 | P162: 189579.32 | Q162: 47394.82 | R162: 0 | S162: 0 | T162: 0 | U162: 236974.14 | V162: 1.04840703 | W162: 198756.29 | X162: 49689.06 | Y162: 0 | Z162: 0 | AA162: 0 | AB162: 248445.35
A163: 118 | B163: PRC | C163: 4982 | D163: 2019/0162895-9 | E163: 0162895-84.2019.3.00.0000 | F163: STJ | G163: MS 20.418/DF | H163: 2018-06-20 | I163: 2019-05-22 | J163: 2019-06-05 | K163: União | L163: 26.994.558/0001-23 | M163: Brasilia/DF | N163: Comum | O163: 2022-12-01 | P163: 190805.81 | Q163: 47701.45 | R163: 0 | S163: 0 | T163: 0 | U163: 238507.26 | V163: 1.04840703 | W163: 200042.15 | X163: 50010.53 | Y163: 0 | Z163: 0 | AA163: 0 | AB163: 250052.68
A164: 119 | B164: PRC | C164: 4983 | D164: 2019/0162899-6 | E164: 0162899-24.2019.3.00.0000 | F164: STJ | G164: MS 15.574/DF | H164: 2018-06-20 | I164: 2019-05-13 | J164: 2019-06-05 | K164: União | L164: 26.994.558/0001-23 | M164: Brasilia/DF | N164: Comum | O164: 2022-12-01 | P164: 179310.77 | Q164: 44827.69 | R164: 0 | S164: 0 | T164: 0 | U164: 224138.46 | V164: 1.04840703 | W164: 187990.67 | X164: 46997.66 | Y164: 0 | Z164: 0 | AA164: 0 | AB164: 234988.33
A165: 120 | B165: PRC | C165: 4984 | D165: 2019/0162905-9 | E165: 0162905-31.2019.3.00.0000 | F165: STJ | G165: MS 15.398/DF | H165: 2018-08-15 | I165: 2019-05-10 | J165: 2019-06-05 | K165: União | L165: 26.994.558/0001-23 | M165: Brasilia/DF | N165: Comum | O165: 2022-12-01 | P165: 261800.65 | Q165: 14544.47 | R165: 14544.47 | S165: 0 | T165: 0 | U165: 290889.59 | V165: 1.04840703 | W165: 274473.64 | X165: 15248.52 | Y165: 15248.52 | Z165: 0 | AA165: 0 | AB165: 304970.68
A166: 121 | B166: PRC | C166: 4985 | D166: 2019/0162911-2 | E166: 0162911-38.2019.3.00.0000 | F166: STJ | G166: MS 16.607/DF | H166: 2018-08-10 | I166: 2019-05-10 | J166: 2019-06-05 | K166: União | L166: 26.994.558/0001-23 | M166: Brasilia/DF | N166: Comum | O166: 2022-12-01 | P166: 211798.4 | Q166: 11766.57 | R166: 11766.57 | S166: 0 | T166: 0 | U166: 235331.54 | V166: 1.04840703 | W166: 222050.93 | X166: 12336.15 | Y166: 12336.15 | Z166: 0 | AA166: 0 | AB166: 246723.23
A167: 122 | B167: PRC | C167: 4986 | D167: 2019/0162912-4 | E167: 0162912-23.2019.3.00.0000 | F167: STJ | G167: MS 15.245/DF | H167: 2018-08-10 | I167: 2019-05-10 | J167: 2019-06-05 | K167: União | L167: 26.994.558/0001-23 | M167: Brasilia/DF | N167: Comum | O167: 2022-12-01 | P167: 258559.29 | Q167: 28728.81 | R167: 0 | S167: 0 | T167: 0 | U167: 287288.1 | V167: 1.04840703 | W167: 271075.37 | X167: 30119.48 | Y167: 0 | Z167: 0 | AA167: 0 | AB167: 301194.85
A168: 123 | B168: PRC | C168: 4987 | D168: 2019/0162923-7 | E168: 0162923-52.2019.3.00.0000 | F168: STJ | G168: MS 15.577/DF | H168: 2018-06-20 | I168: 2019-05-10 | J168: 2019-06-05 | K168: União | L168: 26.994.558/0001-23 | M168: Brasilia/DF | N168: Comum | O168: 2022-12-01 | P168: 183709.74 | Q168: 45927.43 | R168: 0 | S168: 0 | T168: 0 | U168: 229637.17 | V168: 1.04840703 | W168: 192602.58 | X168: 48150.64 | Y168: 0 | Z168: 0 | AA168: 0 | AB168: 240753.22
A169: 124 | B169: PRC | C169: 4988 | D169: 2019/0162929-8 | E169: 0162929-59.2019.3.00.0000 | F169: STJ | G169: MS 17.757/DF | H169: 2018-06-07 | I169: 2019-02-11 | J169: 2019-06-05 | K169: União | L169: 26.994.558/0001-23 | M169: Brasilia/DF | N169: Comum | O169: 2022-12-01 | P169: 224807.88 | Q169: 24978.65 | R169: 0 | S169: 0 | T169: 0 | U169: 249786.53 | V169: 1.04840703 | W169: 235690.16 | X169: 26187.79 | Y169: 0 | Z169: 0 | AA169: 0 | AB169: 261877.95
A170: 125 | B170: PRC | C170: 4989 | D170: 2019/0168488-4 | E170: 0168488-94.2019.3.00.0000 | F170: STJ | G170: MS 16.066/DF | H170: 2018-08-10 | I170: 2019-02-07 | J170: 2019-06-11 | K170: União | L170: 26.994.558/0001-23 | M170: Brasilia/DF | N170: Comum | O170: 2022-12-01 | P170: 227170.92 | Q170: 56792.73 | R170: 0 | S170: 0 | T170: 0 | U170: 283963.65 | V170: 1.04840703 | W170: 238167.58 | X170: 59541.89 | Y170: 0 | Z170: 0 | AA170: 0 | AB170: 297709.47
A171: 126 | B171: PRC | C171: 4990 | D171: 2019/0168493-6 | E171: 0168493-19.2019.3.00.0000 | F171: STJ | G171: MS 16.016/DF | H171: 2018-08-15 | I171: 2019-02-11 | J171: 2019-06-11 | K171: União | L171: 26.994.558/0001-23 | M171: Brasilia/DF | N171: Comum | O171: 2022-12-01 | P171: 266787.31 | Q171: 29643.03 | R171: 0 | S171: 0 | T171: 0 | U171: 296430.34 | V171: 1.04840703 | W171: 279701.69 | X171: 31077.96 | Y171: 0 | Z171: 0 | AA171: 0 | AB171: 310779.65
A172: 127 | B172: PRC | C172: 4991 | D172: 2019/0168497-3 | E172: 0168497-56.2019.3.00.0000 | F172: STJ | G172: MS 16.640/DF | H172: 2018-06-07 | I172: 2019-02-11 | J172: 2019-06-11 | K172: União | L172: 26.994.558/0001-23 | M172: Brasilia/DF | N172: Comum | O172: 2022-12-01 | P172: 275922.09 | Q172: 30658.01 | R172: 0 | S172: 0 | T172: 0 | U172: 306580.1 | V172: 1.04840703 | W172: 289278.65 | X172: 32142.07 | Y172: 0 | Z172: 0 | AA172: 0 | AB172: 321420.72
A173: 128 | B173: PRC | C173: 4993 | D173: 2019/0168501-2 | E173: 0168501-93.2019.3.00.0000 | F173: STJ | G173: MS 15.792/DF | H173: 2018-09-11 | I173: 2019-05-16 | J173: 2019-06-11 | K173: União | L173: 26.994.558/0001-23 | M173: Brasilia/DF | N173: Comum | O173: 2022-12-01 | P173: 196253.1 | Q173: 34632.9 | R173: 0 | S173: 0 | T173: 0 | U173: 230886 | V173: 1.04840703 | W173: 205753.12 | X173: 36309.37 | Y173: 0 | Z173: 0 | AA173: 0 | AB173: 242062.49
A174: 129 | B174: PRC | C174: 4994 | D174: 2019/0168502-4 | E174: 0168502-78.2019.3.00.0000 | F174: STJ | G174: MS 16.124/DF | H174: 2018-06-20 | I174: 2019-05-16 | J174: 2019-06-11 | K174: União | L174: 26.994.558/0001-23 | M174: Brasilia/DF | N174: Comum | O174: 2022-12-01 | P174: 279105.11 | Q174: 24626.92 | R174: 24626.92 | S174: 0 | T174: 0 | U174: 328358.95 | V174: 1.04840703 | W174: =TRUNC(P174*$V174,2) -> 292615.75 | X174: =TRUNC(Q174*$V174,2) -> 25819.03 | Y174: =TRUNC(R174*$V174,2) -> 25819.03 | Z174: =TRUNC(S174*$V174,2) -> 0 | AA174: =TRUNC(T174*$V174,2) -> 0 | AB174: =W174+X174+Y174+Z174+AA174 -> 344253.81
A175: 130 | B175: PRC | C175: 4995 | D175: 2019/0168506-1 | E175: 0168506-18.2019.3.00.0000 | F175: STJ | G175: MS 24.041/DF | H175: 2018-05-30 | I175: 2019-05-17 | J175: 2019-06-11 | K175: União | L175: 26.994.558/0001-23 | M175: Brasilia/DF | N175: Comum | O175: 2022-12-01 | P175: 192295.11 | Q175: 48073.77 | R175: 0 | S175: 0 | T175: 0 | U175: 240368.88 | V175: 1.04840703 | W175: 201603.54 | X175: 50400.87 | Y175: 0 | Z175: 0 | AA175: 0 | AB175: 252004.41
A176: =A175+1 -> 131 | B176: PRC | C176: 4996 | D176: 2019/0168510-1 | E176: 0168510-55.2019.3.00.0000 | F176: STJ | G176: MS 16.111/DF | H176: 2018-06-20 | I176: 2019-05-17 | J176: 2019-06-11 | K176: União | L176: 26.994.558/0001-23 | M176: Brasilia/DF | N176: Comum | O176: 2022-12-01 | P176: 189579.32 | Q176: 47394.82 | R176: 0 | S176: 0 | T176: 0 | U176: 236974.14 | V176: 1.04840703 | W176: 198756.29 | X176: 49689.06 | Y176: 0 | Z176: 0 | AA176: 0 | AB176: 248445.35
A177: 132 | B177: PRC | C177: 4997 | D177: 2019/0168513-7 | E177: 0168513-10.2019.3.00.0000 | F177: STJ | G177: MS 21.083/DF | H177: 2018-06-20 | I177: 2019-05-17 | J177: 2019-06-11 | K177: União | L177: 26.994.558/0001-23 | M177: Brasilia/DF | N177: Comum | O177: 2022-12-01 | P177: 192733.15 | Q177: 48183.28 | R177: 0 | S177: 0 | T177: 0 | U177: 240916.43 | V177: 1.04840703 | W177: 202062.78 | X177: 50515.68 | Y177: 0 | Z177: 0 | AA177: 0 | AB177: 252578.46
A178: 133 | B178: PRC | C178: 4998 | D178: 2019/0168515-0 | E178: 0168515-77.2019.3.00.0000 | F178: STJ | G178: MS 15.571/DF | H178: 2018-06-20 | I178: 2019-05-17 | J178: 2019-06-11 | K178: União | L178: 26.994.558/0001-23 | M178: Brasilia/DF | N178: Comum | O178: 2022-12-01 | P178: 188177.63 | Q178: 47044.4 | R178: 0 | S178: 0 | T178: 0 | U178: 235222.03 | V178: 1.04840703 | W178: 197286.75 | X178: 49321.67 | Y178: 0 | Z178: 0 | AA178: 0 | AB178: 246608.42
A179: 134 | B179: PRC | C179: 4999 | D179: 2019/0168516-2 | E179: 0168516-62.2019.3.00.0000 | F179: STJ | G179: MS 15.581/DF | H179: 2018-06-20 | I179: 2019-05-17 | J179: 2019-06-11 | K179: União | L179: 26.994.558/0001-23 | M179: Brasilia/DF | N179: Comum | O179: 2022-12-01 | P179: 262687.16 | Q179: 65671.79 | R179: 0 | S179: 0 | T179: 0 | U179: 328358.95 | V179: 1.04840703 | W179: 275403.06 | X179: 68850.76 | Y179: 0 | Z179: 0 | AA179: 0 | AB179: 344253.82
A180: 135 | B180: PRC | C180: 5000 | D180: 2019/0168518-6 | E180: 0168518-32.2019.3.00.0000 | F180: STJ | G180: MS 15.585/DF | H180: 2018-08-10 | I180: 2019-05-17 | J180: 2019-06-11 | K180: União | L180: 26.994.558/0001-23 | M180: Brasilia/DF | N180: Comum | O180: 2022-12-01 | P180: 190542.98 | Q180: 47635.74 | R180: 0 | S180: 0 | T180: 0 | U180: 238178.72 | V180: 1.04840703 | W180: 199766.59 | X180: 49941.64 | Y180: 0 | Z180: 0 | AA180: 0 | AB180: 249708.23
A181: 136 | B181: PRC | C181: 5001 | D181: 2019/0174301-3 | E181: 0174301-05.2019.3.00.0000 | F181: STJ | G181: MS 15.621/DF | H181: 2018-06-07 | I181: 2019-05-17 | J181: 2019-06-14 | K181: União | L181: 26.994.558/0001-23 | M181: Brasilia/DF | N181: Comum | O181: 2022-12-01 | P181: 180486.15 | Q181: 45121.53 | R181: 0 | S181: 0 | T181: 0 | U181: 225607.68 | V181: 1.04840703 | W181: 189222.94 | X181: 47305.72 | Y181: 0 | Z181: 0 | AA181: 0 | AB181: 236528.66
A182: 137 | B182: PRC | C182: 5002 | D182: 2019/0174340-5 | E182: 0174340-02.2019.3.00.0000 | F182: STJ | G182: MS 15.623/DF | H182: 2018-08-15 | I182: 2019-05-17 | J182: 2019-06-14 | K182: União | L182: 26.994.558/0001-23 | M182: Brasilia/DF | N182: Comum | O182: 2022-12-01 | P182: 214769.56 | Q182: 53692.39 | R182: 0 | S182: 0 | T182: 0 | U182: 268461.95 | V182: 1.04840703 | W182: 225165.91 | X182: 56291.47 | Y182: 0 | Z182: 0 | AA182: 0 | AB182: 281457.38
A183: 138 | B183: PRC | C183: 5003 | D183: 2019/0174344-2 | E183: 0174344-39.2019.3.00.0000 | F183: STJ | G183: MS 15.628/DF | H183: 2018-08-15 | I183: 2019-05-17 | J183: 2019-06-14 | K183: União | L183: 26.994.558/0001-23 | M183: Brasilia/DF | N183: Comum | O183: 2022-12-01 | P183: 180486.15 | Q183: 45121.53 | R183: 0 | S183: 0 | T183: 0 | U183: 225607.68 | V183: 1.04840703 | W183: 189222.94 | X183: 47305.72 | Y183: 0 | Z183: 0 | AA183: 0 | AB183: 236528.66
A184: 139 | B184: PRC | C184: 5004 | D184: 2019/0174345-4 | E184: 0174345-24.2019.3.00.0000 | F184: STJ | G184: MS 15.643/DF | H184: 2018-08-15 | I184: 2019-05-17 | J184: 2019-06-14 | K184: União | L184: 26.994.558/0001-23 | M184: Brasilia/DF | N184: Comum | O184: 2022-12-01 | P184: 210989.8 | Q184: 52747.44 | R184: 0 | S184: 0 | T184: 0 | U184: 263737.24 | V184: 1.04840703 | W184: 221203.18 | X184: 55300.78 | Y184: 0 | Z184: 0 | AA184: 0 | AB184: 276503.96
A185: 140 | B185: PRC | C185: 5005 | D185: 2019/0174346-6 | E185: 0174346-09.2019.3.00.0000 | F185: STJ | G185: MS 15.644/DF | H185: 2018-08-15 | I185: 2019-05-17 | J185: 2019-06-14 | K185: União | L185: 26.994.558/0001-23 | M185: Brasilia/DF | N185: Comum | O185: 2022-12-01 | P185: 262687.16 | Q185: 65671.79 | R185: 0 | S185: 0 | T185: 0 | U185: 328358.95 | V185: 1.04840703 | W185: 275403.06 | X185: 68850.76 | Y185: 0 | Z185: 0 | AA185: 0 | AB185: 344253.82
A186: 141 | B186: PRC | C186: 5006 | D186: 2019/0174347-8 | E186: 0174347-91.2019.3.00.0000 | F186: STJ | G186: MS 15.659/DF | H186: 2018-08-10 | I186: 2019-05-20 | J186: 2019-06-14 | K186: União | L186: 26.994.558/0001-23 | M186: Brasilia/DF | N186: Comum | O186: 2022-12-01 | P186: 197102.64 | Q186: 49275.65 | R186: 0 | S186: 0 | T186: 0 | U186: 246378.29 | V186: 1.04840703 | W186: 206643.79 | X186: 51660.93 | Y186: 0 | Z186: 0 | AA186: 0 | AB186: 258304.72
A187: 142 | B187: PRC | C187: 5007 | D187: 2019/0174348-0 | E187: 0174348-76.2019.3.00.0000 | F187: STJ | G187: MS 15.632/DF | H187: 2018-08-15 | I187: 2019-05-20 | J187: 2019-06-14 | K187: União | L187: 26.994.558/0001-23 | M187: Brasilia/DF | N187: Comum | O187: 2022-12-01 | P187: 201055.72 | Q187: 50263.92 | R187: 0 | S187: 0 | T187: 0 | U187: 251319.64 | V187: 1.04840703 | W187: 210788.23 | X187: 52697.04 | Y187: 0 | Z187: 0 | AA187: 0 | AB187: 263485.27
A188: 143 | B188: PRC | C188: 5008 | D188: 2019/0174349-1 | E188: 0174349-61.2019.3.00.0000 | F188: STJ | G188: MS 15.637/DF | H188: 2018-08-15 | I188: 2019-05-20 | J188: 2019-06-14 | K188: União | L188: 26.994.558/0001-23 | M188: Brasilia/DF | N188: Comum | O188: 2022-12-01 | P188: 182045.21 | Q188: 45511.3 | R188: 0 | S188: 0 | T188: 0 | U188: 227556.51 | V188: 1.04840703 | W188: 190857.47 | X188: 47714.36 | Y188: 0 | Z188: 0 | AA188: 0 | AB188: 238571.83
A189: 144 | B189: PRC | C189: 5009 | D189: 2019/0174350-6 | E189: 0174350-46.2019.3.00.0000 | F189: STJ | G189: MS 15.573/DF | H189: 2018-06-20 | I189: 2019-05-20 | J189: 2019-06-14 | K189: União | L189: 26.994.558/0001-23 | M189: Brasilia/DF | N189: Comum | O189: 2022-12-01 | P189: 262687.16 | Q189: 65671.79 | R189: 0 | S189: 0 | T189: 0 | U189: 328358.95 | V189: 1.04840703 | W189: 275403.06 | X189: 68850.76 | Y189: 0 | Z189: 0 | AA189: 0 | AB189: 344253.82
A190: 145 | B190: PRC | C190: 5010 | D190: 2019/0174351-8 | E190: 0174351-31.2019.3.00.0000 | F190: STJ | G190: MS 15.629/DF | H190: 2018-08-15 | I190: 2019-05-20 | J190: 2019-06-14 | K190: União | L190: 26.994.558/0001-23 | M190: Brasilia/DF | N190: Comum | O190: 2022-12-01 | P190: 177830.66 | Q190: 44457.66 | R190: 0 | S190: 0 | T190: 0 | U190: 222288.32 | V190: 1.04840703 | W190: 186438.91 | X190: 46609.72 | Y190: 0 | Z190: 0 | AA190: 0 | AB190: 233048.63
A191: 146 | B191: PRC | C191: 5013 | D191: 2019/0174358-0 | E191: 0174358-23.2019.3.00.0000 | F191: STJ | G191: MS 23.673/DF | H191: 2017-10-24 | I191: 2019-05-10 | J191: 2019-06-14 | K191: União | L191: 26.994.558/0001-23 | M191: Brasilia/DF | N191: Comum | O191: 2022-12-01 | P191: 269718.76 | Q191: 73679.69 | R191: 0 | S191: 0 | T191: 0 | U191: 343398.45 | V191: 1.04840703 | W191: 282775.04 | X191: 77246.3 | Y191: 0 | Z191: 0 | AA191: 0 | AB191: 360021.34
A192: 147 | B192: PRC | C192: 5014 | D192: 2019/0174359-2 | E192: 0174359-08.2019.3.00.0000 | F192: STJ | G192: MS 23.452/DF | H192: 2017-08-31 | I192: 2019-05-15 | J192: 2019-06-14 | K192: União | L192: 26.994.558/0001-23 | M192: Brasilia/DF | N192: Comum | O192: 2022-12-01 | P192: 221580.92 | Q192: 55395.23 | R192: 0 | S192: 0 | T192: 0 | U192: 276976.15 | V192: 1.04840703 | W192: 232306.99 | X192: 58076.74 | Y192: 0 | Z192: 0 | AA192: 0 | AB192: 290383.73
A193: 148 | B193: PRC | C193: 5015 | D193: 2019/0174361-9 | E193: 0174361-75.2019.3.00.0000 | F193: STJ | G193: MS 23.235/DF | H193: 2017-10-03 | I193: 2019-05-15 | J193: 2019-06-14 | K193: União | L193: 26.994.558/0001-23 | M193: Brasilia/DF | N193: Comum | O193: 2022-12-01 | P193: 214267.44 | Q193: 53566.86 | R193: 0 | S193: 0 | T193: 0 | U193: 267834.3 | V193: 1.04840703 | W193: 224639.49 | X193: 56159.87 | Y193: 0 | Z193: 0 | AA193: 0 | AB193: 280799.36
A194: 149 | B194: PRC | C194: 5016 | D194: 2019/0174363-2 | E194: 0174363-45.2019.3.00.0000 | F194: STJ | G194: MS 23.234/DF | H194: 2017-08-24 | I194: 2019-05-15 | J194: 2019-06-14 | K194: União | L194: 26.994.558/0001-23 | M194: Brasilia/DF | N194: Comum | O194: 2022-12-01 | P194: 271943.31 | Q194: 67985.82 | R194: 0 | S194: 0 | T194: 0 | U194: 339929.13 | V194: 1.04840703 | W194: 285107.27 | X194: 71276.81 | Y194: 0 | Z194: 0 | AA194: 0 | AB194: 356384.08
A195: 150 | B195: PRC | C195: 5017 | D195: 2019/0174364-4 | E195: 0174364-30.2019.3.00.0000 | F195: STJ | G195: MS 23.453/DF | H195: 2017-09-15 | I195: 2019-05-22 | J195: 2019-06-14 | K195: União | L195: 26.994.558/0001-23 | M195: Brasilia/DF | N195: Comum | O195: 2022-12-01 | P195: 207743.8 | Q195: 58185.95 | R195: 0 | S195: 0 | T195: 0 | U195: 265929.75 | V195: 1.04840703 | W195: 217800.06 | X195: 61002.55 | Y195: 0 | Z195: 0 | AA195: 0 | AB195: 278802.61
A196: 151 | B196: PRC | C196: 5018 | D196: 2019/0174366-8 | E196: 0174366-97.2019.3.00.0000 | F196: STJ | G196: MS 16.663/DF | H196: 2018-06-20 | I196: 2019-03-01 | J196: 2019-06-14 | K196: União | L196: 26.994.558/0001-23 | M196: Brasilia/DF | N196: Comum | O196: 2022-12-01 | P196: 220965.28 | Q196: 55241.31 | R196: 0 | S196: 0 | T196: 0 | U196: 276206.59 | V196: 1.04840703 | W196: 231661.55 | X196: 57915.37 | Y196: 0 | Z196: 0 | AA196: 0 | AB196: 289576.92
A197: 152 | B197: PRC | C197: 5019 | D197: 2019/0174378-2 | E197: 0174378-14.2019.3.00.0000 | F197: STJ | G197: MS 16.643/DF | H197: 2018-06-07 | I197: 2019-02-28 | J197: 2019-06-14 | K197: União | L197: 26.994.558/0001-23 | M197: Brasilia/DF | N197: Comum | O197: 2022-12-01 | P197: 221035.26 | Q197: 24559.47 | R197: 0 | S197: 0 | T197: 0 | U197: 245594.73 | V197: 1.04840703 | W197: 231734.92 | X197: 25748.32 | Y197: 0 | Z197: 0 | AA197: 0 | AB197: 257483.24
A198: 153 | B198: PRC | C198: 5020 | D198: 2019/0174380-9 | E198: 0174380-81.2019.3.00.0000 | F198: STJ | G198: MS 18.272/DF | H198: 2018-06-20 | I198: 2019-03-18 | J198: 2019-06-14 | K198: União | L198: 26.994.558/0001-23 | M198: Brasilia/DF | N198: Comum | O198: 2022-12-01 | P198: 264476.96 | Q198: 29386.32 | R198: 0 | S198: 0 | T198: 0 | U198: 293863.28 | V198: 1.04840703 | W198: 277279.5 | X198: 30808.82 | Y198: 0 | Z198: 0 | AA198: 0 | AB198: 308088.32
A199: 154 | B199: PRC | C199: 5022 | D199: 2019/0174384-6 | E199: 0174384-21.2019.3.00.0000 | F199: STJ | G199: MS 18.279/DF | H199: 2018-08-29 | I199: 2019-03-18 | J199: 2019-06-14 | K199: União | L199: 26.994.558/0001-23 | M199: Brasilia/DF | N199: Comum | O199: 2022-12-01 | P199: 226581.9 | Q199: 25175.76 | R199: 0 | S199: 0 | T199: 0 | U199: 251757.66 | V199: 1.04840703 | W199: 237550.05 | X199: 26394.44 | Y199: 0 | Z199: 0 | AA199: 0 | AB199: 263944.49
A200: 155 | B200: PRC | C200: 5023 | D200: 2019/0174385-8 | E200: 0174385-06.2019.3.00.0000 | F200: STJ | G200: MS 17.760/DF | H200: 2018-06-07 | I200: 2019-03-18 | J200: 2019-06-14 | K200: União | L200: 26.994.558/0001-23 | M200: Brasilia/DF | N200: Comum | O200: 2022-12-01 | P200: 247654.91 | Q200: 27517.21 | R200: 0 | S200: 0 | T200: 0 | U200: 275172.12 | V200: 1.04840703 | W200: 259643.14 | X200: 28849.23 | Y200: 0 | Z200: 0 | AA200: 0 | AB200: 288492.37
A201: 156 | B201: PRC | C201: 5024 | D201: 2019/0174387-1 | E201: 0174387-73.2019.3.00.0000 | F201: STJ | G201: MS 17.799/DF | H201: 2018-06-20 | I201: 2019-03-18 | J201: 2019-06-14 | K201: União | L201: 26.994.558/0001-23 | M201: Brasilia/DF | N201: Comum | O201: 2022-12-01 | P201: 265665.33 | Q201: 29518.36 | R201: 0 | S201: 0 | T201: 0 | U201: 295183.69 | V201: 1.04840703 | W201: 278525.39 | X201: 30947.25 | Y201: 0 | Z201: 0 | AA201: 0 | AB201: 309472.64
A202: 157 | B202: PRC | C202: 5025 | D202: 2019/0174389-5 | E202: 0174389-43.2019.3.00.0000 | F202: STJ | G202: MS 18.206/DF | H202: 2018-06-20 | I202: 2019-03-18 | J202: 2019-06-14 | K202: União | L202: 26.994.558/0001-23 | M202: Brasilia/DF | N202: Comum | O202: 2022-12-01 | P202: 206719.99 | Q202: 22968.88 | R202: 0 | S202: 0 | T202: 0 | U202: 229688.87 | V202: 1.04840703 | W202: 216726.69 | X202: 24080.73 | Y202: 0 | Z202: 0 | AA202: 0 | AB202: 240807.42
A203: 158 | B203: PRC | C203: 5026 | D203: 2019/0174392-3 | E203: 0174392-95.2019.3.00.0000 | F203: STJ | G203: MS 17.522/DF | H203: 2018-06-20 | I203: 2019-03-18 | J203: 2019-06-14 | K203: União | L203: 26.994.558/0001-23 | M203: Brasilia/DF | N203: Comum | O203: 2022-12-01 | P203: 260429.31 | Q203: 28936.58 | R203: 0 | S203: 0 | T203: 0 | U203: 289365.89 | V203: 1.04840703 | W203: 273035.91 | X203: 30337.31 | Y203: 0 | Z203: 0 | AA203: 0 | AB203: 303373.22
A204: 159 | B204: PRC | C204: 5027 | D204: 2019/0174394-7 | E204: 0174394-65.2019.3.00.0000 | F204: STJ | G204: MS 17.521/DF | H204: 2018-06-20 | I204: 2019-03-18 | J204: 2019-06-14 | K204: União | L204: 26.994.558/0001-23 | M204: Brasilia/DF | N204: Comum | O204: 2022-12-01 | P204: 253918.3 | Q204: 28213.14 | R204: 0 | S204: 0 | T204: 0 | U204: 282131.44 | V204: 1.04840703 | W204: 266209.73 | X204: 29578.85 | Y204: 0 | Z204: 0 | AA204: 0 | AB204: 295788.58
A205: 160 | B205: PRC | C205: 5028 | D205: 2019/0174398-4 | E205: 0174398-05.2019.3.00.0000 | F205: STJ | G205: MS 15.618/DF | H205: 2018-08-29 | I205: 2019-05-29 | J205: 2019-06-14 | K205: União | L205: 26.994.558/0001-23 | M205: Brasilia/DF | N205: Comum | O205: 2022-12-01 | P205: 194485.27 | Q205: 48621.31 | R205: 0 | S205: 0 | T205: 0 | U205: 243106.58 | V205: 1.04840703 | W205: 203899.72 | X205: 50974.92 | Y205: 0 | Z205: 0 | AA205: 0 | AB205: 254874.64
A206: 161 | B206: PRC | C206: 5029 | D206: 2019/0174401-1 | E206: 0174401-57.2019.3.00.0000 | F206: STJ | G206: MS 15.641/DF | H206: 2018-06-07 | I206: 2019-05-29 | J206: 2019-06-14 | K206: União | L206: 26.994.558/0001-23 | M206: Brasilia/DF | N206: Comum | O206: 2022-12-01 | P206: 262687.16 | Q206: 65671.79 | R206: 0 | S206: 0 | T206: 0 | U206: 328358.95 | V206: 1.04840703 | W206: 275403.06 | X206: 68850.76 | Y206: 0 | Z206: 0 | AA206: 0 | AB206: 344253.82
A207: 162 | B207: PRC | C207: 5030 | D207: 2019/0174403-5 | E207: 0174403-27.2019.3.00.0000 | F207: STJ | G207: MS 15.758/DF | H207: 2018-08-15 | I207: 2019-05-29 | J207: 2019-06-14 | K207: União | L207: 26.994.558/0001-23 | M207: Brasilia/DF | N207: Comum | O207: 2022-12-01 | P207: 226021.25 | Q207: 56505.31 | R207: 0 | S207: 0 | T207: 0 | U207: 282526.56 | V207: 1.04840703 | W207: 236962.26 | X207: 59240.56 | Y207: 0 | Z207: 0 | AA207: 0 | AB207: 296202.82
A208: 163 | B208: PRC | C208: 5031 | D208: 2019/0174405-9 | E208: 0174405-94.2019.3.00.0000 | F208: STJ | G208: MS 20.445/DF | H208: 2018-06-20 | I208: 2019-03-01 | J208: 2019-06-14 | K208: União | L208: 26.994.558/0001-23 | M208: Brasilia/DF | N208: Comum | O208: 2022-12-01 | P208: 231805.42 | Q208: 25756.15 | R208: 0 | S208: 0 | T208: 0 | U208: 257561.57 | V208: 1.04840703 | W208: 243026.43 | X208: 27002.92 | Y208: 0 | Z208: 0 | AA208: 0 | AB208: 270029.35
A209: 164 | B209: PRC | C209: 5032 | D209: 2019/0174406-0 | E209: 0174406-79.2019.3.00.0000 | F209: STJ | G209: MS 15.390/DF | H209: 2018-08-15 | I209: 2019-06-04 | J209: 2019-06-14 | K209: União | L209: 26.994.558/0001-23 | M209: Brasilia/DF | N209: Comum | O209: 2022-12-01 | P209: 208151.8 | Q209: 23127.97 | R209: 0 | S209: 0 | T209: 0 | U209: 231279.77 | V209: 1.04840703 | W209: 218227.81 | X209: 24247.52 | Y209: 0 | Z209: 0 | AA209: 0 | AB209: 242475.33
A210: 165 | B210: PRC | C210: 5033 | D210: 2019/0174407-2 | E210: 0174407-64.2019.3.00.0000 | F210: STJ | G210: MS 19.586/DF | H210: 2018-06-07 | I210: 2019-06-04 | J210: 2019-06-14 | K210: União | L210: 26.994.558/0001-23 | M210: Brasilia/DF | N210: Comum | O210: 2022-12-01 | P210: 218248.38 | Q210: 0 | R210: 0 | S210: 0 | T210: 0 | U210: 218248.38 | V210: 1.04840703 | W210: 228813.13 | X210: 0 | Y210: 0 | Z210: 0 | AA210: 0 | AB210: 228813.13
A211: 166 | B211: PRC | C211: 5034 | D211: 2019/0174409-6 | E211: 0174409-34.2019.3.00.0000 | F211: STJ | G211: MS 16.202/DF | H211: 2018-08-10 | I211: 2019-03-27 | J211: 2019-06-14 | K211: União | L211: 26.994.558/0001-23 | M211: Brasilia/DF | N211: Comum | O211: 2022-12-01 | P211: 240700.46 | Q211: 0 | R211: 0 | S211: 0 | T211: 0 | U211: 240700.46 | V211: 1.04840703 | W211: 252352.05 | X211: 0 | Y211: 0 | Z211: 0 | AA211: 0 | AB211: 252352.05
A212: 167 | B212: PRC | C212: 5035 | D212: 2019/0174412-4 | E212: 0174412-86.2019.3.00.0000 | F212: STJ | G212: MS 15.427/DF | H212: 2018-08-29 | I212: 2019-05-08 | J212: 2019-06-14 | K212: União | L212: 26.994.558/0001-23 | M212: Brasilia/DF | N212: Comum | O212: 2022-12-01 | P212: 235353.46 | Q212: 26150.38 | R212: 0 | S212: 0 | T212: 0 | U212: 261503.84 | V212: 1.04840703 | W212: 246746.22 | X212: 27416.24 | Y212: 0 | Z212: 0 | AA212: 0 | AB212: 274162.46
A213: 168 | B213: PRC | C213: 5036 | D213: 2019/0174416-1 | E213: 0174416-26.2019.3.00.0000 | F213: STJ | G213: MS 16.115/DF | H213: 2017-12-04 | I213: 2019-06-06 | J213: 2019-06-14 | K213: União | L213: 26.994.558/0001-23 | M213: Brasilia/DF | N213: Comum | O213: 2022-12-01 | P213: 272350.82 | Q213: 0 | R213: 0 | S213: 0 | T213: 0 | U213: 272350.82 | V213: 1.04840703 | W213: 285534.51 | X213: 0 | Y213: 0 | Z213: 0 | AA213: 0 | AB213: 285534.51
A214: 169 | B214: PRC | C214: 5037 | D214: 2019/0174419-7 | E214: 0174419-78.2019.3.00.0000 | F214: STJ | G214: MS 21.026/DF | H214: 2018-06-20 | I214: 2019-02-11 | J214: 2019-06-14 | K214: União | L214: 26.994.558/0001-23 | M214: Brasilia/DF | N214: Comum | O214: 2022-12-01 | P214: 258683.96 | Q214: 28742.66 | R214: 0 | S214: 0 | T214: 0 | U214: 287426.62 | V214: 1.04840703 | W214: 271206.08 | X214: 30134 | Y214: 0 | Z214: 0 | AA214: 0 | AB214: 301340.08
A215: 170 | B215: PRC | C215: 5038 | D215: 2019/0174420-1 | E215: 0174420-63.2019.3.00.0000 | F215: STJ | G215: MS 17.801/DF | H215: 2018-06-20 | I215: 2019-03-18 | J215: 2019-06-14 | K215: União | L215: 26.994.558/0001-23 | M215: Brasilia/DF | N215: Comum | O215: 2022-12-01 | P215: 218106.03 | Q215: 24234 | R215: 0 | S215: 0 | T215: 0 | U215: 242340.03 | V215: 1.04840703 | W215: 228663.89 | X215: 25407.09 | Y215: 0 | Z215: 0 | AA215: 0 | AB215: 254070.98
A216: 171 | B216: PRC | C216: 5039 | D216: 2019/0175096-3 | E216: 0175096-11.2019.3.00.0000 | F216: STJ | G216: MS 13.760/DF | H216: 2018-06-20 | I216: 2019-04-22 | J216: 2019-06-14 | K216: União | L216: 26.994.558/0001-23 | M216: Brasilia/DF | N216: Comum | O216: 2022-12-01 | P216: 203552.7 | Q216: 35921.06 | R216: 0 | S216: 0 | T216: 0 | U216: 239473.76 | V216: 1.04840703 | W216: 213406.08 | X216: 37659.89 | Y216: 0 | Z216: 0 | AA216: 0 | AB216: 251065.97
... 446 more rows

Sheet Planilha2 (hidden)
K1: remanes | L1: requis | M1: requ atualiz
B2: 9849 | C2: excluir | J2: 9873 | K2: 80569.72 | L2: 78804.5 | M2: 80569.72 | N2: 80569.72
B3: 9850 | C3: excluir | J3: 9883 | K3: 78243.89 | L3: 76529.63 | M3: 78243.89 | N3: 78243.89
B4: 9851 | C4: excluir | J4: 9961 | K4: 77457.81 | L4: 75760.77 | M4: 77457.81 | N4: 77457.81
B5: 9852 | C5: excluir | J5: 9980 | K5: 4322.86 | L5: 236622.5 | M5: 241922.86 | N5: 4322.86
B6: 9853 | C6: excluir | J6: 9990 | K6: 3924597.99 | L6: 3838612.8 | M6: 3924597.99 | N6: 3924597.99
B7: 9854 | C7: excluir | J7: 9991 | K7: 1176343.95 | L7: 1150571.08 | M7: 1176343.95 | N7: 1176343.95
B8: 9855 | C8: excluir | J8: 9992 | K8: 99095.97 | L8: 96924.85 | M8: 99095.97 | N8: 99095.97
B9: 9856 | C9: excluir | J9: 10011 | K9: 80464.48 | L9: 78701.56 | M9: 80464.48 | N9: 80464.48
B10: 9857 | C10: excluir | J10: 10012 | K10: 79540.83 | L10: 77798.15 | M10: 79540.83 | N10: 79540.83
B11: 9858 | C11: excluir | J11: 10014 | K11: 79256.1 | L11: 77519.66 | M11: 79256.1 | N11: 79256.1
B12: 9859 | C12: excluir | J12: 10033 | K12: 404149.25 | L12: 395294.63 | M12: 404149.25 | N12: 404149.25
B13: 9860 | C13: excluir | J13: 10040 | K13: 82280.73 | L13: 80478.02 | M13: 82280.73 | N13: 82280.73
B14: 9861 | C14: excluir | J14: 10054 | K14: 30947.25 | L14: 262663.57 | M14: 268547.25 | N14: 30947.25
B15: 9862 | C15: excluir | J15: 10071 | K15: 81397.18 | L15: 79613.83 | M15: 81397.18 | N15: 81397.18
B16: 9863 | C16: excluir | J16: 10079 | K16: 836446.95 | L16: 1050515.34 | M16: 1074046.95 | N16: 836446.95
B17: 9864 | C17: excluir | J17: 10085 | K17: 70044.62 | L17: 300904.35 | M17: 307644.62 | N17: 70044.62
B18: 9866 | C18: excluir | J18: 10096 | K18: 32334.15 | L18: 264020.09 | M18: 269934.15 | N18: 32334.15
B19: 9867 | C19: excluir | J19: 10097 | K19: 401844.82 | L19: 625435.04 | M19: 639444.82 | N19: 401844.82
B20: 9868 | C20: excluir | J20: 10101 | K20: 808249.82 | L20: 1022935.99 | M20: 1045849.82 | N20: 808249.82
B21: 9869 | C21: excluir | J21: 10132 | K21: 206929.09 | L21: 202395.42 | M21: 206929.09 | N21: 206929.09
B22: 9870 | C22: excluir | J22: 10133 | K22: 102240 | L22: 100000 | M22: 102240 | N22: 102240
B23: 9871 | C23: excluir | J23: 10134 | K23: 353765.66 | L23: 346014.91 | M23: 353765.66 | N23: 353765.66
B24: 9872 | C24: excluir | J24: 10135 | K24: 78314.16 | L24: 76598.36 | M24: 78314.16 | N24: 78314.16
B25: 9874 | C25: excluir | J25: 10140 | K25: 301183.44 | L25: 294584.73 | M25: 301183.44 | N25: 301183.44
B26: 9875 | C26: excluir | J26: 10147 | K26: 81076.27 | L26: 79299.95 | M26: 81076.27 | N26: 81076.27
B27: 9876 | C27: excluir | J27: 10151 | K27: 2717037.52 | L27: 2657509.14 | M27: 2717037.52 | N27: 2717037.52
B28: 9877 | C28: excluir | J28: 10153 | K28: 83921.57 | L28: 314477.26 | M28: 321521.57 | N28: 83921.57
B29: 9878 | C29: excluir | J29: 10154 | K29: 68678.19 | L29: 299567.85 | M29: 306278.19 | N29: 68678.19
B30: 9879 | C30: excluir | J30: 10155 | K30: 16378.15 | L30: 248413.67 | M30: 253978.15 | N30: 16378.15
B31: 9880 | C31: excluir | J31: 10158 | K31: 83921.57 | L31: 314477.26 | M31: 321521.57 | N31: 83921.57
B32: 9881 | C32: excluir | J32: 10160 | K32: 76574.04 | L32: 307290.71 | M32: 314174.04 | N32: 76574.04
B33: 9882 | C33: excluir | J33: 10161 | K33: 47921.09 | L33: 279265.53 | M33: 285521.09 | N33: 47921.09
B34: 9884 | C34: excluir | J34: 10162 | K34: 82039.53 | L34: 312636.46 | M34: 319639.53 | N34: 82039.53
B35: 9885 | C35: excluir | J35: 10164 | K35: 83921.57 | L35: 314477.26 | M35: 321521.57 | N35: 83921.57
B36: 9886 | C36: excluir | J36: 10165 | K36: 59727.09 | L36: 290812.87 | M36: 297327.09 | N36: 59727.09
B37: 9887 | C37: excluir | J37: 10167 | K37: 9451.64 | L37: 241638.92 | M37: 247051.64 | N37: 9451.64
B38: 9888 | C38: excluir | J38: 10168 | K38: 28704.79 | L38: 260470.24 | M38: 266304.79 | N38: 28704.79
B39: 9889 | C39: excluir | J39: 10169 | K39: 47921.09 | L39: 279265.53 | M39: 285521.09 | N39: 47921.09
B40: 9890 | C40: excluir | J40: 10170 | K40: 73644.17 | L40: 304425.03 | M40: 311244.17 | N40: 73644.17
B41: 9891 | C41: excluir | J41: 10171 | K41: 68677.77 | L41: 299567.44 | M41: 306277.77 | N41: 68677.77
B42: 9892 | C42: excluir | J42: 10174 | K42: 238321.45 | L42: 233100 | M42: 238321.45 | N42: 238321.45
B43: 9893 | C43: excluir | J43: 10193 | K43: 14023.34 | L43: 246110.45 | M43: 251623.34 | N43: 14023.34
B44: 9894 | C44: excluir | J44: 10195 | K44: 30832.71 | L44: 262551.54 | M44: 268432.71 | N44: 30832.71
B45: 9895 | C45: excluir | J45: 10198 | K45: 35568.2 | L45: 267183.28 | M45: 273168.2 | N45: 35568.2
B46: 9896 | C46: excluir | J46: 10209 | K46: 11758.41 | L46: 243895.15 | M46: 249358.41 | N46: 11758.41
B47: 9897 | C47: excluir | J47: 10213 | K47: 59563.33 | L47: 58258.34 | M47: 59563.33 | N47: 59563.33
B48: 9898 | C48: excluir | J48: 10214 | K48: 747798.33 | L48: 731414.6 | M48: 747798.33 | N48: 747798.33
B49: 9899 | C49: excluir | J49: 10225 | K49: 234589.93 | L49: 229450.23 | M49: 234589.93 | N49: 234589.93
B50: 9900 | C50: excluir | J50: 10229 | K50: 200435.29 | L50: 196043.9 | M50: 200435.29 | N50: 200435.29
B51: 9901 | C51: excluir | J51: 10240 | K51: 151470.47 | L51: 148151.86 | M51: 151470.47 | N51: 151470.47
B52: 9902 | C52: excluir | J52: 10248 | K52: 123679.28 | L52: 120969.56 | M52: 123679.28 | N52: 123679.28
B53: 9903 | C53: excluir | J53: 10251 | K53: 169898.3 | L53: 166175.95 | M53: 169898.3 | N53: 169898.3
B54: 9904 | C54: excluir | J54: 10252 | K54: 57835.13 | L54: 56568.01 | M54: 57835.13 | N54: 57835.13
B55: 9905 | C55: excluir | J55: 10253 | K55: 62247.24 | L55: 60883.45 | M55: 62247.24 | N55: 62247.24
B56: 9906 | C56: excluir | J56: 10254 | K56: 158752.45 | L56: 155274.3 | M56: 158752.45 | N56: 158752.45
B57: 9907 | C57: excluir | J57: 10255 | K57: 173073.65 | L57: 169281.73 | M57: 173073.65 | N57: 173073.65
B58: 9908 | C58: excluir | J58: 10256 | K58: 620638.31 | L58: 607040.56 | M58: 620638.31 | N58: 620638.31
B59: 9909 | C59: excluir | J59: 10284 | K59: 167947.85 | L59: 164268.24 | M59: 167947.85 | N59: 167947.85
B60: 9910 | C60: excluir | J60: 10288 | K60: 1237604.74 | L60: 1210489.69 | M60: 1237604.74 | N60: 1237604.74
B61: 9911 | C61: excluir | J61: 10291 | K61: 193895.49 | L61: 189647.38 | M61: 193895.49 | N61: 193895.49
B62: 9912 | C62: excluir | J62: 10292 | K62: 66648.58 | L62: 65188.36 | M62: 66648.58 | N62: 66648.58
B63: 9913 | C63: excluir | J63: 10295 | K63: 713478.86 | L63: 930241.39 | M63: 951078.86 | N63: 713478.86
B64: 9914 | C64: excluir | J64: 10296 | K64: 208967.82 | L64: 204389.49 | M64: 208967.82 | N64: 208967.82
B65: 9915 | C65: excluir | J65: 10297 | K65: 109483.33 | L65: 107084.63 | M65: 109483.33 | N65: 109483.33
B66: 9916 | C66: excluir | J66: 10299 | K66: 79942.88 | L66: 78191.39 | M66: 79942.88 | N66: 79942.88
B67: 9917 | C67: excluir | J67: 10302 | K67: 153826.78 | L67: 150456.55 | M67: 153826.78 | N67: 153826.78
B68: 9918 | C68: excluir | J68: 10303 | K68: 215322.75 | L68: 210605.18 | M68: 215322.75 | N68: 215322.75
B69: 9919 | C69: excluir | J69: 10304 | K69: 6308693.03 | L69: 6402868.34 | M69: 6546293.03 | N69: 6308693.03
B70: 9920 | C70: excluir | J70: 10309 | K70: 1766860.47 | L70: 1960544.15 | M70: 2004460.47 | N70: 1766860.47
B71: 9921 | C71: excluir | J71: 10311 | K71: 108468.88 | L71: 106092.41 | M71: 108468.88 | N71: 108468.88
B72: 9922 | C72: excluir | J72: 10312 | K72: 110935.42 | L72: 108504.91 | M72: 110935.42 | N72: 110935.42
B73: 9923 | C73: excluir | J73: 10313 | K73: 60560.38 | L73: 59233.55 | M73: 60560.38 | N73: 60560.38
B74: 9924 | C74: excluir | J74: 10314 | K74: 56545.72 | L74: 55306.85 | M74: 56545.72 | N74: 56545.72
B75: 9925 | C75: excluir | J75: 10315 | K75: 83587.11 | L75: 81755.78 | M75: 83587.11 | N75: 83587.11
B76: 9926 | C76: excluir | J76: 10316 | K76: 17061.98 | L76: 16688.17 | M76: 17061.98 | N76: 17061.98
B77: 9927 | C77: excluir | J77: 10323 | K77: 150277.57 | L77: 146985.1 | M77: 150277.57 | N77: 150277.57
B78: 9928 | C78: excluir | J78: 10324 | K78: 193595.44 | L78: 189353.9 | M78: 193595.44 | N78: 193595.44
B79: 9929 | C79: excluir | J79: 10325 | K79: 116378.93 | L79: 113829.15 | M79: 116378.93 | N79: 116378.93
B80: 9930 | C80: excluir | J80: 10337 | K80: 1300260.73 | L80: 1504167.28 | M80: 1537860.73 | N80: 1300260.73
B81: 9931 | C81: excluir | J81: 10349 | K81: 118700.16 | L81: 116099.53 | M81: 118700.16 | N81: 118700.16
B82: 9932 | C82: excluir | J82: 10350 | K82: 193887.64 | L82: 189639.7 | M82: 193887.64 | N82: 193887.64
B83: 9933 | C83: excluir | J83: 10351 | K83: 2238532.67 | L83: 2189487.99 | M83: 2238532.67 | N83: 2238532.67
B84: 9934 | C84: excluir | J84: 10359 | K84: 108826.14 | L84: 106441.84 | M84: 108826.14 | N84: 108826.14
B85: 9935 | C85: excluir | J85: 10363 | K85: 205331.69 | L85: 200833.02 | M85: 205331.69 | N85: 205331.69
B86: 9936 | C86: excluir | J86: 10364 | K86: 246553.64 | L86: 241151.83 | M86: 246553.64 | N86: 246553.64
B87: 9937 | C87: excluir | J87: 10365 | K87: 267706.51 | L87: 261841.25 | M87: 267706.51 | N87: 267706.51
B88: 9938 | C88: excluir | J88: 10366 | K88: 240046.75 | L88: 234787.5 | M88: 240046.75 | N88: 240046.75
B89: 9939 | C89: excluir | J89: 10367 | K89: 205775.07 | L89: 201266.69 | M89: 205775.07 | N89: 205775.07
B90: 9940 | C90: excluir | J90: 10368 | K90: 440039.1 | L90: 430398.16 | M90: 440039.1 | N90: 440039.1
B91: 9941 | C91: excluir | J91: 10369 | K91: 229694.95 | L91: 224662.5 | M91: 229694.95 | N91: 229694.95
B92: 9942 | C92: excluir | J92: 10440 | K92: 43905.17 | L92: 275337.59 | M92: 281505.17 | N92: 43905.17
B93: 9943 | C93: excluir | J93: 10447 | K93: 58862.01 | L93: 289966.74 | M93: 296462.01 | N93: 58862.01
B94: 9944 | C94: excluir | J94: 10472 | K94: 944220.65 | L94: 923533.44 | M94: 944220.65 | N94: 944220.65
B95: 9945 | C95: excluir | J95: 10477 | K95: 217337.25 | L95: 212575.55 | M95: 217337.25 | N95: 217337.25
B96: 9946 | C96: excluir | J96: 10478 | K96: 986403.16 | L96: 964791.76 | M96: 986403.16 | N96: 986403.16
B97: 9947 | C97: excluir | J97: 10484 | K97: 17637.51 | L97: 249645.44 | M97: 255237.51 | N97: 17637.51
B98: 9948 | C98: excluir | J98: 10495 | K98: 13393.24 | L98: 245494.16 | M98: 250993.24 | N98: 13393.24
B99: 9949 | C99: excluir | J99: 10577 | K99: 76875.88 | L99: 75191.59 | M99: 76875.88 | N99: 76875.88
B100: 9950 | C100: excluir | J100: 10595 | K100: 529781.97 | L100: 750569.17 | M100: 767381.97 | N100: 529781.97
B101: 9951 | C101: excluir | J101: 10596 | K101: 513267.14 | L101: 502021.82 | M101: 513267.14 | N101: 513267.14
B102: 9952 | C102: excluir | J102: 10597 | K102: 7103781.79 | L102: 6948142.92 | M102: 7103781.79 | N102: 7103781.79
B103: 9953 | C103: excluir | J103: 10598 | K103: 317026.42 | L103: 542474.95 | M103: 554626.42 | N103: 317026.42
B104: 9954 | C104: excluir | J104: 10599 | K104: 206986.72 | L104: 202451.79 | M104: 206986.72 | N104: 206986.72
B105: 9955 | C105: excluir | J105: 10600 | K105: 190226.01 | L105: 186058.3 | M105: 190226.01 | N105: 190226.01
B106: 9956 | C106: excluir | J106: 10614 | K106: 43676.51 | L106: 275113.94 | M106: 281276.51 | N106: 43676.51
B107: 9957 | C107: excluir | J107: 10615 | K107: 55438.1 | L107: 286617.85 | M107: 293038.1 | N107: 55438.1
B108: 9960 | C108: excluir | J108: 10616 | K108: 53652.51 | L108: 284871.38 | M108: 291252.51 | N108: 53652.51
B109: 9962 | C109: excluir | J109: 10640 | K109: 2395931.88 | L109: 2343438.7 | M109: 2395931.88 | N109: 2395931.88
B110: 9963 | C110: excluir | J110: 10644 | K110: 1681552.99 | L110: 1877105.7 | M110: 1919152.99 | N110: 1681552.99
B111: 9964 | C111: excluir | J111: 10645 | K111: 385766.5 | L111: 377314.63 | M111: 385766.5 | N111: 385766.5
B112: 9965 | C112: excluir | J112: 10646 | K112: 43676.5 | L112: 275113.93 | M112: 281276.5 | N112: 43676.5
B113: 9966 | C113: excluir | J113: 10648 | K113: 6234.05 | L113: 238491.82 | M113: 243834.05 | N113: 6234.05
B114: 9967 | C114: excluir | J114: 10649 | K114: 14090.43 | L114: 246176.07 | M114: 251690.43 | N114: 14090.43
B115: 9968 | C115: excluir | J115: 10651 | K115: 39499.32 | L115: 271028.27 | M115: 277099.32 | N115: 39499.32
B116: 9969 | C116: excluir | J116: 10653 | K116: 37273.76 | L116: 268851.47 | M116: 274873.76 | N116: 37273.76
B117: 9970 | C117: excluir | J117: 10654 | K117: 37583.47 | L117: 269154.4 | M117: 275183.47 | N117: 37583.47
B118: 9971 | C118: excluir | J118: 10658 | K118: 186295.52 | L118: 182213.92 | M118: 186295.52 | N118: 186295.52
B119: 9972 | C119: excluir | J119: 10659 | K119: 217686.93 | L119: 212917.57 | M119: 217686.93 | N119: 217686.93
B120: 9973 | C120: excluir | J120: 10660 | K120: 295825.39 | L120: 289344.07 | M120: 295825.39 | N120: 295825.39
B121: 9974 | C121: excluir | J121: 10661 | K121: 349986.45 | L121: 342318.5 | M121: 349986.45 | N121: 349986.45
B122: 9975 | C122: excluir | J122: 10662 | K122: 1237874.58 | L122: 1210753.62 | M122: 1237874.58 | N122: 1237874.58
B123: 9976 | C123: excluir | J123: 10669 | K123: 4851193.6 | L123: 4977301.7 | M123: 5088793.6 | N123: 4851193.6
B124: 9977 | C124: excluir | J124: 10670 | K124: 2981931.03 | L124: 2916599.02 | M124: 2981931.03 | N124: 2981931.03
B125: 9978 | C125: excluir | J125: 10672 | K125: 721910.03 | L125: 706093.49 | M125: 721910.03 | N125: 721910.03
B126: 9979 | C126: excluir | J126: 10673 | K126: 2003839.14 | L126: 1959936.43 | M126: 2003839.14 | N126: 2003839.14
B127: 9981 | C127: excluir | J127: 10674 | K127: 74053.1 | L127: 304825 | M127: 311653.1 | N127: 74053.1
B128: 9982 | C128: excluir | J128: 10675 | K128: 1286925.55 | L128: 1258729.92 | M128: 1286925.55 | N128: 1286925.55
B129: 9983 | C129: excluir | J129: 10677 | K129: 162036.88 | L129: 390881.12 | M129: 399636.88 | N129: 162036.88
B130: 9984 | C130: excluir | J130: 10678 | K130: 228809.72 | L130: 456191.01 | M130: 466409.72 | N130: 228809.72
B131: 9985 | C131: excluir | J131: 10679 | K131: 426911.27 | L131: 649952.3 | M131: 664511.27 | N131: 426911.27
B132: 9986 | C132: excluir | J132: 10680 | K132: 645038.89 | L132: 863300.9 | M132: 882638.89 | N132: 645038.89
B133: 9987 | C133: excluir | J133: 10681 | K133: 459750.87 | L133: 682072.41 | M133: 697350.87 | N133: 459750.87
B134: 9989 | C134: excluir | J134: 10682 | K134: 1111705.17 | L134: 1319742.84 | M134: 1349305.17 | N134: 1111705.17
B135: 9993 | C135: excluir | J135: 10683 | K135: 722692.69 | L135: 939253.36 | M135: 960292.69 | N135: 722692.69
B136: 9994 | C136: excluir | J136: 10684 | K136: 401116.2 | L136: 624722.38 | M136: 638716.2 | N136: 401116.2
B137: 9995 | C137: excluir | J137: 10685 | K137: 532628.22 | L137: 753353.06 | M137: 770228.22 | N137: 532628.22
B138: 9996 | C138: excluir | J138: 10686 | K138: 379324.83 | L138: 603408.44 | M138: 616924.83 | N138: 379324.83
B139: 9997 | C139: excluir | J139: 10687 | K139: 69822.19 | L139: 300686.79 | M139: 307422.19 | N139: 69822.19
B140: 9999 | C140: excluir | J140: 10727 | K140: 348643.44 | L140: 573399.26 | M140: 586243.44 | N140: 348643.44
B141: 10000 | C141: excluir | J141: 10729 | K141: 168325.29 | L141: 397031.76 | M141: 405925.29 | N141: 168325.29
B142: 10002 | C142: excluir | J142: 10754 | K142: 76643.58 | L142: 74964.38 | M142: 76643.58 | N142: 76643.58
B143: 10003 | C143: excluir | J143: 10755 | K143: 934689.44 | L143: 914211.05 | M143: 934689.44 | N143: 934689.44
B144: 10004 | C144: excluir | J144: 10756 | K144: 1342942.9 | L144: 1313519.97 | M144: 1342942.9 | N144: 1342942.9
B145: 10005 | C145: excluir | J145: 10767 | K145: 318486.01 | L145: 311508.21 | M145: 318486.01 | N145: 318486.01
B146: 10006 | C146: excluir | J146: 10768 | K146: 1309473.8 | L146: 1280784.15 | M146: 1309473.8 | N146: 1309473.8
B147: 10007 | C147: excluir | J147: 10769 | K147: 203342.05 | L147: 198886.97 | M147: 203342.05 | N147: 203342.05
B148: 10008 | C148: excluir | J148: 10770 | K148: 241542.01 | L148: 236250 | M148: 241542.01 | N148: 241542.01
B149: 10009 | C149: excluir | J149: 10776 | K149: 131565.85 | L149: 128683.34 | M149: 131565.85 | N149: 131565.85
B150: 10010 | C150: excluir | J150: 10777 | K150: 203293.27 | L150: 198839.26 | M150: 203293.27 | N150: 203293.27
B151: 10013 | C151: excluir | J151: 10778 | K151: 162778.19 | L151: 159211.84 | M151: 162778.19 | N151: 162778.19
B152: 10015 | C152: excluir | J152: 10779 | K152: 992368.13 | L152: 970626.04 | M152: 992368.13 | N152: 992368.13
B153: 10016 | C153: excluir | J153: 10781 | K153: 165284.62 | L153: 161663.35 | M153: 165284.62 | N153: 165284.62
B154: 10017 | C154: excluir | J154: 10783 | K154: 146733.79 | L154: 143518.96 | M154: 146733.79 | N154: 146733.79
B155: 10018 | C155: excluir | J155: 10784 | K155: 151730.98 | L155: 148406.67 | M155: 151730.98 | N155: 151730.98
B156: 10019 | C156: excluir | J156: 10785 | K156: 150708.09 | L156: 147406.19 | M156: 150708.09 | N156: 150708.09
B157: 10020 | C157: excluir | J157: 10793 | K157: 50271.01 | L157: 49169.61 | M157: 50271.01 | N157: 50271.01
B158: 10021 | C158: excluir | J158: 10794 | K158: 700513.16 | L158: 685165.41 | M158: 700513.16 | N158: 700513.16
B159: 10022 | C159: excluir | J159: 10795 | K159: 110045.18 | L159: 107634.17 | M159: 110045.18 | N159: 110045.18
B160: 10023 | C160: excluir | J160: 10797 | K160: 1860940.5 | L160: 2052562.95 | M160: 2098540.5 | N160: 1860940.5
B161: 10026 | C161: excluir | J161: 10798 | K161: 199253.88 | L161: 194888.37 | M161: 199253.88 | N161: 199253.88
B162: 10027 | C162: excluir | J162: 10799 | K162: 382666.42 | L162: 374282.47 | M162: 382666.42 | N162: 382666.42
B163: 10028 | C163: excluir | J163: 10800 | K163: 382666.42 | L163: 374282.47 | M163: 382666.42 | N163: 382666.42
B164: 10029 | C164: excluir | J164: 10801 | K164: 184327.73 | L164: 412683.59 | M164: 421927.73 | N164: 184327.73
B165: 10030 | C165: excluir | J165: 10802 | K165: 421927.73 | L165: 412683.59 | M165: 421927.73 | N165: 421927.73
B166: 10031 | C166: excluir | J166: 10803 | K166: 390187.4 | L166: 614033.02 | M166: 627787.4 | N166: 390187.4
B167: 10032 | C167: excluir | J167: 10804 | K167: 627787.4 | L167: 614033.02 | M167: 627787.4 | N167: 627787.4
B168: 10034 | C168: excluir | J168: 10805 | K168: 348705.88 | L168: 341065.98 | M168: 348705.88 | N168: 348705.88
B169: 10035 | C169: excluir | J169: 10806 | K169: 348705.88 | L169: 341065.98 | M169: 348705.88 | N169: 348705.88
B170: 10036 | C170: excluir | J170: 10807 | K170: 165953.64 | L170: 394712.07 | M170: 403553.64 | N170: 165953.64
B171: 10037 | C171: excluir | J171: 10808 | K171: 254906.88 | L171: 249322.05 | M171: 254906.88 | N171: 254906.88
B172: 10038 | C172: excluir | J172: 10809 | K172: 52139.37 | L172: 50997.04 | M172: 52139.37 | N172: 52139.37
B173: 10039 | C173: excluir | J173: 10810 | K173: 49987.71 | L173: 48892.52 | M173: 49987.71 | N173: 49987.71
B174: 10041 | C174: excluir | J174: 10811 | K174: 74913.1 | L174: 73271.81 | M174: 74913.1 | N174: 74913.1
B175: 10042 | C175: excluir | J175: 10812 | K175: 119176.38 | L175: 116565.31 | M175: 119176.38 | N175: 119176.38
B176: 10043 | C176: excluir | J176: 10813 | K176: 119176.38 | L176: 116565.31 | M176: 119176.38 | N176: 119176.38
B177: 10044 | C177: excluir | J177: 10814 | K177: 119176.38 | L177: 116565.31 | M177: 119176.38 | N177: 119176.38
B178: 10045 | C178: excluir | J178: 10815 | K178: 916976.49 | L178: 1129280.53 | M178: 1154576.49 | N178: 916976.49
B179: 10046 | C179: excluir | J179: 10816 | K179: 143121.98 | L179: 372380.63 | M179: 380721.98 | N179: 143121.98
B180: 10047 | C180: excluir | J180: 10817 | K180: 373243.75 | L180: 365066.25 | M180: 373243.75 | N180: 373243.75
B181: 10048 | C181: excluir | J181: 10818 | K181: 323420.35 | L181: 316334.44 | M181: 323420.35 | N181: 323420.35
B182: 10049 | C182: excluir | J182: 10819 | K182: 326144.33 | L182: 318998.74 | M182: 326144.33 | N182: 326144.33
B183: 10050 | C183: excluir | J183: 10820 | K183: 18214.54 | L183: 17815.48 | M183: 18214.54 | N183: 18214.54
B184: 10051 | C184: excluir | J184: 10821 | K184: 33827.01 | L184: 33085.89 | M184: 33827.01 | N184: 33827.01
B185: 10052 | C185: excluir | J185: 10833 | K185: 42632.76 | L185: 41698.71 | M185: 42632.76 | N185: 42632.76
B186: 10053 | C186: excluir | J186: 10834 | K186: 46547.41 | L186: 45527.59 | M186: 46547.41 | N186: 46547.41
B187: 10055 | C187: excluir | J187: 10835 | K187: 358710.09 | L187: 350851.01 | M187: 358710.09 | N187: 358710.09
B188: 10056 | C188: excluir | J188: 10836 | K188: 358710.09 | L188: 350851.01 | M188: 358710.09 | N188: 358710.09
B189: 10057 | C189: excluir | J189: 10837 | K189: 1247580.06 | L189: 1452640.81 | M189: 1485180.06 | N189: 1247580.06
B190: 10058 | C190: excluir | J190: 10838 | K190: 1366167.95 | L190: 1336236.17 | M190: 1366167.95 | N190: 1366167.95
B191: 10059 | C191: excluir | J191: 10839 | K191: 1366167.95 | L191: 1336236.17 | M191: 1366167.95 | N191: 1366167.95
B192: 10060 | C192: excluir | J192: 10840 | K192: 360319.91 | L192: 352425.56 | M192: 360319.91 | N192: 360319.91
B193: 10061 | C193: excluir | J193: 10841 | K193: 360319.91 | L193: 352425.56 | M193: 360319.91 | N193: 360319.91
B194: 10062 | C194: excluir | J194: 10842 | K194: 1496792.09 | L194: 1463998.43 | M194: 1496792.09 | N194: 1496792.09
B195: 10063 | C195: excluir | J195: 10843 | K195: 1496792.09 | L195: 1463998.43 | M195: 1496792.09 | N195: 1496792.09
B196: 10064 | C196: excluir | J196: 10849 | K196: 106520.19 | L196: 104186.41 | M196: 106520.19 | N196: 106520.19
B197: 10065 | C197: excluir | J197: 10852 | K197: 179555.66 | L197: 175621.73 | M197: 179555.66 | N197: 179555.66
B198: 10066 | C198: excluir | J198: 10887 | K198: 360141.81 | L198: 584645.71 | M198: 597741.81 | N198: 360141.81
B199: 10067 | C199: excluir | J199: 10888 | K199: 372457.21 | L199: 596691.29 | M199: 610057.21 | N199: 372457.21
B200: 10068 | C200: excluir | J200: 10889 | K200: 356782.41 | L200: 581359.91 | M200: 594382.41 | N200: 356782.41
... 697 more rows

Sheet Planilha1 (hidden)
A1: 7668 | B1: 0 | C1: 0 | D1: 0 | E1: 0
A2: 7669 | B2: 10 | C2: 10 | D2: 0 | E2: 0
A3: 7670 | B3: 10 | C3: 0 | D3: 0 | E3: 0
A4: 7671 | B4: 10 | C4: 0 | D4: 0 | E4: 0
A5: 7672 | B5: 0 | C5: 0 | D5: 0 | E5: 0
A6: 7673 | B6: 0 | C6: 0 | D6: 0 | E6: 0
A7: 7674 | B7: 15 | C7: 0 | D7: 0 | E7: 0
A8: 7675 | B8: 6 | C8: 0 | D8: 0 | E8: 0
A9: 7676 | B9: 6 | C9: 0 | D9: 0 | E9: 0
A10: 7677 | B10: 6 | C10: 0 | D10: 0 | E10: 0
A11: 7678 | B11: 6 | C11: 0 | D11: 0 | E11: 0
A12: 7679 | B12: 6 | C12: 0 | D12: 0 | E12: 0
A13: 7680 | B13: 6 | C13: 0 | D13: 0 | E13: 0
A14: 7681 | B14: 6 | C14: 0 | D14: 0 | E14: 0
A15: 7682 | B15: 6 | C15: 0 | D15: 0 | E15: 0
A16: 7683 | B16: 0 | C16: 0 | D16: 0 | E16: 0
A17: 7684 | B17: 20 | C17: 0 | D17: 0 | E17: 0
A18: 7685 | B18: 6 | C18: 0 | D18: 0 | E18: 0
A19: 7686 | B19: 6 | C19: 0 | D19: 0 | E19: 0
A20: 7687 | B20: 6 | C20: 0 | D20: 0 | E20: 0
A21: 7688 | B21: 6 | C21: 0 | D21: 0 | E21: 0
A22: 7689 | B22: 6 | C22: 0 | D22: 0 | E22: 0
A23: 7690 | B23: 6 | C23: 0 | D23: 0 | E23: 0
A24: 7691 | B24: 6 | C24: 0 | D24: 0 | E24: 0
A25: 7692 | B25: 6 | C25: 0 | D25: 0 | E25: 0
A26: 7693 | B26: 6 | C26: 0 | D26: 0 | E26: 0
A27: 7694 | B27: 6 | C27: 0 | D27: 0 | E27: 0
A28: 7695 | B28: 6 | C28: 0 | D28: 0 | E28: 0
A29: 7696 | B29: 6 | C29: 0 | D29: 0 | E29: 0
A30: 7697 | B30: 6 | C30: 0 | D30: 0 | E30: 0
A31: 7698 | B31: 0 | C31: 0 | D31: 0 | E31: 0
A32: 7699 | B32: 0 | C32: 0 | D32: 0 | E32: 0
A33: 7700 | B33: 0 | C33: 0 | D33: 0 | E33: 0
A34: 7701 | B34: 0 | C34: 0 | D34: 0 | E34: 0
A35: 7702 | B35: 0 | C35: 0 | D35: 0 | E35: 0
A36: 7703 | B36: 0 | C36: 0 | D36: 0 | E36: 0
A37: 7704 | B37: 0 | C37: 0 | D37: 0 | E37: 0
A38: 7705 | B38: 10 | C38: 0 | D38: 0 | E38: 0
A39: 7706 | B39: 10 | C39: 0 | D39: 0 | E39: 0
A40: 7707 | B40: 10 | C40: 0 | D40: 0 | E40: 0
A41: 7708 | B41: 0 | C41: 0 | D41: 0 | E41: 0
A42: 7709 | B42: 0 | C42: 0 | D42: 0 | E42: 0
A43: 7710 | B43: 6 | C43: 0 | D43: 0 | E43: 0
A44: 7711 | B44: 6 | C44: 0 | D44: 0 | E44: 0
A45: 7712 | B45: 0 | C45: 0 | D45: 0 | E45: 0
A46: 7713 | B46: 0 | C46: 0 | D46: 0 | E46: 0
A47: 7714 | B47: 0 | C47: 0 | D47: 0 | E47: 0
A48: 7715 | B48: 6 | C48: 0 | D48: 0 | E48: 0
A49: 7716 | B49: 10 | C49: 0 | D49: 0 | E49: 0
A50: 7717 | B50: 10 | C50: 0 | D50: 0 | E50: 0
A51: 7718 | B51: 10 | C51: 0 | D51: 0 | E51: 0
A52: 7719 | B52: 10 | C52: 0 | D52: 0 | E52: 0
A53: 7720 | B53: 0 | C53: 0 | D53: 0 | E53: 0
A54: 7721 | B54: 10 | C54: 0 | D54: 0 | E54: 0
A55: 7722 | B55: 10 | C55: 0 | D55: 0 | E55: 0
A56: 7723 | B56: 15 | C56: 15 | D56: 0 | E56: 0
A57: 7724 | B57: 15 | C57: 15 | D57: 0 | E57: 0
A58: 7725 | B58: 15 | C58: 15 | D58: 0 | E58: 0
A59: 7726 | B59: 15 | C59: 15 | D59: 0 | E59: 0
A60: 7727 | B60: 15 | C60: 15 | D60: 0 | E60: 0
A61: 7728 | B61: 15 | C61: 15 | D61: 0 | E61: 0
A62: 7729 | B62: 15 | C62: 15 | D62: 0 | E62: 0
A63: 7730 | B63: 15 | C63: 15 | D63: 0 | E63: 0
A64: 7731 | B64: 6 | C64: 0 | D64: 0 | E64: 0
A65: 7732 | B65: 6 | C65: 0 | D65: 0 | E65: 0
A66: 7733 | B66: 6 | C66: 0 | D66: 0 | E66: 0
A67: 7734 | B67: 6 | C67: 0 | D67: 0 | E67: 0
A68: 7735 | B68: 6 | C68: 0 | D68: 0 | E68: 0
A69: 7736 | B69: 6 | C69: 0 | D69: 0 | E69: 0
A70: 7737 | B70: 6 | C70: 0 | D70: 0 | E70: 0
A71: 7738 | B71: 6 | C71: 6 | D71: 0 | E71: 0
A72: 7739 | B72: 6 | C72: 0 | D72: 0 | E72: 0
A73: 7740 | B73: 6 | C73: 0 | D73: 0 | E73: 0
A74: 7741 | B74: 6 | C74: 0 | D74: 0 | E74: 0
A75: 7742 | B75: 6 | C75: 0 | D75: 0 | E75: 0
A76: 7743 | B76: 6 | C76: 0 | D76: 0 | E76: 0
A77: 7744 | B77: 0 | C77: 0 | D77: 0 | E77: 0
A78: 7745 | B78: 6 | C78: 0 | D78: 0 | E78: 0
A79: 7746 | B79: 10 | C79: 0 | D79: 0 | E79: 0
A80: 7747 | B80: 6 | C80: 0 | D80: 0 | E80: 0
A81: 7748 | B81: 6 | C81: 0 | D81: 0 | E81: 0
A82: 7749 | B82: 6 | C82: 0 | D82: 0 | E82: 0
A83: 7750 | B83: 6 | C83: 0 | D83: 0 | E83: 0
A84: 7751 | B84: 6 | C84: 0 | D84: 0 | E84: 0
A85: 7752 | B85: 6 | C85: 0 | D85: 0 | E85: 0
A86: 7753 | B86: 6 | C86: 0 | D86: 0 | E86: 0
A87: 7754 | B87: 6 | C87: 0 | D87: 0 | E87: 0
A88: 7755 | B88: 6 | C88: 0 | D88: 0 | E88: 0
A89: 7756 | B89: 6 | C89: 0 | D89: 0 | E89: 0
A90: 7757 | B90: 6 | C90: 0 | D90: 0 | E90: 0
A91: 7758 | B91: 6 | C91: 0 | D91: 0 | E91: 0
A92: 7759 | B92: 7 | C92: 13 | D92: 0 | E92: 0
A93: 7760 | B93: 0 | C93: 0 | D93: 0 | E93: 0
A94: 7761 | B94: 0 | C94: 0 | D94: 0 | E94: 0
A95: 7762 | B95: 10 | C95: 0 | D95: 0 | E95: 0
A96: 7763 | B96: 0 | C96: 0 | D96: 0 | E96: 0
A97: 7764 | B97: 0 | C97: 0 | D97: 0 | E97: 0
A98: 7765 | B98: 0 | C98: 0 | D98: 0 | E98: 0
A99: 7766 | B99: 10 | C99: 0 | D99: 0 | E99: 0
A100: 7767 | B100: 0 | C100: 0 | D100: 0 | E100: 0
A101: 7768 | B101: 0 | C101: 0 | D101: 0 | E101: 0
A102: 7769 | B102: 10 | C102: 0 | D102: 0 | E102: 0
A103: 7770 | B103: 0 | C103: 0 | D103: 0 | E103: 0
A104: 7771 | B104: 20 | C104: 0 | D104: 0 | E104: 0
A105: 7772 | B105: 20 | C105: 0 | D105: 0 | E105: 0
A106: 7773 | B106: 20 | C106: 0 | D106: 0 | E106: 0
A107: 7774 | B107: 20 | C107: 0 | D107: 0 | E107: 0
A108: 7775 | B108: 20 | C108: 0 | D108: 0 | E108: 0
A109: 7776 | B109: 20 | C109: 0 | D109: 0 | E109: 0
A110: 7777 | B110: 20 | C110: 0 | D110: 0 | E110: 0
A111: 7778 | B111: 20 | C111: 0 | D111: 0 | E111: 0
A112: 7779 | B112: 20 | C112: 0 | D112: 0 | E112: 0
A113: 7780 | B113: 20 | C113: 0 | D113: 0 | E113: 0
A114: 7781 | B114: 20 | C114: 0 | D114: 0 | E114: 0
A115: 7782 | B115: 20 | C115: 0 | D115: 0 | E115: 0
A116: 7783 | B116: 20 | C116: 0 | D116: 0 | E116: 0
A117: 7784 | B117: 20 | C117: 0 | D117: 0 | E117: 0
A118: 7785 | B118: 20 | C118: 0 | D118: 0 | E118: 0
A119: 7786 | B119: 20 | C119: 0 | D119: 0 | E119: 0
A120: 7787 | B120: 20 | C120: 0 | D120: 0 | E120: 0
A121: 7788 | B121: 20 | C121: 0 | D121: 0 | E121: 0
A122: 7789 | B122: 20 | C122: 0 | D122: 0 | E122: 0
A123: 7790 | B123: 20 | C123: 0 | D123: 0 | E123: 0
A124: 7791 | B124: 20 | C124: 0 | D124: 0 | E124: 0
A125: 7792 | B125: 20 | C125: 0 | D125: 0 | E125: 0
A126: 7793 | B126: 20 | C126: 0 | D126: 0 | E126: 0
A127: 7794 | B127: 20 | C127: 0 | D127: 0 | E127: 0
A128: 7795 | B128: 15 | C128: 0 | D128: 0 | E128: 0
A129: 7796 | B129: 20 | C129: 0 | D129: 0 | E129: 0
A130: 7797 | B130: 0 | C130: 0 | D130: 0 | E130: 0
A131: 7798 | B131: 0 | C131: 0 | D131: 0 | E131: 0
A132: 7799 | B132: 6 | C132: 0 | D132: 0 | E132: 0
A133: 7800 | B133: 6 | C133: 0 | D133: 0 | E133: 0
A134: 7801 | B134: 6 | C134: 0 | D134: 0 | E134: 0
A135: 7802 | B135: 6 | C135: 0 | D135: 0 | E135: 0
A136: 7803 | B136: 6 | C136: 0 | D136: 0 | E136: 0
A137: 7804 | B137: 6 | C137: 0 | D137: 0 | E137: 0
A138: 7805 | B138: 6 | C138: 0 | D138: 0 | E138: 0
A139: 7806 | B139: 6 | C139: 0 | D139: 0 | E139: 0
A140: 7807 | B140: 6 | C140: 0 | D140: 0 | E140: 0
A141: 7808 | B141: 6 | C141: 0 | D141: 0 | E141: 0
A142: 7809 | B142: 20 | C142: 0 | D142: 0 | E142: 0
A143: 7810 | B143: 20 | C143: 0 | D143: 0 | E143: 0
A144: 7811 | B144: 10 | C144: 10 | D144: 0 | E144: 0
A145: 7812 | B145: 10 | C145: 10 | D145: 0 | E145: 0
A146: 7813 | B146: 10 | C146: 10 | D146: 0 | E146: 0
A147: 7814 | B147: 10 | C147: 10 | D147: 0 | E147: 0
A148: 7815 | B148: 10 | C148: 10 | D148: 0 | E148: 0
A149: 7816 | B149: 10 | C149: 10 | D149: 0 | E149: 0
A150: 7817 | B150: 10 | C150: 10 | D150: 0 | E150: 0
A151: 7818 | B151: 10 | C151: 10 | D151: 0 | E151: 0
A152: 7819 | B152: 10 | C152: 10 | D152: 0 | E152: 0
A153: 7820 | B153: 10 | C153: 10 | D153: 0 | E153: 0
A154: 7821 | B154: 10 | C154: 10 | D154: 0 | E154: 0
A155: 7822 | B155: 10 | C155: 10 | D155: 0 | E155: 0
A156: 7823 | B156: 10 | C156: 10 | D156: 0 | E156: 0
A157: 7824 | B157: 10 | C157: 10 | D157: 0 | E157: 0
A158: 7825 | B158: 10 | C158: 10 | D158: 0 | E158: 0
A159: 7826 | B159: 10 | C159: 10 | D159: 0 | E159: 0
A160: 7827 | B160: 10 | C160: 10 | D160: 0 | E160: 0
A161: 7828 | B161: 10 | C161: 10 | D161: 0 | E161: 0
A162: 7829 | B162: 10 | C162: 10 | D162: 0 | E162: 0
A163: 7830 | B163: 10 | C163: 10 | D163: 0 | E163: 0
A164: 7831 | B164: 10 | C164: 10 | D164: 0 | E164: 0
A165: 7832 | B165: 10 | C165: 10 | D165: 0 | E165: 0
A166: 7833 | B166: 0 | C166: 0 | D166: 0 | E166: 0
A167: 7834 | B167: 0 | C167: 0 | D167: 0 | E167: 0
A168: 7835 | B168: 10 | C168: 10 | D168: 0 | E168: 0
A169: 7836 | B169: 10 | C169: 10 | D169: 0 | E169: 0
A170: 7837 | B170: 10 | C170: 10 | D170: 0 | E170: 0
A171: 7838 | B171: 10 | C171: 10 | D171: 0 | E171: 0
A172: 7839 | B172: 10 | C172: 10 | D172: 0 | E172: 0
A173: 7840 | B173: 10 | C173: 10 | D173: 0 | E173: 0
A174: 7841 | B174: 10 | C174: 10 | D174: 0 | E174: 0
A175: 7842 | B175: 10 | C175: 10 | D175: 0 | E175: 0
A176: 7843 | B176: 10 | C176: 10 | D176: 0 | E176: 0
A177: 7844 | B177: 10 | C177: 10 | D177: 0 | E177: 0
A178: 7845 | B178: 10 | C178: 10 | D178: 0 | E178: 0
A179: 7846 | B179: 10 | C179: 10 | D179: 0 | E179: 0
A180: 7847 | B180: 10 | C180: 10 | D180: 0 | E180: 0
A181: 7848 | B181: 10 | C181: 10 | D181: 0 | E181: 0
A182: 7849 | B182: 10 | C182: 10 | D182: 0 | E182: 0
A183: 7850 | B183: 10 | C183: 10 | D183: 0 | E183: 0
A184: 7851 | B184: 10 | C184: 10 | D184: 0 | E184: 0
A185: 7852 | B185: 10 | C185: 10 | D185: 0 | E185: 0
A186: 7853 | B186: 10 | C186: 10 | D186: 0 | E186: 0
A187: 7854 | B187: 10 | C187: 10 | D187: 0 | E187: 0
A188: 7855 | B188: 10 | C188: 10 | D188: 0 | E188: 0
A189: 7856 | B189: 10 | C189: 10 | D189: 0 | E189: 0
A190: 7857 | B190: 10 | C190: 10 | D190: 0 | E190: 0
A191: 7858 | B191: 0 | C191: 0 | D191: 0 | E191: 0
A192: 7859 | B192: 0 | C192: 0 | D192: 0 | E192: 0
A193: 7860 | B193: 10 | C193: 10 | D193: 0 | E193: 0
A194: 7861 | B194: 10 | C194: 10 | D194: 0 | E194: 0
A195: 7862 | B195: 10 | C195: 10 | D195: 0 | E195: 0
A196: 7863 | B196: 10 | C196: 10 | D196: 0 | E196: 0
A197: 7864 | B197: 10 | C197: 10 | D197: 0 | E197: 0
A198: 7865 | B198: 10 | C198: 10 | D198: 0 | E198: 0
A199: 7866 | B199: 10 | C199: 10 | D199: 0 | E199: 0
A200: 7867 | B200: 10 | C200: 10 | D200: 0 | E200: 0
... 1419 more rows

Sheet indicadores (hidden)
A2: Agência Nacional de Saúde Suplementar | B2: 03.589.068/0001-46
A3: Departamento Nacional de Obras contra a Seca – DNOCS | B3: 00.043.711/0001-43
A4: Distrito Federal | B4: 00.394.601/0001-26
A5: Estado da Bahia | B5: 13.937.032/0001-60
A6: Estado de Goiás | B6: 01.409.580/0001-38
A7: Estado de Mato Grosso | B7: 03.507.415/0001-44
A8: Estado de Minas Gerais | B8: 18.715.615/0001-60
A9: Estado de Santa Catarina | B9: 82.951.229/0001-76
A10: Estado de São Paulo | B10: 46.379.400/0001-50
A11: Estado do Ceará | B11: 07.954.480/0001-79
A12: Estado do Rio de Janeiro | B12: 42.498.600/0001-71
A13: Estado do Rio Grande do Sul | B13: 87.934.675/0001-96
A14: Fazenda Nacional | B14: 00.394.460/0216-53
A15: Fundação Anita Mantuano de Artes do Estado do Rio de Janeiro - FUNARJ | B15: 30.874.762/0001-88
A16: Fundação Indaiatubana de Educação e Cultura - FIEC | B16: 54.675.103/00001-80
A17: Fundação Nacional de Saúde | B17: 26.989.350/0001-16
A18: Fundo Único de Previdência Social do Estado do Rio de Janeiro | B18: 03.066.219/0001-81
A19: Instituto do Patrimônio Histórico e Artístico Nacional – IPHAN | B19: 26.474.056/0001-71
A20: Instituto Nacional de Colonização e Reforma Agrária - INCRA | B20: 00.375.972/0001-60
A21: Instituto Nacional do Seguro Social - INSS | B21: 29.979.036/0001-40
A22: Município de Indaiatuba | B22: 44.733.608/0001-09
A23: Município de Santos | B23: 58.200.015/0001-83
A24: União | B24: 26.994.558/0001-23
A25: Universidade Federal de Ouro Preto | B25: 23.070.659/0001-10
D30: 2022-01-01 | E30: 0.58 | F30: 4.09192588 | G30: 0.73 | H30: 23.15 | I30: 0.77
D31: 2022-02-01 | E31: 0.99 | F31: 4.11565905 | G31: 0.76 | H31: 22.42 | I31: 1.5
D32: 2022-03-01 | E32: 0.95 | F32: 4.156404075 | G32: 0.93 | H32: 21.66 | I32: 2.26
D33: 2022-04-01 | E33: 1.73 | F33: 4.195889914 | G33: 0.83 | H33: 20.73 | I33: 3.19
D34: 2022-05-01 | E34: 0.59 | F34: 4.268478809 | G34: 1.03 | H34: 19.9 | I34: 4.02
D35: 2022-06-01 | E35: 0.69 | F35: 4.293662834 | G35: 1.02 | H35: 18.87 | I35: 5.05
D36: 2022-07-01 | E36: 0.13 | F36: 4.323289108 | G36: 1.03 | H36: 17.85 | I36: 6.07
D37: 2022-08-01 | E37: -0.73 | F37: 4.328909384 | G37: 1.17 | H37: 16.82 | I37: 7.1
D38: 2022-09-01 | E38: -0.37 | F38: 4.297308345 | G38: 1.07 | H38: 15.65 | I38: 8.27
D39: 2022-10-01 | E39: 0.16 | F39: 4.281408304 | G39: 1.02 | H39: 14.58 | I39: 9.34
D40: 2022-11-01 | E40: 0.53 | F40: 4.288258557 | G40: 1.02 | H40: 13.56 | I40: 10.36
D41: 2022-12-01 | E41: 0.52 | F41: 4.310986328 | G41: 1.12 | H41: 12.54 | I41: 11.38
D42: 2023-01-01 | E42: 0.55 | F42: 4.333403457 | G42: 1.12 | H42: 11.42 | I42: 12.5
D43: 2023-02-01 | E43: 0.76 | F43: 4.357237176 | G43: 0.92 | H43: 10.3 | I43: 13.62
D44: 2023-03-01 | E44: 0.69 | F44: 4.390352178 | G44: 1.17 | H44: 9.38 | I44: 14.54
D45: 2023-04-01 | E45: 0.57 | F45: 4.420645608 | G45: 0.92 | H45: 8.21 | I45: 15.71
D46: 2023-05-01 | E46: 0.51 | F46: 4.445843288 | G46: 1.12 | H46: 7.29 | I46: 16.63
D47: 2023-06-01 | E47: 0.04 | F47: 4.468517089 | G47: 1.07 | H47: 6.17 | I47: 17.75
D48: 2023-07-01 | F48: 4.470304496 | G48: 1.07 | H48: 5.1 | I48: 18.82
D49: 2023-08-01 | F49: 4.467175283 | G49: 1.14 | H49: 4.03 | I49: 19.89
D50: 2023-09-01 | F50: 4.479683374 | G50: 0.97 | H50: 2.89 | I50: 21.03
D51: 2023-10-01 | F51: 4.495362265 | G51: 1 | H51: 1.92 | I51: 22
D52: 2023-11-01 | F52: 4.504802526 | G52: 0.92 | H52: 0.92 | I52: 23
D53: 2023-12-01 | F53: 4.519668374 | H53: 4.107825191e-15 | I53: 23.92
D54: 2024-01-01 | H54: 4.107825191e-15
D55: 2024-02-01 | H55: 4.107825191e-15
D56: 2024-03-01 | H56: 4.107825191e-15
D57: 2024-04-01 | H57: 4.107825191e-15

Sheet base (hidden)
A1: =[2]CONSULTA!K11 -> 11057 | B1: 2 | C1: =B1+1 -> 3 | D1: =C1+1 -> 4 | E1: 5 | F1: 6 | G1: 7 | H1: 8 | I1: 9 | J1: 10 | K1: 11 | L1: 12 | M1: 13 | N1: 14 | O1: 15 | P1: 16 | Q1: 17 | R1: 18 | S1: 19 | T1: 20 | U1: 21 | V1: 22 | W1: 23 | X1: 24 | Y1: 25 | Z1: 26 | AA1: 27 | AB1: 28 | AC1: 29 | AD1: 30 | AE1: 31 | AF1: 32 | AG1: 33 | AH1: 34 | AI1: 35 | AJ1: 36 | AK1: 37 | AL1: 38 | AM1: 39 | AN1: 40 | AO1: 41 | AP1: 42 | AQ1: 43 | AR1: 44 | AS1: 45 | AT1: 46 | AU1: 47 | AV1: 48 | AW1: 49 | AX1: 50 | AY1: 51 | AZ1: 52 | BA1: 53 | BB1: 54 | BC1: 55 | BD1: 56 | BE1: 57 | BF1: 58 | BG1: 59 | BH1: 60 | BI1: 61 | BJ1: 62 | BK1: 63 | BL1: 64 | BM1: 65 | BN1: 66 | BO1: 67 | BP1: =BO1+1 -> 68 | BQ1: 69 | BR1: 70 | BS1: 71 | BT1: 72 | BU1: 73 | BV1: 74 | BW1: 75 | BX1: 76 | BY1: 77 | BZ1: 78 | CA1: 79 | CB1: 80 | CC1: 81 | CD1: 82 | CE1: 83 | CF1: 84 | CG1: 85 | CH1: 86 | CI1: 87 | CJ1: 88 | CK1: 89 | CL1: 90 | CM1: 91 | CN1: 92 | CO1: 93 | CP1: 94 | CQ1: 95 | CR1: 96 | CS1: 97 | CT1: 98 | CU1: 99 | CV1: 100 | CW1: 101 | CX1: 102 | CY1: 103 | CZ1: 104 | DA1: 105 | DB1: 106 | DC1: 107 | DD1: 108 | DE1: 109 | DF1: 110 | DG1: 111 | DH1: 112 | DI1: 113 | DJ1: 114 | DK1: 115 | DL1: 116 | DM1: 117 | DN1: 118 | DO1: 119 | DP1: 120 | DQ1: 121 | DR1: 122 | DS1: 123 | DT1: 124 | DU1: 125 | DV1: 126 | DW1: 127 | DX1: 128 | DY1: 129 | DZ1: 130 | EA1: 131 | EB1: =EA1+1 -> 132 | EC1: =DT1+1 -> 125 | EF1: =EC1+1 -> 126 | EG1: =EF1+1 -> 127 | EH1: 128 | KI1: =KH1+1 -> 1 | KJ1: 2 | KK1: 3 | KL1: 4 | KM1: 5 | KN1: 6 | KO1: 7 | KP1: 8 | KQ1: 9 | KR1: 10 | KS1: 11 | KT1: 12 | KU1: 13 | KV1: 14 | KW1: 15 | KX1: 16 | KY1: 17 | KZ1: 18 | LA1: 19 | LB1: 20 | LC1: 21 | LD1: 22 | LE1: 23 | LF1: 24 | LG1: 25 | LH1: 26 | LI1: 27 | LJ1: 28 | LK1: 29 | LL1: 30 | LM1: 31 | LN1: 32 | LO1: 33 | LP1: 34 | LQ1: 35 | LR1: 36 | LS1: 37 | LT1: 38 | LU1: 39 | LV1: 40 | LW1: 41 | LX1: 42 | LY1: 43 | LZ1: 44 | MA1: 45 | MB1: 46 | MC1: 47 | MD1: 48 | ME1: 49 | MF1: 50 | MG1: 51 | MH1: 52 | MI1: 53 | MJ1: 54 | MK1: 55 | ML1: 56 | MM1: 57 | MN1: 58 | MO1: 59 | MP1: 60 | MQ1: 61 | MR1: 62 | MS1: 63 | MT1: 64 | MU1: =MT1+1 -> 65 | MV1: 66 | MW1: 67 | MX1: 68 | MY1: 69 | MZ1: 70 | NA1: 71 | NB1: 72 | NC1: 73 | ND1: 74 | NE1: 75 | NF1: 76 | NG1: 77 | NH1: 78 | NI1: 79 | NJ1: 80 | NK1: 81 | NL1: 82 | NM1: 83 | NN1: 84 | NO1: 85 | NP1: 86 | NQ1: 87 | NR1: 88 | NS1: 89 | NT1: 90 | NU1: 91
A2: =VLOOKUP(A1,base,2) ->  | H2: AÇÃO DE ORIGEM | M2: DETALHES DA CAUSA | Q2: PROCESSO DE EXECUÇÃO | T2: B E N E F I C I Á R I O R E Q U E R E N T E | AA2: ADVOGADOS BENEFICIÁRIOS | AN2: indicadores | AV2: V A L O R E S R E Q U I S I T A D O S (face) | BQ2: DOS DESCONTOS | BW2: ATUALIZAÇÃO ATÉ | BY2: 2023-04-01 | CE2: VALORES ATUALIZADOS PARA INCLUSÃO NA PROPOSTA | CK2: VALORES ATUALIZADO PARA INCLUSÃO NA PROPOSTA | DO2: TOTAL REQUISITADO | DS2: TOTAL INCLUSO NA PROPOSTA | DU2: CLASSIFICAÇÃO PRIORIDADE DE PAGAMENTO | EC2: SEQUENCIAL PROCURADO | ED2: 1º sequencial expedidos no mês de | EF2: data base da proposta | EG2: valor taxa selic para o mês | EH2: ultimo prc | EJ2: tx SELIC | EL2: 2021-12-01 | EM2: 2021-07-01 | EN2: 2021-08-01 | EO2: 2021-09-01 | EP2: 2021-10-01 | EQ2: 2021-11-01 | ER2: 2021-12-01 | ES2: 2022-01-01 | ET2: 2022-02-01 | EU2: 2022-03-01 | EV2: 2022-04-01 | EW2: 2022-05-01 | EX2: 2022-06-01 | EY2: 2022-07-01 | EZ2: 2022-08-01 | FA2: 2022-09-01 | FB2: 2022-10-01 | FC2: 2022-11-01 | FD2: 2022-12-01 | FE2: 2023-01-01 | FF2: 2023-02-01 | FG2: 2023-03-01 | FH2: 2023-04-01 | FI2: 2023-05-01 | FV2: 3 | FW2: Incontroverso | FX2: Inativo | FY2: Não | FZ2: Bloqueio PARCIAL
BW3: JUROS (poupança) ATÉ | BY3: 2023-04-01 | DY3: A | DZ3: B | EA3: C | EB3: D | EJ3: DATA INICIAL | EK3: DATA FINAL | EL3: TAXA % | EM3: =VLOOKUP(EM2,indice,3) ->  | FV3: 5 | FW3: Complementar | FY3: Não aplica | FZ3: Aguardando pagamento
AA4: ADVOGADO BENEFIÁRIO I | AD4: ADVOGADO BENEFICIÁRIO II | AG4: ADVOGADO BENEFIÁRIO III | AJ4: ADVOGADO BENEFIÁRIO IV | AM4: ORIGEM DO CRÉDITO DO ADVOGADO | AN4: Tributário | AO4: EC 94 2016 | AP4: Lei 13.463 2017 | AQ4: PRC/RPV de origem | AR4: Nº da GRU | AS4: Doença grave | AT4: Deficiência física | AU4: Isento de IR | AV4: DATA BASE | AW4: PARC SELIC IMBUTIDA NO | AY4: TOTAL REQUISITADO | BB4: ADVOGADO I | BE4: ADVOGADO II | BH4: ADVOGADO III | BK4: ADVOGADO IV | BN4: REQUERENTE | BQ4: Incidência de PSS | BT4: R R A | BW4: pelo IPCA-e até | BY4: 2021-12-01 | CB4: TAXA SELIC | CC4: % de juros no perído (poupança) | CK4: TOTAL A SER INCLUSO | CO4: ADVOGADO I | CS4: ADVOGADO I I | CW4: ADVOGADO I I I | DA4: ADVOGADO I V | DE4: REQUERENTE | DI4: DOS DESCONTOS | DO4: qtde | DP4: ALIMENTAR | DQ4: qtde | DR4: COMUM | DS4: ALIMENTAR | DT4: COMUM | DU4: TOTAL INCLUSO | DV4: NATUREZA | DW4: TETO | DX4: IDADE | DY4: 60 nos ou mais alimentar até 3x60 mínimos | DZ4: Demais alimentar até 3x60 minimos | EA4: Demais alimentar 3x60 minimos ou mais | EB4: Precatórios COMUNS | LG4: JUROS DA POUPANÇA NO PERÍODO | LK4: 2021-12-01 | LL4: 2022-01-01 | LM4: 2022-02-01 | LN4: 2022-03-01 | LO4: 2022-04-01 | LP4: 2022-05-01 | LQ4: 2022-06-01 | LR4: 2022-07-01 | LS4: 2022-08-01 | LT4: 2022-09-01 | LU4: 2022-10-01 | LV4: 2022-11-01 | LW4: 2022-12-01 | LX4: 2023-01-01 | LY4: 2023-02-01 | LZ4: 2023-03-01 | MA4: 2023-04-01 | MB4: 2023-05-01 | MC4: 2023-06-01 | MD4: 2023-07-01 | ME4: 2023-08-01 | MF4: 2023-09-01 | MG4: 2023-10-01 | MH4: 2023-11-01 | MI4: 2023-12-01 | MJ4: 2024-01-01 | MK4: 2024-02-01 | ML4: 2024-03-01 | MM4: 2024-04-01 | MN4: 2024-05-01 | MO4: 2024-06-01 | MP4: 2024-07-01 | MQ4: 2024-08-01 | MR4: 2024-09-01 | MS4: 2024-10-01 | MT4: 2024-11-01 | MU4: 2024-12-01 | MV4: 2025-01-01 | MW4: 2025-02-01 | MX4: 2025-03-01 | MY4: 2025-04-01 | MZ4: 2025-05-01 | NA4: 2025-06-01 | NB4: 2025-07-01 | NC4: 2025-08-01 | ND4: 2025-09-01 | NE4: 2025-10-01 | NF4: 2025-11-01 | NG4: 2025-12-01 | NH4: 2026-01-01 | NI4: 2026-02-01 | NJ4: 2026-03-01 | NK4: 2026-04-01 | NL4: 2026-05-01 | NM4: 2026-06-01
A5: seq | B5: CLASSE | C5: Nº | D5: REGISTRO STJ | E5: REGISTRO ÚNICO CNJ | F5: AUTUADO EM | G5: SITUAÇÃO DO PRC | H5: ABREVIADO | I5: E X T E N S O | J5: REGISTRO | K5: AJUIZADA EM | L5: TRÂNSITO EM JULGADO | M5: TIPO DE CAUSA | N5: ÓRGÃO DE ORIGEM | O5: CÓDIGO U.O | P5: ENTIDADE DEVEDORA | Q5: PROCESSO | R5: REGISTRO | S5: TRÂNSITO | T5: NOME DO BENEFICIÁRIO | U5: CPF / CNPJ | V5: DATA NASC | W5: SITUAÇÃO FUNCIONAL | X5: ORIGEM DO CRÉDITO DO REQUERENTE | Y5: VINCULO DO SERVIDOR | Z5: NATUREZA DO CRÉDITO | AA5: % de Hon adv | AB5: N O M E | AC5: C P F / CNPJ | AD5: % de Hon adv | AE5: N O M E | AF5: C P F / CNPJ | AG5: % de Hon adv | AH5: N O M E | AI5: C P F / CNPJ | AJ5: % de Hon adv | AK5: N O M E | AL5: C P F / CNPJ | AW5: principal | AX5: juros | AY5: PRINCIPAL | AZ5: JUROS | BA5: TOTAL | BB5: PRINCIPAL | BC5: JUROS | BD5: SUBTOTAL | BE5: PRINCIPAL | BF5: JUROS | BG5: TOTAL | BH5: PRINCIPAL | BI5: JUROS | BJ5: SUBTOTAL | BK5: PRINCIPAL | BL5: JUROS | BM5: SUBTOTAL | BN5: PRINCIPAL | BO5: JUROS | BP5: SUBTOTAL | BQ5: BASE PSSS | BR5: DESCONTO PSS | BS5: PSS PATRONAL | BT5: N.M.A | BU5: Valor EXERC ANTERIORES | BV5: DEDUÇÃO | BW5: DATA BASE | BX5: INDICE | BY5: Atualização IPCA-e PARA | BZ5: INDICE | CA5: FATOR IPCA-e | CC5: ATÉ | CD5: % | CE5: PRINCIPAL | CF5: JUROS | CG5: NOVOS JUROS (poupança) | CH5: SELIC sobre PRINCIPAL | CI5: SELIC sobre JUROS | CJ5: TOTAL | CK5: PRINCIPAL | CL5: JUROS | CM5: JUROS NO PERÍODO | CN5: TOTAL | CO5: PRINCIPAL | CP5: JUROS | CQ5: JUROS NO PERÍODO | CR5: TOTAL | CS5: PRINCIPAL | CT5: JUROS | CU5: JUROS NO PERÍODO | CV5: TOTAL | CW5: PRINCIPAL | CX5: JUROS | CY5: JUROS NO PERÍODO | CZ5: TOTAL | DA5: PRINCIPAL | DB5: JUROS | DC5: JUROS NO PERÍODO | DD5: TOTAL | DE5: PRINCIPAL | DF5: JUROS | DG5: JUROS NO PERÍODO | DH5: TOTAL | DI5: BASE PSSS | DJ5: DESCONTO PSS | DK5: PSS PATRONAL | DL5: N.M.A | DM5: Valor EXERC ANTERIORES | DN5: DEDUÇÃO | DO5: =SUM(DO7:DO1203) -> 1091 | DP5: 175346900 | DQ5: 97 | DR5: 54283248.85 | EC5: =SUM(EC7:EC1200) -> 0 | ED5: =VLOOKUP(EC5,base,6) ->  | EE5: =SUM(EE7:EE1200) ->  | FV5: 7 | FW5: Suplementar | FZ5: PAGO | LG5: DATA INICIAL | LH5: DATA FINAL | LI5: TAXA % | LK5: =IF(LK4="","",VLOOKUP(LK4,indice,9)) ->  | MQ5: =IF(MQ4="","",VLOOKUP(MQ4,indice,9)) -> 
DH6: =SUM(DH7:DH1200) ->  | EH6: =SUM(EH7:EH1203) -> 1188 | FV6: adv1 | FW6: adv3 | FX6: adv4 | FY6: reqte | FZ6: total geral
A7: 1 | B7: PRC | C7: 9849 | D7: 2022/0119835-0 | E7: 0119835-56.2022.3.00.0000 | F7: 2022-04-27 | G7: ATUALIZAÇÃO JUNTADA | H7: MS 12.215/DF | I7: Mandado de Segurança 12.215/DF | J7: 2006/0195293-3 | K7: 2006-09-11 | L7: 2012-10-24 | M7: Administrativo - Servidor Público Civil - Sistema Remuneratório e Benefícios - Gratificações de Atividade (PRINCIPAL) | N7: =IF(O7="-","-",VLOOKUP(O7,[2]VALIDAÇÃO!$N$4:$O$25,2,FALSE)) -> - | O7: - | P7: UNIÃO | Q7: Mandado de Segurança 12.215/DF | R7: 2016/0035614-0 | S7: 2021-04-19 | T7: Mota & Advogados Associados | U7: 03.996.810/0001-38 | V7: - | W7: - | X7: Honorários de sucumbência | Y7: =IF(X7="","",IF(P7="Instituto Nacional do Seguro Social – INSS","Não",IF(OR(X7="honorários de sucumbência",Z7="comum"),"Não","Sim"))) -> Não | Z7: Alimentar | AA7: 0 | AB7: x x x | AC7: x x x | AD7: 0 | AE7: x x x | AF7: x x x | AG7: 0 | AH7: x x x | AI7: x x x | AJ7: 0 | AK7: x x x | AL7: x x x | AM7: x.x.x | AN7: Não | AO7: Não | AP7: Não | AQ7: - | AR7: - | AS7: Não informada | AT7: Não Informada | AU7: Não | AV7: 2022-04-01 | AW7: 0 | AX7: 0 | AY7: 39885.89 | AZ7: 0 | BA7: 39885.89 | BB7: 0 | BC7: 0 | BD7: 0 | BE7: 0 | BF7: 0 | BG7: 0 | BH7: 0 | BI7: 0 | BJ7: 0 | BK7: 0 | BL7: 0 | BM7: 0 | BN7: 39885.89 | BO7: 0 | BP7: 39885.89 | BQ7: 0 | BR7: 0 | BS7: 0 | BT7: - | BU7: 0 | BV7: 0 | BW7: 2022-04-01 | BX7: =IF(BW7="","",IF(OR(BW7=$BY$2,BW7>$BY$2),1,VLOOKUP(BW7,indice,7))) ->  | BY7: 2022-12-01 | BZ7: =IF(BW7="","",IF(OR(BW7=$BY$2,BW7>$BY$2),1,VLOOKUP(BY7,indice,7))) ->  | CA7: =IF(BZ7="","",IF(H7="ms 4.151/df",1/BX7*BZ7,0)) ->  | CB7: =IF(C7="","",IF(AV7="sem correção monetária",0,IF(H7="MS 4.151/DF",0,1+EL7))) ->  | CC7: =IF(C7="","",IF(H7="MS 4.151/DF",$BY$2,$BY$3)) -> 2023-04-01 | CD7: =IF(C7="","",IF(X7="Honorários de Sucumbência",0,IF(AZ7=0,0,LI7))) -> 0 | CE7: =IF(BW7="","",IF(H7="ms 4.151/df",TRUNC(AY7*$CA7,2),AY7-AW7)) -> 39885.89 | CF7: =IF(CE7="","",IF(H7="ms 4.151/df",TRUNC(AZ7*$CA7,2),AZ7-AX7)) -> 0 | CG7: =IF(CE7="","",IF(H7="ms 4.151/df",TRUNC(CE7*CD7/100,2),0)) -> 0 | CH7: =IF(CG7="","",IF(AV7="sem correção monetária",0,IF(H7="ms 4.151/df",TRUNC(CE7*CB7/100,2),TRUNC(CE7*(CB7-1),2)))) ->  | CI7: =IF(CF7="","",IF(H7="ms 4.151/df",0,TRUNC((CF7)*(CB7-1),2))) ->  | CJ7: =IF(CH7="","",CE7+CF7+CG7+CH7+CI7) ->  | CK7: =IF(CE7="","",CN7-CM7-CL7) ->  | CL7: =IF(CE7="","",CF7+CI7) ->  | CM7: =IF(CE7="","",CG7) -> 0 | CN7: =IF(CA7="","",CJ7) ->  | CO7: =IF(CK7="","",CR7-CQ7-CP7) ->  | CP7: =IF(CK7="","",TRUNC(CL7*AA7/100,2)) ->  | CQ7: =IF(CK7="","",TRUNC(CM7*AA7/100,2)) ->  | CR7: =IF(CK7="","",TRUNC(CN7*AA7/100,2)) ->  | CS7: =IF(CK7="","",CV7-CU7-CT7) ->  | CT7: =IF(CK7="","",TRUNC(CL7*AD7/100,2)) ->  | CU7: =IF(CK7="","",TRUNC(CM7*AD7/100,2)) ->  | CV7: =IF(CK7="","",TRUNC(CN7*AD7/100,2)) ->  | CW7: =IF(CO7="","",CZ7-CY7-CX7) ->  | CX7: =IF(CK7="","",TRUNC(CL7*AG7/100,2)) ->  | CY7: =IF(CX7="","",TRUNC(CM7*AG7/100,2)) ->  | CZ7: =IF(CY7="","",TRUNC(CN7*AG7/100,2)) ->  | DA7: =IF(CS7="","",DD7-DC7-DB7) ->  | DB7: =IF(CK7="","",TRUNC(CL7*AJ7/100,2)) ->  | DC7: =IF(CK7="","",TRUNC(CM7*AJ7/100,2)) ->  | DD7: =IF(CR7="","",TRUNC(CN7*AJ7/100,2)) ->  | DE7: =IF(CK7="","",CK7-CO7-CS7-CW7-DA7) ->  | DF7: =IF(CL7="","",DH7-DG7-DE7) ->  | DG7: =IF(CM7="","",CM7-CQ7-CU7-CY7-DC7) ->  | DI7: =IF(BQ7=0,0,IF(H8="MS 4.151/DF",TRUNC(BQ7*CA8,2)+TRUNC(BQ7*CA8,2)*CB7/100,BQ7+(TRUNC(BQ7*VLOOKUP(AV7,[2]VALIDAÇÃO!$C$5:$D$15,2,FALSE)/100,2)))) -> 0 | DJ7: =IF(DI7="","",TRUNC(DI7*0.11,2)) -> 0 | DK7: =IF(DJ7="","",IF(BS7=0,0,DJ7*2)) -> 0 | DL7: =IF(BT7="","",BT7) -> - | DM7: =IF(BU7="","",IF(BU7=0,0,DH7-CL7-CM7)) -> 0 | DN7: =IF(DL7="","",IF(DL7=0,0,DJ7)) -> 0 | DO7: =IF(Z7="ALIMENTAR",1,0) -> 1 | DP7: =IF(DO7=1,BA7,0) -> 39885.89 | DQ7: =IF(Z7="COMUM",1,0) -> 0 | DR7: =IF(DQ7=1,BA7,0) -> 0 | DS7: =IF(DO7=1,CN7,0) ->  | DT7: =IF(DQ7=1,CN7,0) -> 0 | DU7: =CN7 ->  | DV7: =IF(Z7="","",Z7) -> Alimentar | DW7: =180*1302 -> 234360 | DX7: =IF(DW7="","",IF(OR(V7="",V7="-"),1,INT(("31/12/2024"-V7)/365.25))) -> 1 | DY7: =IF(Z7="","",IF(Z7="alimentar",IF(DX7<60,0,IF(DU7>DW7,DW7,DU7)),0)) -> 0 | DZ7: =IF(Z7="","",IF(DV7="alimentar",IF(DY7>0,0,IF(DU7<=DW7,DU7,DW7)),0)) ->  | EA7: =IF(DV7="comum",0,IF(DU7>DW7,DU7-DW7,0)) ->  | EB7: =IF(DR7=0,0,IF(DV7="comum",DU7,0)) -> 0 | EC7: =IF(C7=$A$1,A7,0) -> 0 | ED7: =IF(AND(MONTH(F7)=MONTH($ED$5),YEAR(F7)=YEAR($ED$5)),A7,0) ->  | EE7: =IF(AND(ED6=0,ED7>0),A7,0) ->  | EF7: 2023-04-01 | EH7: =IF(AND(A8="",A7>0),A7,0) -> 0 | EI7: =CN7-BA7 ->  | EJ7: =IF((AW7+AX7)=0,BW7,$EL$2) -> 2022-04-01 | EK7: =IF(EJ7="","",$BY$2) -> 2023-04-01 | EL7: =(SUM(EM7:FI7)-1)/100 ->  | EM7: =IF($EJ7="","",IF(EM$2>=$EK7,0,IF(EM$2>=$EJ7,EM$3,0))) -> 0 | EN7: 0 | EO7: 0 | EP7: 0 | EQ7: 0 | ER7: 0 | ES7: 0 | ET7: 0 | EU7: 0 | FH7: 0 | FI7: 0 | FK7: =AY7+AZ7-BA7 -> 0 | LG7: =BW7 -> 2022-04-01 | LH7: =CC7 -> 2023-04-01 | LI7: =SUM(LK7:NM7) ->  | LK7: =IF(LK$4=$LG7,0,IF(AND(LK$4>=$LG7,LK$4<=$LH7),LK$5,0)) -> 0 | LL7: 0 | LM7: 0 | LN7: 0 | LO7: 0 | MA7: =IF(MA$4=$LG7,0,IF(AND(MA$4>=$LG7,MA$4<=$LH7),MA$5,0)) ->  | MB7: 0 | MC7: 0 | MD7: 0 | ME7: 0 | MF7: 0 | MG7: 0 | MH7: 0 | MI7: 0 | MJ7: 0 | MK7: 0 | ML7: 0 | MM7: 0 | MN7: 0 | MO7: 0 | MP7: 0 | MQ7: =IF(MQ$4=$LG7,0,IF(AND(MQ$4>=$LG7,MQ$4<=$LH7),MQ$5,0)) -> 0 | MR7: 0 | MS7: 0 | MT7: 0 | MU7: 0 | MV7: 0 | MW7: 0 | MX7: 0 | MY7: 0 | MZ7: 0 | NA7: 0 | NB7: 0 | NC7: 0 | ND7: 0 | NE7: 0 | NF7: 0 | NG7: =IF(NG$4=$LG7,0,IF(AND(NG$4>=$LG7,NG$4<=$LH7),NG$5,0)) -> 0 | NH7: 0 | NI7: 0 | NJ7: 0 | NK7: 0 | NL7: 0 | NM7: 0
A8: =IF(C8="","",A7+1) -> 2 | B8: =IF(C8="","","PRC") -> PRC | C8: 9850 | D8: 2022/0120828-5 | E8: 0120828-02.2022.3.00.0000 | F8: 2022-04-28 | G8: ATUALIZAÇÃO JUNTADA | H8: MS 12.215/DF | I8: Mandado de Segurança 12.215/DF | J8: 2006/0195293-3 | K8: 2006-09-11 | L8: 2012-10-24 | M8: Administrativo - Servidor Público Civil - Sistema Remuneratório e Benefícios - Gratificações de Atividade (PRINCIPAL) | N8: =IF(O8="-","-",VLOOKUP(O8,[2]VALIDAÇÃO!$N$4:$O$25,2,FALSE)) -> - | O8: - | P8: UNIÃO | Q8: Mandado de Segurança 12.215/DF | R8: 2016/0035864-0 | S8: 2021-04-19 | T8: Mota & Advogados Associados | U8: 03.996.810/0001-38 | V8: - | W8: - | X8: Honorários de sucumbência | Y8: =IF(X8="","",IF(P8="Instituto Nacional do Seguro Social – INSS","Não",IF(OR(X8="honorários de sucumbência",Z8="comum"),"Não","Sim"))) -> Não | Z8: Alimentar | AA8: 0 | AB8: x x x | AC8: x x x | AD8: 0 | AE8: x x x | AF8: x x x | AG8: 0 | AH8: x x x | AI8: x x x | AJ8: 0 | AK8: x x x | AL8: x x x | AM8: x.x.x | AN8: Não | AO8: Não | AP8: Não | AQ8: - | AR8: - | AS8: Não informada | AT8: Não Informada | AU8: Não | AV8: 2022-04-01 | AW8: 0 | AX8: 0 | AY8: 43371.35 | AZ8: 0 | BA8: 43371.35 | BB8: 0 | BC8: 0 | BD8: 0 | BE8: 0 | BF8: 0 | BG8: 0 | BH8: 0 | BI8: 0 | BJ8: 0 | BK8: 0 | BL8: 0 | BM8: 0 | BN8: 43371.35 | BO8: 0 | BP8: 43371.35 | BQ8: 0 | BR8: 0 | BS8: 0 | BT8: - | BU8: 0 | BV8: 0 | BW8: 2022-04-01 | BY8: 2022-12-01 | CC8: 2023-04-01 | CD8: 0 | CE8: 43371.35 | CF8: 0 | CG8: 0 | CK8: =IF(CE8="","",CE8+CH8) ->  | CL8: =IF(CE8="","",CN8-CM8-CK8) ->  | CM8: =IF(CE8="","",CG8) -> 0 | CN8: =IF(CA8="","",CJ8) ->  | CO8: =IF(CK8="","",CR8-CQ8-CP8) ->  | CQ8: =IF(CK8="","",TRUNC(CM8*AA8/100,2)) ->  | CS8: =IF(CK8="","",CV8-CU8-CT8) ->  | CV8: =IF(CK8="","",TRUNC(CN8*AD8/100,2)) ->  | CW8: =IF(CO8="","",CZ8-CY8-CX8) ->  | CY8: =IF(CX8="","",TRUNC(CM8*AG8/100,2)) ->  | CZ8: =IF(CY8="","",TRUNC(CN8*AG8/100,2)) ->  | DA8: =IF(CS8="","",DD8-DC8-DB8) ->  | DC8: =IF(CK8="","",TRUNC(CM8*AJ8/100,2)) ->  | DD8: =IF(CR8="","",TRUNC(CN8*AJ8/100,2)) ->  | DF8: =IF(CL8="","",DH8-DG8-DE8) ->  | DI8: =IF(BQ8=0,0,IF(H9="MS 4.151/DF",TRUNC(BQ8*CA9,2)+TRUNC(BQ8*CA9,2)*CB8/100,BQ8+(TRUNC(BQ8*VLOOKUP(AV8,[2]VALIDAÇÃO!$C$5:$D$15,2,FALSE)/100,2)))) -> 0 | DJ8: 0 | DK8: 0 | DL8: - | DM8: 0 | DN8: 0 | DO8: =IF(Z8="ALIMENTAR",1,0) -> 1 | DP8: =IF(DO8=1,BA8,0) -> 43371.35 | DQ8: =IF(Z8="COMUM",1,0) -> 0 | DR8: =IF(DQ8=1,BA8,0) -> 0 | DT8: =IF(DQ8=1,CN8,0) -> 0 | DU8: =CN8 ->  | DV8: Alimentar | DW8: =IF(DV8="","",DW7) -> 234360 | DX8: =IF(DW8="","",IF(OR(V8="",V8="-"),1,INT(("31/12/2024"-V8)/365.25))) -> 1 | DY8: 0 | DZ8: =IF(Z8="","",IF(DV8="alimentar",IF(DY8>0,0,IF(DU8<=DW8,DU8,DW8)),0)) ->  | EB8: =IF(DR8=0,0,IF(DV8="comum",DU8,0)) -> 0 | EC8: 0 | EF8: 2023-04-01 | EH8: =IF(AND(A8>0,A9=""),A8,0) -> 0 | EI8: =CN8-BA8 ->  | EJ8: 2022-04-01 | EK8: 2023-04-01 | EM8: 0 | EN8: 0 | EO8: 0 | EP8: 0 | EQ8: 0 | ER8: 0 | ES8: 0 | ET8: 0 | EU8: 0 | FH8: 0 | FI8: 0 | FK8: =AY8+AZ8-BA8 -> 0 | LG8: 2022-04-01 | LH8: 2023-04-01 | LI8: =IF(OR(LG8="",LH8=""),"",SUM(LK8:NM8)) ->  | LK8: 0 | LL8: 0 | LM8: 0 | LN8: 0 | LO8: 0 | MB8: 0 | MC8: 0 | MD8: 0 | ME8: 0 | MF8: 0 | MG8: 0 | MH8: 0 | MI8: 0 | MJ8: 0 | MK8: 0 | ML8: 0 | MM8: 0 | MN8: 0 | MO8: 0 | MP8: 0 | MQ8: 0 | MR8: 0 | MS8: 0 | MT8: 0 | MU8: 0 | MV8: 0 | MW8: 0 | MX8: 0 | MY8: 0 | MZ8: 0 | NA8: 0 | NB8: 0 | NC8: 0 | ND8: 0 | NE8: 0 | NF8: 0 | NG8: 0 | NH8: 0 | NI8: 0 | NJ8: 0 | NK8: 0 | NL8: 0 | NM8: 0
A9: =IF(C9="","",A8+1) -> 3 | B9: =IF(C9="","","PRC") -> PRC | C9: 9851 | D9: 2022/0121569-3 | E9: 0121569-42.2022.3.00.0000 | F9: 2022-04-28 | G9: ATUALIZAÇÃO JUNTADA | H9: AR 1.169/CE | I9: Ação Rescisória 1.169/CE | J9: 1999/0096834-4 | K9: 1999-10-18 | L9: 2004-06-07 | M9: Administrativo - Servidor Público Civil - Sistema Remuneratório e Benefícios | N9: =IF(O9="-","-",VLOOKUP(O9,[2]VALIDAÇÃO!$N$4:$O$25,2,FALSE)) -> - | O9: - | P9: Instituto Nacional do Seguro Social – INSS | Q9: Ação Rescisória 1.169/CE | R9: 2009/0057510-0 | S9: 2014-09-30 | T9: Glayddes Sindeaux Advogados | U9: 17.291.820/0001-82 | V9: - | W9: - | X9: Honorários de sucumbência | Y9: Não | Z9: Alimentar | AA9: 0 | AB9: x x x | AC9: x x x | AD9: 0 | AE9: x x x | AF9: x x x | AG9: 0 | AH9: x x x | AI9: x x x | AJ9: 0 | AK9: x x x | AL9: x x x | AM9: x.x.x | AN9: Não | AO9: Não | AP9: Não | AQ9: - | AR9: - | AS9: Não informada | AT9: Não Informada | AU9: Não | AV9: 2022-04-01 | AW9: 0 | AX9: 0 | AY9: 249.11 | AZ9: 0 | BA9: 249.11 | BB9: 0 | BC9: 0 | BD9: 0 | BE9: 0 | BF9: 0 | BG9: 0 | BH9: 0 | BI9: 0 | BJ9: 0 | BK9: 0 | BL9: 0 | BM9: 0 | BN9: 249.11 | BO9: 0 | BP9: 249.11 | BQ9: 0 | BR9: 0 | BS9: 0 | BT9: - | BU9: 0 | BV9: 0 | BW9: 2022-04-01 | BY9: 2022-12-01 | CC9: 2023-04-01 | CD9: 0 | CE9: 249.11 | CF9: 0 | CG9: 0 | CM9: 0 | DI9: =IF(BQ9=0,0,IF(H10="MS 4.151/DF",TRUNC(BQ9*CA10,2)+TRUNC(BQ9*CA10,2)*CB9/100,BQ9+(TRUNC(BQ9*VLOOKUP(AV9,[2]VALIDAÇÃO!$C$5:$D$15,2,FALSE)/100,2)))) -> 0 | DJ9: 0 | DK9: 0 | DL9: - | DM9: 0 | DN9: 0 | DO9: 1 | DP9: 249.11 | DQ9: 0 | DR9: 0 | DT9: 0 | DV9: Alimentar | DW9: =IF(DV9="","",DW8) -> 234360 | DX9: 1 | DY9: 0 | EB9: 0 | EC9: 0 | EF9: 2023-04-01 | EH9: 0 | EJ9: 2022-04-01 | EK9: 2023-04-01 | EM9: 0 | EN9: 0 | EO9: 0 | EP9: 0 | EQ9: 0 | ER9: 0 | ES9: 0 | ET9: 0 | EU9: 0 | FH9: 0 | FI9: 0 | FK9: 0 | LG9: 2022-04-01 | LH9: 2023-04-01 | LK9: 0 | LL9: 0 | LM9: 0 | LN9: 0 | LO9: 0 | MB9: 0 | MC9: 0 | MD9: 0 | ME9: 0 | MF9: 0 | MG9: 0 | MH9: 0 | MI9: 0 | MJ9: 0 | MK9: 0 | ML9: 0 | MM9: 0 | MN9: 0 | MO9: 0 | MP9: 0 | MQ9: 0 | MR9: 0 | MS9: 0 | MT9: 0 | MU9: 0 | MV9: 0 | MW9: 0 | MX9: 0 | MY9: 0 | MZ9: 0 | NA9: 0 | NB9: 0 | NC9: 0 | ND9: 0 | NE9: 0 | NF9: 0 | NG9: 0 | NH9: 0 | NI9: 0 | NJ9: 0 | NK9: 0 | NL9: 0 | NM9: 0
A10: 4 | B10: PRC | C10: 9852 | D10: 2022/0121656-5 | E10: 0121656-95.2022.3.00.0000 | F10: 2022-04-28 | G10: ATUALIZAÇÃO JUNTADA | H10: AR 1.169/CE | I10: Ação Rescisória 1.169/CE | J10: 1999/0096834-4 | K10: 1999-10-18 | L10: 2004-06-07 | M10: Administrativo - Servidor Público Civil - Sistema Remuneratório e Benefícios | N10: =IF(O10="-","-",VLOOKUP(O10,[2]VALIDAÇÃO!$N$4:$O$25,2,FALSE)) -> - | O10: - | P10: Instituto Nacional do Seguro Social – INSS | Q10: Ação Rescisória 1.169/CE | R10: 2009/0057560-4 | S10: 2014-09-30 | T10: Glayddes Sindeaux Advogados | U10: 17.291.820/0001-82 | V10: - | W10: - | X10: Honorários de sucumbência | Y10: Não | Z10: Alimentar | AA10: 0 | AB10: x x x | AC10: x x x | AD10: 0 | AE10: x x x | AF10: x x x | AG10: 0 | AH10: x x x | AI10: x x x | AJ10: 0 | AK10: x x x | AL10: x x x | AM10: x.x.x | AN10: Não | AO10: Não | AP10: Não | AQ10: - | AR10: - | AS10: Não informada | AT10: Não Informada | AU10: Não | AV10: 2022-04-01 | AW10: 0 | AX10: 0 | AY10: 14339.82 | AZ10: 0 | BA10: 14339.82 | BB10: 0 | BC10: 0 | BD10: 0 | BE10: 0 | BF10: 0 | BG10: 0 | BH10: 0 | BI10: 0 | BJ10: 0 | BK10: 0 | BL10: 0 | BM10: 0 | BN10: 14339.82 | BO10: 0 | BP10: 14339.82 | BQ10: 0 | BR10: 0 | BS10: 0 | BT10: - | BU10: 0 | BV10: 0 | BW10: 2022-04-01 | BY10: 2022-12-01 | CC10: 2023-04-01 | CD10: 0 | CE10: 14339.82 | CF10: 0 | CG10: 0 | CM10: 0 | DI10: =IF(BQ10=0,0,IF(H11="MS 4.151/DF",TRUNC(BQ10*CA11,2)+TRUNC(BQ10*CA11,2)*CB10/100,BQ10+(TRUNC(BQ10*VLOOKUP(AV10,[2]VALIDAÇÃO!$C$5:$D$15,2,FALSE)/100,2)))) -> 0 | DJ10: 0 | DK10: 0 | DL10: - | DM10: 0 | DN10: 0 | DO10: 1 | DP10: 14339.82 | DQ10: 0 | DR10: 0 | DT10: 0 | DV10: Alimentar | DW10: 234360 | DX10: 1 | DY10: 0 | EB10: 0 | EC10: 0 | EF10: 2023-04-01 | EH10: 0 | EJ10: 2022-04-01 | EK10: 2023-04-01 | EM10: 0 | EN10: 0 | EO10: 0 | EP10: 0 | EQ10: 0 | ER10: 0 | ES10: 0 | ET10: 0 | EU10: 0 | FH10: 0 | FI10: 0 | FK10: 0 | LG10: 2022-04-01 | LH10: 2023-04-01 | LK10: 0 | LL10: 0 | LM10: 0 | LN10: 0 | LO10: 0 | MB10: 0 | MC10: 0 | MD10: 0 | ME10: 0 | MF10: 0 | MG10: 0 | MH10: 0 | MI10: 0 | MJ10: 0 | MK10: 0 | ML10: 0 | MM10: 0 | MN10: 0 | MO10: 0 | MP10: 0 | MQ10: 0 | MR10: 0 | MS10: 0 | MT10: 0 | MU10: 0 | MV10: 0 | MW10: 0 | MX10: 0 | MY10: 0 | MZ10: 0 | NA10: 0 | NB10: 0 | NC10: 0 | ND10: 0 | NE10: 0 | NF10: 0 | NG10: 0 | NH10: 0 | NI10: 0 | NJ10: 0 | NK10: 0 | NL10: 0 | NM10: 0
A11: 5 | B11: PRC | C11: 9853 | D11: 2022/0150562-2 | E11: 0150562-95.2022.3.00.0000 | F11: 2022-05-19 | G11: ATUALIZAÇÃO JUNTADA | H11: AR 1.169/CE | I11: Ação Rescisória 1.169/CE | J11: 1999/0096834-4 | K11: 1999-10-18 | L11: 2004-06-07 | M11: Administrativo - Servidor Público Civil - Sistema Remuneratório e Benefícios | N11: =IF(O11="-","-",VLOOKUP(O11,[2]VALIDAÇÃO!$N$4:$O$25,2,FALSE)) -> - | O11: - | P11: Instituto Nacional do Seguro Social – INSS | Q11: Ação Rescisória 1.169/CE | R11: 2009/0057567-7 | S11: 2014-09-30 | T11: Glayddes Sindeaux Advogados | U11: 17.291.820/0001-82 | V11: - | W11: - | X11: Honorários de sucumbência | Y11: Não | Z11: Alimentar | AA11: 0 | AB11: x x x | AC11: x x x | AD11: 0 | AE11: x x x | AF11: x x x | AG11: 0 | AH11: x x x | AI11: x x x | AJ11: 0 | AK11: x x x | AL11: x x x | AM11: x.x.x | AN11: Não | AO11: Não | AP11: Não | AQ11: - | AR11: - | AS11: Não informada | AT11: Não Informada | AU11: Não | AV11: 2022-05-01 | AW11: 0 | AX11: 0 | AY11: 18255.96 | AZ11: 0 | BA11: 18255.96 | BB11: 0 | BC11: 0 | BD11: 0 | BE11: 0 | BF11: 0 | BG11: 0 | BH11: 0 | BI11: 0 | BJ11: 0 | BK11: 0 | BL11: 0 | BM11: 0 | BN11: 18255.96 | BO11: 0 | BP11: 18255.96 | BQ11: 0 | BR11: 0 | BS11: 0 | BT11: - | BU11: 0 | BV11: 0 | BW11: 2022-05-01 | BY11: 2022-12-01 | CC11: 2023-04-01 | CD11: 0 | CE11: 18255.96 | CF11: 0 | CG11: 0 | CM11: 0 | DI11: =IF(BQ11=0,0,IF(H12="MS 4.151/DF",TRUNC(BQ11*CA12,2)+TRUNC(BQ11*CA12,2)*CB11/100,BQ11+(TRUNC(BQ11*VLOOKUP(AV11,[2]VALIDAÇÃO!$C$5:$D$15,2,FALSE)/100,2)))) -> 0 | DJ11: 0 | DK11: 0 | DL11: - | DM11: 0 | DN11: 0 | DO11: 1 | DP11: 18255.96 | DQ11: 0 | DR11: 0 | DT11: 0 | DV11: Alimentar | DW11: 234360 | DX11: 1 | DY11: 0 | EB11: 0 | EC11: 0 | EF11: 2023-04-01 | EH11: 0 | EJ11: 2022-05-01 | EK11: 2023-04-01 | EM11: 0 | EN11: 0 | EO11: 0 | EP11: 0 | EQ11: 0 | ER11: 0 | ES11: 0 | ET11: 0 | EU11: 0 | EV11: 0 | FH11: 0 | FI11: 0 | FK11: 0 | LG11: 2022-05-01 | LH11: 2023-04-01 | LK11: 0 | LL11: 0 | LM11: 0 | LN11: 0 | LO11: 0 | LP11: 0 | MB11: 0 | MC11: 0 | MD11: 0 | ME11: 0 | MF11: 0 | MG11: 0 | MH11: 0 | MI11: 0 | MJ11: 0 | MK11: 0 | ML11: 0 | MM11: 0 | MN11: 0 | MO11: 0 | MP11: 0 | MQ11: 0 | MR11: 0 | MS11: 0 | MT11: 0 | MU11: 0 | MV11: 0 | MW11: 0 | MX11: 0 | MY11: 0 | MZ11: 0 | NA11: 0 | NB11: 0 | NC11: 0 | ND11: 0 | NE11: 0 | NF11: 0 | NG11: 0 | NH11: 0 | NI11: 0 | NJ11: 0 | NK11: 0 | NL11: 0 | NM11: 0
A12: 6 | B12: PRC | C12: 9854 | D12: 2022/0150977-5 | E12: 0150977-78.2022.3.00.0000 | F12: 2022-05-19 | G12: ATUALIZAÇÃO JUNTADA | H12: AR 1.169/CE | I12: Ação Rescisória 1.169/CE | J12: 1999/0096834-4 | K12: 1999-10-18 | L12: 2004-06-07 | M12: Administrativo - Servidor Público Civil - Sistema Remuneratório e Benefícios | N12: =IF(O12="-","-",VLOOKUP(O12,[2]VALIDAÇÃO!$N$4:$O$25,2,FALSE)) -> - | O12: - | P12: Instituto Nacional do Seguro Social – INSS | Q12: Ação Rescisória 1.169/CE | R12: 2009/0057575-4 | S12: 2014-09-30 | T12: Glayddes Sindeaux Advogados | U12: 17.291.820/0001-82 | V12: - | W12: - | X12: Honorários de sucumbência | Y12: Não | Z12: Alimentar | AA12: 0 | AB12: x x x | AC12: x x x | AD12: 0 | AE12: x x x | AF12: x x x | AG12: 0 | AH12: x x x | AI12: x x x | AJ12: 0 | AK12: x x x | AL12: x x x | AM12: x.x.x | AN12: Não | AO12: Não | AP12: Não | AQ12: - | AR12: - | AS12: Não informada | AT12: Não Informada | AU12: Não | AV12: 2022-05-01 | AW12: 0 | AX12: 0 | AY12: 20553.03 | AZ12: 0 | BA12: 20553.03 | BB12: 0 | BC12: 0 | BD12: 0 | BE12: 0 | BF12: 0 | BG12: 0 | BH12: 0 | BI12: 0 | BJ12: 0 | BK12: 0 | BL12: 0 | BM12: 0 | BN12: 20553.03 | BO12: 0 | BP12: 20553.03 | BQ12: 0 | BR12: 0 | BS12: 0 | BT12: - | BU12: 0 | BV12: 0 | BW12: 2022-05-01 | BY12: 2022-12-01 | CC12: 2023-04-01 | CD12: 0 | CE12: 20553.03 | CF12: 0 | CG12: 0 | CM12: 0 | DI12: =IF(BQ12=0,0,IF(H13="MS 4.151/DF",TRUNC(BQ12*CA13,2)+TRUNC(BQ12*CA13,2)*CB12/100,BQ12+(TRUNC(BQ12*VLOOKUP(AV12,[2]VALIDAÇÃO!$C$5:$D$15,2,FALSE)/100,2)))) -> 0 | DJ12: 0 | DK12: 0 | DL12: - | DM12: 0 | DN12: 0 | DO12: 1 | DP12: 20553.03 | DQ12: 0 | DR12: 0 | DT12: 0 | DV12: Alimentar | DW12: 234360 | DX12: 1 | DY12: 0 | EB12: 0 | EC12: 0 | EF12: 2023-04-01 | EH12: 0 | EJ12: 2022-05-01 | EK12: 2023-04-01 | EM12: 0 | EN12: 0 | EO12: 0 | EP12: 0 | EQ12: 0 | ER12: 0 | ES12: 0 | ET12: 0 | EU12: 0 | EV12: 0 | FH12: 0 | FI12: 0 | FK12: 0 | LG12: 2022-05-01 | LH12: 2023-04-01 | LK12: 0 | LL12: 0 | LM12: 0 | LN12: 0 | LO12: 0 | LP12: 0 | MB12: 0 | MC12: 0 | MD12: 0 | ME12: 0 | MF12: 0 | MG12: 0 | MH12: 0 | MI12: 0 | MJ12: 0 | MK12: 0 | ML12: 0 | MM12: 0 | MN12: 0 | MO12: 0 | MP12: 0 | MQ12: 0 | MR12: 0 | MS12: 0 | MT12: 0 | MU12: 0 | MV12: 0 | MW12: 0 | MX12: 0 | MY12: 0 | MZ12: 0 | NA12: 0 | NB12: 0 | NC12: 0 | ND12: 0 | NE12: 0 | NF12: 0 | NG12: 0 | NH12: 0 | NI12: 0 | NJ12: 0 | NK12: 0 | NL12: 0 | NM12: 0
A13: 7 | B13: PRC | C13: 9855 | D13: 2022/0150990-4 | E13: 0150990-77.2022.3.00.0000 | F13: 2022-05-19 | G13: ATUALIZAÇÃO JUNTADA | H13: MS 4.301/DF | I13: Mandado de Segurança 4.301/DF | J13: 1995/0060877-4 | K13: 1995-11-08 | L13: 2003-11-03 | M13: Administrativo - Servidor Público Civil - Sistema Remuneratório e Benefícios | N13: =IF(O13="-","-",VLOOKUP(O13,[2]VALIDAÇÃO!$N$4:$O$25,2,FALSE)) -> Ministério da Gestão e da Inovação em Serviços Públicos - Administração Direta | O13: 46101 | P13: UNIÃO | Q13: Mandado de Segurança 4.301/DF | R13: 2007/0262740-2 | S13: 2013-12-05 | T13: Francisnete de Almeida Cardoso | U13: 112.321.102-72 | V13: 1959-03-19 | W13: Servidor Público Civil Ativo | X13: Isonomia Salarial com a Policia Federal - Gratificações | Y13: Sim | Z13: Alimentar | AA13: 20 | AB13: Espólio de Elenauro Batista dos Santos | AC13: 035.277.351-00 | AD13: 0 | AE13: x x x | AF13: x x x | AG13: 0 | AH13: x x x | AI13: x x x | AJ13: 0 | AK13: x x x | AL13: x x x | AM13: Dedução de Honorários Contratuais | AN13: Não | AO13: Não | AP13: Não | AQ13: - | AR13: - | AS13: Não informada | AT13: Não Informada | AU13: Não | AV13: 2022-05-01 | AW13: 2925.88 | AX13: 4190.64 | AY13: 75709 | AZ13: 108435.49 | BA13: 184144.49 | BB13: 15141.8 | BC13: 21687.09 | BD13: 36828.89 | BE13: 0 | BF13: 0 | BG13: 0 | BH13: 0 | BI13: 0 | BJ13: 0 | BK13: 0 | BL13: 0 | BM13: 0 | BN13: 63493.08 | BO13: 83822.52 | BP13: 147315.6 | BQ13: 75709 | BR13: 8327.99 | BS13: 16655.98 | BT13: 74 | BU13: 38880.11 | BV13: 8327.99 | BW13: 2022-05-01 | BY13: 2022-12-01 | CA13: =IF(BZ13="","",1/BX13*BZ13) ->  | CC13: 2023-04-01 | CE13: =IF(BW13="","",IF(H13="ms 4.151/df",TRUNC(AY13*$CA13,2),AY13-AW13)) -> 72783.12 | CF13: =IF(CE13="","",IF(H13="ms 4.151/df",TRUNC(AZ13*$CA13,2),AZ13-AX13)) -> 104244.85 | CG13: =IF(CE13="","",IF(H13="ms 4.151/df",TRUNC(CE13*CD13/100,2),0)) -> 0 | CI13: =IF(CF13="","",IF(H13="ms 4.151/df",0,TRUNC((CF13)*(CB13-1),2))) ->  | CM13: 0 | DI13: =IF(BQ13=0,0,IF(H14="MS 4.151/DF",TRUNC(BQ13*CA14,2)+TRUNC(BQ13*CA14,2)*CB13/100,BQ13+(TRUNC(BQ13*VLOOKUP(AV13,[2]VALIDAÇÃO!$C$5:$D$15,2,FALSE)/100,2)))) -> 84559.38 | DJ13: 9301.53 | DK13: 18603.06 | DL13: 74 | DN13: 9301.53 | DO13: 1 | DP13: 184144.49 | DQ13: 0 | DR13: 0 | DT13: 0 | DV13: Alimentar | DW13: 234360 | DX13: 65 | DY13: =IF(Z13="","",IF(Z13="alimentar",IF(DX13<60,0,IF(DU13>DW13,DW13,DU13)),0)) ->  | EB13: 0 | EC13: 0 | EF13: 2023-04-01 | EH13: 0 | EJ13: 2021-12-01 | EK13: 2023-04-01 | EM13: 0 | EN13: 0 | EO13: 0 | EP13: 0 | EQ13: 0 | FH13: 0 | FI13: 0 | FK13: 0 | LG13: 2022-05-01 | LH13: 2023-04-01 | LK13: 0 | LL13: 0 | LM13: 0 | LN13: 0 | LO13: 0 | LP13: 0 | MB13: 0 | MC13: 0 | MD13: 0 | ME13: 0 | MF13: 0 | MG13: 0 | MH13: 0 | MI13: 0 | MJ13: 0 | MK13: 0 | ML13: 0 | MM13: 0 | MN13: 0 | MO13: 0 | MP13: 0 | MQ13: 0 | MR13: 0 | MS13: 0 | MT13: 0 | MU13: 0 | MV13: 0 | MW13: 0 | MX13: 0 | MY13: 0 | MZ13: 0 | NA13: 0 | NB13: 0 | NC13: 0 | ND13: 0 | NE13: 0 | NF13: 0 | NG13: 0 | NH13: 0 | NI13: 0 | NJ13: 0 | NK13: 0 | NL13: 0 | NM13: 0
A14: =IF(C14="","",A13+1) -> 8 | B14: PRC | C14: 9856 | D14: 2022/0151031-4 | E14: 0151031-44.2022.3.00.0000 | F14: 2022-05-19 | G14: ATUALIZAÇÃO JUNTADA | H14: MS 12.215/DF | I14: Mandado de Segurança 12.215/DF | J14: 2006/0195293-3 | K14: 2006-09-11 | L14: 2012-10-24 | M14: Administrativo - Servidor Público Civil - Sistema Remuneratório e Benefícios - Gratificações de Atividade (PRINCIPAL) | N14: =IF(O14="-","-",VLOOKUP(O14,[2]VALIDAÇÃO!$N$4:$O$25,2,FALSE)) -> - | O14: - | P14: UNIÃO | Q14: Mandado de Segurança 12.215/DF | R14: 2016/0035663-2 | S14: 2021-04-19 | T14: Mota & Advogados Associados | U14: 03.996.810/0001-38 | V14: - | W14: - | X14: Honorários de sucumbência | Y14: Não | Z14: Alimentar | AA14: 0 | AB14: x x x | AC14: x x x | AD14: 0 | AE14: x x x | AF14: x x x | AG14: 0 | AH14: x x x | AI14: x x x | AJ14: 0 | AK14: x x x | AL14: x x x | AM14: x.x.x | AN14: Não | AO14: Não | AP14: Não | AQ14: - | AR14: - | AS14: Não informada | AT14: Não Informada | AU14: Não | AV14: 2022-05-01 | AW14: 0 | AX14: 0 | AY14: 31370.14 | AZ14: 0 | BA14: 31370.14 | BB14: 0 | BC14: 0 | BD14: 0 | BE14: 0 | BF14: 0 | BG14: 0 | BH14: 0 | BI14: 0 | BJ14: 0 | BK14: 0 | BL14: 0 | BM14: 0 | BN14: 31370.14 | BO14: 0 | BP14: 31370.14 | BQ14: 0 | BR14: 0 | BS14: 0 | BT14: - | BU14: 0 | BV14: 0 | BW14: 2022-05-01 | BY14: 2022-12-01 | CA14: =IF(BZ14="","",IF(H14="ms 4.151/df",1/BX14*BZ14,0)) ->  | CC14: 2023-04-01 | CD14: 0 | CE14: =IF(BW14="","",IF(H14="ms 4.151/df",TRUNC(AY14*$CA14,2),AY14-AW14)) -> 31370.14 | CF14: =IF(CE14="","",IF(H14="ms 4.151/df",TRUNC(AZ14*$CA14,2),AZ14-AX14)) -> 0 | CG14: =IF(CE14="","",IF(H14="ms 4.151/df",TRUNC(CE14*CD14/100,2),0)) -> 0 | CI14: =IF(CF14="","",IF(H14="ms 4.151/df",0,TRUNC((CF14)*(CB14-1),2))) ->  | CM14: 0 | DI14: =IF(BQ14=0,0,IF(H15="MS 4.151/DF",TRUNC(BQ14*CA15,2)+TRUNC(BQ14*CA15,2)*CB14/100,BQ14+(TRUNC(BQ14*VLOOKUP(AV14,[2]VALIDAÇÃO!$C$5:$D$15,2,FALSE)/100,2)))) -> 0 | DJ14: 0 | DK14: 0 | DL14: - | DM14: 0 | DN14: 0 | DO14: 1 | DP14: 31370.14 | DQ14: 0 | DR14: 0 | DT14: 0 | DV14: Alimentar | DW14: 234360 | DX14: 1 | DY14: =IF(Z14="","",IF(Z14="alimentar",IF(DX14<60,0,IF(DU14>DW14,DW14,DU14)),0)) -> 0 | EB14: 0 | EC14: 0 | EF14: 2023-04-01 | EH14: 0 | EJ14: 2022-05-01 | EK14: 2023-04-01 | EM14: 0 | EN14: 0 | EO14: 0 | EP14: 0 | EQ14: 0 | ER14: 0 | ES14: 0 | ET14: 0 | EU14: 0 | EV14: 0 | FH14: 0 | FI14: 0 | FK14: 0 | LG14: 2022-05-01 | LH14: 2023-04-01 | LK14: 0 | LL14: 0 | LM14: 0 | LN14: 0 | LO14: 0 | LP14: 0 | MB14: 0 | MC14: 0 | MD14: 0 | ME14: 0 | MF14: 0 | MG14: 0 | MH14: 0 | MI14: 0 | MJ14: 0 | MK14: 0 | ML14: 0 | MM14: 0 | MN14: 0 | MO14: 0 | MP14: 0 | MQ14: 0 | MR14: 0 | MS14: 0 | MT14: 0 | MU14: 0 | MV14: 0 | MW14: 0 | MX14: 0 | MY14: 0 | MZ14: 0 | NA14: 0 | NB14: 0 | NC14: 0 | ND14: 0 | NE14: 0 | NF14: 0 | NG14: 0 | NH14: 0 | NI14: 0 | NJ14: 0 | NK14: 0 | NL14: 0 | NM14: 0
A15: 9 | B15: PRC | C15: 9857 | D15: 2022/0151077-9 | E15: 0151077-33.2022.3.00.0000 | F15: 2022-05-19 | G15: ATUALIZAÇÃO JUNTADA | H15: MS 12.215/DF | I15: Mandado de Segurança 12.215/DF | J15: 2006/0195293-3 | K15: 2006-09-11 | L15: 2012-10-24 | M15: Administrativo - Servidor Público Civil - Sistema Remuneratório e Benefícios - Gratificações de Atividade (PRINCIPAL) | N15: =IF(O15="-","-",VLOOKUP(O15,[2]VALIDAÇÃO!$N$4:$O$25,2,FALSE)) -> - | O15: - | P15: UNIÃO | Q15: Mandado de Segurança 12.215/DF | R15: 2016/0035823-5 | S15: 2021-04-19 | T15: Mota & Advogados Associados | U15: 03.996.810/0001-38 | V15: - | W15: - | X15: Honorários de sucumbência | Y15: Não | Z15: Alimentar | AA15: 0 | AB15: x x x | AC15: x x x | AD15: 0 | AE15: x x x | AF15: x x x | AG15: 0 | AH15: x x x | AI15: x x x | AJ15: 0 | AK15: x x x | AL15: x x x | AM15: x.x.x | AN15: Não | AO15: Não | AP15: Não | AQ15: - | AR15: - | AS15: Não informada | AT15: Não Informada | AU15: Não | AV15: 2022-05-01 | AW15: 0 | AX15: 0 | AY15: 43800.86 | AZ15: 0 | BA15: 43800.86 | BB15: 0 | BC15: 0 | BD15: 0 | BE15: 0 | BF15: 0 | BG15: 0 | BH15: 0 | BI15: 0 | BJ15: 0 | BK15: 0 | BL15: 0 | BM15: 0 | BN15: 43800.86 | BO15: 0 | BP15: 43800.86 | BQ15: 0 | BR15: 0 | BS15: 0 | BT15: - | BU15: 0 | BV15: 0 | BW15: 2022-05-01 | BY15: 2022-12-01 | CC15: 2023-04-01 | CD15: 0 | CE15: 43800.86 | CF15: 0 | CG15: 0 | CM15: 0 | DI15: =IF(BQ15=0,0,IF(H16="MS 4.151/DF",TRUNC(BQ15*CA16,2)+TRUNC(BQ15*CA16,2)*CB15/100,BQ15+(TRUNC(BQ15*VLOOKUP(AV15,[2]VALIDAÇÃO!$C$5:$D$15,2,FALSE)/100,2)))) -> 0 | DJ15: 0 | DK15: 0 | DL15: - | DM15: 0 | DN15: 0 | DO15: 1 | DP15: 43800.86 | DQ15: 0 | DR15: 0 | DT15: 0 | DV15: Alimentar | DW15: 234360 | DX15: 1 | DY15: 0 | EB15: 0 | EC15: 0 | EF15: 2023-04-01 | EH15: 0 | EJ15: 2022-05-01 | EK15: 2023-04-01 | EM15: 0 | EN15: 0 | EO15: 0 | EP15: 0 | EQ15: 0 | ER15: 0 | ES15: 0 | ET15: 0 | EU15: 0 | EV15: 0 | FH15: 0 | FI15: 0 | FK15: 0 | LG15: 2022-05-01 | LH15: 2023-04-01 | LK15: 0 | LL15: 0 | LM15: 0 | LN15: 0 | LO15: 0 | LP15: 0 | MB15: 0 | MC15: 0 | MD15: 0 | ME15: 0 | MF15: 0 | MG15: 0 | MH15: 0 | MI15: 0 | MJ15: 0 | MK15: 0 | ML15: 0 | MM15: 0 | MN15: 0 | MO15: 0 | MP15: 0 | MQ15: 0 | MR15: 0 | MS15: 0 | MT15: 0 | MU15: 0 | MV15: 0 | MW15: 0 | MX15: 0 | MY15: 0 | MZ15: 0 | NA15: 0 | NB15: 0 | NC15: 0 | ND15: 0 | NE15: 0 | NF15: 0 | NG15: 0 | NH15: 0 | NI15: 0 | NJ15: 0 | NK15: 0 | NL15: 0 | NM15: 0
A16: 10 | B16: PRC | C16: 9858 | D16: 2022/0151779-0 | E16: 0151779-76.2022.3.00.0000 | F16: 2022-05-20 | G16: ATUALIZAÇÃO JUNTADA | H16: MS 6.318/DF | I16: Mandado de Segurança 6.318/DF | J16: 1999/0035300-5 | K16: 1999-04-30 | L16: 2003-02-17 | M16: Administrativo - Servidor Público Civil - Reajustes de Remuneração, Proventos ou Pensão - Índice da URV Lei 8.880/1994 | N16: =IF(O16="-","-",VLOOKUP(O16,[2]VALIDAÇÃO!$N$4:$O$25,2,FALSE)) -> - | O16: - | P16: UNIÃO | Q16: Mandado de Segurança 6.318/DF | R16: 2010/0013217-3 | S16: 2020-11-23 | T16: Teixeira e Lopes Advogados Associados Sociedade Simples | U16: 02.993.181/0001-20 | V16: - | W16: - | X16: Honorários de sucumbência | Y16: Não | Z16: Alimentar | AA16: 0 | AB16: x x x | AC16: x x x | AD16: 0 | AE16: x x x | AF16: x x x | AG16: 0 | AH16: x x x | AI16: x x x | AJ16: 0 | AK16: x x x | AL16: x x x | AM16: x.x.x | AN16: Não | AO16: Não | AP16: Não | AQ16: - | AR16: - | AS16: Não informada | AT16: Não Informada | AU16: Não | AV16: 2022-05-01 | AW16: 0 | AX16: 0 | AY16: 7459.37 | AZ16: 0 | BA16: 7459.37 | BB16: 0 | BC16: 0 | BD16: 0 | BE16: 0 | BF16: 0 | BG16: 0 | BH16: 0 | BI16: 0 | BJ16: 0 | BK16: 0 | BL16: 0 | BM16: 0 | BN16: 7459.37 | BO16: 0 | BP16: 7459.37 | BQ16: 0 | BR16: 0 | BS16: 0 | BT16: - | BU16: 0 | BV16: 0 | BW16: 2022-05-01 | BY16: 2022-12-01 | CC16: 2023-04-01 | CD16: 0 | CE16: 7459.37 | CF16: 0 | CG16: 0 | CM16: 0 | DI16: =IF(BQ16=0,0,IF(H17="MS 4.151/DF",TRUNC(BQ16*CA17,2)+TRUNC(BQ16*CA17,2)*CB16/100,BQ16+(TRUNC(BQ16*VLOOKUP(AV16,[2]VALIDAÇÃO!$C$5:$D$15,2,FALSE)/100,2)))) -> 0 | DJ16: 0 | DK16: 0 | DL16: - | DM16: 0 | DN16: 0 | DO16: 1 | DP16: 7459.37 | DQ16: 0 | DR16: 0 | DT16: 0 | DV16: Alimentar | DW16: 234360 | DX16: 1 | DY16: 0 | EB16: 0 | EC16: 0 | EF16: 2023-04-01 | EH16: 0 | EJ16: 2022-05-01 | EK16: 2023-04-01 | EM16: 0 | EN16: 0 | EO16: 0 | EP16: 0 | EQ16: 0 | ER16: 0 | ES16: 0 | ET16: 0 | EU16: 0 | EV16: 0 | FH16: 0 | FI16: 0 | FK16: 0 | LG16: 2022-05-01 | LH16: 2023-04-01 | LK16: 0 | LL16: 0 | LM16: 0 | LN16: 0 | LO16: 0 | LP16: 0 | MB16: 0 | MC16: 0 | MD16: 0 | ME16: 0 | MF16: 0 | MG16: 0 | MH16: 0 | MI16: 0 | MJ16: 0 | MK16: 0 | ML16: 0 | MM16: 0 | MN16: 0 | MO16: 0 | MP16: 0 | MQ16: 0 | MR16: 0 | MS16: 0 | MT16: 0 | MU16: 0 | MV16: 0 | MW16: 0 | MX16: 0 | MY16: 0 | MZ16: 0 | NA16: 0 | NB16: 0 | NC16: 0 | ND16: 0 | NE16: 0 | NF16: 0 | NG16: 0 | NH16: 0 | NI16: 0 | NJ16: 0 | NK16: 0 | NL16: 0 | NM16: 0
A17: 11 | B17: PRC | C17: 9859 | D17: 2022/0151780-4 | E17: 0151780-61.2022.3.00.0000 | F17: 2022-05-20 | G17: ATUALIZAÇÃO JUNTADA | H17: MS 6.318/DF | I17: Mandado de Segurança 6.318/DF | J17: 1999/0035300-5 | K17: 1999-04-30 | L17: 2003-02-17 | M17: Administrativo - Servidor Público Civil - Reajustes de Remuneração, Proventos ou Pensão - Índice da URV Lei 8.880/1994 | N17: =IF(O17="-","-",VLOOKUP(O17,[2]VALIDAÇÃO!$N$4:$O$25,2,FALSE)) -> - | O17: - | P17: UNIÃO | Q17: Mandado de Segurança 6.318/DF | R17: 2010/0013217-3 | S17: 2020-11-23 | T17: Mendes Plutarco Advocacia e Consultoria | U17: 17.171.343/0001-11 | V17: - | W17: - | X17: Honorários de sucumbência | Y17: Não | Z17: Alimentar | AA17: 0 | AB17: x x x | AC17: x x x | AD17: 0 | AE17: x x x | AF17: x x x | AG17: 0 | AH17: x x x | AI17: x x x | AJ17: 0 | AK17: x x x | AL17: x x x | AM17: x.x.x | AN17: Não | AO17: Não | AP17: Não | AQ17: - | AR17: - | AS17: Não informada | AT17: Não Informada | AU17: Não | AV17: 2022-05-01 | AW17: 0 | AX17: 0 | AY17: 7459.37 | AZ17: 0 | BA17: 7459.37 | BB17: 0 | BC17: 0 | BD17: 0 | BE17: 0 | BF17: 0 | BG17: 0 | BH17: 0 | BI17: 0 | BJ17: 0 | BK17: 0 | BL17: 0 | BM17: 0 | BN17: 7459.37 | BO17: 0 | BP17: 7459.37 | BQ17: 0 | BR17: 0 | BS17: 0 | BT17: - | BU17: 0 | BV17: 0 | BW17: 2022-05-01 | BY17: 2022-12-01 | CC17: 2023-04-01 | CD17: 0 | CE17: 7459.37 | CF17: 0 | CG17: 0 | CM17: 0 | DI17: =IF(BQ17=0,0,IF(H18="MS 4.151/DF",TRUNC(BQ17*CA18,2)+TRUNC(BQ17*CA18,2)*CB17/100,BQ17+(TRUNC(BQ17*VLOOKUP(AV17,[2]VALIDAÇÃO!$C$5:$D$15,2,FALSE)/100,2)))) -> 0 | DJ17: 0 | DK17: 0 | DL17: - | DM17: 0 | DN17: 0 | DO17: 1 | DP17: 7459.37 | DQ17: 0 | DR17: 0 | DT17: 0 | DV17: Alimentar | DW17: 234360 | DX17: 1 | DY17: 0 | EB17: 0 | EC17: 0 | EF17: 2023-04-01 | EH17: 0 | EJ17: 2022-05-01 | EK17: 2023-04-01 | EM17: 0 | EN17: 0 | EO17: 0 | EP17: 0 | EQ17: 0 | ER17: 0 | ES17: 0 | ET17: 0 | EU17: 0 | EV17: 0 | FH17: 0 | FI17: 0 | FK17: 0 | LG17: 2022-05-01 | LH17: 2023-04-01 | LK17: 0 | LL17: 0 | LM17: 0 | LN17: 0 | LO17: 0 | LP17: 0 | MB17: 0 | MC17: 0 | MD17: 0 | ME17: 0 | MF17: 0 | MG17: 0 | MH17: 0 | MI17: 0 | MJ17: 0 | MK17: 0 | ML17: 0 | MM17: 0 | MN17: 0 | MO17: 0 | MP17: 0 | MQ17: 0 | MR17: 0 | MS17: 0 | MT17: 0 | MU17: 0 | MV17: 0 | MW17: 0 | MX17: 0 | MY17: 0 | MZ17: 0 | NA17: 0 | NB17: 0 | NC17: 0 | ND17: 0 | NE17: 0 | NF17: 0 | NG17: 0 | NH17: 0 | NI17: 0 | NJ17: 0 | NK17: 0 | NL17: 0 | NM17: 0
A18: 12 | B18: PRC | C18: 9860 | D18: 2022/0151927-8 | E18: 0151927-87.2022.3.00.0000 | F18: 2022-05-20 | G18: ATUALIZAÇÃO JUNTADA | H18: MS 6.318/DF | I18: Mandado de Segurança 6.318/DF | J18: 1999/0035300-5 | K18: 1999-04-30 | L18: 2003-02-17 | M18: Administrativo - Servidor Público Civil - Reajustes de Remuneração, Proventos ou Pensão - Índice da URV Lei 8.880/1994 | N18: =IF(O18="-","-",VLOOKUP(O18,[2]VALIDAÇÃO!$N$4:$O$25,2,FALSE)) -> - | O18: - | P18: UNIÃO | Q18: Mandado de Segurança 6.318/DF | R18: 2010/0014805-5 | S18: 2020-11-23 | T18: Teixeira e Lopes Advogados Associados Sociedade Simples | U18: 02.993.181/0001-20 | V18: - | W18: - | X18: Honorários de sucumbência | Y18: Não | Z18: Alimentar | AA18: 0 | AB18: x x x | AC18: x x x | AD18: 0 | AE18: x x x | AF18: x x x | AG18: 0 | AH18: x x x | AI18: x x x | AJ18: 0 | AK18: x x x | AL18: x x x | AM18: x.x.x | AN18: Não | AO18: Não | AP18: Não | AQ18: - | AR18: - | AS18: Não informada | AT18: Não Informada | AU18: Não | AV18: 2022-05-01 | AW18: 0 | AX18: 0 | AY18: 24550.929 | AZ18: 0 | BA18: 24550.929 | BB18: 0 | BC18: 0 | BD18: 0 | BE18: 0 | BF18: 0 | BG18: 0 | BH18: 0 | BI18: 0 | BJ18: 0 | BK18: 0 | BL18: 0 | BM18: 0 | BN18: 24550.929 | BO18: 0 | BP18: 24550.929 | BQ18: 0 | BR18: 0 | BS18: 0 | BT18: - | BU18: 0 | BV18: 0 | BW18: 2022-05-01 | BY18: 2022-12-01 | CC18: 2023-04-01 | CD18: 0 | CE18: 24550.929 | CF18: 0 | CG18: 0 | CM18: 0 | DI18: =IF(BQ18=0,0,IF(H19="MS 4.151/DF",TRUNC(BQ18*CA19,2)+TRUNC(BQ18*CA19,2)*CB18/100,BQ18+(TRUNC(BQ18*VLOOKUP(AV18,[2]VALIDAÇÃO!$C$5:$D$15,2,FALSE)/100,2)))) -> 0 | DJ18: 0 | DK18: 0 | DL18: - | DM18: 0 | DN18: 0 | DO18: 1 | DP18: 24550.929 | DQ18: 0 | DR18: 0 | DT18: 0 | DV18: Alimentar | DW18: 234360 | DX18: 1 | DY18: 0 | EB18: 0 | EC18: 0 | EF18: 2023-04-01 | EH18: 0 | EJ18: 2022-05-01 | EK18: 2023-04-01 | EM18: 0 | EN18: 0 | EO18: =IF($EJ18="","",IF(EO$2>=$EK18,0,IF(EO$2>=$EJ18,EO$3,0))) -> 0 | EP18: 0 | EQ18: 0 | ER18: 0 | ES18: 0 | ET18: 0 | EU18: 0 | EV18: 0 | FE18: =IF($EJ18="","",IF(FE$2>=$EK18,0,IF(FE$2>=$EJ18,FE$3,0))) ->  | FH18: 0 | FI18: 0 | FK18: 0 | LG18: 2022-05-01 | LH18: 2023-04-01 | LK18: 0 | LL18: 0 | LM18: 0 | LN18: 0 | LO18: 0 | LP18: 0 | MB18: 0 | MC18: 0 | MD18: 0 | ME18: 0 | MF18: 0 | MG18: 0 | MH18: 0 | MI18: 0 | MJ18: 0 | MK18: 0 | ML18: 0 | MM18: 0 | MN18: 0 | MO18: 0 | MP18: 0 | MQ18: 0 | MR18: 0 | MS18: 0 | MT18: 0 | MU18: 0 | MV18: 0 | MW18: 0 | MX18: 0 | MY18: 0 | MZ18: 0 | NA18: 0 | NB18: 0 | NC18: 0 | ND18: 0 | NE18: 0 | NF18: 0 | NG18: 0 | NH18: 0 | NI18: 0 | NJ18: 0 | NK18: 0 | NL18: 0 | NM18: 0
A19: =IF(C19="","",A18+1) -> 13 | B19: PRC | C19: 9861 | D19: 2022/0151930-6 | E19: 0151930-42.2022.3.00.0000 | F19: 2022-05-20 | G19: ATUALIZAÇÃO JUNTADA | H19: MS 12.215/DF | I19: Mandado de Segurança 12.215/DF | J19: 2006/0195293-3 | K19: 2006-09-11 | L19: 2012-10-24 | M19: Administrativo - Servidor Público Civil - Sistema Remuneratório e Benefícios - Gratificações de Atividade (PRINCIPAL) | N19: =IF(O19="-","-",VLOOKUP(O19,[2]VALIDAÇÃO!$N$4:$O$25,2,FALSE)) -> - | O19: - | P19: UNIÃO | Q19: Mandado de Segurança 12.215/DF | R19: 2016/0035457-2 | S19: 2021-04-19 | T19: Mota & Advogados Associados | U19: 03.996.810/0001-38 | V19: - | W19: - | X19: Honorários de sucumbência | Y19: Não | Z19: Alimentar | AA19: 0 | AB19: x x x | AC19: x x x | AD19: 0 | AE19: x x x | AF19: x x x | AG19: 0 | AH19: x x x | AI19: x x x | AJ19: 0 | AK19: x x x | AL19: x x x | AM19: x.x.x | AN19: Não | AO19: Não | AP19: Não | AQ19: - | AR19: - | AS19: Não informada | AT19: Não Informada | AU19: Não | AV19: 2022-05-01 | AW19: 0 | AX19: 0 | AY19: 6923.14 | AZ19: 0 | BA19: 6923.14 | BB19: 0 | BC19: 0 | BD19: 0 | BE19: 0 | BF19: 0 | BG19: 0 | BH19: 0 | BI19: 0 | BJ19: 0 | BK19: 0 | BL19: 0 | BM19: 0 | BN19: 6923.14 | BO19: 0 | BP19: 6923.14 | BQ19: 0 | BR19: 0 | BS19: 0 | BT19: - | BU19: 0 | BV19: 0 | BW19: 2022-05-01 | BY19: 2022-12-01 | CC19: 2023-04-01 | CD19: 0 | CE19: 6923.14 | CF19: 0 | CG19: 0 | CM19: 0 | DI19: =IF(BQ19=0,0,IF(H20="MS 4.151/DF",TRUNC(BQ19*CA20,2)+TRUNC(BQ19*CA20,2)*CB19/100,BQ19+(TRUNC(BQ19*VLOOKUP(AV19,[2]VALIDAÇÃO!$C$5:$D$15,2,FALSE)/100,2)))) -> 0 | DJ19: 0 | DK19: 0 | DL19: - | DM19: 0 | DN19: 0 | DO19: 1 | DP19: 6923.14 | DQ19: 0 | DR19: 0 | DT19: 0 | DV19: Alimentar | DW19: 234360 | DX19: 1 | DY19: 0 | EB19: 0 | EC19: 0 | EF19: 2023-04-01 | EH19: 0 | EJ19: 2022-05-01 | EK19: 2023-04-01 | EM19: =IF($EJ19="","",IF(EM$2>=$EK19,0,IF(EM$2>=$EJ19,EM$3,0))) -> 0 | EN19: 0 | EO19: 0 | EP19: 0 | EQ19: 0 | ER19: 0 | ES19: 0 | ET19: 0 | EU19: 0 | EV19: 0 | FH19: 0 | FI19: 0 | FK19: 0 | LG19: 2022-05-01 | LH19: 2023-04-01 | LK19: 0 | LL19: 0 | LM19: 0 | LN19: 0 | LO19: 0 | LP19: 0 | MB19: 0 | MC19: 0 | MD19: 0 | ME19: 0 | MF19: 0 | MG19: 0 | MH19: 0 | MI19: 0 | MJ19: 0 | MK19: 0 | ML19: 0 | MM19: 0 | MN19: 0 | MO19: 0 | MP19: 0 | MQ19: 0 | MR19: 0 | MS19: 0 | MT19: 0 | MU19: 0 | MV19: 0 | MW19: 0 | MX19: 0 | MY19: 0 | MZ19: 0 | NA19: 0 | NB19: 0 | NC19: 0 | ND19: 0 | NE19: 0 | NF19: 0 | NG19: 0 | NH19: 0 | NI19: 0 | NJ19: 0 | NK19: 0 | NL19: 0 | NM19: 0
A20: 14 | B20: PRC | C20: 9862 | D20: 2022/0151938-0 | E20: 0151938-19.2022.3.00.0000 | F20: 2022-05-20 | G20: ATUALIZAÇÃO JUNTADA | H20: MS 6.318/DF | I20: Mandado de Segurança 6.318/DF | J20: 1999/0035300-5 | K20: 1999-04-30 | L20: 2003-02-17 | M20: Administrativo - Servidor Público Civil - Reajustes de Remuneração, Proventos ou Pensão - Índice da URV Lei 8.880/1994 | N20: =IF(O20="-","-",VLOOKUP(O20,[2]VALIDAÇÃO!$N$4:$O$25,2,FALSE)) -> - | O20: - | P20: UNIÃO | Q20: Mandado de Segurança 6.318/DF | R20: 2010/0014805-5 | S20: 2020-11-23 | T20: Mendes Plutarco Advocacia e Consultoria | U20: 17.171.343/0001-11 | V20: - | W20: - | X20: Honorários de sucumbência | Y20: Não | Z20: Alimentar | AA20: 0 | AB20: x x x | AC20: x x x | AD20: 0 | AE20: x x x | AF20: x x x | AG20: 0 | AH20: x x x | AI20: x x x | AJ20: 0 | AK20: x x x | AL20: x x x | AM20: x.x.x | AN20: Não | AO20: Não | AP20: Não | AQ20: - | AR20: - | AS20: Não informada | AT20: Não Informada | AU20: Não | AV20: 2022-05-01 | AW20: 0 | AX20: 0 | AY20: 24550.929 | AZ20: 0 | BA20: 24550.929 | BB20: 0 | BC20: 0 | BD20: 0 | BE20: 0 | BF20: 0 | BG20: 0 | BH20: 0 | BI20: 0 | BJ20: 0 | BK20: 0 | BL20: 0 | BM20: 0 | BN20: 24550.929 | BO20: 0 | BP20: 24550.929 | BQ20: 0 | BR20: 0 | BS20: 0 | BT20: - | BU20: 0 | BV20: 0 | BW20: 2022-05-01 | BY20: 2022-12-01 | CC20: 2023-04-01 | CD20: 0 | CE20: 24550.929 | CF20: 0 | CG20: 0 | CM20: 0 | DI20: =IF(BQ20=0,0,IF(H21="MS 4.151/DF",TRUNC(BQ20*CA21,2)+TRUNC(BQ20*CA21,2)*CB20/100,BQ20+(TRUNC(BQ20*VLOOKUP(AV20,[2]VALIDAÇÃO!$C$5:$D$15,2,FALSE)/100,2)))) -> 0 | DJ20: 0 | DK20: 0 | DL20: - | DM20: 0 | DN20: 0 | DO20: 1 | DP20: 24550.929 | DQ20: 0 | DR20: 0 | DT20: 0 | DV20: Alimentar | DW20: 234360 | DX20: 1 | DY20: 0 | EB20: 0 | EC20: 0 | EF20: 2023-04-01 | EH20: 0 | EJ20: 2022-05-01 | EK20: 2023-04-01 | EM20: 0 | EN20: 0 | EO20: 0 | EP20: 0 | EQ20: 0 | ER20: 0 | ES20: 0 | ET20: 0 | EU20: 0 | EV20: 0 | FH20: 0 | FI20: 0 | FK20: 0 | LG20: 2022-05-01 | LH20: 2023-04-01 | LK20: 0 | LL20: 0 | LM20: 0 | LN20: 0 | LO20: 0 | LP20: 0 | MB20: 0 | MC20: 0 | MD20: 0 | ME20: 0 | MF20: 0 | MG20: 0 | MH20: 0 | MI20: 0 | MJ20: 0 | MK20: 0 | ML20: 0 | MM20: 0 | MN20: 0 | MO20: 0 | MP20: 0 | MQ20: 0 | MR20: 0 | MS20: 0 | MT20: 0 | MU20: 0 | MV20: 0 | MW20: 0 | MX20: 0 | MY20: 0 | MZ20: 0 | NA20: 0 | NB20: 0 | NC20: 0 | ND20: 0 | NE20: 0 | NF20: 0 | NG20: 0 | NH20: 0 | NI20: 0 | NJ20: 0 | NK20: 0 | NL20: 0 | NM20: 0
A21: 15 | B21: PRC | C21: 9863 | D21: 2022/0151996-2 | E21: 0151996-22.2022.3.00.0000 | F21: 2022-05-20 | G21: ATUALIZAÇÃO JUNTADA | H21: MS 12.215/DF | I21: Mandado de Segurança 12.215/DF | J21: 2006/0195293-3 | K21: 2006-09-11 | L21: 2012-10-24 | M21: Administrativo - Servidor Público Civil - Sistema Remuneratório e Benefícios - Gratificações de Atividade (PRINCIPAL) | N21: =IF(O21="-","-",VLOOKUP(O21,[2]VALIDAÇÃO!$N$4:$O$25,2,FALSE)) -> - | O21: - | P21: UNIÃO | Q21: Mandado de Segurança 12.215/DF | R21: 2016/0035601-3 | S21: 2021-04-19 | T21: Mota & Advogados Associados | U21: 03.996.810/0001-38 | V21: - | W21: - | X21: Honorários de sucumbência | Y21: Não | Z21: Alimentar | AA21: 0 | AB21: x x x | AC21: x x x | AD21: 0 | AE21: x x x | AF21: x x x | AG21: 0 | AH21: x x x | AI21: x x x | AJ21: 0 | AK21: x x x | AL21: x x x | AM21: x.x.x | AN21: Não | AO21: Não | AP21: Não | AQ21: - | AR21: - | AS21: Não informada | AT21: Não Informada | AU21: Não | AV21: 2022-05-01 | AW21: 0 | AX21: 0 | AY21: 40047.36 | AZ21: 0 | BA21: 40047.36 | BB21: 0 | BC21: 0 | BD21: 0 | BE21: 0 | BF21: 0 | BG21: 0 | BH21: 0 | BI21: 0 | BJ21: 0 | BK21: 0 | BL21: 0 | BM21: 0 | BN21: 40047.36 | BO21: 0 | BP21: 40047.36 | BQ21: 0 | BR21: 0 | BS21: 0 | BT21: - | BU21: 0 | BV21: 0 | BW21: 2022-05-01 | BY21: 2022-12-01 | CC21: 2023-04-01 | CD21: 0 | CE21: 40047.36 | CF21: 0 | CG21: 0 | CM21: 0 | DI21: =IF(BQ21=0,0,IF(H22="MS 4.151/DF",TRUNC(BQ21*CA22,2)+TRUNC(BQ21*CA22,2)*CB21/100,BQ21+(TRUNC(BQ21*VLOOKUP(AV21,[2]VALIDAÇÃO!$C$5:$D$15,2,FALSE)/100,2)))) -> 0 | DJ21: 0 | DK21: 0 | DL21: - | DM21: 0 | DN21: 0 | DO21: 1 | DP21: 40047.36 | DQ21: 0 | DR21: 0 | DT21: 0 | DV21: Alimentar | DW21: 234360 | DX21: 1 | DY21: 0 | EB21: 0 | EC21: 0 | EF21: 2023-04-01 | EH21: 0 | EJ21: 2022-05-01 | EK21: 2023-04-01 | EM21: 0 | EN21: 0 | EO21: 0 | EP21: 0 | EQ21: 0 | ER21: 0 | ES21: 0 | ET21: 0 | EU21: 0 | EV21: 0 | FH21: 0 | FI21: 0 | FK21: 0 | LG21: 2022-05-01 | LH21: 2023-04-01 | LK21: 0 | LL21: 0 | LM21: 0 | LN21: 0 | LO21: 0 | LP21: 0 | MB21: 0 | MC21: 0 | MD21: 0 | ME21: 0 | MF21: 0 | MG21: 0 | MH21: 0 | MI21: 0 | MJ21: 0 | MK21: 0 | ML21: 0 | MM21: 0 | MN21: 0 | MO21: 0 | MP21: 0 | MQ21: 0 | MR21: 0 | MS21: 0 | MT21: 0 | MU21: 0 | MV21: 0 | MW21: 0 | MX21: 0 | MY21: 0 | MZ21: 0 | NA21: 0 | NB21: 0 | NC21: 0 | ND21: 0 | NE21: 0 | NF21: 0 | NG21: 0 | NH21: 0 | NI21: 0 | NJ21: 0 | NK21: 0 | NL21: 0 | NM21: 0
A22: 16 | B22: PRC | C22: 9864 | D22: 2022/0155268-5 | E22: 0155268-24.2022.3.00.0000 | F22: 2022-05-23 | G22: ATUALIZAÇÃO JUNTADA | H22: MS 4.151/DF | I22: Mandado de Segurança 4.151/DF | J22: 1995/0038195-8 | K22: 1995-07-21 | L22: 1999-02-12 | M22: Administrativo - Servidor Público Civil - Reajustes de Remuneração, Proventos ou Pensão | N22: =IF(O22="-","-",VLOOKUP(O22,[2]VALIDAÇÃO!$N$4:$O$25,2,FALSE)) -> Ministério da Fazenda - Administração Direta | O22: 25101 | P22: UNIÃO | Q22: Mandado de Segurança 4.151/DF | R22: 2016/0128302-1 | S22: 2022-04-22 | T22: Ana Tereza Cabral Martini | U22: 030.614.428-04 | V22: 1938-12-19 | W22: Servidor Público Civil Inativo | X22: Diferença de remuneração - 3,17% | Y22: Sim | Z22: Alimentar | AA22: 6 | AB22: Mota & Advogados Associados | AC22: 03.996.810/0001-38 | AD22: 1 | AE22: Mauro Menezes e Advogados | AF22: 32.901.423/0001-79 | AG22: 1 | AH22: Caputo, Bastos e Serra Advogados | AI22: 12.291.813/0001-67 | AJ22: 0 | AK22: x x x | AL22: x x x | AM22: Dedução de Honorários Contratuais | AN22: Não | AO22: Não | AP22: Não | AQ22: - | AR22: - | AS22: Não informada | AT22: Não Informada | AU22: Não | AV22: 2022-05-01 | AW22: 0 | AX22: 0 | AY22: 31327.91 | AZ22: 54564.74 | BA22: 85892.65 | BB22: 1879.67 | BC22: 3273.88 | BD22: 5153.55 | BE22: 313.27 | BF22: 545.65 | BG22: 858.92 | BH22: 313.27 | BI22: 545.65 | BJ22: 858.92 | BK22: 0 | BL22: 0 | BM22: 0 | BN22: 28821.7 | BO22: 50199.56 | BP22: 79021.26 | BQ22: 0 | BR22: 0 | BS22: 0 | BT22: 53 | BU22: 24456.52 | BV22: 0 | BW22: 2022-05-01 | BY22: 2023-04-01 | CB22: 0 | CC22: 2023-04-01 | DI22: =IF(BQ22=0,0,IF(H23="MS 4.151/DF",TRUNC(BQ22*CA23,2)+TRUNC(BQ22*CA23,2)*CB22/100,BQ22+(TRUNC(BQ22*VLOOKUP(AV22,[2]VALIDAÇÃO!$C$5:$D$15,2,FALSE)/100,2)))) -> 0 | DJ22: 0 | DK22: 0 | DL22: 53 | DN22: 0 | DO22: 1 | DP22: 85892.65 | DQ22: 0 | DR22: 0 | DT22: 0 | DV22: Alimentar | DW22: 234360 | DX22: 86 | EB22: 0 | EC22: 0 | EF22: 2023-04-01 | EH22: 0 | EJ22: 2022-05-01 | EK22: 2023-04-01 | EM22: 0 | EN22: 0 | EO22: 0 | EP22: 0 | EQ22: 0 | ER22: 0 | ES22: 0 | ET22: 0 | EU22: 0 | EV22: 0 | FH22: 0 | FI22: 0 | FK22: 0 | LG22: 2022-05-01 | LH22: 2023-04-01 | LK22: 0 | LL22: 0 | LM22: 0 | LN22: 0 | LO22: 0 | LP22: 0 | LZ22: =IF(LZ$4=$LG22,0,IF(AND(LZ$4>=$LG22,LZ$4<=$LH22),LZ$5,0)) ->  | MB22: 0 | MC22: 0 | MD22: 0 | ME22: 0 | MF22: 0 | MG22: 0 | MH22: 0 | MI22: 0 | MJ22: 0 | MK22: 0 | ML22: 0 | MM22: 0 | MN22: 0 | MO22: 0 | MP22: 0 | MQ22: 0 | MR22: 0 | MS22: 0 | MT22: 0 | MU22: 0 | MV22: 0 | MW22: 0 | MX22: 0 | MY22: 0 | MZ22: 0 | NA22: 0 | NB22: 0 | NC22: 0 | ND22: 0 | NE22: 0 | NF22: =IF(NF$4=$LG22,0,IF(AND(NF$4>=$LG22,NF$4<=$LH22),NF$5,0)) -> 0 | NG22: 0 | NH22: 0 | NI22: 0 | NJ22: 0 | NK22: 0 | NL22: 0 | NM22: 0
A23: 17 | B23: PRC | C23: 9866 | D23: 2022/0156481-8 | E23: 0156481-65.2022.3.00.0000 | F23: 2022-05-24 | G23: ATUALIZAÇÃO JUNTADA | H23: MS 12.215/DF | I23: Mandado de Segurança 12.215/DF | J23: 2006/0195293-3 | K23: 2006-09-11 | L23: 2012-10-24 | M23: Administrativo - Servidor Público Civil - Sistema Remuneratório e Benefícios - Gratificações de Atividade (PRINCIPAL) | N23: =IF(O23="-","-",VLOOKUP(O23,[2]VALIDAÇÃO!$N$4:$O$25,2,FALSE)) -> - | O23: - | P23: UNIÃO | Q23: Mandado de Segurança 12.215/DF | R23: 2016/0035760-5 | S23: 2021-04-19 | T23: Mota & Advogados Associados | U23: 03.996.810/0001-38 | V23: - | W23: - | X23: Honorários de sucumbência | Y23: Não | Z23: Alimentar | AA23: 0 | AB23: x x x | AC23: x x x | AD23: 0 | AE23: x x x | AF23: x x x | AG23: 0 | AH23: x x x | AI23: x x x | AJ23: 0 | AK23: x x x | AL23: x x x | AM23: x.x.x | AN23: Não | AO23: Não | AP23: Não | AQ23: - | AR23: - | AS23: Não informada | AT23: Não Informada | AU23: Não | AV23: 2022-05-01 | AW23: 0 | AX23: 0 | AY23: 40878.62 | AZ23: 0 | BA23: 40878.62 | BB23: 0 | BC23: 0 | BD23: 0 | BE23: 0 | BF23: 0 | BG23: 0 | BH23: 0 | BI23: 0 | BJ23: 0 | BK23: 0 | BL23: 0 | BM23: 0 | BN23: 40878.62 | BO23: 0 | BP23: 40878.62 | BQ23: 0 | BR23: 0 | BS23: 0 | BT23: - | BU23: 0 | BV23: 0 | BW23: 2022-05-01 | BY23: 2022-12-01 | CC23: 2023-04-01 | CD23: 0 | CE23: 40878.62 | CF23: 0 | CG23: 0 | CM23: 0 | DG23: =IF(CM23="","",CM23-CQ23-CU23-CY23-DC23) ->  | DI23: =IF(BQ23=0,0,IF(H24="MS 4.151/DF",TRUNC(BQ23*CA24,2)+TRUNC(BQ23*CA24,2)*CB23/100,BQ23+(TRUNC(BQ23*VLOOKUP(AV23,[2]VALIDAÇÃO!$C$5:$D$15,2,FALSE)/100,2)))) -> 0 | DJ23: 0 | DK23: 0 | DL23: - | DM23: 0 | DN23: 0 | DO23: 1 | DP23: 40878.62 | DQ23: 0 | DR23: 0 | DT23: 0 | DV23: Alimentar | DW23: 234360 | DX23: 1 | DY23: 0 | EB23: 0 | EC23: 0 | EF23: 2023-04-01 | EH23: 0 | EJ23: 2022-05-01 | EK23: 2023-04-01 | EL23: =(SUM(EM23:FI23)-1)/100 ->  | EM23: 0 | EN23: 0 | EO23: 0 | EP23: 0 | EQ23: 0 | ER23: 0 | ES23: 0 | ET23: 0 | EU23: 0 | EV23: 0 | FH23: 0 | FI23: 0 | FK23: 0 | LG23: 2022-05-01 | LH23: 2023-04-01 | LI23: =IF(OR(LG23="",LH23=""),"",SUM(LK23:NM23)) ->  | LK23: =IF(LK$4=$LG23,0,IF(AND(LK$4>=$LG23,LK$4<=$LH23),LK$5,0)) -> 0 | LL23: 0 | LM23: 0 | LN23: 0 | LO23: 0 | LP23: 0 | MB23: 0 | MC23: 0 | MD23: 0 | ME23: 0 | MF23: 0 | MG23: 0 | MH23: 0 | MI23: 0 | MJ23: 0 | MK23: =IF(MK$4=$LG23,0,IF(AND(MK$4>=$LG23,MK$4<=$LH23),MK$5,0)) -> 0 | ML23: 0 | MM23: 0 | MN23: 0 | MO23: 0 | MP23: 0 | MQ23: 0 | MR23: 0 | MS23: 0 | MT23: 0 | MU23: 0 | MV23: 0 | MW23: 0 | MX23: 0 | MY23: 0 | MZ23: 0 | NA23: =IF(NA$4=$LG23,0,IF(AND(NA$4>=$LG23,NA$4<=$LH23),NA$5,0)) -> 0 | NB23: 0 | NC23: 0 | ND23: 0 | NE23: 0 | NF23: 0 | NG23: 0 | NH23: 0 | NI23: 0 | NJ23: 0 | NK23: 0 | NL23: 0 | NM23: 0
A24: 18 | B24: PRC | C24: 9867 | D24: 2022/0156618-0 | E24: 0156618-47.2022.3.00.0000 | F24: 2022-05-24 | G24: ATUALIZAÇÃO JUNTADA | H24: MS 12.215/DF | I24: Mandado de Segurança 12.215/DF | J24: 2006/0195293-3 | K24: 2006-09-11 | L24: 2012-10-24 | M24: Administrativo - Servidor Público Civil - Sistema Remuneratório e Benefícios - Gratificações de Atividade (PRINCIPAL) | N24: =IF(O24="-","-",VLOOKUP(O24,[2]VALIDAÇÃO!$N$4:$O$25,2,FALSE)) -> - | O24: - | P24: UNIÃO | Q24: Mandado de Segurança 12.215/DF | R24: 2016/0035831-2 | S24: 2021-04-19 | T24: Mota & Advogados Associados | U24: 03.996.810/0001-38 | V24: - | W24: - | X24: Honorários de sucumbência | Y24: Não | Z24: Alimentar | AA24: 0 | AB24: x x x | AC24: x x x | AD24: 0 | AE24: x x x | AF24: x x x | AG24: 0 | AH24: x x x | AI24: x x x | AJ24: 0 | AK24: x x x | AL24: x x x | AM24: x.x.x | AN24: Não | AO24: Não | AP24: Não | AQ24: - | AR24: - | AS24: Não informada | AT24: Não Informada | AU24: Não | AV24: 2022-05-01 | AW24: 0 | AX24: 0 | AY24: 39890.51 | AZ24: 0 | BA24: 39890.51 | BB24: 0 | BC24: 0 | BD24: 0 | BE24: 0 | BF24: 0 | BG24: 0 | BH24: 0 | BI24: 0 | BJ24: 0 | BK24: 0 | BL24: 0 | BM24: 0 | BN24: 39890.51 | BO24: 0 | BP24: 39890.51 | BQ24: 0 | BR24: 0 | BS24: 0 | BT24: - | BU24: 0 | BV24: 0 | BW24: 2022-05-01 | BY24: 2022-12-01 | CC24: 2023-04-01 | CD24: 0 | CE24: 39890.51 | CF24: 0 | CG24: 0 | CM24: 0 | DI24: =IF(BQ24=0,0,IF(H25="MS 4.151/DF",TRUNC(BQ24*CA25,2)+TRUNC(BQ24*CA25,2)*CB24/100,BQ24+(TRUNC(BQ24*VLOOKUP(AV24,[2]VALIDAÇÃO!$C$5:$D$15,2,FALSE)/100,2)))) -> 0 | DJ24: 0 | DK24: 0 | DL24: - | DM24: 0 | DN24: 0 | DO24: 1 | DP24: 39890.51 | DQ24: 0 | DR24: 0 | DT24: 0 | DV24: Alimentar | DW24: 234360 | DX24: 1 | DY24: 0 | EB24: 0 | EC24: 0 | EF24: 2023-04-01 | EH24: 0 | EJ24: 2022-05-01 | EK24: 2023-04-01 | EM24: 0 | EN24: 0 | EO24: 0 | EP24: 0 | EQ24: 0 | ER24: 0 | ES24: 0 | ET24: 0 | EU24: 0 | EV24: 0 | FH24: 0 | FI24: 0 | FK24: 0 | LG24: 2022-05-01 | LH24: 2023-04-01 | LK24: 0 | LL24: 0 | LM24: 0 | LN24: 0 | LO24: 0 | LP24: 0 | MB24: 0 | MC24: 0 | MD24: 0 | ME24: 0 | MF24: 0 | MG24: 0 | MH24: 0 | MI24: 0 | MJ24: 0 | MK24: 0 | ML24: 0 | MM24: 0 | MN24: 0 | MO24: 0 | MP24: 0 | MQ24: 0 | MR24: 0 | MS24: 0 | MT24: 0 | MU24: 0 | MV24: 0 | MW24: 0 | MX24: 0 | MY24: 0 | MZ24: 0 | NA24: 0 | NB24: 0 | NC24: 0 | ND24: 0 | NE24: 0 | NF24: 0 | NG24: 0 | NH24: 0 | NI24: 0 | NJ24: 0 | NK24: 0 | NL24: 0 | NM24: 0
A25: 19 | B25: PRC | C25: 9868 | D25: 2022/0160014-7 | E25: 0160014-32.2022.3.00.0000 | F25: 2022-05-26 | G25: ATUALIZAÇÃO JUNTADA | H25: MS 12.215/DF | I25: Mandado de Segurança 12.215/DF | J25: 2006/0195293-3 | K25: 2006-09-11 | L25: 2012-10-24 | M25: Administrativo - Servidor Público Civil - Sistema Remuneratório e Benefícios - Gratificações de Atividade (PRINCIPAL) | N25: =IF(O25="-","-",VLOOKUP(O25,[2]VALIDAÇÃO!$N$4:$O$25,2,FALSE)) -> - | O25: - | P25: UNIÃO | Q25: Mandado de Segurança 12.215/DF | R25: 2016/0035747-6 | S25: 2021-04-19 | T25: Mota & Advogados Associados | U25: 03.996.810/0001-38 | V25: - | W25: - | X25: Honorários de sucumbência | Y25: Não | Z25: Alimentar | AA25: 0 | AB25: x x x | AC25: x x x | AD25: 0 | AE25: x x x | AF25: x x x | AG25: 0 | AH25: x x x | AI25: x x x | AJ25: 0 | AK25: x x x | AL25: x x x | AM25: x.x.x | AN25: Não | AO25: Não | AP25: Não | AQ25: - | AR25: - | AS25: Não informada | AT25: Não Informada | AU25: Não | AV25: 2022-05-01 | AW25: 0 | AX25: 0 | AY25: 21910.79 | AZ25: 0 | BA25: 21910.79 | BB25: 0 | BC25: 0 | BD25: 0 | BE25: 0 | BF25: 0 | BG25: 0 | BH25: 0 | BI25: 0 | BJ25: 0 | BK25: 0 | BL25: 0 | BM25: 0 | BN25: 21910.79 | BO25: 0 | BP25: 21910.79 | BQ25: 0 | BR25: 0 | BS25: 0 | BT25: - | BU25: 0 | BV25: 0 | BW25: 2022-05-01 | BY25: 2022-12-01 | CC25: 2023-04-01 | CD25: 0 | CE25: 21910.79 | CF25: 0 | CG25: 0 | CM25: 0 | DI25: =IF(BQ25=0,0,IF(H26="MS 4.151/DF",TRUNC(BQ25*CA26,2)+TRUNC(BQ25*CA26,2)*CB25/100,BQ25+(TRUNC(BQ25*VLOOKUP(AV25,[2]VALIDAÇÃO!$C$5:$D$15,2,FALSE)/100,2)))) -> 0 | DJ25: 0 | DK25: 0 | DL25: - | DM25: 0 | DN25: 0 | DO25: 1 | DP25: 21910.79 | DQ25: 0 | DR25: 0 | DT25: 0 | DV25: Alimentar | DW25: 234360 | DX25: 1 | DY25: 0 | EB25: 0 | EC25: 0 | EF25: 2023-04-01 | EH25: 0 | EJ25: 2022-05-01 | EK25: 2023-04-01 | EM25: 0 | EN25: 0 | EO25: 0 | EP25: 0 | EQ25: 0 | ER25: 0 | ES25: 0 | ET25: 0 | EU25: 0 | EV25: 0 | FH25: 0 | FI25: 0 | FK25: 0 | LG25: 2022-05-01 | LH25: 2023-04-01 | LK25: 0 | LL25: 0 | LM25: 0 | LN25: 0 | LO25: 0 | LP25: 0 | MB25: 0 | MC25: 0 | MD25: 0 | ME25: 0 | MF25: 0 | MG25: 0 | MH25: 0 | MI25: 0 | MJ25: 0 | MK25: 0 | ML25: 0 | MM25: 0 | MN25: 0 | MO25: 0 | MP25: 0 | MQ25: 0 | MR25: 0 | MS25: 0 | MT25: 0 | MU25: 0 | MV25: 0 | MW25: 0 | MX25: 0 | MY25: 0 | MZ25: 0 | NA25: 0 | NB25: 0 | NC25: 0 | ND25: 0 | NE25: 0 | NF25: 0 | NG25: 0 | NH25: 0 | NI25: 0 | NJ25: 0 | NK25: 0 | NL25: 0 | NM25: 0
A26: 20 | B26: PRC | C26: 9869 | D26: 2022/0160154-9 | E26: 0160154-66.2022.3.00.0000 | F26: 2022-05-26 | G26: ATUALIZAÇÃO JUNTADA | H26: MS 12.215/DF | I26: Mandado de Segurança 12.215/DF | J26: 2006/0195293-3 | K26: 2006-09-11 | L26: 2012-10-24 | M26: Administrativo - Servidor Público Civil - Sistema Remuneratório e Benefícios - Gratificações de Atividade (PRINCIPAL) | N26: =IF(O26="-","-",VLOOKUP(O26,[2]VALIDAÇÃO!$N$4:$O$25,2,FALSE)) -> - | O26: - | P26: UNIÃO | Q26: Mandado de Segurança 12.215/DF | R26: 2016/0035755-3 | S26: 2021-04-19 | T26: Mota & Advogados Associados | U26: 03.996.810/0001-38 | V26: - | W26: - | X26: Honorários de sucumbência | Y26: Não | Z26: Alimentar | AA26: 0 | AB26: x x x | AC26: x x x | AD26: 0 | AE26: x x x | AF26: x x x | AG26: 0 | AH26: x x x | AI26: x x x | AJ26: 0 | AK26: x x x | AL26: x x x | AM26: x.x.x | AN26: Não | AO26: Não | AP26: Não | AQ26: - | AR26: - | AS26: Não informada | AT26: Não Informada | AU26: Não | AV26: 2022-05-01 | AW26: 0 | AX26: 0 | AY26: 34650.72 | AZ26: 0 | BA26: 34650.72 | BB26: 0 | BC26: 0 | BD26: 0 | BE26: 0 | BF26: 0 | BG26: 0 | BH26: 0 | BI26: 0 | BJ26: 0 | BK26: 0 | BL26: 0 | BM26: 0 | BN26: 34650.72 | BO26: 0 | BP26: 34650.72 | BQ26: 0 | BR26: 0 | BS26: 0 | BT26: - | BU26: 0 | BV26: 0 | BW26: 2022-05-01 | BY26: 2022-12-01 | CC26: 2023-04-01 | CD26: 0 | CE26: 34650.72 | CF26: 0 | CG26: 0 | CM26: 0 | DI26: =IF(BQ26=0,0,IF(H27="MS 4.151/DF",TRUNC(BQ26*CA27,2)+TRUNC(BQ26*CA27,2)*CB26/100,BQ26+(TRUNC(BQ26*VLOOKUP(AV26,[2]VALIDAÇÃO!$C$5:$D$15,2,FALSE)/100,2)))) -> 0 | DJ26: 0 | DK26: 0 | DL26: - | DM26: 0 | DN26: 0 | DO26: 1 | DP26: 34650.72 | DQ26: 0 | DR26: 0 | DT26: 0 | DV26: Alimentar | DW26: 234360 | DX26: 1 | DY26: 0 | EB26: 0 | EC26: 0 | EF26: 2023-04-01 | EH26: 0 | EJ26: 2022-05-01 | EK26: 2023-04-01 | EM26: 0 | EN26: 0 | EO26: 0 | EP26: 0 | EQ26: 0 | ER26: 0 | ES26: 0 | ET26: 0 | EU26: 0 | EV26: 0 | FH26: 0 | FI26: 0 | FK26: 0 | LG26: 2022-05-01 | LH26: 2023-04-01 | LK26: 0 | LL26: 0 | LM26: 0 | LN26: 0 | LO26: 0 | LP26: 0 | MB26: 0 | MC26: 0 | MD26: 0 | ME26: 0 | MF26: 0 | MG26: 0 | MH26: 0 | MI26: 0 | MJ26: 0 | MK26: 0 | ML26: 0 | MM26: 0 | MN26: 0 | MO26: 0 | MP26: 0 | MQ26: 0 | MR26: 0 | MS26: 0 | MT26: 0 | MU26: 0 | MV26: 0 | MW26: 0 | MX26: 0 | MY26: 0 | MZ26: 0 | NA26: 0 | NB26: 0 | NC26: 0 | ND26: 0 | NE26: 0 | NF26: 0 | NG26: 0 | NH26: 0 | NI26: 0 | NJ26: 0 | NK26: 0 | NL26: 0 | NM26: 0
A27: 21 | B27: PRC | C27: 9870 | D27: 2022/0161651-1 | E27: 0161651-18.2022.3.00.0000 | F27: 2022-05-27 | G27: ATUALIZAÇÃO JUNTADA | H27: MS 4.151/DF | I27: Mandado de Segurança 4.151/DF | J27: 1995/0038195-8 | K27: 1995-07-21 | L27: 1999-02-12 | M27: Administrativo - Servidor Público Civil - Reajustes de Remuneração, Proventos ou Pensão | N27: =IF(O27="-","-",VLOOKUP(O27,[2]VALIDAÇÃO!$N$4:$O$25,2,FALSE)) -> Ministério da Fazenda - Administração Direta | O27: 25101 | P27: UNIÃO | Q27: Mandado de Segurança 4.151/DF | R27: 2016/0128318-3 | S27: 2022-05-12 | T27: Antônio Carlos Rios | U27: 031.342.028-91 | V27: 1930-11-17 | W27: Servidor Público Civil Inativo | X27: Diferença de remuneração - 3,17% | Y27: Sim | Z27: Alimentar | AA27: 6 | AB27: Mota & Advogados Associados | AC27: 03.996.810/0001-38 | AD27: 1 | AE27: Mauro Menezes e Advogados | AF27: 32.901.423/0001-79 | AG27: 1 | AH27: Caputo, Bastos e Serra Advogados | AI27: 12.291.813/0001-67 | AJ27: 0 | AK27: x x x | AL27: x x x | AM27: Dedução de Honorários Contratuais | AN27: Não | AO27: Não | AP27: Não | AQ27: - | AR27: - | AS27: Não informada | AT27: Não Informada | AU27: Não | AV27: 2022-05-01 | AW27: 0 | AX27: 0 | AY27: 33273.16 | AZ27: 58628.44 | BA27: 91901.6 | BB27: 1996.38 | BC27: 3517.71 | BD27: 5514.09 | BE27: 332.73 | BF27: 586.28 | BG27: 919.01 | BH27: 332.73 | BI27: 586.28 | BJ27: 919.01 | BK27: 0 | BL27: 0 | BM27: 0 | BN27: 30611.32 | BO27: 53938.17 | BP27: 84549.49 | BQ27: 0 | BR27: 0 | BS27: 0 | BT27: 53 | BU27: 25921.05 | BV27: 0 | BW27: 2022-05-01 | BY27: 2023-04-01 | CB27: 0 | CC27: 2023-04-01 | DI27: =IF(BQ27=0,0,IF(H28="MS 4.151/DF",TRUNC(BQ27*CA28,2)+TRUNC(BQ27*CA28,2)*CB27/100,BQ27+(TRUNC(BQ27*VLOOKUP(AV27,[2]VALIDAÇÃO!$C$5:$D$15,2,FALSE)/100,2)))) -> 0 | DJ27: 0 | DK27: 0 | DL27: 53 | DN27: 0 | DO27: 1 | DP27: 91901.6 | DQ27: 0 | DR27: 0 | DT27: 0 | DV27: Alimentar | DW27: 234360 | DX27: 94 | EB27: 0 | EC27: 0 | EF27: 2023-04-01 | EH27: 0 | EJ27: 2022-05-01 | EK27: 2023-04-01 | EM27: 0 | EN27: 0 | EO27: 0 | EP27: 0 | EQ27: 0 | ER27: 0 | ES27: 0 | ET27: 0 | EU27: 0 | EV27: 0 | FH27: 0 | FI27: 0 | FK27: 0 | LG27: 2022-05-01 | LH27: 2023-04-01 | LK27: 0 | LL27: 0 | LM27: 0 | LN27: 0 | LO27: 0 | LP27: 0 | MB27: 0 | MC27: 0 | MD27: 0 | ME27: 0 | MF27: 0 | MG27: 0 | MH27: 0 | MI27: 0 | MJ27: 0 | MK27: 0 | ML27: 0 | MM27: 0 | MN27: 0 | MO27: 0 | MP27: 0 | MQ27: 0 | MR27: 0 | MS27: 0 | MT27: 0 | MU27: 0 | MV27: 0 | MW27: 0 | MX27: 0 | MY27: 0 | MZ27: 0 | NA27: 0 | NB27: 0 | NC27: 0 | ND27: 0 | NE27: 0 | NF27: 0 | NG27: 0 | NH27: 0 | NI27: 0 | NJ27: 0 | NK27: 0 | NL27: 0 | NM27: 0
A28: 22 | B28: PRC | C28: 9871 | D28: 2022/0161770-0 | E28: 0161770-76.2022.3.00.0000 | F28: 2022-05-27 | G28: ATUALIZAÇÃO JUNTADA | H28: MS 12.215/DF | I28: Mandado de Segurança 12.215/DF | J28: 2006/0195293-3 | K28: 2006-09-11 | L28: 2012-10-24 | M28: Administrativo - Servidor Público Civil - Sistema Remuneratório e Benefícios - Gratificações de Atividade (PRINCIPAL) | N28: =IF(O28="-","-",VLOOKUP(O28,[2]VALIDAÇÃO!$N$4:$O$25,2,FALSE)) -> - | O28: - | P28: UNIÃO | Q28: Mandado de Segurança 12.215/DF | R28: 2016/0035454-7 | S28: 2021-04-19 | T28: Mota & Advogados Associados | U28: 03.996.810/0001-38 | V28: - | W28: - | X28: Honorários de sucumbência | Y28: Não | Z28: Alimentar | AA28: 0 | AB28: x x x | AC28: x x x | AD28: 0 | AE28: x x x | AF28: x x x | AG28: 0 | AH28: x x x | AI28: x x x | AJ28: 0 | AK28: x x x | AL28: x x x | AM28: x.x.x | AN28: Não | AO28: Não | AP28: Não | AQ28: - | AR28: - | AS28: Não informada | AT28: Não Informada | AU28: Não | AV28: 2022-05-01 | AW28: 0 | AX28: 0 | AY28: 20637.43 | AZ28: 0 | BA28: 20637.43 | BB28: 0 | BC28: 0 | BD28: 0 | BE28: 0 | BF28: 0 | BG28: 0 | BH28: 0 | BI28: 0 | BJ28: 0 | BK28: 0 | BL28: 0 | BM28: 0 | BN28: 20637.43 | BO28: 0 | BP28: 20637.43 | BQ28: 0 | BR28: 0 | BS28: 0 | BT28: - | BU28: 0 | BV28: 0 | BW28: 2022-05-01 | BY28: 2022-12-01 | CC28: 2023-04-01 | CD28: 0 | CE28: 20637.43 | CF28: 0 | CG28: 0 | CM28: 0 | DI28: =IF(BQ28=0,0,IF(H29="MS 4.151/DF",TRUNC(BQ28*CA29,2)+TRUNC(BQ28*CA29,2)*CB28/100,BQ28+(TRUNC(BQ28*VLOOKUP(AV28,[2]VALIDAÇÃO!$C$5:$D$15,2,FALSE)/100,2)))) -> 0 | DJ28: 0 | DK28: 0 | DL28: - | DM28: 0 | DN28: 0 | DO28: 1 | DP28: 20637.43 | DQ28: 0 | DR28: 0 | DT28: 0 | DV28: Alimentar | DW28: 234360 | DX28: 1 | DY28: 0 | EB28: 0 | EC28: 0 | EF28: 2023-04-01 | EH28: 0 | EJ28: 2022-05-01 | EK28: 2023-04-01 | EM28: 0 | EN28: 0 | EO28: 0 | EP28: 0 | EQ28: 0 | ER28: 0 | ES28: 0 | ET28: 0 | EU28: 0 | EV28: 0 | FH28: 0 | FI28: 0 | FK28: 0 | LG28: 2022-05-01 | LH28: 2023-04-01 | LK28: 0 | LL28: 0 | LM28: 0 | LN28: 0 | LO28: 0 | LP28: 0 | MB28: 0 | MC28: 0 | MD28: 0 | ME28: 0 | MF28: 0 | MG28: 0 | MH28: 0 | MI28: 0 | MJ28: 0 | MK28: 0 | ML28: 0 | MM28: 0 | MN28: 0 | MO28: 0 | MP28: 0 | MQ28: 0 | MR28: 0 | MS28: 0 | MT28: 0 | MU28: 0 | MV28: 0 | MW28: 0 | MX28: 0 | MY28: 0 | MZ28: 0 | NA28: 0 | NB28: 0 | NC28: 0 | ND28: 0 | NE28: 0 | NF28: 0 | NG28: 0 | NH28: 0 | NI28: 0 | NJ28: 0 | NK28: 0 | NL28: 0 | NM28: 0
A29: 23 | B29: PRC | C29: 9872 | D29: 2022/0163699-4 | E29: 0163699-47.2022.3.00.0000 | F29: 2022-05-30 | G29: ATUALIZAÇÃO JUNTADA | H29: MS 4.151/DF | I29: Mandado de Segurança 4.151/DF | J29: 1995/0038195-8 | K29: 1995-07-21 | L29: 1999-02-12 | M29: Administrativo - Servidor Público Civil - Reajustes de Remuneração, Proventos ou Pensão | N29: =IF(O29="-","-",VLOOKUP(O29,[2]VALIDAÇÃO!$N$4:$O$25,2,FALSE)) -> Ministério da Fazenda - Administração Direta | O29: 25101 | P29: UNIÃO | Q29: Mandado de Segurança 4.151/DF | R29: 2016/0128411-9 | S29: 2022-05-02 | T29: Espólio de Dyrvhal Prates Conceição | U29: 047.849.607-91 | V29: 1920-02-20 | W29: Servidor Público Civil Inativo | X29: Diferença de remuneração - 3,17% | Y29: Sim | Z29: Alimentar | AA29: 4 | AB29: Mota & Advogados Associados | AC29: 03.996.810/0001-38 | AD29: 1 | AE29: Mauro Menezes e Advogados | AF29: 32.901.423/0001-79 | AG29: 1 | AH29: Caputo, Bastos e Serra Advogados | AI29: 12.291.813/0001-67 | AJ29: 5 | AK29: Ibaneis Advocacia e Consultoria Sociedade Simples | AL29: 05.613.437/0001-14 | AM29: Dedução de Honorários Contratuais | AN29: Não | AO29: Não | AP29: Não | AQ29: - | AR29: - | AS29: Não informada | AT29: Não Informada | AU29: Não | AV29: 2022-05-01 | AW29: 0 | AX29: 0 | AY29: 30870.19 | AZ29: 50411.88 | BA29: 81282.07 | BB29: 1234.8 | BC29: 2016.48 | BD29: 3251.28 | BE29: 308.7 | BF29: 504.12 | BG29: 812.82 | BH29: 308.7 | BI29: 504.12 | BJ29: 812.82 | BK29: 1543.5 | BL29: 2520.6 | BM29: 4064.1 | BN29: 27474.49 | BO29: 44866.56 | BP29: 72341.05 | BQ29: 0 | BR29: 0 | BS29: 0 | BT29: 53 | BU29: 21929.17 | BV29: 0 | BW29: 2022-05-01 | BY29: 2023-04-01 | CB29: 0 | CC29: 2023-04-01 | DI29: =IF(BQ29=0,0,IF(H30="MS 4.151/DF",TRUNC(BQ29*CA30,2)+TRUNC(BQ29*CA30,2)*CB29/100,BQ29+(TRUNC(BQ29*VLOOKUP(AV29,[2]VALIDAÇÃO!$C$5:$D$15,2,FALSE)/100,2)))) -> 0 | DJ29: 0 | DK29: 0 | DL29: 53 | DN29: 0 | DO29: 1 | DP29: 81282.07 | DQ29: 0 | DR29: 0 | DT29: 0 | DV29: Alimentar | DW29: 234360 | DX29: 104 | EB29: 0 | EC29: 0 | EF29: 2023-04-01 | EH29: 0 | EJ29: 2022-05-01 | EK29: 2023-04-01 | EM29: 0 | EN29: 0 | EO29: 0 | EP29: 0 | EQ29: 0 | ER29: 0 | ES29: 0 | ET29: 0 | EU29: 0 | EV29: 0 | FH29: 0 | FI29: 0 | FK29: 0 | LG29: 2022-05-01 | LH29: 2023-04-01 | LK29: 0 | LL29: 0 | LM29: 0 | LN29: 0 | LO29: 0 | LP29: 0 | MB29: 0 | MC29: 0 | MD29: 0 | ME29: 0 | MF29: 0 | MG29: 0 | MH29: 0 | MI29: 0 | MJ29: 0 | MK29: 0 | ML29: 0 | MM29: 0 | MN29: 0 | MO29: 0 | MP29: 0 | MQ29: 0 | MR29: 0 | MS29: 0 | MT29: 0 | MU29: 0 | MV29: 0 | MW29: 0 | MX29: 0 | MY29: 0 | MZ29: 0 | NA29: 0 | NB29: 0 | NC29: 0 | ND29: 0 | NE29: 0 | NF29: 0 | NG29: 0 | NH29: 0 | NI29: 0 | NJ29: 0 | NK29: 0 | NL29: 0 | NM29: 0
A30: 24 | B30: PRC | C30: 9873 | D30: 2022/0163881-5 | E30: 0163881-33.2022.3.00.0000 | F30: 2022-05-30 | G30: ATUALIZAÇÃO JUNTADA | H30: MS 4.151/DF | I30: Mandado de Segurança 4.151/DF | J30: 1995/0038195-8 | K30: 1995-07-21 | L30: 1999-02-12 | M30: Administrativo - Servidor Público Civil - Reajustes de Remuneração, Proventos ou Pensão | N30: =IF(O30="-","-",VLOOKUP(O30,[2]VALIDAÇÃO!$N$4:$O$25,2,FALSE)) -> Ministério da Fazenda - Administração Direta | O30: 25101 | P30: UNIÃO | Q30: Mandado de Segurança 4.151/DF | R30: 2016/0129310-6 | S30: 2022-05-18 | T30: Claudio Cesar Marchesoni | U30: 034.595.148-41 | V30: 1957-11-06 | W30: Servidor Público Civil Ativo | X30: Diferença de remuneração - 3,17% | Y30: Sim | Z30: Alimentar | AA30: 6 | AB30: Mota & Advogados Associados | AC30: 03.996.810/0001-38 | AD30: 1 | AE30: Mauro Menezes e Advogados | AF30: 32.901.423/0001-79 | AG30: 1 | AH30: Caputo, Bastos e Serra Advogados | AI30: 12.291.813/0001-67 | AJ30: 0 | AK30: x x x | AL30: x x x | AM30: Dedução de Honorários Contratuais | AN30: Não | AO30: Não | AP30: Não | AQ30: - | AR30: - | AS30: Não informada | AT30: Não Informada | AU30: Não | AV30: 2022-05-01 | AW30: 0 | AX30: 0 | AY30: 27783.61 | AZ30: 46780.21 | BA30: 74563.82 | BB30: 1667.01 | BC30: 2806.81 | BD30: 4473.82 | BE30: 277.83 | BF30: 467.8 | BG30: 745.63 | BH30: 277.83 | BI30: 467.8 | BJ30: 745.63 | BK30: 0 | BL30: 0 | BM30: 0 | BN30: 25560.94 | BO30: 43037.8 | BP30: 68598.74 | BQ30: 30101.34 | BR30: 3311.14 | BS30: 6622.28 | BT30: 53 | BU30: 21818.53 | BV30: 3311.14 | BW30: 2022-05-01 | BY30: 2023-04-01 | CB30: 0 | CC30: 2023-04-01 | DI30: =IF(BQ30=0,0,IF(H31="MS 4.151/DF",TRUNC(BQ30*CA31,2))) ->  | DL30: 53 | DO30: 1 | DP30: 74563.82 | DQ30: 0 | DR30: 0 | DT30: 0 | DV30: Alimentar | DW30: 234360 | DX30: 67 | EB30: 0 | EC30: 0 | EF30: 2023-04-01 | EH30: 0 | EJ30: 2022-05-01 | EK30: 2023-04-01 | EM30: 0 | EN30: 0 | EO30: 0 | EP30: 0 | EQ30: 0 | ER30: 0 | ES30: 0 | ET30: 0 | EU30: 0 | EV30: 0 | FH30: 0 | FI30: 0 | FK30: 0 | LG30: 2022-05-01 | LH30: 2023-04-01 | LK30: 0 | LL30: 0 | LM30: 0 | LN30: 0 | LO30: 0 | LP30: 0 | MB30: 0 | MC30: 0 | MD30: 0 | ME30: 0 | MF30: 0 | MG30: 0 | MH30: 0 | MI30: 0 | MJ30: 0 | MK30: 0 | ML30: 0 | MM30: 0 | MN30: 0 | MO30: 0 | MP30: 0 | MQ30: 0 | MR30: 0 | MS30: 0 | MT30: 0 | MU30: 0 | MV30: 0 | MW30: 0 | MX30: 0 | MY30: 0 | MZ30: 0 | NA30: 0 | NB30: 0 | NC30: 0 | ND30: 0 | NE30: 0 | NF30: 0 | NG30: 0 | NH30: 0 | NI30: 0 | NJ30: 0 | NK30: 0 | NL30: 0 | NM30: 0
A31: 25 | B31: PRC | C31: 9874 | D31: 2022/0165659-5 | E31: 0165659-38.2022.3.00.0000 | F31: 2022-05-31 | G31: ATUALIZAÇÃO JUNTADA | H31: MS 4.151/DF | I31: Mandado de Segurança 4.151/DF | J31: 1995/0038195-8 | K31: 1995-07-21 | L31: 1999-02-12 | M31: Administrativo - Servidor Público Civil - Reajustes de Remuneração, Proventos ou Pensão | N31: =IF(O31="-","-",VLOOKUP(O31,[2]VALIDAÇÃO!$N$4:$O$25,2,FALSE)) -> Ministério da Fazenda - Administração Direta | O31: 25101 | P31: UNIÃO | Q31: Mandado de Segurança 4.151/DF | R31: 2016/0129404-0 | S31: 2022-05-03 | T31: Cauby de Sá Palmeira | U31: 045.061.547-20 | V31: 1927-07-01 | W31: Servidor Público Civil Inativo | X31: Diferença de remuneração - 3,17% | Y31: Sim | Z31: Alimentar | AA31: 6 | AB31: Mota & Advogados Associados | AC31: 03.996.810/0001-38 | AD31: 1 | AE31: Mauro Menezes e Advogados | AF31: 32.901.423/0001-79 | AG31: 1 | AH31: Caputo, Bastos e Serra Advogados | AI31: 12.291.813/0001-67 | AJ31: 0 | AK31: x x x | AL31: x x x | AM31: Dedução de Honorários Contratuais | AN31: Não | AO31: Não | AP31: Não | AQ31: - | AR31: - | AS31: Não informada | AT31: Não Informada | AU31: Não | AV31: 2022-05-01 | AW31: 0 | AX31: 0 | AY31: 27647.89 | AZ31: 47740.18 | BA31: 75388.07 | BB31: 1658.87 | BC31: 2864.41 | BD31: 4523.28 | BE31: 276.47 | BF31: 477.41 | BG31: 753.88 | BH31: 276.47 | BI31: 477.41 | BJ31: 753.88 | BK31: 0 | BL31: 0 | BM31: 0 | BN31: 25436.08 | BO31: 43920.95 | BP31: 69357.03 | BQ31: 0 | BR31: 0 | BS31: 0 | BT31: 33 | BU31: 21616.85 | BV31: 0 | BW31: 2022-05-01 | BY31: 2023-04-01 | CB31: 0 | CC31: 2023-04-01 | DI31: =IF(BQ31=0,0,IF(H32="MS 4.151/DF",TRUNC(BQ31*CA32,2)+TRUNC(BQ31*CA32,2)*CB31/100,BQ31+(TRUNC(BQ31*VLOOKUP(AV31,[2]VALIDAÇÃO!$C$5:$D$15,2,FALSE)/100,2)))) -> 0 | DJ31: 0 | DK31: 0 | DL31: 33 | DN31: 0 | DO31: 1 | DP31: 75388.07 | DQ31: 0 | DR31: 0 | DT31: 0 | DV31: Alimentar | DW31: 234360 | DX31: 97 | EB31: 0 | EC31: 0 | EF31: 2023-04-01 | EH31: 0 | EJ31: 2022-05-01 | EK31: 2023-04-01 | EM31: 0 | EN31: 0 | EO31: 0 | EP31: 0 | EQ31: 0 | ER31: 0 | ES31: 0 | ET31: 0 | EU31: 0 | EV31: 0 | FH31: 0 | FI31: 0 | FK31: 0 | LG31: 2022-05-01 | LH31: 2023-04-01 | LK31: 0 | LL31: 0 | LM31: 0 | LN31: 0 | LO31: 0 | LP31: 0 | MB31: 0 | MC31: 0 | MD31: 0 | ME31: 0 | MF31: 0 | MG31: 0 | MH31: 0 | MI31: 0 | MJ31: 0 | MK31: 0 | ML31: 0 | MM31: 0 | MN31: 0 | MO31: 0 | MP31: 0 | MQ31: 0 | MR31: 0 | MS31: 0 | MT31: 0 | MU31: 0 | MV31: 0 | MW31: 0 | MX31: 0 | MY31: 0 | MZ31: 0 | NA31: 0 | NB31: 0 | NC31: 0 | ND31: 0 | NE31: 0 | NF31: 0 | NG31: 0 | NH31: 0 | NI31: 0 | NJ31: 0 | NK31: 0 | NL31: 0 | NM31: 0
A32: 26 | B32: PRC | C32: 9875 | D32: 2022/0165946-3 | E32: 0165946-98.2022.3.00.0000 | F32: 2022-05-31 | G32: ATUALIZAÇÃO JUNTADA | H32: MS 12.215/DF | I32: Mandado de Segurança 12.215/DF | J32: 2006/0195293-3 | K32: 2006-09-11 | L32: 2012-10-24 | M32: Administrativo - Servidor Público Civil - Sistema Remuneratório e Benefícios - Gratificações de Atividade (PRINCIPAL) | N32: =IF(O32="-","-",VLOOKUP(O32,[2]VALIDAÇÃO!$N$4:$O$25,2,FALSE)) -> - | O32: - | P32: UNIÃO | Q32: Mandado de Segurança 12.215/DF | R32: 2016/0035707-2 | S32: 2021-04-19 | T32: Mota & Advogados Associados | U32: 03.996.810/0001-38 | V32: - | W32: - | X32: Honorários de sucumbência | Y32: Não | Z32: Alimentar | AA32: 0 | AB32: x x x | AC32: x x x | AD32: 0 | AE32: x x x | AF32: x x x | AG32: 0 | AH32: x x x | AI32: x x x | AJ32: 0 | AK32: x x x | AL32: x x x | AM32: x.x.x | AN32: Não | AO32: Não | AP32: Não | AQ32: - | AR32: - | AS32: Não informada | AT32: Não Informada | AU32: Não | AV32: 2022-05-01 | AW32: 0 | AX32: 0 | AY32: 47508.11 | AZ32: 0 | BA32: 47508.11 | BB32: 0 | BC32: 0 | BD32: 0 | BE32: 0 | BF32: 0 | BG32: 0 | BH32: 0 | BI32: 0 | BJ32: 0 | BK32: 0 | BL32: 0 | BM32: 0 | BN32: 47508.11 | BO32: 0 | BP32: 47508.11 | BQ32: 0 | BR32: 0 | BS32: 0 | BT32: - | BU32: 0 | BV32: 0 | BW32: 2022-05-01 | BY32: 2022-12-01 | CC32: 2023-04-01 | CD32: 0 | CE32: 47508.11 | CF32: 0 | CG32: 0 | CM32: 0 | DI32: =IF(BQ32=0,0,IF(H33="MS 4.151/DF",TRUNC(BQ32*CA33,2)+TRUNC(BQ32*CA33,2)*CB32/100,BQ32+(TRUNC(BQ32*VLOOKUP(AV32,[2]VALIDAÇÃO!$C$5:$D$15,2,FALSE)/100,2)))) -> 0 | DJ32: 0 | DK32: 0 | DL32: - | DM32: 0 | DN32: 0 | DO32: 1 | DP32: 47508.11 | DQ32: 0 | DR32: 0 | DT32: 0 | DV32: Alimentar | DW32: 234360 | DX32: 1 | DY32: 0 | EB32: 0 | EC32: 0 | EF32: 2023-04-01 | EH32: 0 | EJ32: 2022-05-01 | EK32: 2023-04-01 | EM32: 0 | EN32: 0 | EO32: 0 | EP32: 0 | EQ32: 0 | ER32: 0 | ES32: 0 | ET32: 0 | EU32: 0 | EV32: 0 | FH32: 0 | FI32: 0 | FK32: 0 | LG32: 2022-05-01 | LH32: 2023-04-01 | LK32: 0 | LL32: 0 | LM32: 0 | LN32: 0 | LO32: 0 | LP32: 0 | MB32: 0 | MC32: 0 | MD32: 0 | ME32: 0 | MF32: 0 | MG32: 0 | MH32: 0 | MI32: 0 | MJ32: 0 | MK32: 0 | ML32: 0 | MM32: 0 | MN32: 0 | MO32: 0 | MP32: 0 | MQ32: 0 | MR32: 0 | MS32: 0 | MT32: 0 | MU32: 0 | MV32: 0 | MW32: 0 | MX32: 0 | MY32: 0 | MZ32: 0 | NA32: 0 | NB32: 0 | NC32: 0 | ND32: 0 | NE32: 0 | NF32: 0 | NG32: 0 | NH32: 0 | NI32: 0 | NJ32: 0 | NK32: 0 | NL32: 0 | NM32: 0
A33: 27 | B33: PRC | C33: 9876 | D33: 2022/0165958-8 | E33: 0165958-15.2022.3.00.0000 | F33: 2022-05-31 | G33: ATUALIZAÇÃO JUNTADA | H33: MS 4.151/DF | I33: Mandado de Segurança 4.151/DF | J33: 1995/0038195-8 | K33: 1995-07-21 | L33: 1999-02-12 | M33: Administrativo - Servidor Público Civil - Reajustes de Remuneração, Proventos ou Pensão | N33: =IF(O33="-","-",VLOOKUP(O33,[2]VALIDAÇÃO!$N$4:$O$25,2,FALSE)) -> Ministério da Fazenda - Administração Direta | O33: 25101 | P33: UNIÃO | Q33: Mandado de Segurança 4.151/DF | R33: 2016/0141923-6 | S33: 2022-05-04 | T33: Jose Roberto Antony De Farias | U33: 043.950.267-53 | V33: 1938-01-31 | W33: Servidor Público Civil Inativo | X33: Diferença de remuneração - 3,17% | Y33: Sim | Z33: Alimentar | AA33: 6 | AB33: Mota & Advogados Associados | AC33: 03.996.810/0001-38 | AD33: 1 | AE33: Mauro Menezes e Advogados | AF33: 32.901.423/0001-79 | AG33: 1 | AH33: Caputo, Bastos e Serra Advogados | AI33: 12.291.813/0001-67 | AJ33: 0 | AK33: x x x | AL33: x x x | AM33: Dedução de Honorários Contratuais | AN33: Não | AO33: Não | AP33: Não | AQ33: - | AR33: - | AS33: Não informada | AT33: Não Informada | AU33: Não | AV33: 2022-05-01 | AW33: 0 | AX33: 0 | AY33: 31707.38 | AZ33: 54907.05 | BA33: 86614.43 | BB33: 1902.44 | BC33: 3294.42 | BD33: 5196.86 | BE33: 317.07 | BF33: 549.07 | BG33: 866.14 | BH33: 317.07 | BI33: 549.07 | BJ33: 866.14 | BK33: 0 | BL33: 0 | BM33: 0 | BN33: 29170.8 | BO33: 50514.49 | BP33: 79685.29 | BQ33: 0 | BR33: 0 | BS33: 0 | BT33: 53 | BU33: 24778.24 | BV33: 0 | BW33: 2022-05-01 | BY33: 2023-04-01 | CB33: 0 | CC33: 2023-04-01 | DI33: =IF(BQ33=0,0,IF(H34="MS 4.151/DF",TRUNC(BQ33*CA34,2)+TRUNC(BQ33*CA34,2)*CB33/100,BQ33+(TRUNC(BQ33*VLOOKUP(AV33,[2]VALIDAÇÃO!$C$5:$D$15,2,FALSE)/100,2)))) -> 0 | DJ33: 0 | DK33: 0 | DL33: 53 | DN33: 0 | DO33: 1 | DP33: 86614.43 | DQ33: 0 | DR33: 0 | DT33: 0 | DV33: Alimentar | DW33: 234360 | DX33: 86 | EB33: 0 | EC33: 0 | EF33: 2023-04-01 | EH33: 0 | EJ33: 2022-05-01 | EK33: 2023-04-01 | EM33: 0 | EN33: 0 | EO33: 0 | EP33: 0 | EQ33: 0 | ER33: 0 | ES33: 0 | ET33: 0 | EU33: 0 | EV33: 0 | FH33: 0 | FI33: 0 | FK33: 0 | LG33: 2022-05-01 | LH33: 2023-04-01 | LK33: 0 | LL33: 0 | LM33: 0 | LN33: 0 | LO33: 0 | LP33: 0 | MB33: 0 | MC33: 0 | MD33: 0 | ME33: 0 | MF33: 0 | MG33: 0 | MH33: 0 | MI33: 0 | MJ33: 0 | MK33: 0 | ML33: 0 | MM33: 0 | MN33: 0 | MO33: 0 | MP33: 0 | MQ33: 0 | MR33: 0 | MS33: 0 | MT33: 0 | MU33: 0 | MV33: 0 | MW33: 0 | MX33: 0 | MY33: 0 | MZ33: 0 | NA33: 0 | NB33: 0 | NC33: 0 | ND33: 0 | NE33: 0 | NF33: 0 | NG33: 0 | NH33: 0 | NI33: 0 | NJ33: 0 | NK33: 0 | NL33: 0 | NM33: 0
A34: 28 | B34: PRC | C34: 9877 | D34: 2022/0166021-6 | E34: 0166021-40.2022.3.00.0000 | F34: 2022-05-31 | G34: ATUALIZAÇÃO JUNTADA | H34: MS 4.151/DF | I34: Mandado de Segurança 4.151/DF | J34: 1995/0038195-8 | K34: 1995-07-21 | L34: 1999-02-12 | M34: Administrativo - Servidor Público Civil - Reajustes de Remuneração, Proventos ou Pensão | N34: =IF(O34="-","-",VLOOKUP(O34,[2]VALIDAÇÃO!$N$4:$O$25,2,FALSE)) -> Ministério da Fazenda - Administração Direta | O34: 25101 | P34: UNIÃO | Q34: Mandado de Segurança 4.151/DF | R34: 2016/0141923-6 | S34: 2022-05-04 | T34: Jose Roberto Castor Marques | U34: 035.664.048-53 | V34: 1933-06-13 | W34: Servidor Público Civil Inativo | X34: Diferença de remuneração - 3,17% | Y34: Sim | Z34: Alimentar | AA34: 6 | AB34: Mota & Advogados Associados | AC34: 03.996.810/0001-38 | AD34: 1 | AE34: Mauro Menezes e Advogados | AF34: 32.901.423/0001-79 | AG34: 1 | AH34: Caputo, Bastos e Serra Advogados | AI34: 12.291.813/0001-67 | AJ34: 0 | AK34: x x x | AL34: x x x | AM34: Dedução de Honorários Contratuais | AN34: Não | AO34: Não | AP34: Não | AQ34: - | AR34: - | AS34: Não informada | AT34: Não Informada | AU34: Não | AV34: 2022-05-01 | AW34: 0 | AX34: 0 | AY34: 31241.53 | AZ34: 54755.96 | BA34: 85997.49 | BB34: 1874.49 | BC34: 3285.35 | BD34: 5159.84 | BE34: 312.41 | BF34: 547.56 | BG34: 859.97 | BH34: 312.41 | BI34: 547.56 | BJ34: 859.97 | BK34: 0 | BL34: 0 | BM34: 0 | BN34: 28742.22 | BO34: 50375.49 | BP34: 79117.71 | BQ34: 0 | BR34: 0 | BS34: 0 | BT34: 53 | BU34: 24361.75 | BV34: 0 | BW34: 2022-05-01 | BY34: 2023-04-01 | CB34: 0 | CC34: 2023-04-01 | DI34: =IF(BQ34=0,0,IF(H35="MS 4.151/DF",TRUNC(BQ34*CA35,2)+TRUNC(BQ34*CA35,2)*CB34/100,BQ34+(TRUNC(BQ34*VLOOKUP(AV34,[2]VALIDAÇÃO!$C$5:$D$15,2,FALSE)/100,2)))) -> 0 | DJ34: 0 | DK34: 0 | DL34: 53 | DN34: 0 | DO34: 1 | DP34: 85997.49 | DQ34: 0 | DR34: 0 | DT34: 0 | DV34: Alimentar | DW34: 234360 | DX34: 91 | EB34: 0 | EC34: 0 | EF34: 2023-04-01 | EH34: 0 | EJ34: 2022-05-01 | EK34: 2023-04-01 | EM34: 0 | EN34: 0 | EO34: 0 | EP34: 0 | EQ34: 0 | ER34: 0 | ES34: 0 | ET34: 0 | EU34: 0 | EV34: 0 | FB34: =IF($EJ34="","",IF(FB$2>=$EK34,0,IF(FB$2>=$EJ34,FB$3,0))) ->  | FH34: 0 | FI34: 0 | FK34: 0 | LG34: 2022-05-01 | LH34: 2023-04-01 | LK34: 0 | LL34: 0 | LM34: 0 | LN34: 0 | LO34: 0 | LP34: 0 | MB34: 0 | MC34: 0 | MD34: 0 | ME34: 0 | MF34: 0 | MG34: 0 | MH34: 0 | MI34: 0 | MJ34: 0 | MK34: 0 | ML34: 0 | MM34: 0 | MN34: 0 | MO34: 0 | MP34: 0 | MQ34: 0 | MR34: 0 | MS34: 0 | MT34: 0 | MU34: 0 | MV34: 0 | MW34: 0 | MX34: 0 | MY34: 0 | MZ34: 0 | NA34: 0 | NB34: 0 | NC34: 0 | ND34: 0 | NE34: 0 | NF34: 0 | NG34: 0 | NH34: 0 | NI34: 0 | NJ34: 0 | NK34: 0 | NL34: 0 | NM34: 0
A35: 29 | B35: PRC | C35: 9878 | D35: 2022/0166024-1 | E35: 0166024-92.2022.3.00.0000 | F35: 2022-05-31 | G35: ATUALIZAÇÃO JUNTADA | H35: MS 4.151/DF | I35: Mandado de Segurança 4.151/DF | J35: 1995/0038195-8 | K35: 1995-07-21 | L35: 1999-02-12 | M35: Administrativo - Servidor Público Civil - Reajustes de Remuneração, Proventos ou Pensão | N35: =IF(O35="-","-",VLOOKUP(O35,[2]VALIDAÇÃO!$N$4:$O$25,2,FALSE)) -> Ministério da Fazenda - Administração Direta | O35: 25101 | P35: UNIÃO | Q35: Mandado de Segurança 4.151/DF | R35: 2016/0141923-6 | S35: 2022-05-04 | T35: Jose Rodrigues Filho | U35: 068.535.878-04 | V35: 1943-04-30 | W35: Servidor Público Civil Inativo | X35: Diferença de remuneração - 3,17% | Y35: Sim | Z35: Alimentar | AA35: 6 | AB35: Mota & Advogados Associados | AC35: 03.996.810/0001-38 | AD35: 1 | AE35: Mauro Menezes e Advogados | AF35: 32.901.423/0001-79 | AG35: 1 | AH35: Caputo, Bastos e Serra Advogados | AI35: 12.291.813/0001-67 | AJ35: 0 | AK35: x x x | AL35: x x x | AM35: Dedução de Honorários Contratuais | AN35: Não | AO35: Não | AP35: Não | AQ35: - | AR35: - | AS35: Não informada | AT35: Não Informada | AU35: Não | AV35: 2022-05-01 | AW35: 0 | AX35: 0 | AY35: 31544.07 | AZ35: 51543.91 | BA35: 83087.98 | BB35: 1892.64 | BC35: 3092.63 | BD35: 4985.27 | BE35: 315.44 | BF35: 515.43 | BG35: 830.87 | BH35: 315.44 | BI35: 515.43 | BJ35: 830.87 | BK35: 0 | BL35: 0 | BM35: 0 | BN35: 29020.55 | BO35: 47420.42 | BP35: 76440.97 | BQ35: 0 | BR35: 0 | BS35: 0 | BT35: 53 | BU35: 24897.06 | BV35: 0 | BW35: 2022-05-01 | BY35: 2023-04-01 | CB35: 0 | CC35: 2023-04-01 | DI35: =IF(BQ35=0,0,IF(H36="MS 4.151/DF",TRUNC(BQ35*CA36,2)+TRUNC(BQ35*CA36,2)*CB35/100,BQ35+(TRUNC(BQ35*VLOOKUP(AV35,[2]VALIDAÇÃO!$C$5:$D$15,2,FALSE)/100,2)))) -> 0 | DJ35: 0 | DK35: 0 | DL35: 53 | DN35: 0 | DO35: 1 | DP35: 83087.98 | DQ35: 0 | DR35: 0 | DT35: 0 | DV35: Alimentar | DW35: 234360 | DX35: 81 | EB35: 0 | EC35: 0 | EF35: 2023-04-01 | EH35: 0 | EJ35: 2022-05-01 | EK35: 2023-04-01 | EM35: =IF($EJ35="","",IF(EM$2>=$EK35,0,IF(EM$2>=$EJ35,EM$3,0))) -> 0 | EN35: 0 | EO35: 0 | EP35: 0 | EQ35: 0 | ER35: 0 | ES35: 0 | ET35: 0 | EU35: 0 | EV35: 0 | FH35: 0 | FI35: 0 | FK35: 0 | LG35: 2022-05-01 | LH35: 2023-04-01 | LK35: 0 | LL35: 0 | LM35: 0 | LN35: 0 | LO35: 0 | LP35: 0 | MB35: 0 | MC35: 0 | MD35: 0 | ME35: 0 | MF35: 0 | MG35: 0 | MH35: 0 | MI35: 0 | MJ35: 0 | MK35: 0 | ML35: 0 | MM35: 0 | MN35: 0 | MO35: 0 | MP35: 0 | MQ35: 0 | MR35: 0 | MS35: 0 | MT35: 0 | MU35: 0 | MV35: 0 | MW35: 0 | MX35: 0 | MY35: 0 | MZ35: 0 | NA35: 0 | NB35: 0 | NC35: 0 | ND35: 0 | NE35: 0 | NF35: 0 | NG35: 0 | NH35: 0 | NI35: 0 | NJ35: 0 | NK35: 0 | NL35: 0 | NM35: 0
A36: 30 | B36: PRC | C36: 9879 | D36: 2022/0166074-6 | E36: 0166074-21.2022.3.00.0000 | F36: 2022-05-31 | G36: ATUALIZAÇÃO JUNTADA | H36: MS 4.151/DF | I36: Mandado de Segurança 4.151/DF | J36: 1995/0038195-8 | K36: 1995-07-21 | L36: 1999-02-12 | M36: Administrativo - Servidor Público Civil - Reajustes de Remuneração, Proventos ou Pensão | N36: =IF(O36="-","-",VLOOKUP(O36,[2]VALIDAÇÃO!$N$4:$O$25,2,FALSE)) -> Ministério da Fazenda - Administração Direta | O36: 25101 | P36: UNIÃO | Q36: Mandado de Segurança 4.151/DF | R36: 2016/0141922-4 | S36: 2022-05-02 | T36: Jose Raimundo Ferreira | U36: 159.101.995-87 | V36: 1957-05-20 | W36: Servidor Público Civil Ativo | X36: Diferença de remuneração - 3,17% | Y36: Sim | Z36: Alimentar | AA36: 6 | AB36: Mota & Advogados Associados | AC36: 03.996.810/0001-38 | AD36: 1 | AE36: Mauro Menezes e Advogados | AF36: 32.901.423/0001-79 | AG36: 1 | AH36: Caputo, Bastos e Serra Advogados | AI36: 12.291.813/0001-67 | AJ36: 0 | AK36: x x x | AL36: x x x | AM36: Dedução de Honorários Contratuais | AN36: Não | AO36: Não | AP36: Não | AQ36: - | AR36: - | AS36: Não informada | AT36: Não Informada | AU36: Não | AV36: 2022-05-01 | AW36: 0 | AX36: 0 | AY36: 30010.79 | AZ36: 49843.34 | BA36: 79854.13 | BB36: 1800.64 | BC36: 2990.6 | BD36: 4791.24 | BE36: 300.1 | BF36: 498.44 | BG36: 798.54 | BH36: 300.1 | BI36: 498.44 | BJ36: 798.54 | BK36: 0 | BL36: 0 | BM36: 0 | BN36: 27609.95 | BO36: 45855.86 | BP36: 73465.81 | BQ36: 31431.67 | BR36: 3457.48 | BS36: 6914.96 | BT36: 53 | BU36: 23622.47 | BV36: 3457.48 | BW36: 2022-05-01 | BY36: 2023-04-01 | CB36: 0 | CC36: 2023-04-01 | DI36: =TRUNC(BQ36*CA36,2) ->  | DL36: 53 | DO36: 1 | DP36: 79854.13 | DQ36: 0 | DR36: 0 | DT36: 0 | DV36: Alimentar | DW36: 234360 | DX36: 67 | EB36: 0 | EC36: 0 | EF36: 2023-04-01 | EH36: 0 | EJ36: 2022-05-01 | EK36: 2023-04-01 | EM36: 0 | EN36: 0 | EO36: 0 | EP36: 0 | EQ36: 0 | ER36: 0 | ES36: 0 | ET36: 0 | EU36: 0 | EV36: 0 | FH36: 0 | FI36: 0 | FK36: 0 | LG36: 2022-05-01 | LH36: 2023-04-01 | LK36: 0 | LL36: 0 | LM36: 0 | LN36: 0 | LO36: 0 | LP36: 0 | MB36: 0 | MC36: 0 | MD36: 0 | ME36: 0 | MF36: 0 | MG36: 0 | MH36: 0 | MI36: 0 | MJ36: 0 | MK36: 0 | ML36: 0 | MM36: 0 | MN36: 0 | MO36: 0 | MP36: 0 | MQ36: 0 | MR36: 0 | MS36: 0 | MT36: 0 | MU36: 0 | MV36: 0 | MW36: 0 | MX36: 0 | MY36: 0 | MZ36: 0 | NA36: 0 | NB36: 0 | NC36: 0 | ND36: 0 | NE36: 0 | NF36: 0 | NG36: 0 | NH36: 0 | NI36: 0 | NJ36: 0 | NK36: 0 | NL36: 0 | NM36: 0
A37: 31 | B37: PRC | C37: 9880 | D37: 2022/0174843-9 | E37: 0174843-18.2022.3.00.0000 | F37: 2022-06-07 | G37: ATUALIZAÇÃO JUNTADA | H37: MS 4.151/DF | I37: Mandado de Segurança 4.151/DF | J37: 1995/0038195-8 | K37: 1995-07-21 | L37: 1999-02-12 | M37: Administrativo - Servidor Público Civil - Reajustes de Remuneração, Proventos ou Pensão | N37: =IF(O37="-","-",VLOOKUP(O37,[2]VALIDAÇÃO!$N$4:$O$25,2,FALSE)) -> Ministério da Fazenda - Administração Direta | O37: 25101 | P37: UNIÃO | Q37: Mandado de Segurança 4.151/DF | R37: 2016/0143192-0 | S37: 2022-05-18 | T37: Jose Antonio De Azevedo | U37: 069.041.908-25 | V37: 1935-10-07 | W37: Servidor Público Civil Inativo | X37: Diferença de remuneração - 3,17% | Y37: Sim | Z37: Alimentar | AA37: 6 | AB37: Mota & Advogados Associados | AC37: 03.996.810/0001-38 | AD37: 1 | AE37: Mauro Menezes e Advogados | AF37: 32.901.423/0001-79 | AG37: 1 | AH37: Caputo, Bastos e Serra Advogados | AI37: 12.291.813/0001-67 | AJ37: 0 | AK37: x x x | AL37: x x x | AM37: Dedução de Honorários Contratuais | AN37: Não | AO37: Não | AP37: Não | AQ37: - | AR37: - | AS37: Não informada | AT37: Não Informada | AU37: Não | AV37: 2022-06-01 | AW37: 0 | AX37: 0 | AY37: 27257.09 | AZ37: 51345.8 | BA37: 78602.89 | BB37: 1635.42 | BC37: 3080.75 | BD37: 4716.17 | BE37: 272.57 | BF37: 513.45 | BG37: 786.02 | BH37: 272.57 | BI37: 513.45 | BJ37: 786.02 | BK37: 0 | BL37: 0 | BM37: 0 | BN37: 25076.53 | BO37: 47238.15 | BP37: 72314.68 | BQ37: 0 | BR37: 0 | BS37: 0 | BT37: 53 | BU37: 20968.88 | BV37: 0 | BW37: 2022-06-01 | BY37: 2023-04-01 | CB37: 0 | CC37: 2023-04-01 | DI37: =IF(BQ37=0,0,IF(H38="MS 4.151/DF",TRUNC(BQ37*CA38,2)+TRUNC(BQ37*CA38,2)*CB37/100,BQ37+(TRUNC(BQ37*VLOOKUP(AV37,[2]VALIDAÇÃO!$C$5:$D$15,2,FALSE)/100,2)))) -> 0 | DJ37: 0 | DK37: 0 | DL37: 53 | DN37: 0 | DO37: 1 | DP37: 78602.89 | DQ37: 0 | DR37: 0 | DT37: 0 | DV37: Alimentar | DW37: 234360 | DX37: 89 | EB37: 0 | EC37: 0 | EF37: 2023-04-01 | EH37: 0 | EJ37: 2022-06-01 | EK37: 2023-04-01 | EM37: 0 | EN37: 0 | EO37: 0 | EP37: 0 | EQ37: 0 | ER37: 0 | ES37: 0 | ET37: 0 | EU37: 0 | EV37: 0 | EW37: 0 | FH37: 0 | FI37: 0 | FK37: 0 | LG37: 2022-06-01 | LH37: 2023-04-01 | LK37: 0 | LL37: 0 | LM37: 0 | LN37: 0 | LO37: 0 | LP37: 0 | LQ37: 0 | MB37: 0 | MC37: 0 | MD37: 0 | ME37: 0 | MF37: 0 | MG37: 0 | MH37: 0 | MI37: 0 | MJ37: 0 | MK37: 0 | ML37: 0 | MM37: 0 | MN37: 0 | MO37: 0 | MP37: 0 | MQ37: 0 | MR37: 0 | MS37: 0 | MT37: 0 | MU37: 0 | MV37: 0 | MW37: 0 | MX37: 0 | MY37: 0 | MZ37: 0 | NA37: 0 | NB37: 0 | NC37: 0 | ND37: 0 | NE37: 0 | NF37: 0 | NG37: 0 | NH37: 0 | NI37: 0 | NJ37: 0 | NK37: 0 | NL37: 0 | NM37: 0
A38: 32 | B38: PRC | C38: 9881 | D38: 2022/0174860-5 | E38: 0174860-54.2022.3.00.0000 | F38: 2022-06-07 | G38: ATUALIZAÇÃO JUNTADA | H38: MS 4.151/DF | I38: Mandado de Segurança 4.151/DF | J38: 1995/0038195-8 | K38: 1995-07-21 | L38: 1999-02-12 | M38: Administrativo - Servidor Público Civil - Reajustes de Remuneração, Proventos ou Pensão | N38: =IF(O38="-","-",VLOOKUP(O38,[2]VALIDAÇÃO!$N$4:$O$25,2,FALSE)) -> Ministério da Fazenda - Administração Direta | O38: 25101 | P38: UNIÃO | Q38: Mandado de Segurança 4.151/DF | R38: 2016/0143192-0 | S38: 2022-05-18 | T38: Jose Americo Paolinelli Correa | U38: 011.584.576-34 | V38: 1942-12-28 | W38: Servidor Público Civil Inativo | X38: Diferença de remuneração - 3,17% | Y38: Sim | Z38: Alimentar | AA38: 6 | AB38: Mota & Advogados Associados | AC38: 03.996.810/0001-38 | AD38: 1 | AE38: Mauro Menezes e Advogados | AF38: 32.901.423/0001-79 | AG38: 1 | AH38: Caputo, Bastos e Serra Advogados | AI38: 12.291.813/0001-67 | AJ38: 0 | AK38: x x x | AL38: x x x | AM38: Dedução de Honorários Contratuais | AN38: Não | AO38: Não | AP38: Não | AQ38: - | AR38: - | AS38: Não informada | AT38: Não Informada | AU38: Não | AV38: 2022-06-01 | AW38: 0 | AX38: 0 | AY38: 29616.42 | AZ38: 51001.97 | BA38: 80618.39 | BB38: 1776.98 | BC38: 3060.12 | BD38: 4837.1 | BE38: 296.16 | BF38: 510.02 | BG38: 806.18 | BH38: 296.16 | BI38: 510.02 | BJ38: 806.18 | BK38: 0 | BL38: 0 | BM38: 0 | BN38: 27247.12 | BO38: 46921.81 | BP38: 74168.93 | BQ38: 0 | BR38: 0 | BS38: 0 | BT38: 53 | BU38: 23166.96 | BV38: 0 | BW38: 2022-06-01 | BY38: 2023-04-01 | CB38: 0 | CC38: 2023-04-01 | DI38: =IF(BQ38=0,0,IF(H39="MS 4.151/DF",TRUNC(BQ38*CA39,2)+TRUNC(BQ38*CA39,2)*CB38/100,BQ38+(TRUNC(BQ38*VLOOKUP(AV38,[2]VALIDAÇÃO!$C$5:$D$15,2,FALSE)/100,2)))) -> 0 | DJ38: 0 | DK38: 0 | DL38: 53 | DN38: 0 | DO38: 1 | DP38: 80618.39 | DQ38: 0 | DR38: 0 | DT38: 0 | DV38: Alimentar | DW38: 234360 | DX38: 82 | EB38: 0 | EC38: 0 | EF38: 2023-04-01 | EH38: 0 | EJ38: 2022-06-01 | EK38: 2023-04-01 | EM38: 0 | EN38: 0 | EO38: 0 | EP38: 0 | EQ38: 0 | ER38: 0 | ES38: 0 | ET38: 0 | EU38: 0 | EV38: 0 | EW38: 0 | FH38: 0 | FI38: 0 | FK38: 0 | LG38: 2022-06-01 | LH38: 2023-04-01 | LK38: 0 | LL38: 0 | LM38: 0 | LN38: 0 | LO38: 0 | LP38: 0 | LQ38: 0 | MA38: =IF(MA$4=$LG38,0,IF(AND(MA$4>=$LG38,MA$4<=$LH38),MA$5,0)) ->  | MB38: 0 | MC38: 0 | MD38: 0 | ME38: 0 | MF38: 0 | MG38: 0 | MH38: 0 | MI38: 0 | MJ38: 0 | MK38: 0 | ML38: 0 | MM38: 0 | MN38: 0 | MO38: 0 | MP38: 0 | MQ38: 0 | MR38: 0 | MS38: 0 | MT38: 0 | MU38: 0 | MV38: 0 | MW38: 0 | MX38: 0 | MY38: 0 | MZ38: 0 | NA38: 0 | NB38: 0 | NC38: 0 | ND38: 0 | NE38: 0 | NF38: 0 | NG38: 0 | NH38: 0 | NI38: 0 | NJ38: 0 | NK38: 0 | NL38: 0 | NM38: 0
A39: 33 | B39: PRC | C39: 9882 | D39: 2022/0174903-3 | E39: 0174903-88.2022.3.00.0000 | F39: 2022-06-07 | G39: ATUALIZAÇÃO JUNTADA | H39: MS 4.151/DF | I39: Mandado de Segurança 4.151/DF | J39: 1995/0038195-8 | K39: 1995-07-21 | L39: 1999-02-12 | M39: Administrativo - Servidor Público Civil - Reajustes de Remuneração, Proventos ou Pensão | N39: =IF(O39="-","-",VLOOKUP(O39,[2]VALIDAÇÃO!$N$4:$O$25,2,FALSE)) -> Ministério da Fazenda - Administração Direta | O39: 25101 | P39: UNIÃO | Q39: Mandado de Segurança 4.151/DF | R39: 2016/0153090-4 | S39: 2022-05-12 | T39: Espolio De Luiz Garcia De Meneses | U39: 030.064.687-91 | V39: 1941-03-29 | W39: Servidor Público Civil Inativo | X39: Diferença de remuneração - 3,17% | Y39: Sim | Z39: Alimentar | AA39: 4 | AB39: Mota & Advogados Associados | AC39: 03.996.810/0001-38 | AD39: 1 | AE39: Mauro Menezes e Advogados | AF39: 32.901.423/0001-79 | AG39: 1 | AH39: Caputo, Bastos e Serra Advogados | AI39: 12.291.813/0001-67 | AJ39: 5 | AK39: Ibaneis Advocacia e Consultoria Sociedade Simples | AL39: 05.613.437/0001-14 | AM39: Dedução de Honorários Contratuais | AN39: Não | AO39: Não | AP39: Não | AQ39: - | AR39: - | AS39: Não informada | AT39: Não Informada | AU39: Não | AV39: 2022-06-01 | AW39: 0 | AX39: 0 | AY39: 38176.54 | AZ39: 66233.46 | BA39: 104410 | BB39: 1527.06 | BC39: 2649.34 | BD39: 4176.4 | BE39: 381.76 | BF39: 662.34 | BG39: 1044.1 | BH39: 381.76 | BI39: 662.34 | BJ39: 1044.1 | BK39: 1908.82 | BL39: 3311.68 | BM39: 5220.5 | BN39: 33977.14 | BO39: 58947.76 | BP39: 92924.9 | BQ39: 0 | BR39: 0 | BS39: 0 | BT39: 53 | BU39: 26691.44 | BV39: 0 | BW39: 2022-06-01 | BY39: 2023-04-01 | CB39: 0 | CC39: 2023-04-01 | DI39: =IF(BQ39=0,0,IF(H40="MS 4.151/DF",TRUNC(BQ39*CA40,2)+TRUNC(BQ39*CA40,2)*CB39/100,BQ39+(TRUNC(BQ39*VLOOKUP(AV39,[2]VALIDAÇÃO!$C$5:$D$15,2,FALSE)/100,2)))) -> 0 | DJ39: 0 | DK39: 0 | DL39: 53 | DN39: 0 | DO39: 1 | DP39: 104410 | DQ39: 0 | DR39: 0 | DT39: 0 | DV39: Alimentar | DW39: 234360 | DX39: 83 | EB39: 0 | EC39: 0 | EF39: 2023-04-01 | EH39: 0 | EJ39: 2022-06-01 | EK39: 2023-04-01 | EM39: 0 | EN39: 0 | EO39: 0 | EP39: 0 | EQ39: 0 | ER39: 0 | ES39: 0 | ET39: 0 | EU39: 0 | EV39: 0 | EW39: 0 | FH39: 0 | FI39: 0 | FK39: 0 | LG39: 2022-06-01 | LH39: 2023-04-01 | LK39: =IF(LK$4=$LG39,0,IF(AND(LK$4>=$LG39,LK$4<=$LH39),LK$5,0)) -> 0 | LL39: 0 | LM39: 0 | LN39: 0 | LO39: 0 | LP39: 0 | LQ39: 0 | MB39: 0 | MC39: 0 | MD39: 0 | ME39: 0 | MF39: 0 | MG39: 0 | MH39: 0 | MI39: 0 | MJ39: 0 | MK39: 0 | ML39: 0 | MM39: 0 | MN39: 0 | MO39: 0 | MP39: 0 | MQ39: =IF(MQ$4=$LG39,0,IF(AND(MQ$4>=$LG39,MQ$4<=$LH39),MQ$5,0)) -> 0 | MR39: 0 | MS39: 0 | MT39: 0 | MU39: 0 | MV39: 0 | MW39: 0 | MX39: 0 | MY39: 0 | MZ39: 0 | NA39: 0 | NB39: 0 | NC39: 0 | ND39: 0 | NE39: 0 | NF39: 0 | NG39: =IF(NG$4=$LG39,0,IF(AND(NG$4>=$LG39,NG$4<=$LH39),NG$5,0)) -> 0 | NH39: 0 | NI39: 0 | NJ39: 0 | NK39: 0 | NL39: 0 | NM39: 0
A40: 34 | B40: PRC | C40: 9883 | D40: 2022/0174981-7 | E40: 0174981-82.2022.3.00.0000 | F40: 2022-06-07 | G40: ATUALIZAÇÃO JUNTADA | H40: MS 4.151/DF | I40: Mandado de Segurança 4.151/DF | J40: 1995/0038195-8 | K40: 1995-07-21 | L40: 1999-02-12 | M40: Administrativo - Servidor Público Civil - Reajustes de Remuneração, Proventos ou Pensão | N40: =IF(O40="-","-",VLOOKUP(O40,[2]VALIDAÇÃO!$N$4:$O$25,2,FALSE)) -> Ministério da Fazenda - Administração Direta | O40: 25101 | P40: UNIÃO | Q40: Mandado de Segurança 4.151/DF | R40: 2016/0153094-1 | S40: 2022-05-09 | T40: Luiz Cláudio Batelocchi | U40: 810.313.608-59 | V40: 1956-09-17 | W40: Servidor Público Civil Ativo | X40: Diferença de remuneração - 3,17% | Y40: Sim | Z40: Alimentar | AA40: 6 | AB40: Mota & Advogados Associados | AC40: 03.996.810/0001-38 | AD40: 1 | AE40: Mauro Menezes e Advogados | AF40: 32.901.423/0001-79 | AG40: 1 | AH40: Caputo, Bastos e Serra Advogados | AI40: 12.291.813/0001-67 | AJ40: 0 | AK40: x x x | AL40: x x x | AM40: Dedução de Honorários Contratuais | AN40: Não | AO40: Não | AP40: Não | AQ40: - | AR40: - | AS40: Não informada | AT40: Não Informada | AU40: Não | AV40: 2022-06-01 | AW40: 0 | AX40: 0 | AY40: 26685.13 | AZ40: 46311.95 | BA40: 72997.08 | BB40: 1601.1 | BC40: 2778.72 | BD40: 4379.82 | BE40: 266.85 | BF40: 463.12 | BG40: 729.97 | BH40: 266.85 | BI40: 463.12 | BJ40: 729.97 | BK40: 0 | BL40: 0 | BM40: 0 | BN40: 24550.33 | BO40: 42606.99 | BP40: 67157.32 | BQ40: 30970.52 | BR40: 3406.75 | BS40: 6813.5 | BT40: 53 | BU40: 20845.37 | BV40: 3406.75 | BW40: 2022-06-01 | BY40: 2023-04-01 | CB40: 0 | CC40: 2023-04-01 | DI40: =TRUNC(BQ40*CA40,2) ->  | DL40: 53 | DO40: 1 | DP40: 72997.08 | DQ40: 0 | DR40: 0 | DT40: 0 | DV40: Alimentar | DW40: 234360 | DX40: 68 | EB40: 0 | EC40: 0 | EF40: 2023-04-01 | EH40: 0 | EJ40: 2022-06-01 | EK40: 2023-04-01 | EM40: 0 | EN40: 0 | EO40: 0 | EP40: 0 | EQ40: 0 | ER40: 0 | ES40: 0 | ET40: 0 | EU40: 0 | EV40: 0 | EW40: 0 | FH40: 0 | FI40: 0 | FK40: 0 | LG40: 2022-06-01 | LH40: 2023-04-01 | LK40: 0 | LL40: 0 | LM40: 0 | LN40: 0 | LO40: 0 | LP40: 0 | LQ40: 0 | MB40: 0 | MC40: 0 | MD40: 0 | ME40: 0 | MF40: 0 | MG40: 0 | MH40: 0 | MI40: 0 | MJ40: 0 | MK40: 0 | ML40: 0 | MM40: 0 | MN40: 0 | MO40: 0 | MP40: 0 | MQ40: 0 | MR40: 0 | MS40: 0 | MT40: 0 | MU40: 0 | MV40: 0 | MW40: 0 | MX40: 0 | MY40: 0 | MZ40: 0 | NA40: 0 | NB40: 0 | NC40: 0 | ND40: 0 | NE40: 0 | NF40: 0 | NG40: 0 | NH40: 0 | NI40: 0 | NJ40: 0 | NK40: 0 | NL40: 0 | NM40: 0
A41: 35 | B41: PRC | C41: 9884 | D41: 2022/0174982-9 | E41: 0174982-67.2022.3.00.0000 | F41: 2022-06-07 | G41: ATUALIZAÇÃO JUNTADA | H41: MS 4.151/DF | I41: Mandado de Segurança 4.151/DF | J41: 1995/0038195-8 | K41: 1995-07-21 | L41: 1999-02-12 | M41: Administrativo - Servidor Público Civil - Reajustes de Remuneração, Proventos ou Pensão | N41: =IF(O41="-","-",VLOOKUP(O41,[2]VALIDAÇÃO!$N$4:$O$25,2,FALSE)) -> Ministério da Fazenda - Administração Direta | O41: 25101 | P41: UNIÃO | Q41: Mandado de Segurança 4.151/DF | R41: 2016/0153094-1 | S41: 2022-05-09 | T41: Luiz Carlos Gerez | U41: 023.191.529-20 | V41: 1948-09-21 | W41: Servidor Público Civil Ativo | X41: Diferença de remuneração - 3,17% | Y41: Sim | Z41: Alimentar | AA41: 6 | AB41: Mota & Advogados Associados | AC41: 03.996.810/0001-38 | AD41: 1 | AE41: Mauro Menezes e Advogados | AF41: 32.901.423/0001-79 | AG41: 1 | AH41: Caputo, Bastos e Serra Advogados | AI41: 12.291.813/0001-67 | AJ41: 0 | AK41: x x x | AL41: x x x | AM41: Dedução de Honorários Contratuais | AN41: Não | AO41: Não | AP41: Não | AQ41: - | AR41: - | AS41: Não informada | AT41: Não Informada | AU41: Não | AV41: 2022-06-01 | AW41: 0 | AX41: 0 | AY41: 25705.78 | AZ41: 47925.89 | BA41: 73631.67 | BB41: 1542.34 | BC41: 2875.56 | BD41: 4417.9 | BE41: 257.05 | BF41: 479.26 | BG41: 736.31 | BH41: 257.05 | BI41: 479.26 | BJ41: 736.31 | BK41: 0 | BL41: 0 | BM41: 0 | BN41: 23649.34 | BO41: 44091.81 | BP41: 67741.15 | BQ41: 34708.65 | BR41: 3817.95 | BS41: 7635.9 | BT41: 53 | BU41: 19815.26 | BV41: 3817.95 | BW41: 2022-06-01 | BY41: 2023-04-01 | CB41: 0 | CC41: 2023-04-01 | DI41: =TRUNC(BQ41*CA41,2) ->  | DL41: 53 | DO41: 1 | DP41: 73631.67 | DQ41: 0 | DR41: 0 | DT41: 0 | DV41: Alimentar | DW41: 234360 | DX41: 76 | EB41: 0 | EC41: 0 | EF41: 2023-04-01 | EH41: 0 | EJ41: 2022-06-01 | EK41: 2023-04-01 | EM41: 0 | EN41: 0 | EO41: 0 | EP41: 0 | EQ41: 0 | ER41: 0 | ES41: 0 | ET41: 0 | EU41: 0 | EV41: 0 | EW41: 0 | FH41: 0 | FI41: 0 | FK41: 0 | LG41: 2022-06-01 | LH41: 2023-04-01 | LK41: 0 | LL41: 0 | LM41: 0 | LN41: 0 | LO41: 0 | LP41: 0 | LQ41: 0 | MB41: 0 | MC41: 0 | MD41: 0 | ME41: 0 | MF41: 0 | MG41: 0 | MH41: 0 | MI41: 0 | MJ41: 0 | MK41: 0 | ML41: 0 | MM41: 0 | MN41: 0 | MO41: 0 | MP41: 0 | MQ41: 0 | MR41: 0 | MS41: 0 | MT41: 0 | MU41: 0 | MV41: 0 | MW41: 0 | MX41: 0 | MY41: 0 | MZ41: 0 | NA41: 0 | NB41: 0 | NC41: 0 | ND41: 0 | NE41: 0 | NF41: 0 | NG41: 0 | NH41: 0 | NI41: 0 | NJ41: 0 | NK41: 0 | NL41: 0 | NM41: 0
A42: 36 | B42: PRC | C42: 9885 | D42: 2022/0177041-1 | E42: 0177041-28.2022.3.00.0000 | F42: 2022-06-08 | G42: ATUALIZAÇÃO JUNTADA | H42: MS 4.151/DF | I42: Mandado de Segurança 4.151/DF | J42: 1995/0038195-8 | K42: 1995-07-21 | L42: 1999-02-12 | M42: Administrativo - Servidor Público Civil - Reajustes de Remuneração, Proventos ou Pensão | N42: =IF(O42="-","-",VLOOKUP(O42,[2]VALIDAÇÃO!$N$4:$O$25,2,FALSE)) -> Ministério da Fazenda - Administração Direta | O42: 25101 | P42: UNIÃO | Q42: Mandado de Segurança 4.151/DF | R42: 2016/0144551-4 | S42: 2022-05-05 | T42: Lahire Fernandes Lima Filho | U42: 018.043.240-00 | V42: 1939-04-25 | W42: Servidor Público Civil Inativo | X42: Diferença de remuneração - 3,17% | Y42: Sim | Z42: Alimentar | AA42: 6 | AB42: Mota & Advogados Associados | AC42: 03.996.810/0001-38 | AD42: 1 | AE42: Mauro Menezes e Advogados | AF42: 32.901.423/0001-79 | AG42: 1 | AH42: Caputo, Bastos e Serra Advogados | AI42: 12.291.813/0001-67 | AJ42: 0 | AK42: x x x | AL42: x x x | AM42: Dedução de Honorários Contratuais | AN42: Não | AO42: Não | AP42: Não | AQ42: - | AR42: - | AS42: Não informada | AT42: Não Informada | AU42: Não | AV42: 2022-06-01 | AW42: 0 | AX42: 0 | AY42: 31965.54 | AZ42: 57368.1 | BA42: 89333.64 | BB42: 1917.93 | BC42: 3442.08 | BD42: 5360.01 | BE42: 319.65 | BF42: 573.68 | BG42: 893.33 | BH42: 319.65 | BI42: 573.68 | BJ42: 893.33 | BK42: 0 | BL42: 0 | BM42: 0 | BN42: 29408.31 | BO42: 52778.66 | BP42: 82186.97 | BQ42: 0 | BR42: 0 | BS42: 0 | BT42: 53 | BU42: 24818.87 | BV42: 0 | BW42: 2022-06-01 | BY42: 2023-04-01 | CB42: 0 | CC42: 2023-04-01 | DI42: =IF(BQ42=0,0,IF(H43="MS 4.151/DF",TRUNC(BQ42*CA43,2)+TRUNC(BQ42*CA43,2)*CB42/100,BQ42+(TRUNC(BQ42*VLOOKUP(AV42,[2]VALIDAÇÃO!$C$5:$D$15,2,FALSE)/100,2)))) -> 0 | DJ42: 0 | DK42: 0 | DL42: 53 | DN42: 0 | DO42: 1 | DP42: 89333.64 | DQ42: 0 | DR42: 0 | DT42: 0 | DV42: Alimentar | DW42: 234360 | DX42: 85 | EB42: 0 | EC42: 0 | EF42: 2023-04-01 | EH42: 0 | EJ42: 2022-06-01 | EK42: 2023-04-01 | EM42: 0 | EN42: 0 | EO42: 0 | EP42: 0 | EQ42: 0 | ER42: 0 | ES42: 0 | ET42: 0 | EU42: 0 | EV42: 0 | EW42: 0 | FH42: 0 | FI42: 0 | FK42: 0 | LG42: 2022-06-01 | LH42: 2023-04-01 | LK42: 0 | LL42: 0 | LM42: 0 | LN42: 0 | LO42: 0 | LP42: 0 | LQ42: 0 | MB42: 0 | MC42: 0 | MD42: 0 | ME42: 0 | MF42: 0 | MG42: 0 | MH42: 0 | MI42: 0 | MJ42: 0 | MK42: 0 | ML42: 0 | MM42: 0 | MN42: 0 | MO42: 0 | MP42: 0 | MQ42: 0 | MR42: 0 | MS42: 0 | MT42: 0 | MU42: 0 | MV42: 0 | MW42: 0 | MX42: 0 | MY42: 0 | MZ42: 0 | NA42: 0 | NB42: 0 | NC42: 0 | ND42: 0 | NE42: 0 | NF42: 0 | NG42: 0 | NH42: 0 | NI42: 0 | NJ42: 0 | NK42: 0 | NL42: 0 | NM42: 0
A43: 37 | B43: PRC | C43: 9886 | D43: 2022/0177052-4 | E43: 0177052-57.2022.3.00.0000 | F43: 2022-06-08 | G43: ATUALIZAÇÃO JUNTADA | H43: MS 4.151/DF | I43: Mandado de Segurança 4.151/DF | J43: 1995/0038195-8 | K43: 1995-07-21 | L43: 1999-02-12 | M43: Administrativo - Servidor Público Civil - Reajustes de Remuneração, Proventos ou Pensão | N43: =IF(O43="-","-",VLOOKUP(O43,[2]VALIDAÇÃO!$N$4:$O$25,2,FALSE)) -> Ministério da Fazenda - Administração Direta | O43: 25101 | P43: UNIÃO | Q43: Mandado de Segurança 4.151/DF | R43: 2016/0144655-0 | S43: 2022-05-10 | T43: Katuio Oyama Holloway | U43: 334.559.888-49 | V43: 1945-08-20 | W43: Servidor Público Civil Ativo | X43: Diferença de remuneração - 3,17% | Y43: Sim | Z43: Alimentar | AA43: 6 | AB43: Mota & Advogados Associados | AC43: 03.996.810/0001-38 | AD43: 1 | AE43: Mauro Menezes e Advogados | AF43: 32.901.423/0001-79 | AG43: 1 | AH43: Caputo, Bastos e Serra Advogados | AI43: 12.291.813/0001-67 | AJ43: 0 | AK43: x x x | AL43: x x x | AM43: Dedução de Honorários Contratuais | AN43: Não | AO43: Não | AP43: Não | AQ43: - | AR43: - | AS43: Não informada | AT43: Não Informada | AU43: Não | AV43: 2022-06-01 | AW43: 0 | AX43: 0 | AY43: 27111.78 | AZ43: 47210.11 | BA43: 74321.89 | BB43: 1626.7 | BC43: 2832.61 | BD43: 4459.31 | BE43: 271.11 | BF43: 472.1 | BG43: 743.21 | BH43: 271.11 | BI43: 472.1 | BJ43: 743.21 | BK43: 0 | BL43: 0 | BM43: 0 | BN43: 24942.86 | BO43: 43433.3 | BP43: 68376.16 | BQ43: 231.57 | BR43: 25.47 | BS43: 50.94 | BT43: 53 | BU43: 21166.05 | BV43: 25.47 | BW43: 2022-06-01 | BY43: 2023-04-01 | CB43: 0 | CC43: 2023-04-01 | DI43: =TRUNC(BQ43*CA43,2) ->  | DL43: 53 | DO43: 1 | DP43: 74321.89 | DQ43: 0 | DR43: 0 | DT43: 0 | DV43: Alimentar | DW43: 234360 | DX43: 79 | EB43: 0 | EC43: 0 | EF43: 2023-04-01 | EH43: 0 | EJ43: 2022-06-01 | EK43: 2023-04-01 | EM43: 0 | EN43: 0 | EO43: 0 | EP43: 0 | EQ43: 0 | ER43: 0 | ES43: 0 | ET43: 0 | EU43: 0 | EV43: 0 | EW43: 0 | FH43: 0 | FI43: 0 | FK43: 0 | LG43: 2022-06-01 | LH43: 2023-04-01 | LK43: 0 | LL43: 0 | LM43: 0 | LN43: 0 | LO43: 0 | LP43: 0 | LQ43: 0 | MB43: 0 | MC43: 0 | MD43: 0 | ME43: 0 | MF43: 0 | MG43: 0 | MH43: 0 | MI43: 0 | MJ43: 0 | MK43: 0 | ML43: 0 | MM43: 0 | MN43: 0 | MO43: 0 | MP43: 0 | MQ43: 0 | MR43: 0 | MS43: 0 | MT43: 0 | MU43: 0 | MV43: 0 | MW43: 0 | MX43: 0 | MY43: 0 | MZ43: 0 | NA43: 0 | NB43: 0 | NC43: 0 | ND43: 0 | NE43: 0 | NF43: 0 | NG43: 0 | NH43: 0 | NI43: 0 | NJ43: 0 | NK43: 0 | NL43: 0 | NM43: 0
A44: 38 | B44: PRC | C44: 9887 | D44: 2022/0177892-3 | E44: 0177892-67.2022.3.00.0000 | F44: 2022-06-08 | G44: ATUALIZAÇÃO JUNTADA | H44: MS 6.318/DF | I44: Mandado de Segurança 6.318/DF | J44: 1999/0035300-5 | K44: 1999-04-30 | L44: 2003-02-17 | M44: Administrativo - Servidor Público Civil - Reajustes de Remuneração, Proventos ou Pensão - Índice da URV Lei 8.880/1994 | N44: =IF(O44="-","-",VLOOKUP(O44,[2]VALIDAÇÃO!$N$4:$O$25,2,FALSE)) -> - | O44: - | P44: UNIÃO | Q44: Mandado de Segurança 6.318/DF | R44: 2010/0014824-5 | S44: 2020-11-23 | T44: Teixeira e Lopes Advogados Associados Sociedade Simples | U44: 02.993.181/0001-20 | V44: - | W44: - | X44: Honorários de sucumbência | Y44: Não | Z44: Alimentar | AA44: 0 | AB44: x x x | AC44: x x x | AD44: 0 | AE44: x x x | AF44: x x x | AG44: 0 | AH44: x x x | AI44: x x x | AJ44: 0 | AK44: x x x | AL44: x x x | AM44: x.x.x | AN44: Não | AO44: Não | AP44: Não | AQ44: - | AR44: - | AS44: Não informada | AT44: Não Informada | AU44: Não | AV44: 2022-06-01 | AW44: 0 | AX44: 0 | AY44: 12430.42 | AZ44: 0 | BA44: 12430.42 | BB44: 0 | BC44: 0 | BD44: 0 | BE44: 0 | BF44: 0 | BG44: 0 | BH44: 0 | BI44: 0 | BJ44: 0 | BK44: 0 | BL44: 0 | BM44: 0 | BN44: 12430.42 | BO44: 0 | BP44: 12430.42 | BQ44: 0 | BR44: 0 | BS44: 0 | BT44: - | BU44: 0 | BV44: 0 | BW44: 2022-06-01 | BY44: 2022-12-01 | CC44: 2023-04-01 | CD44: 0 | CE44: 12430.42 | CF44: 0 | CG44: 0 | CM44: 0 | DI44: =IF(BQ44=0,0,IF(H45="MS 4.151/DF",TRUNC(BQ44*CA45,2)+TRUNC(BQ44*CA45,2)*CB44/100,BQ44+(TRUNC(BQ44*VLOOKUP(AV44,[2]VALIDAÇÃO!$C$5:$D$15,2,FALSE)/100,2)))) -> 0 | DJ44: 0 | DK44: 0 | DL44: - | DM44: 0 | DN44: 0 | DO44: 1 | DP44: 12430.42 | DQ44: 0 | DR44: 0 | DT44: 0 | DV44: Alimentar | DW44: 234360 | DX44: 1 | DY44: 0 | EB44: 0 | EC44: 0 | EF44: 2023-04-01 | EH44: 0 | EJ44: 2022-06-01 | EK44: 2023-04-01 | EM44: 0 | EN44: 0 | EO44: 0 | EP44: 0 | EQ44: 0 | ER44: 0 | ES44: 0 | ET44: 0 | EU44: 0 | EV44: 0 | EW44: 0 | FH44: 0 | FI44: 0 | FK44: 0 | LG44: 2022-06-01 | LH44: 2023-04-01 | LK44: 0 | LL44: 0 | LM44: 0 | LN44: 0 | LO44: 0 | LP44: 0 | LQ44: 0 | MB44: 0 | MC44: 0 | MD44: 0 | ME44: 0 | MF44: 0 | MG44: 0 | MH44: 0 | MI44: 0 | MJ44: 0 | MK44: 0 | ML44: 0 | MM44: 0 | MN44: 0 | MO44: 0 | MP44: 0 | MQ44: 0 | MR44: 0 | MS44: 0 | MT44: 0 | MU44: 0 | MV44: 0 | MW44: 0 | MX44: 0 | MY44: 0 | MZ44: 0 | NA44: 0 | NB44: 0 | NC44: 0 | ND44: 0 | NE44: 0 | NF44: 0 | NG44: 0 | NH44: 0 | NI44: 0 | NJ44: 0 | NK44: 0 | NL44: 0 | NM44: 0
A45: 39 | B45: PRC | C45: 9888 | D45: 2022/0177893-5 | E45: 0177893-52.2022.3.00.0000 | F45: 2022-06-08 | G45: ATUALIZAÇÃO JUNTADA | H45: MS 6.318/DF | I45: Mandado de Segurança 6.318/DF | J45: 1999/0035300-5 | K45: 1999-04-30 | L45: 2003-02-17 | M45: Administrativo - Servidor Público Civil - Reajustes de Remuneração, Proventos ou Pensão - Índice da URV Lei 8.880/1994 | N45: =IF(O45="-","-",VLOOKUP(O45,[2]VALIDAÇÃO!$N$4:$O$25,2,FALSE)) -> - | O45: - | P45: UNIÃO | Q45: Mandado de Segurança 6.318/DF | R45: 2010/0014824-5 | S45: 2020-11-23 | T45: Mendes Plutarco Advocacia e Consultoria | U45: 17.171.343/0001-11 | V45: - | W45: - | X45: Honorários de sucumbência | Y45: Não | Z45: Alimentar | AA45: 0 | AB45: x x x | AC45: x x x | AD45: 0 | AE45: x x x | AF45: x x x | AG45: 0 | AH45: x x x | AI45: x x x | AJ45: 0 | AK45: x x x | AL45: x x x | AM45: x.x.x | AN45: Não | AO45: Não | AP45: Não | AQ45: - | AR45: - | AS45: Não informada | AT45: Não Informada | AU45: Não | AV45: 2022-06-01 | AW45: 0 | AX45: 0 | AY45: 12430.42 | AZ45: 0 | BA45: 12430.42 | BB45: 0 | BC45: 0 | BD45: 0 | BE45: 0 | BF45: 0 | BG45: 0 | BH45: 0 | BI45: 0 | BJ45: 0 | BK45: 0 | BL45: 0 | BM45: 0 | BN45: 12430.42 | BO45: 0 | BP45: 12430.42 | BQ45: 0 | BR45: 0 | BS45: 0 | BT45: - | BU45: 0 | BV45: 0 | BW45: 2022-06-01 | BY45: 2022-12-01 | CC45: 2023-04-01 | CD45: 0 | CE45: 12430.42 | CF45: 0 | CG45: 0 | CM45: 0 | DI45: =IF(BQ45=0,0,IF(H46="MS 4.151/DF",TRUNC(BQ45*CA46,2)+TRUNC(BQ45*CA46,2)*CB45/100,BQ45+(TRUNC(BQ45*VLOOKUP(AV45,[2]VALIDAÇÃO!$C$5:$D$15,2,FALSE)/100,2)))) -> 0 | DJ45: 0 | DK45: 0 | DL45: - | DM45: 0 | DN45: 0 | DO45: 1 | DP45: 12430.42 | DQ45: 0 | DR45: 0 | DT45: 0 | DV45: Alimentar | DW45: 234360 | DX45: 1 | DY45: 0 | EB45: 0 | EC45: 0 | EF45: 2023-04-01 | EH45: 0 | EJ45: 2022-06-01 | EK45: 2023-04-01 | EM45: 0 | EN45: 0 | EO45: 0 | EP45: 0 | EQ45: 0 | ER45: 0 | ES45: 0 | ET45: 0 | EU45: 0 | EV45: 0 | EW45: 0 | FH45: 0 | FI45: 0 | FK45: 0 | LG45: 2022-06-01 | LH45: 2023-04-01 | LK45: 0 | LL45: 0 | LM45: 0 | LN45: 0 | LO45: 0 | LP45: 0 | LQ45: 0 | MB45: 0 | MC45: 0 | MD45: 0 | ME45: 0 | MF45: 0 | MG45: 0 | MH45: 0 | MI45: 0 | MJ45: 0 | MK45: 0 | ML45: 0 | MM45: 0 | MN45: 0 | MO45: 0 | MP45: 0 | MQ45: 0 | MR45: 0 | MS45: 0 | MT45: 0 | MU45: 0 | MV45: 0 | MW45: 0 | MX45: 0 | MY45: 0 | MZ45: 0 | NA45: 0 | NB45: 0 | NC45: 0 | ND45: 0 | NE45: 0 | NF45: 0 | NG45: 0 | NH45: 0 | NI45: 0 | NJ45: 0 | NK45: 0 | NL45: 0 | NM45: 0
A46: 40 | B46: PRC | C46: 9889 | D46: 2022/0181174-0 | E46: 0181174-16.2022.3.00.0000 | F46: 2022-06-10 | G46: ATUALIZAÇÃO JUNTADA | H46: AR 1.169/CE | I46: Ação Rescisória 1.169/CE | J46: 1999/0096834-4 | K46: 1999-10-18 | L46: 2004-06-07 | M46: Administrativo - Servidor Público Civil - Sistema Remuneratório e Benefícios | N46: =IF(O46="-","-",VLOOKUP(O46,[2]VALIDAÇÃO!$N$4:$O$25,2,FALSE)) -> Instituto Nacional do Seguro Social | O46: 40201 | P46: Instituto Nacional do Seguro Social – INSS | Q46: Ação Rescisória 1.169/CE | R46: 2009/0056173-0 | S46: 2014-09-30 | T46: Yaponira de Souza | U46: 068.791.524-49 | V46: 1945-02-01 | W46: Servidor Público Civil Ativo | X46: Anuênios | Y46: Não | Z46: Alimentar | AA46: 20 | AB46: Glayddes Sindeaux Advogados | AC46: 17.291.820/0001-82 | AD46: 0 | AE46: x x x | AF46: x x x | AG46: 0 | AH46: x x x | AI46: x x x | AJ46: 0 | AK46: x x x | AL46: x x x | AM46: Dedução de Honorários Contratuais | AN46: Não | AO46: Não | AP46: Não | AQ46: - | AR46: - | AS46: Não informada | AT46: Não Informada | AU46: Não | AV46: 2022-06-01 | AW46: 1647.75 | AX46: 0 | AY46: 34276.58 | AZ46: 39367.65 | BA46: 73644.23 | BB46: 6855.31 | BC46: 7873.53 | BD46: 14728.84 | BE46: 0 | BF46: 0 | BG46: 0 | BH46: 0 | BI46: 0 | BJ46: 0 | BK46: 0 | BL46: 0 | BM46: 0 | BN46: 29069.02 | BO46: 29846.37 | BP46: 58915.39 | BQ46: 12605.87 | BR46: 1386.64 | BS46: 2773.28 | BT46: 47 | BU46: 19547.74 | BV46: 1386.64 | BW46: 2022-06-01 | BY46: 2022-12-01 | CC46: 2023-04-01 | CE46: 32628.83 | CF46: 39367.65 | CG46: 0 | CI46: 0 | CM46: 0 | DI46: =IF(BQ46=0,0,IF(H47="MS 4.151/DF",TRUNC(BQ46*CA47,2)+TRUNC(BQ46*CA47,2)*CB46/100,BQ46+(TRUNC(BQ46*VLOOKUP(AV46,[2]VALIDAÇÃO!$C$5:$D$15,2,FALSE)/100,2)))) -> 13949.65 | DJ46: 1534.46 | DK46: 3068.92 | DL46: 47 | DN46: 1534.46 | DO46: 1 | DP46: 73644.23 | DQ46: 0 | DR46: 0 | DT46: 0 | DV46: Alimentar | DW46: 234360 | DX46: 79 | EB46: 0 | EC46: 0 | EF46: 2023-04-01 | EH46: 0 | EJ46: 2021-12-01 | EK46: 2023-04-01 | EM46: 0 | EN46: 0 | EO46: 0 | EP46: 0 | EQ46: 0 | FH46: 0 | FI46: 0 | FK46: 0 | LG46: 2022-06-01 | LH46: 2023-04-01 | LK46: 0 | LL46: 0 | LM46: 0 | LN46: 0 | LO46: 0 | LP46: 0 | LQ46: 0 | MB46: 0 | MC46: 0 | MD46: 0 | ME46: 0 | MF46: 0 | MG46: 0 | MH46: 0 | MI46: 0 | MJ46: 0 | MK46: 0 | ML46: 0 | MM46: 0 | MN46: 0 | MO46: 0 | MP46: 0 | MQ46: 0 | MR46: 0 | MS46: 0 | MT46: 0 | MU46: 0 | MV46: 0 | MW46: 0 | MX46: 0 | MY46: 0 | MZ46: 0 | NA46: 0 | NB46: 0 | NC46: 0 | ND46: 0 | NE46: 0 | NF46: 0 | NG46: 0 | NH46: 0 | NI46: 0 | NJ46: 0 | NK46: 0 | NL46: 0 | NM46: 0
A47: 41 | B47: PRC | C47: 9890 | D47: 2022/0181175-2 | E47: 0181175-98.2022.3.00.0000 | F47: 2022-06-10 | G47: ATUALIZAÇÃO JUNTADA | H47: AR 1.169/CE | I47: Ação Rescisória 1.169/CE | J47: 1999/0096834-4 | K47: 1999-10-18 | L47: 2004-06-07 | M47: Administrativo - Servidor Público Civil - Sistema Remuneratório e Benefícios | N47: =IF(O47="-","-",VLOOKUP(O47,[2]VALIDAÇÃO!$N$4:$O$25,2,FALSE)) -> - | O47: - | P47: Instituto Nacional do Seguro Social – INSS | Q47: Ação Rescisória 1.169/CE | R47: 2009/0056173-0 | S47: 2014-09-30 | T47: Glayddes Sindeaux Advogados | U47: 17.291.820/0001-82 | V47: - | W47: - | X47: Honorários de sucumbência | Y47: Não | Z47: Alimentar | AA47: 0 | AB47: x x x | AC47: x x x | AD47: 0 | AE47: x x x | AF47: x x x | AG47: 0 | AH47: x x x | AI47: x x x | AJ47: 0 | AK47: x x x | AL47: x x x | AM47: x.x.x | AN47: Não | AO47: Não | AP47: Não | AQ47: - | AR47: - | AS47: Não informada | AT47: Não Informada | AU47: Não | AV47: 2022-06-01 | AW47: 0 | AX47: 0 | AY47: 2207.55 | AZ47: 0 | BA47: 2207.55 | BB47: 0 | BC47: 0 | BD47: 0 | BE47: 0 | BF47: 0 | BG47: 0 | BH47: 0 | BI47: 0 | BJ47: 0 | BK47: 0 | BL47: 0 | BM47: 0 | BN47: 2207.55 | BO47: 0 | BP47: 2207.55 | BQ47: 0 | BR47: 0 | BS47: 0 | BT47: - | BU47: 0 | BV47: 0 | BW47: 2022-06-01 | BY47: 2022-12-01 | CC47: 2023-04-01 | CD47: 0 | CE47: 2207.55 | CF47: 0 | CG47: 0 | CM47: 0 | DI47: =IF(BQ47=0,0,IF(H48="MS 4.151/DF",TRUNC(BQ47*CA48,2)+TRUNC(BQ47*CA48,2)*CB47/100,BQ47+(TRUNC(BQ47*VLOOKUP(AV47,[2]VALIDAÇÃO!$C$5:$D$15,2,FALSE)/100,2)))) -> 0 | DJ47: 0 | DK47: 0 | DL47: - | DM47: 0 | DN47: 0 | DO47: 1 | DP47: 2207.55 | DQ47: 0 | DR47: 0 | DT47: 0 | DV47: Alimentar | DW47: 234360 | DX47: 1 | DY47: 0 | EB47: 0 | EC47: 0 | EF47: 2023-04-01 | EH47: 0 | EJ47: 2022-06-01 | EK47: 2023-04-01 | EM47: 0 | EN47: 0 | EO47: 0 | EP47: 0 | EQ47: 0 | ER47: 0 | ES47: 0 | ET47: 0 | EU47: 0 | EV47: 0 | EW47: 0 | FH47: 0 | FI47: 0 | FK47: 0 | LG47: 2022-06-01 | LH47: 2023-04-01 | LK47: 0 | LL47: 0 | LM47: 0 | LN47: 0 | LO47: 0 | LP47: 0 | LQ47: 0 | MB47: 0 | MC47: 0 | MD47: 0 | ME47: 0 | MF47: 0 | MG47: 0 | MH47: 0 | MI47: 0 | MJ47: 0 | MK47: 0 | ML47: 0 | MM47: 0 | MN47: 0 | MO47: 0 | MP47: 0 | MQ47: 0 | MR47: 0 | MS47: 0 | MT47: 0 | MU47: 0 | MV47: 0 | MW47: 0 | MX47: 0 | MY47: 0 | MZ47: 0 | NA47: 0 | NB47: 0 | NC47: 0 | ND47: 0 | NE47: 0 | NF47: 0 | NG47: 0 | NH47: 0 | NI47: 0 | NJ47: 0 | NK47: 0 | NL47: 0 | NM47: 0
A48: 42 | B48: PRC | C48: 9891 | D48: 2022/0181176-4 | E48: 0181176-83.2022.3.00.0000 | F48: 2022-06-10 | G48: ATUALIZAÇÃO JUNTADA | H48: MS 4.151/DF | I48: Mandado de Segurança 4.151/DF | J48: 1995/0038195-8 | K48: 1995-07-21 | L48: 1999-02-12 | M48: Administrativo - Servidor Público Civil - Reajustes de Remuneração, Proventos ou Pensão | N48: =IF(O48="-","-",VLOOKUP(O48,[2]VALIDAÇÃO!$N$4:$O$25,2,FALSE)) -> Ministério da Fazenda - Administração Direta | O48: 25101 | P48: UNIÃO | Q48: Mandado de Segurança 4.151/DF | R48: 2016/0153149-4 | S48: 2022-05-10 | T48: Maria Angela de Britto Domingos | U48: 235.489.406-68 | V48: 1958-10-11 | W48: Servidor Público Civil Ativo | X48: Diferença de remuneração - 3,17% | Y48: Sim | Z48: Alimentar | AA48: 6 | AB48: Mota & Advogados Associados | AC48: 03.996.810/0001-38 | AD48: 1 | AE48: Mauro Menezes e Advogados | AF48: 32.901.423/0001-79 | AG48: 1 | AH48: Caputo, Bastos e Serra Advogados | AI48: 12.291.813/0001-67 | AJ48: 0 | AK48: x x x | AL48: x x x | AM48: Dedução de Honorários Contratuais | AN48: Não | AO48: Não | AP48: Não | AQ48: - | AR48: - | AS48: Não informada | AT48: Não Informada | AU48: Não | AV48: 2022-06-01 | AW48: 0 | AX48: 0 | AY48: 27743.91 | AZ48: 48287.38 | BA48: 76031.29 | BB48: 1664.63 | BC48: 2897.24 | BD48: 4561.87 | BE48: 277.43 | BF48: 482.88 | BG48: 760.31 | BH48: 277.43 | BI48: 482.88 | BJ48: 760.31 | BK48: 0 | BL48: 0 | BM48: 0 | BN48: 25524.42 | BO48: 44424.38 | BP48: 69948.8 | BQ48: 32423.58 | BR48: 3566.59 | BS48: 7133.18 | BT48: 53 | BU48: 21661.42 | BV48: 3566.59 | BW48: 2022-06-01 | BY48: 2023-04-01 | CB48: 0 | CC48: 2023-04-01 | DI48: =TRUNC(BQ48*CA48,2) ->  | DL48: 53 | DO48: 1 | DP48: 76031.29 | DQ48: 0 | DR48: 0 | DT48: 0 | DV48: Alimentar | DW48: 234360 | DX48: 66 | EB48: 0 | EC48: 0 | EF48: 2023-04-01 | EH48: 0 | EJ48: 2022-06-01 | EK48: 2023-04-01 | EM48: 0 | EN48: 0 | EO48: 0 | EP48: 0 | EQ48: 0 | ER48: 0 | ES48: 0 | ET48: 0 | EU48: 0 | EV48: 0 | EW48: 0 | FH48: 0 | FI48: 0 | FK48: 0 | LG48: 2022-06-01 | LH48: 2023-04-01 | LK48: 0 | LL48: 0 | LM48: 0 | LN48: 0 | LO48: 0 | LP48: 0 | LQ48: 0 | MB48: 0 | MC48: 0 | MD48: 0 | ME48: 0 | MF48: 0 | MG48: 0 | MH48: 0 | MI48: 0 | MJ48: 0 | MK48: 0 | ML48: 0 | MM48: 0 | MN48: 0 | MO48: 0 | MP48: 0 | MQ48: 0 | MR48: 0 | MS48: 0 | MT48: 0 | MU48: 0 | MV48: 0 | MW48: 0 | MX48: 0 | MY48: 0 | MZ48: 0 | NA48: 0 | NB48: 0 | NC48: 0 | ND48: 0 | NE48: 0 | NF48: 0 | NG48: 0 | NH48: 0 | NI48: 0 | NJ48: 0 | NK48: 0 | NL48: 0 | NM48: 0
A49: 43 | B49: PRC | C49: 9892 | D49: 2022/0181291-5 | E49: 0181291-07.2022.3.00.0000 | F49: 2022-06-10 | G49: ATUALIZAÇÃO JUNTADA | H49: MS 4.151/DF | I49: Mandado de Segurança 4.151/DF | J49: 1995/0038195-8 | K49: 1995-07-21 | L49: 1999-02-12 | M49: Administrativo - Servidor Público Civil - Reajustes de Remuneração, Proventos ou Pensão | N49: =IF(O49="-","-",VLOOKUP(O49,[2]VALIDAÇÃO!$N$4:$O$25,2,FALSE)) -> Ministério da Fazenda - Administração Direta | O49: 25101 | P49: UNIÃO | Q49: Mandado de Segurança 4.151/DF | R49: 2016/0153149-4 | S49: 2022-05-10 | T49: Maria Ana da Silva | U49: 257.513.107-30 | V49: 1946-07-12 | W49: Servidor Público Civil Inativo | X49: Diferença de remuneração - 3,17% | Y49: Sim | Z49: Alimentar | AA49: 9 | AB49: Mota & Advogados Associados | AC49: 03.996.810/0001-38 | AD49: 2 | AE49: Mauro Menezes e Advogados | AF49: 32.901.423/0001-79 | AG49: 1 | AH49: Caputo, Bastos e Serra Advogados | AI49: 12.291.813/0001-67 | AJ49: 0 | AK49: x x x | AL49: x x x | AM49: Dedução de Honorários Contratuais | AN49: Não | AO49: Não | AP49: Não | AQ49: - | AR49: - | AS49: Não informada | AT49: Não Informada | AU49: Não | AV49: 2022-06-01 | AW49: 0 | AX49: 0 | AY49: 27880.54 | AZ49: 50931.81 | BA49: 78812.35 | BB49: 2509.24 | BC49: 4583.87 | BD49: 7093.11 | BE49: 557.61 | BF49: 1018.63 | BG49: 1576.24 | BH49: 278.8 | BI49: 509.32 | BJ49: 788.12 | BK49: 0 | BL49: 0 | BM49: 0 | BN49: 24534.89 | BO49: 44819.99 | BP49: 69354.88 | BQ49: 0 | BR49: 0 | BS49: 0 | BT49: 53 | BU49: 18423.07 | BV49: 0 | BW49: 2022-06-01 | BY49: 2023-04-01 | CB49: 0 | CC49: 2023-04-01 | DI49: =IF(BQ49=0,0,IF(H50="MS 4.151/DF",TRUNC(BQ49*CA50,2)+TRUNC(BQ49*CA50,2)*CB49/100,BQ49+(TRUNC(BQ49*VLOOKUP(AV49,[2]VALIDAÇÃO!$C$5:$D$15,2,FALSE)/100,2)))) -> 0 | DJ49: 0 | DK49: 0 | DL49: 53 | DN49: 0 | DO49: 1 | DP49: 78812.35 | DQ49: 0 | DR49: 0 | DT49: 0 | DV49: Alimentar | DW49: 234360 | DX49: 78 | EB49: 0 | EC49: 0 | EF49: 2023-04-01 | EH49: 0 | EJ49: 2022-06-01 | EK49: 2023-04-01 | EM49: 0 | EN49: 0 | EO49: 0 | EP49: 0 | EQ49: 0 | ER49: 0 | ES49: 0 | ET49: 0 | EU49: 0 | EV49: 0 | EW49: 0 | FH49: 0 | FI49: 0 | FK49: 0 | LG49: 2022-06-01 | LH49: 2023-04-01 | LK49: 0 | LL49: 0 | LM49: 0 | LN49: 0 | LO49: 0 | LP49: 0 | LQ49: 0 | MB49: 0 | MC49: 0 | MD49: 0 | ME49: 0 | MF49: 0 | MG49: 0 | MH49: 0 | MI49: 0 | MJ49: 0 | MK49: 0 | ML49: 0 | MM49: 0 | MN49: 0 | MO49: 0 | MP49: 0 | MQ49: 0 | MR49: 0 | MS49: 0 | MT49: 0 | MU49: 0 | MV49: 0 | MW49: 0 | MX49: 0 | MY49: 0 | MZ49: 0 | NA49: 0 | NB49: 0 | NC49: 0 | ND49: 0 | NE49: 0 | NF49: 0 | NG49: 0 | NH49: 0 | NI49: 0 | NJ49: 0 | NK49: 0 | NL49: 0 | NM49: 0
A50: 44 | B50: PRC | C50: 9893 | D50: 2022/0181315-3 | E50: 0181315-35.2022.3.00.0000 | F50: 2022-06-10 | G50: ATUALIZAÇÃO JUNTADA | H50: MS 4.151/DF | I50: Mandado de Segurança 4.151/DF | J50: 1995/0038195-8 | K50: 1995-07-21 | L50: 1999-02-12 | M50: Administrativo - Servidor Público Civil - Reajustes de Remuneração, Proventos ou Pensão | N50: =IF(O50="-","-",VLOOKUP(O50,[2]VALIDAÇÃO!$N$4:$O$25,2,FALSE)) -> Ministério da Fazenda - Administração Direta | O50: 25101 | P50: UNIÃO | Q50: Mandado de Segurança 4.151/DF | R50: 2016/0153098-9 | S50: 2022-05-09 | T50: Luis Fernando Rettig | U50: 193.287.889-00 | V50: 1953-09-04 | W50: Servidor Público Civil Ativo | X50: Diferença de remuneração - 3,17% | Y50: Sim | Z50: Alimentar | AA50: 6 | AB50: Mota & Advogados Associados | AC50: 03.996.810/0001-38 | AD50: 1 | AE50: Mauro Menezes e Advogados | AF50: 32.901.423/0001-79 | AG50: 1 | AH50: Caputo, Bastos e Serra Advogados | AI50: 12.291.813/0001-67 | AJ50: 0 | AK50: x x x | AL50: x x x | AM50: Dedução de Honorários Contratuais | AN50: Não | AO50: Não | AP50: Não | AQ50: - | AR50: - | AS50: Não informada | AT50: Não Informada | AU50: Não | AV50: 2022-06-01 | AW50: 0 | AX50: 0 | AY50: 26900.24 | AZ50: 48525.14 | BA50: 75425.38 | BB50: 1614.01 | BC50: 2911.51 | BD50: 4525.52 | BE50: 269 | BF50: 485.25 | BG50: 754.25 | BH50: 269 | BI50: 485.25 | BJ50: 754.25 | BK50: 0 | BL50: 0 | BM50: 0 | BN50: 24748.23 | BO50: 44643.13 | BP50: 69391.36 | BQ50: 34264.35 | BR50: 3769.07 | BS50: 7538.14 | BT50: 53 | BU50: 20866.22 | BV50: 3769.07 | BW50: 2022-06-01 | BY50: 2023-04-01 | CB50: 0 | CC50: 2023-04-01 | DI50: =TRUNC(BQ50*CA50,2) ->  | DL50: 53 | DO50: 1 | DP50: 75425.38 | DQ50: 0 | DR50: 0 | DT50: 0 | DV50: Alimentar | DW50: 234360 | DX50: 71 | EB50: 0 | EC50: 0 | EF50: 2023-04-01 | EH50: 0 | EJ50: 2022-06-01 | EK50: 2023-04-01 | EM50: 0 | EN50: 0 | EO50: 0 | EP50: 0 | EQ50: 0 | ER50: 0 | ES50: 0 | ET50: 0 | EU50: 0 | EV50: 0 | EW50: 0 | FB50: =IF($EJ50="","",IF(FB$2>=$EK50,0,IF(FB$2>=$EJ50,FB$3,0))) ->  | FH50: 0 | FI50: 0 | FK50: 0 | LG50: 2022-06-01 | LH50: 2023-04-01 | LK50: 0 | LL50: 0 | LM50: 0 | LN50: 0 | LO50: 0 | LP50: 0 | LQ50: 0 | MB50: 0 | MC50: 0 | MD50: 0 | ME50: 0 | MF50: 0 | MG50: 0 | MH50: 0 | MI50: 0 | MJ50: 0 | MK50: 0 | ML50: 0 | MM50: 0 | MN50: 0 | MO50: 0 | MP50: 0 | MQ50: 0 | MR50: 0 | MS50: 0 | MT50: 0 | MU50: 0 | MV50: 0 | MW50: 0 | MX50: 0 | MY50: 0 | MZ50: 0 | NA50: 0 | NB50: 0 | NC50: 0 | ND50: 0 | NE50: 0 | NF50: 0 | NG50: 0 | NH50: 0 | NI50: 0 | NJ50: 0 | NK50: 0 | NL50: 0 | NM50: 0
A51: 45 | B51: PRC | C51: 9894 | D51: 2022/0182901-1 | E51: 0182901-10.2022.3.00.0000 | F51: 2022-06-13 | G51: ATUALIZAÇÃO JUNTADA | H51: MS 4.151/DF | I51: Mandado de Segurança 4.151/DF | J51: 1995/0038195-8 | K51: 1995-07-21 | L51: 1999-02-12 | M51: Administrativo - Servidor Público Civil - Reajustes de Remuneração, Proventos ou Pensão | N51: =IF(O51="-","-",VLOOKUP(O51,[2]VALIDAÇÃO!$N$4:$O$25,2,FALSE)) -> Ministério da Fazenda - Administração Direta | O51: 25101 | P51: UNIÃO | Q51: Mandado de Segurança 4.151/DF | R51: 2016/0156082-9 | S51: 2022-05-12 | T51: Masayoshi Okazaki | U51: 559.396.438-68 | V51: 1945-09-14 | W51: Servidor Público Civil Inativo | X51: Diferença de remuneração - 3,17% | Y51: Sim | Z51: Alimentar | AA51: 6 | AB51: Mota & Advogados Associados | AC51: 03.996.810/0001-38 | AD51: 1 | AE51: Mauro Menezes e Advogados | AF51: 32.901.423/0001-79 | AG51: 1 | AH51: Caputo, Bastos e Serra Advogados | AI51: 12.291.813/0001-67 | AJ51: 0 | AK51: x x x | AL51: x x x | AM51: Dedução de Honorários Contratuais | AN51: Não | AO51: Não | AP51: Não | AQ51: - | AR51: - | AS51: Não informada | AT51: Não Informada | AU51: Não | AV51: 2022-06-01 | AW51: 0 | AX51: 0 | AY51: 30771.5 | AZ51: 54230.24 | BA51: 85001.74 | BB51: 1846.29 | BC51: 3253.81 | BD51: 5100.1 | BE51: 307.71 | BF51: 542.3 | BG51: 850.01 | BH51: 307.71 | BI51: 542.3 | BJ51: 850.01 | BK51: 0 | BL51: 0 | BM51: 0 | BN51: 28309.79 | BO51: 49891.83 | BP51: 78201.62 | BQ51: 0 | BR51: 0 | BS51: 0 | BT51: 53 | BU51: 23971.38 | BV51: 0 | BW51: 2022-06-01 | BY51: 2023-04-01 | CB51: 0 | CC51: 2023-04-01 | DI51: =IF(BQ51=0,0,IF(H52="MS 4.151/DF",TRUNC(BQ51*CA52,2)+TRUNC(BQ51*CA52,2)*CB51/100,BQ51+(TRUNC(BQ51*VLOOKUP(AV51,[2]VALIDAÇÃO!$C$5:$D$15,2,FALSE)/100,2)))) -> 0 | DJ51: 0 | DK51: 0 | DL51: 53 | DN51: 0 | DO51: 1 | DP51: 85001.74 | DQ51: 0 | DR51: 0 | DT51: 0 | DV51: Alimentar | DW51: 234360 | DX51: 79 | EB51: 0 | EC51: 0 | EF51: 2023-04-01 | EH51: 0 | EJ51: 2022-06-01 | EK51: 2023-04-01 | EM51: =IF($EJ51="","",IF(EM$2>=$EK51,0,IF(EM$2>=$EJ51,EM$3,0))) -> 0 | EN51: 0 | EO51: 0 | EP51: 0 | EQ51: 0 | ER51: 0 | ES51: 0 | ET51: 0 | EU51: 0 | EV51: 0 | EW51: 0 | FH51: 0 | FI51: 0 | FK51: 0 | LG51: 2022-06-01 | LH51: 2023-04-01 | LK51: 0 | LL51: 0 | LM51: 0 | LN51: 0 | LO51: 0 | LP51: 0 | LQ51: 0 | MB51: 0 | MC51: 0 | MD51: 0 | ME51: 0 | MF51: 0 | MG51: 0 | MH51: 0 | MI51: 0 | MJ51: 0 | MK51: 0 | ML51: 0 | MM51: 0 | MN51: 0 | MO51: 0 | MP51: 0 | MQ51: 0 | MR51: 0 | MS51: 0 | MT51: 0 | MU51: 0 | MV51: 0 | MW51: 0 | MX51: 0 | MY51: 0 | MZ51: 0 | NA51: 0 | NB51: 0 | NC51: 0 | ND51: 0 | NE51: 0 | NF51: 0 | NG51: 0 | NH51: 0 | NI51: 0 | NJ51: 0 | NK51: 0 | NL51: 0 | NM51: 0
A52: 46 | B52: PRC | C52: 9895 | D52: 2022/0182912-4 | E52: 0182912-39.2022.3.00.0000 | F52: 2022-06-13 | G52: ATUALIZAÇÃO JUNTADA | H52: MS 4.151/DF | I52: Mandado de Segurança 4.151/DF | J52: 1995/0038195-8 | K52: 1995-07-21 | L52: 1999-02-12 | M52: Administrativo - Servidor Público Civil - Reajustes de Remuneração, Proventos ou Pensão | N52: =IF(O52="-","-",VLOOKUP(O52,[2]VALIDAÇÃO!$N$4:$O$25,2,FALSE)) -> Ministério da Fazenda - Administração Direta | O52: 25101 | P52: UNIÃO | Q52: Mandado de Segurança 4.151/DF | R52: 2016/0144502-1 | S52: 2022-05-05 | T52: Julieta Machado | U52: 401.452.048-04 | V52: 1938-10-23 | W52: Servidor Público Civil Inativo | X52: Diferença de remuneração - 3,17% | Y52: Sim | Z52: Alimentar | AA52: 6 | AB52: Mota & Advogados Associados | AC52: 03.996.810/0001-38 | AD52: 1 | AE52: Mauro Menezes e Advogados | AF52: 32.901.423/0001-79 | AG52: 1 | AH52: Caputo, Bastos e Serra Advogados | AI52: 12.291.813/0001-67 | AJ52: 0 | AK52: x x x | AL52: x x x | AM52: Dedução de Honorários Contratuais | AN52: Não | AO52: Não | AP52: Não | AQ52: - | AR52: - | AS52: Não informada | AT52: Não Informada | AU52: Não | AV52: 2022-06-01 | AW52: 0 | AX52: 0 | AY52: 31069.43 | AZ52: 54214.41 | BA52: 85283.84 | BB52: 1864.16 | BC52: 3252.87 | BD52: 5117.03 | BE52: 310.69 | BF52: 542.14 | BG52: 852.83 | BH52: 310.69 | BI52: 542.14 | BJ52: 852.83 | BK52: 0 | BL52: 0 | BM52: 0 | BN52: 28583.89 | BO52: 49877.26 | BP52: 78461.15 | BQ52: 0 | BR52: 0 | BS52: 0 | BT52: 53 | BU52: 24246.74 | BV52: 0 | BW52: 2022-06-01 | BY52: 2023-04-01 | CB52: 0 | CC52: 2023-04-01 | DI52: =IF(BQ52=0,0,IF(H53="MS 4.151/DF",TRUNC(BQ52*CA53,2)+TRUNC(BQ52*CA53,2)*CB52/100,BQ52+(TRUNC(BQ52*VLOOKUP(AV52,[2]VALIDAÇÃO!$C$5:$D$15,2,FALSE)/100,2)))) -> 0 | DJ52: 0 | DK52: 0 | DL52: 53 | DN52: 0 | DO52: 1 | DP52: 85283.84 | DQ52: 0 | DR52: 0 | DT52: 0 | DV52: Alimentar | DW52: 234360 | DX52: 86 | EB52: 0 | EC52: 0 | EF52: 2023-04-01 | EH52: 0 | EJ52: 2022-06-01 | EK52: 2023-04-01 | EM52: 0 | EN52: 0 | EO52: 0 | EP52: 0 | EQ52: 0 | ER52: 0 | ES52: 0 | ET52: 0 | EU52: 0 | EV52: 0 | EW52: 0 | FH52: 0 | FI52: 0 | FK52: 0 | LG52: 2022-06-01 | LH52: 2023-04-01 | LK52: 0 | LL52: 0 | LM52: 0 | LN52: 0 | LO52: 0 | LP52: 0 | LQ52: 0 | MB52: 0 | MC52: 0 | MD52: 0 | ME52: 0 | MF52: 0 | MG52: 0 | MH52: 0 | MI52: 0 | MJ52: 0 | MK52: 0 | ML52: 0 | MM52: 0 | MN52: 0 | MO52: 0 | MP52: 0 | MQ52: 0 | MR52: 0 | MS52: 0 | MT52: 0 | MU52: 0 | MV52: 0 | MW52: 0 | MX52: 0 | MY52: 0 | MZ52: 0 | NA52: 0 | NB52: 0 | NC52: 0 | ND52: 0 | NE52: 0 | NF52: 0 | NG52: 0 | NH52: 0 | NI52: 0 | NJ52: 0 | NK52: 0 | NL52: 0 | NM52: 0
A53: 47 | B53: PRC | C53: 9896 | D53: 2022/0184291-7 | E53: 0184291-15.2022.3.00.0000 | F53: 2022-06-14 | G53: ATUALIZAÇÃO JUNTADA | H53: MS 4.151/DF | I53: Mandado de Segurança 4.151/DF | J53: 1995/0038195-8 | K53: 1995-07-21 | L53: 1999-02-12 | M53: Administrativo - Servidor Público Civil - Reajustes de Remuneração, Proventos ou Pensão | N53: =IF(O53="-","-",VLOOKUP(O53,[2]VALIDAÇÃO!$N$4:$O$25,2,FALSE)) -> Ministério da Fazenda - Administração Direta | O53: 25101 | P53: UNIÃO | Q53: Mandado de Segurança 4.151/DF | R53: 2016/0155781-7 | S53: 2022-05-10 | T53: Maria Luiza De Souza Marafuz | U53: 022.574.328-00 | V53: 1929-07-30 | W53: Servidor Público Civil Inativo | X53: Diferença de remuneração - 3,17% | Y53: Sim | Z53: Alimentar | AA53: 6 | AB53: Mota & Advogados Associados | AC53: 03.996.810/0001-38 | AD53: 1 | AE53: Mauro Menezes e Advogados | AF53: 32.901.423/0001-79 | AG53: 1 | AH53: Caputo, Bastos e Serra Advogados | AI53: 12.291.813/0001-67 | AJ53: 0 | AK53: x x x | AL53: x x x | AM53: Dedução de Honorários Contratuais | AN53: Não | AO53: Não | AP53: Não | AQ53: - | AR53: - | AS53: Não informada | AT53: Não Informada | AU53: Não | AV53: 2022-06-01 | AW53: 0 | AX53: 0 | AY53: 28404.45 | AZ53: 51984.33 | BA53: 80388.78 | BB53: 1704.26 | BC53: 3119.06 | BD53: 4823.32 | BE53: 284.04 | BF53: 519.84 | BG53: 803.88 | BH53: 284.04 | BI53: 519.84 | BJ53: 803.88 | BK53: 0 | BL53: 0 | BM53: 0 | BN53: 26132.11 | BO53: 47825.59 | BP53: 73957.7 | BQ53: 0 | BR53: 0 | BS53: 0 | BT53: 53 | BU53: 21973.37 | BV53: 0 | BW53: 2022-06-01 | BY53: 2023-04-01 | CB53: 0 | CC53: 2023-04-01 | DI53: =IF(BQ53=0,0,IF(H54="MS 4.151/DF",TRUNC(BQ53*CA54,2)+TRUNC(BQ53*CA54,2)*CB53/100,BQ53+(TRUNC(BQ53*VLOOKUP(AV53,[2]VALIDAÇÃO!$C$5:$D$15,2,FALSE)/100,2)))) -> 0 | DJ53: 0 | DK53: 0 | DL53: 53 | DN53: 0 | DO53: 1 | DP53: 80388.78 | DQ53: 0 | DR53: 0 | DT53: 0 | DV53: Alimentar | DW53: 234360 | DX53: 95 | EB53: 0 | EC53: 0 | EF53: 2023-04-01 | EH53: 0 | EJ53: 2022-06-01 | EK53: 2023-04-01 | EM53: 0 | EN53: 0 | EO53: 0 | EP53: 0 | EQ53: 0 | ER53: 0 | ES53: 0 | ET53: 0 | EU53: 0 | EV53: 0 | EW53: 0 | FH53: 0 | FI53: 0 | FK53: 0 | LG53: 2022-06-01 | LH53: 2023-04-01 | LK53: 0 | LL53: 0 | LM53: 0 | LN53: 0 | LO53: 0 | LP53: 0 | LQ53: 0 | MB53: 0 | MC53: 0 | MD53: 0 | ME53: 0 | MF53: 0 | MG53: 0 | MH53: 0 | MI53: 0 | MJ53: 0 | MK53: 0 | ML53: 0 | MM53: 0 | MN53: 0 | MO53: 0 | MP53: 0 | MQ53: 0 | MR53: 0 | MS53: 0 | MT53: 0 | MU53: 0 | MV53: 0 | MW53: 0 | MX53: 0 | MY53: 0 | MZ53: 0 | NA53: 0 | NB53: 0 | NC53: 0 | ND53: 0 | NE53: 0 | NF53: 0 | NG53: 0 | NH53: 0 | NI53: 0 | NJ53: 0 | NK53: 0 | NL53: 0 | NM53: 0
A54: 48 | B54: PRC | C54: 9897 | D54: 2022/0184710-9 | E54: 0184710-35.2022.3.00.0000 | F54: 2022-06-14 | G54: ATUALIZAÇÃO JUNTADA | H54: MS 4.151/DF | I54: Mandado de Segurança 4.151/DF | J54: 1995/0038195-8 | K54: 1995-07-21 | L54: 1999-02-12 | M54: Administrativo - Servidor Público Civil - Reajustes de Remuneração, Proventos ou Pensão | N54: =IF(O54="-","-",VLOOKUP(O54,[2]VALIDAÇÃO!$N$4:$O$25,2,FALSE)) -> Ministério da Fazenda - Administração Direta | O54: 25101 | P54: UNIÃO | Q54: Mandado de Segurança 4.151/DF | R54: 2016/0157043-4 | S54: 2022-05-12 | T54: Nair Freitas Cavezale | U54: 029.974.448-53 | V54: 1932-07-30 | W54: Servidor Público Civil Inativo | X54: Diferença de remuneração - 3,17% | Y54: Sim | Z54: Alimentar | AA54: 6 | AB54: Mota & Advogados Associados | AC54: 03.996.810/0001-38 | AD54: 1 | AE54: Mauro Menezes e Advogados | AF54: 32.901.423/0001-79 | AG54: 1 | AH54: Caputo, Bastos e Serra Advogados | AI54: 12.291.813/0001-67 | AJ54: 0 | AK54: x x x | AL54: x x x | AM54: Dedução de Honorários Contratuais | AN54: Não | AO54: Não | AP54: Não | AQ54: - | AR54: - | AS54: Não informada | AT54: Não Informada | AU54: Não | AV54: 2022-06-01 | AW54: 0 | AX54: 0 | AY54: 31626.52 | AZ54: 55269.55 | BA54: 86896.07 | BB54: 1897.59 | BC54: 3316.17 | BD54: 5213.76 | BE54: 316.26 | BF54: 552.7 | BG54: 868.96 | BH54: 316.26 | BI54: 552.7 | BJ54: 868.96 | BK54: 0 | BL54: 0 | BM54: 0 | BN54: 29096.41 | BO54: 50847.98 | BP54: 79944.39 | BQ54: 0 | BR54: 0 | BS54: 0 | BT54: 53 | BU54: 24674.84 | BV54: 0 | BW54: 2022-06-01 | BY54: 2023-04-01 | CB54: 0 | CC54: 2023-04-01 | DI54: =IF(BQ54=0,0,IF(H55="MS 4.151/DF",TRUNC(BQ54*CA55,2)+TRUNC(BQ54*CA55,2)*CB54/100,BQ54+(TRUNC(BQ54*VLOOKUP(AV54,[2]VALIDAÇÃO!$C$5:$D$15,2,FALSE)/100,2)))) -> 0 | DJ54: 0 | DK54: 0 | DL54: 53 | DN54: 0 | DO54: 1 | DP54: 86896.07 | DQ54: 0 | DR54: 0 | DT54: 0 | DV54: Alimentar | DW54: 234360 | DX54: 92 | EB54: 0 | EC54: 0 | EF54: 2023-04-01 | EH54: 0 | EJ54: 2022-06-01 | EK54: 2023-04-01 | EM54: 0 | EN54: 0 | EO54: 0 | EP54: 0 | EQ54: 0 | ER54: 0 | ES54: 0 | ET54: 0 | EU54: 0 | EV54: 0 | EW54: 0 | FH54: 0 | FI54: 0 | FK54: 0 | LG54: 2022-06-01 | LH54: 2023-04-01 | LK54: 0 | LL54: 0 | LM54: 0 | LN54: 0 | LO54: 0 | LP54: 0 | LQ54: 0 | LZ54: =IF(LZ$4=$LG54,0,IF(AND(LZ$4>=$LG54,LZ$4<=$LH54),LZ$5,0)) ->  | MB54: 0 | MC54: 0 | MD54: 0 | ME54: 0 | MF54: 0 | MG54: 0 | MH54: 0 | MI54: 0 | MJ54: 0 | MK54: 0 | ML54: 0 | MM54: 0 | MN54: 0 | MO54: 0 | MP54: =IF(MP$4=$LG54,0,IF(AND(MP$4>=$LG54,MP$4<=$LH54),MP$5,0)) -> 0 | MQ54: 0 | MR54: 0 | MS54: 0 | MT54: 0 | MU54: 0 | MV54: 0 | MW54: 0 | MX54: 0 | MY54: 0 | MZ54: 0 | NA54: 0 | NB54: 0 | NC54: 0 | ND54: 0 | NE54: 0 | NF54: 0 | NG54: 0 | NH54: 0 | NI54: 0 | NJ54: 0 | NK54: 0 | NL54: 0 | NM54: 0
A55: 49 | B55: PRC | C55: 9898 | D55: 2022/0184729-6 | E55: 0184729-41.2022.3.00.0000 | F55: 2022-06-14 | G55: ATUALIZAÇÃO JUNTADA | H55: MS 4.151/DF | I55: Mandado de Segurança 4.151/DF | J55: 1995/0038195-8 | K55: 1995-07-21 | L55: 1999-02-12 | M55: Administrativo - Servidor Público Civil - Reajustes de Remuneração, Proventos ou Pensão | N55: =IF(O55="-","-",VLOOKUP(O55,[2]VALIDAÇÃO!$N$4:$O$25,2,FALSE)) -> Ministério da Fazenda - Administração Direta | O55: 25101 | P55: UNIÃO | Q55: Mandado de Segurança 4.151/DF | R55: 2016/0157049-5 | S55: 2022-05-11 | T55: Neide Helena Martins | U55: 370.777.758-87 | V55: 1943-03-16 | W55: Servidor Público Civil Ativo | X55: Diferença de remuneração - 3,17% | Y55: Sim | Z55: Alimentar | AA55: 6 | AB55: Mota & Advogados Associados | AC55: 03.996.810/0001-38 | AD55: 1 | AE55: Mauro Menezes e Advogados | AF55: 32.901.423/0001-79 | AG55: 1 | AH55: Caputo, Bastos e Serra Advogados | AI55: 12.291.813/0001-67 | AJ55: 0 | AK55: x x x | AL55: x x x | AM55: Dedução de Honorários Contratuais | AN55: Não | AO55: Não | AP55: Não | AQ55: - | AR55: - | AS55: Não informada | AT55: Não Informada | AU55: Não | AV55: 2022-06-01 | AW55: 0 | AX55: 0 | AY55: 26987.67 | AZ55: 46807.07 | BA55: 73794.74 | BB55: 1619.26 | BC55: 2808.42 | BD55: 4427.68 | BE55: 269.87 | BF55: 468.07 | BG55: 737.94 | BH55: 269.87 | BI55: 468.07 | BJ55: 737.94 | BK55: 0 | BL55: 0 | BM55: 0 | BN55: 24828.67 | BO55: 43062.51 | BP55: 67891.18 | BQ55: 25264.32 | BR55: 2779.07 | BS55: 5558.14 | BT55: 53 | BU55: 21084.11 | BV55: 2779.07 | BW55: 2022-06-01 | BY55: 2023-04-01 | CB55: 0 | CC55: 2023-04-01 | DI55: =TRUNC(BQ55*CA55,2) ->  | DL55: 53 | DO55: 1 | DP55: 73794.74 | DQ55: 0 | DR55: 0 | DT55: 0 | DV55: Alimentar | DW55: 234360 | DX55: 81 | EB55: 0 | EC55: 0 | EF55: 2023-04-01 | EH55: 0 | EJ55: 2022-06-01 | EK55: 2023-04-01 | EM55: 0 | EN55: 0 | EO55: 0 | EP55: 0 | EQ55: 0 | ER55: 0 | ES55: 0 | ET55: 0 | EU55: 0 | EV55: 0 | EW55: 0 | FH55: 0 | FI55: 0 | FK55: 0 | LG55: 2022-06-01 | LH55: 2023-04-01 | LK55: =IF(LK$4=$LG55,0,IF(AND(LK$4>=$LG55,LK$4<=$LH55),LK$5,0)) -> 0 | LL55: 0 | LM55: 0 | LN55: 0 | LO55: 0 | LP55: 0 | LQ55: 0 | MB55: 0 | MC55: 0 | MD55: 0 | ME55: 0 | MF55: 0 | MG55: 0 | MH55: 0 | MI55: 0 | MJ55: 0 | MK55: 0 | ML55: 0 | MM55: 0 | MN55: 0 | MO55: 0 | MP55: 0 | MQ55: 0 | MR55: 0 | MS55: 0 | MT55: 0 | MU55: 0 | MV55: 0 | MW55: 0 | MX55: 0 | MY55: 0 | MZ55: 0 | NA55: 0 | NB55: 0 | NC55: 0 | ND55: 0 | NE55: 0 | NF55: =IF(NF$4=$LG55,0,IF(AND(NF$4>=$LG55,NF$4<=$LH55),NF$5,0)) -> 0 | NG55: 0 | NH55: 0 | NI55: 0 | NJ55: 0 | NK55: 0 | NL55: 0 | NM55: 0
A56: 50 | B56: PRC | C56: 9899 | D56: 2022/0186108-8 | E56: 0186108-17.2022.3.00.0000 | F56: 2022-06-15 | G56: ATUALIZAÇÃO JUNTADA | H56: MS 4.151/DF | I56: Mandado de Segurança 4.151/DF | J56: 1995/0038195-8 | K56: 1995-07-21 | L56: 1999-02-12 | M56: Administrativo - Servidor Público Civil - Reajustes de Remuneração, Proventos ou Pensão | N56: =IF(O56="-","-",VLOOKUP(O56,[2]VALIDAÇÃO!$N$4:$O$25,2,FALSE)) -> Ministério da Fazenda - Administração Direta | O56: 25101 | P56: UNIÃO | Q56: Mandado de Segurança 4.151/DF | R56: 2016/0157146-8 | S56: 2022-05-12 | T56: Nilton Antônio Casaroli | U56: 133.815.800-78 | V56: 1952-09-04 | W56: Servidor Público Civil Ativo | X56: Diferença de remuneração - 3,17% | Y56: Sim | Z56: Alimentar | AA56: 6 | AB56: Mota & Advogados Associados | AC56: 03.996.810/0001-38 | AD56: 1 | AE56: Mauro Menezes e Advogados | AF56: 32.901.423/0001-79 | AG56: 1 | AH56: Caputo, Bastos e Serra Advogados | AI56: 12.291.813/0001-67 | AJ56: 0 | AK56: x x x | AL56: x x x | AM56: Dedução de Honorários Contratuais | AN56: Não | AO56: Não | AP56: Não | AQ56: - | AR56: - | AS56: Não informada | AT56: Não Informada | AU56: Não | AV56: 2022-06-01 | AW56: 0 | AX56: 0 | AY56: 27070.65 | AZ56: 46174.73 | BA56: 73245.38 | BB56: 1624.23 | BC56: 2770.49 | BD56: 4394.72 | BE56: 270.7 | BF56: 461.75 | BG56: 732.45 | BH56: 270.7 | BI56: 461.75 | BJ56: 732.45 | BK56: 0 | BL56: 0 | BM56: 0 | BN56: 24905.02 | BO56: 42480.74 | BP56: 67385.76 | BQ56: 30118.82 | BR56: 3313.07 | BS56: 6626.14 | BT56: 53 | BU56: 21211.03 | BV56: 3313.07 | BW56: 2022-06-01 | BY56: 2023-04-01 | CB56: 0 | CC56: 2023-04-01 | DI56: =TRUNC(BQ56*CA56,2) ->  | DL56: 53 | DO56: 1 | DP56: 73245.38 | DQ56: 0 | DR56: 0 | DT56: 0 | DV56: Alimentar | DW56: 234360 | DX56: 72 | EB56: 0 | EC56: 0 | EF56: 2023-04-01 | EH56: 0 | EJ56: 2022-06-01 | EK56: 2023-04-01 | EM56: 0 | EN56: 0 | EO56: 0 | EP56: 0 | EQ56: 0 | ER56: 0 | ES56: 0 | ET56: 0 | EU56: 0 | EV56: 0 | EW56: 0 | FH56: 0 | FI56: 0 | FK56: 0 | LG56: 2022-06-01 | LH56: 2023-04-01 | LK56: 0 | LL56: 0 | LM56: 0 | LN56: 0 | LO56: 0 | LP56: 0 | LQ56: 0 | MB56: 0 | MC56: 0 | MD56: 0 | ME56: 0 | MF56: 0 | MG56: 0 | MH56: 0 | MI56: 0 | MJ56: 0 | MK56: 0 | ML56: 0 | MM56: 0 | MN56: 0 | MO56: 0 | MP56: 0 | MQ56: 0 | MR56: 0 | MS56: 0 | MT56: 0 | MU56: 0 | MV56: 0 | MW56: 0 | MX56: 0 | MY56: 0 | MZ56: 0 | NA56: 0 | NB56: 0 | NC56: 0 | ND56: 0 | NE56: 0 | NF56: 0 | NG56: 0 | NH56: 0 | NI56: 0 | NJ56: 0 | NK56: 0 | NL56: 0 | NM56: 0
A57: 51 | B57: PRC | C57: 9900 | D57: 2022/0186134-3 | E57: 0186134-15.2022.3.00.0000 | F57: 2022-06-15 | G57: ATUALIZAÇÃO JUNTADA | H57: MS 4.151/DF | I57: Mandado de Segurança 4.151/DF | J57: 1995/0038195-8 | K57: 1995-07-21 | L57: 1999-02-12 | M57: Administrativo - Servidor Público Civil - Reajustes de Remuneração, Proventos ou Pensão | N57: =IF(O57="-","-",VLOOKUP(O57,[2]VALIDAÇÃO!$N$4:$O$25,2,FALSE)) -> Ministério da Fazenda - Administração Direta | O57: 25101 | P57: UNIÃO | Q57: Mandado de Segurança 4.151/DF | R57: 2016/0157169-5 | S57: 2022-05-12 | T57: Norma dos Santos | U57: 270.044.497-34 | V57: 1945-01-19 | W57: Servidor Público Civil Inativo | X57: Diferença de remuneração - 3,17% | Y57: Sim | Z57: Alimentar | AA57: 6 | AB57: Mota & Advogados Associados | AC57: 03.996.810/0001-38 | AD57: 1 | AE57: Mauro Menezes e Advogados | AF57: 32.901.423/0001-79 | AG57: 1 | AH57: Caputo, Bastos e Serra Advogados | AI57: 12.291.813/0001-67 | AJ57: 0 | AK57: x x x | AL57: x x x | AM57: Dedução de Honorários Contratuais | AN57: Não | AO57: Não | AP57: Não | AQ57: - | AR57: - | AS57: Não informada | AT57: Não Informada | AU57: Não | AV57: 2022-06-01 | AW57: 0 | AX57: 0 | AY57: 27783.15 | AZ57: 48090.75 | BA57: 75873.9 | BB57: 1666.98 | BC57: 2885.45 | BD57: 4552.43 | BE57: 277.83 | BF57: 480.9 | BG57: 758.73 | BH57: 277.83 | BI57: 480.9 | BJ57: 758.73 | BK57: 0 | BL57: 0 | BM57: 0 | BN57: 25560.51 | BO57: 44243.5 | BP57: 69804.01 | BQ57: 0 | BR57: 0 | BS57: 0 | BT57: 53 | BU57: 21713.26 | BV57: 0 | BW57: 2022-06-01 | BY57: 2023-04-01 | CB57: 0 | CC57: 2023-04-01 | DI57: =IF(BQ57=0,0,IF(H58="MS 4.151/DF",TRUNC(BQ57*CA58,2)+TRUNC(BQ57*CA58,2)*CB57/100,BQ57+(TRUNC(BQ57*VLOOKUP(AV57,[2]VALIDAÇÃO!$C$5:$D$15,2,FALSE)/100,2)))) -> 0 | DJ57: 0 | DK57: 0 | DL57: 53 | DN57: 0 | DO57: 1 | DP57: 75873.9 | DQ57: 0 | DR57: 0 | DT57: 0 | DV57: Alimentar | DW57: 234360 | DX57: 79 | EB57: 0 | EC57: 0 | EF57: 2023-04-01 | EH57: 0 | EJ57: 2022-06-01 | EK57: 2023-04-01 | EM57: 0 | EN57: 0 | EO57: 0 | EP57: 0 | EQ57: 0 | ER57: 0 | ES57: 0 | ET57: 0 | EU57: 0 | EV57: 0 | EW57: 0 | FH57: 0 | FI57: 0 | FK57: 0 | LG57: 2022-06-01 | LH57: 2023-04-01 | LK57: 0 | LL57: 0 | LM57: 0 | LN57: 0 | LO57: 0 | LP57: 0 | LQ57: 0 | MB57: 0 | MC57: 0 | MD57: 0 | ME57: 0 | MF57: 0 | MG57: 0 | MH57: 0 | MI57: 0 | MJ57: 0 | MK57: 0 | ML57: 0 | MM57: 0 | MN57: 0 | MO57: 0 | MP57: 0 | MQ57: 0 | MR57: 0 | MS57: 0 | MT57: 0 | MU57: 0 | MV57: 0 | MW57: 0 | MX57: 0 | MY57: 0 | MZ57: 0 | NA57: 0 | NB57: 0 | NC57: 0 | ND57: 0 | NE57: 0 | NF57: 0 | NG57: 0 | NH57: 0 | NI57: 0 | NJ57: 0 | NK57: 0 | NL57: 0 | NM57: 0
A58: 52 | B58: PRC | C58: 9901 | D58: 2022/0186139-2 | E58: 0186139-37.2022.3.00.0000 | F58: 2022-06-15 | G58: ATUALIZAÇÃO JUNTADA | H58: MS 4.151/DF | I58: Mandado de Segurança 4.151/DF | J58: 1995/0038195-8 | K58: 1995-07-21 | L58: 1999-02-12 | M58: Administrativo - Servidor Público Civil - Reajustes de Remuneração, Proventos ou Pensão | N58: =IF(O58="-","-",VLOOKUP(O58,[2]VALIDAÇÃO!$N$4:$O$25,2,FALSE)) -> Ministério da Fazenda - Administração Direta | O58: 25101 | P58: UNIÃO | Q58: Mandado de Segurança 4.151/DF | R58: 2016/0157169-5 | S58: 2022-05-12 | T58: Norma Regina Marar | U58: 015.735.998-08 | V58: 1956-02-23 | W58: Servidor Público Civil Ativo | X58: Diferença de remuneração - 3,17% | Y58: Sim | Z58: Alimentar | AA58: 6 | AB58: Mota & Advogados Associados | AC58: 03.996.810/0001-38 | AD58: 1 | AE58: Mauro Menezes e Advogados | AF58: 32.901.423/0001-79 | AG58: 1 | AH58: Caputo, Bastos e Serra Advogados | AI58: 12.291.813/0001-67 | AJ58: 0 | AK58: x x x | AL58: x x x | AM58: Dedução de Honorários Contratuais | AN58: Não | AO58: Não | AP58: Não | AQ58: - | AR58: - | AS58: Não informada | AT58: Não Informada | AU58: Não | AV58: 2022-06-01 | AW58: 0 | AX58: 0 | AY58: 26581.68 | AZ58: 46250.02 | BA58: 72831.7 | BB58: 1594.9 | BC58: 2775 | BD58: 4369.9 | BE58: 265.81 | BF58: 462.5 | BG58: 728.31 | BH58: 265.81 | BI58: 462.5 | BJ58: 728.31 | BK58: 0 | BL58: 0 | BM58: 0 | BN58: 24455.16 | BO58: 42550.02 | BP58: 67005.18 | BQ58: 30908.16 | BR58: 3399.89 | BS58: 6799.78 | BT58: 53 | BU58: 20755.16 | BV58: 3399.89 | BW58: 2022-06-01 | BY58: 2023-04-01 | CB58: 0 | CC58: 2023-04-01 | DI58: =IF(BQ58=0,0,IF(H59="MS 4.151/DF",TRUNC(BQ58*CA59,2)+TRUNC(BQ58*CA59,2)*CB58/100,BQ58+(TRUNC(BQ58*VLOOKUP(AV58,[2]VALIDAÇÃO!$C$5:$D$15,2,FALSE)/100,2)))) ->  | DL58: 53 | DO58: 1 | DP58: 72831.7 | DQ58: 0 | DR58: 0 | DT58: 0 | DV58: Alimentar | DW58: 234360 | DX58: 68 | EB58: 0 | EC58: 0 | EF58: 2023-04-01 | EH58: 0 | EJ58: 2022-06-01 | EK58: 2023-04-01 | EM58: 0 | EN58: 0 | EO58: 0 | EP58: 0 | EQ58: 0 | ER58: 0 | ES58: 0 | ET58: 0 | EU58: 0 | EV58: 0 | EW58: 0 | FH58: 0 | FI58: 0 | FK58: 0 | LG58: 2022-06-01 | LH58: 2023-04-01 | LK58: 0 | LL58: 0 | LM58: 0 | LN58: 0 | LO58: 0 | LP58: 0 | LQ58: 0 | MB58: 0 | MC58: 0 | MD58: 0 | ME58: 0 | MF58: 0 | MG58: 0 | MH58: 0 | MI58: 0 | MJ58: 0 | MK58: 0 | ML58: 0 | MM58: 0 | MN58: 0 | MO58: 0 | MP58: 0 | MQ58: 0 | MR58: 0 | MS58: 0 | MT58: 0 | MU58: 0 | MV58: 0 | MW58: 0 | MX58: 0 | MY58: 0 | MZ58: 0 | NA58: 0 | NB58: 0 | NC58: 0 | ND58: 0 | NE58: 0 | NF58: 0 | NG58: 0 | NH58: 0 | NI58: 0 | NJ58: 0 | NK58: 0 | NL58: 0 | NM58: 0
A59: 53 | B59: PRC | C59: 9902 | D59: 2022/0186163-4 | E59: 0186163-65.2022.3.00.0000 | F59: 2022-06-15 | G59: ATUALIZAÇÃO JUNTADA | H59: MS 4.151/DF | I59: Mandado de Segurança 4.151/DF | J59: 1995/0038195-8 | K59: 1995-07-21 | L59: 1999-02-12 | M59: Administrativo - Servidor Público Civil - Reajustes de Remuneração, Proventos ou Pensão | N59: =IF(O59="-","-",VLOOKUP(O59,[2]VALIDAÇÃO!$N$4:$O$25,2,FALSE)) -> Ministério da Fazenda - Administração Direta | O59: 25101 | P59: UNIÃO | Q59: Mandado de Segurança 4.151/DF | R59: 2016/0157169-5 | S59: 2022-05-12 | T59: Normande Moraes da Silva | U59: 172.212.427-04 | V59: 1951-07-28 | W59: Servidor Público Civil Ativo | X59: Diferença de remuneração - 3,17% | Y59: Sim | Z59: Alimentar | AA59: 6 | AB59: Mota & Advogados Associados | AC59: 03.996.810/0001-38 | AD59: 1 | AE59: Mauro Menezes e Advogados | AF59: 32.901.423/0001-79 | AG59: 1 | AH59: Caputo, Bastos e Serra Advogados | AI59: 12.291.813/0001-67 | AJ59: 0 | AK59: x x x | AL59: x x x | AM59: Dedução de Honorários Contratuais | AN59: Não | AO59: Não | AP59: Não | AQ59: - | AR59: - | AS59: Não informada | AT59: Não Informada | AU59: Não | AV59: 2022-06-01 | AW59: 0 | AX59: 0 | AY59: 32967.69 | AZ59: 57337.12 | BA59: 90304.81 | BB59: 1978.06 | BC59: 3440.22 | BD59: 5418.28 | BE59: 329.67 | BF59: 573.37 | BG59: 903.04 | BH59: 329.67 | BI59: 573.37 | BJ59: 903.04 | BK59: 0 | BL59: 0 | BM59: 0 | BN59: 30330.29 | BO59: 52750.16 | BP59: 83080.45 | BQ59: 37977.55 | BR59: 4177.53 | BS59: 8355.06 | BT59: 53 | BU59: 25743.33 | BV59: 4177.53 | BW59: 2022-06-01 | BY59: 2023-04-01 | CB59: 0 | CC59: 2023-04-01 | DI59: =TRUNC(BQ59*CA59,2) ->  | DL59: 53 | DO59: 1 | DP59: 90304.81 | DQ59: 0 | DR59: 0 | DT59: 0 | DV59: Alimentar | DW59: 234360 | DX59: 73 | EB59: 0 | EC59: 0 | EF59: 2023-04-01 | EH59: 0 | EJ59: 2022-06-01 | EK59: 2023-04-01 | EM59: 0 | EN59: 0 | EO59: 0 | EP59: 0 | EQ59: 0 | ER59: 0 | ES59: 0 | ET59: 0 | EU59: 0 | EV59: 0 | EW59: 0 | FH59: 0 | FI59: 0 | FK59: 0 | LG59: 2022-06-01 | LH59: 2023-04-01 | LK59: 0 | LL59: 0 | LM59: 0 | LN59: 0 | LO59: 0 | LP59: 0 | LQ59: 0 | MB59: 0 | MC59: 0 | MD59: 0 | ME59: 0 | MF59: 0 | MG59: 0 | MH59: 0 | MI59: 0 | MJ59: 0 | MK59: 0 | ML59: 0 | MM59: 0 | MN59: 0 | MO59: 0 | MP59: 0 | MQ59: 0 | MR59: 0 | MS59: 0 | MT59: 0 | MU59: 0 | MV59: 0 | MW59: 0 | MX59: 0 | MY59: 0 | MZ59: 0 | NA59: 0 | NB59: 0 | NC59: 0 | ND59: 0 | NE59: 0 | NF59: 0 | NG59: 0 | NH59: 0 | NI59: 0 | NJ59: 0 | NK59: 0 | NL59: 0 | NM59: 0
A60: 54 | B60: PRC | C60: 9903 | D60: 2022/0186171-1 | E60: 0186171-42.2022.3.00.0000 | F60: 2022-06-15 | G60: ATUALIZAÇÃO JUNTADA | H60: MS 4.151/DF | I60: Mandado de Segurança 4.151/DF | J60: 1995/0038195-8 | K60: 1995-07-21 | L60: 1999-02-12 | M60: Administrativo - Servidor Público Civil - Reajustes de Remuneração, Proventos ou Pensão | N60: =IF(O60="-","-",VLOOKUP(O60,[2]VALIDAÇÃO!$N$4:$O$25,2,FALSE)) -> Ministério da Fazenda - Administração Direta | O60: 25101 | P60: UNIÃO | Q60: Mandado de Segurança 4.151/DF | R60: 2016/0157169-5 | S60: 2022-05-12 | T60: Norival Luciano Cortez | U60: 034.296.958-72 | V60: 1941-12-13 | W60: Servidor Público Civil Inativo | X60: Diferença de remuneração - 3,17% | Y60: Sim | Z60: Alimentar | AA60: 6 | AB60: Mota & Advogados Associados | AC60: 03.996.810/0001-38 | AD60: 1 | AE60: Mauro Menezes e Advogados | AF60: 32.901.423/0001-79 | AG60: 1 | AH60: Caputo, Bastos e Serra Advogados | AI60: 12.291.813/0001-67 | AJ60: 0 | AK60: x x x | AL60: x x x | AM60: Dedução de Honorários Contratuais | AN60: Não | AO60: Não | AP60: Não | AQ60: - | AR60: - | AS60: Não informada | AT60: Não Informada | AU60: Não | AV60: 2022-06-01 | AW60: 0 | AX60: 0 | AY60: 34376.63 | AZ60: 57758.39 | BA60: 92135.02 | BB60: 2062.59 | BC60: 3465.51 | BD60: 5528.1 | BE60: 343.76 | BF60: 577.59 | BG60: 921.35 | BH60: 343.76 | BI60: 577.59 | BJ60: 921.35 | BK60: 0 | BL60: 0 | BM60: 0 | BN60: 31626.52 | BO60: 53137.7 | BP60: 84764.22 | BQ60: 0 | BR60: 0 | BS60: 0 | BT60: 53 | BU60: 27005.83 | BV60: 0 | BW60: 2022-06-01 | BY60: 2023-04-01 | CB60: 0 | CC60: 2023-04-01 | DI60: =IF(BQ60=0,0,IF(H61="MS 4.151/DF",TRUNC(BQ60*CA61,2)+TRUNC(BQ60*CA61,2)*CB60/100,BQ60+(TRUNC(BQ60*VLOOKUP(AV60,[2]VALIDAÇÃO!$C$5:$D$15,2,FALSE)/100,2)))) -> 0 | DJ60: 0 | DK60: 0 | DL60: 53 | DN60: 0 | DO60: 1 | DP60: 92135.02 | DQ60: 0 | DR60: 0 | DT60: 0 | DV60: Alimentar | DW60: 234360 | DX60: 83 | EB60: 0 | EC60: 0 | EF60: 2023-04-01 | EH60: 0 | EJ60: 2022-06-01 | EK60: 2023-04-01 | EM60: 0 | EN60: 0 | EO60: 0 | EP60: 0 | EQ60: 0 | ER60: 0 | ES60: 0 | ET60: 0 | EU60: 0 | EV60: 0 | EW60: 0 | FH60: 0 | FI60: 0 | FK60: 0 | LG60: 2022-06-01 | LH60: 2023-04-01 | LK60: 0 | LL60: 0 | LM60: 0 | LN60: 0 | LO60: 0 | LP60: 0 | LQ60: 0 | MB60: 0 | MC60: 0 | MD60: 0 | ME60: 0 | MF60: 0 | MG60: 0 | MH60: 0 | MI60: 0 | MJ60: 0 | MK60: 0 | ML60: 0 | MM60: 0 | MN60: 0 | MO60: 0 | MP60: 0 | MQ60: 0 | MR60: 0 | MS60: 0 | MT60: 0 | MU60: 0 | MV60: 0 | MW60: 0 | MX60: 0 | MY60: 0 | MZ60: 0 | NA60: 0 | NB60: 0 | NC60: 0 | ND60: 0 | NE60: 0 | NF60: 0 | NG60: 0 | NH60: 0 | NI60: 0 | NJ60: 0 | NK60: 0 | NL60: 0 | NM60: 0
A61: 55 | B61: PRC | C61: 9904 | D61: 2022/0186181-2 | E61: 0186181-86.2022.3.00.0000 | F61: 2022-06-15 | G61: ATUALIZAÇÃO JUNTADA | H61: MS 4.151/DF | I61: Mandado de Segurança 4.151/DF | J61: 1995/0038195-8 | K61: 1995-07-21 | L61: 1999-02-12 | M61: Administrativo - Servidor Público Civil - Reajustes de Remuneração, Proventos ou Pensão | N61: =IF(O61="-","-",VLOOKUP(O61,[2]VALIDAÇÃO!$N$4:$O$25,2,FALSE)) -> Ministério da Fazenda - Administração Direta | O61: 25101 | P61: UNIÃO | Q61: Mandado de Segurança 4.151/DF | R61: 2016/0157244-2 | S61: 2022-05-12 | T61: Osnilda Natalina Marcon | U61: 690.883.148-53 | V61: 1951-12-24 | W61: Servidor Público Civil Ativo | X61: Diferença de remuneração - 3,17% | Y61: Sim | Z61: Alimentar | AA61: 6 | AB61: Mota & Advogados Associados | AC61: 03.996.810/0001-38 | AD61: 1 | AE61: Mauro Menezes e Advogados | AF61: 32.901.423/0001-79 | AG61: 1 | AH61: Caputo, Bastos e Serra Advogados | AI61: 12.291.813/0001-67 | AJ61: 0 | AK61: x x x | AL61: x x x | AM61: Dedução de Honorários Contratuais | AN61: Não | AO61: Não | AP61: Não | AQ61: - | AR61: - | AS61: Não informada | AT61: Não Informada | AU61: Não | AV61: 2022-06-01 | AW61: 0 | AX61: 0 | AY61: 27756.34 | AZ61: 47442.4 | BA61: 75198.74 | BB61: 1665.38 | BC61: 2846.54 | BD61: 4511.92 | BE61: 277.56 | BF61: 474.42 | BG61: 751.98 | BH61: 277.56 | BI61: 474.42 | BJ61: 751.98 | BK61: 0 | BL61: 0 | BM61: 0 | BN61: 25535.84 | BO61: 43647.02 | BP61: 69182.86 | BQ61: 8945.81 | BR61: 984.03 | BS61: 1968.06 | BT61: 53 | BU61: 21740.46 | BV61: 984.03 | BW61: 2022-06-01 | BY61: 2023-04-01 | CB61: 0 | CC61: 2023-04-01 | DI61: =TRUNC(BQ61*CA61,2) ->  | DL61: 53 | DO61: 1 | DP61: 75198.74 | DQ61: 0 | DR61: 0 | DT61: 0 | DV61: Alimentar | DW61: 234360 | DX61: 73 | EB61: 0 | EC61: 0 | EF61: 2023-04-01 | EH61: 0 | EJ61: 2022-06-01 | EK61: 2023-04-01 | EM61: 0 | EN61: 0 | EO61: 0 | EP61: 0 | EQ61: 0 | ER61: 0 | ES61: 0 | ET61: 0 | EU61: 0 | EV61: 0 | EW61: 0 | FH61: 0 | FI61: 0 | FK61: 0 | LG61: 2022-06-01 | LH61: 2023-04-01 | LK61: 0 | LL61: 0 | LM61: 0 | LN61: 0 | LO61: 0 | LP61: 0 | LQ61: 0 | MB61: 0 | MC61: 0 | MD61: 0 | ME61: 0 | MF61: 0 | MG61: 0 | MH61: 0 | MI61: 0 | MJ61: 0 | MK61: 0 | ML61: 0 | MM61: 0 | MN61: 0 | MO61: 0 | MP61: 0 | MQ61: 0 | MR61: 0 | MS61: 0 | MT61: 0 | MU61: 0 | MV61: 0 | MW61: 0 | MX61: 0 | MY61: 0 | MZ61: 0 | NA61: 0 | NB61: 0 | NC61: 0 | ND61: 0 | NE61: 0 | NF61: 0 | NG61: 0 | NH61: 0 | NI61: 0 | NJ61: 0 | NK61: 0 | NL61: 0 | NM61: 0
A62: 56 | B62: PRC | C62: 9905 | D62: 2022/0186193-7 | E62: 0186193-03.2022.3.00.0000 | F62: 2022-06-15 | G62: ATUALIZAÇÃO JUNTADA | H62: MS 4.151/DF | I62: Mandado de Segurança 4.151/DF | J62: 1995/0038195-8 | K62: 1995-07-21 | L62: 1999-02-12 | M62: Administrativo - Servidor Público Civil - Reajustes de Remuneração, Proventos ou Pensão | N62: =IF(O62="-","-",VLOOKUP(O62,[2]VALIDAÇÃO!$N$4:$O$25,2,FALSE)) -> Ministério da Fazenda - Administração Direta | O62: 25101 | P62: UNIÃO | Q62: Mandado de Segurança 4.151/DF | R62: 2016/0157244-2 | S62: 2022-05-12 | T62: Osvaldo Magno Freixo | U62: 049.667.278-98 | V62: 1960-05-13 | W62: Servidor Público Civil Ativo | X62: Diferença de remuneração - 3,17% | Y62: Sim | Z62: Alimentar | AA62: 6 | AB62: Mota & Advogados Associados | AC62: 03.996.810/0001-38 | AD62: 1 | AE62: Mauro Menezes e Advogados | AF62: 32.901.423/0001-79 | AG62: 1 | AH62: Caputo, Bastos e Serra Advogados | AI62: 12.291.813/0001-67 | AJ62: 0 | AK62: x x x | AL62: x x x | AM62: Dedução de Honorários Contratuais | AN62: Não | AO62: Não | AP62: Não | AQ62: - | AR62: - | AS62: Não informada | AT62: Não Informada | AU62: Não | AV62: 2022-06-01 | AW62: 0 | AX62: 0 | AY62: 27117.48 | AZ62: 45989.55 | BA62: 73107.03 | BB62: 1627.04 | BC62: 2759.38 | BD62: 4386.42 | BE62: 271.17 | BF62: 459.9 | BG62: 731.07 | BH62: 271.17 | BI62: 459.9 | BJ62: 731.07 | BK62: 0 | BL62: 0 | BM62: 0 | BN62: 24948.1 | BO62: 42310.37 | BP62: 67258.47 | BQ62: 29621.24 | BR62: 3258.33 | BS62: 6516.66 | BT62: 53 | BU62: 21268.92 | BV62: 3258.33 | BW62: 2022-06-01 | BY62: 2023-04-01 | CB62: 0 | CC62: 2023-04-01 | DI62: =TRUNC(BQ62*CA62,2) ->  | DL62: 53 | DO62: 1 | DP62: 73107.03 | DQ62: 0 | DR62: 0 | DT62: 0 | DV62: Alimentar | DW62: 234360 | DX62: 64 | EB62: 0 | EC62: 0 | EF62: 2023-04-01 | EH62: 0 | EJ62: 2022-06-01 | EK62: 2023-04-01 | EM62: 0 | EN62: 0 | EO62: 0 | EP62: 0 | EQ62: 0 | ER62: 0 | ES62: 0 | ET62: 0 | EU62: 0 | EV62: 0 | EW62: 0 | FH62: 0 | FI62: 0 | FK62: 0 | LG62: 2022-06-01 | LH62: 2023-04-01 | LK62: 0 | LL62: 0 | LM62: 0 | LN62: 0 | LO62: 0 | LP62: 0 | LQ62: 0 | MB62: 0 | MC62: 0 | MD62: 0 | ME62: 0 | MF62: 0 | MG62: 0 | MH62: 0 | MI62: 0 | MJ62: 0 | MK62: 0 | ML62: 0 | MM62: 0 | MN62: 0 | MO62: 0 | MP62: 0 | MQ62: 0 | MR62: 0 | MS62: 0 | MT62: 0 | MU62: 0 | MV62: 0 | MW62: 0 | MX62: 0 | MY62: 0 | MZ62: 0 | NA62: 0 | NB62: 0 | NC62: 0 | ND62: 0 | NE62: 0 | NF62: 0 | NG62: 0 | NH62: 0 | NI62: 0 | NJ62: 0 | NK62: 0 | NL62: 0 | NM62: 0
... 77 more rows
